Workbook

Sheet CALCULADORA
B1: Exclusión de responsabilidad
B2: Exclusión de responsabilidad
D7: Fecha de Compra
D8: Fecha de Venta
B9: Calculadora Emisiones TIPS en UVR
B11: Emisión | C11: TIPS UVR U-6 A 2037 | E11: Seleccionar la Emisión a Calcular | F11: 0.0396
F12: 99.412
B13: Características | F13: 99.439
B14: Identificación titulo (Nemotécnico) | C14: =+HLOOKUP(C11,Características!B1:F7,2,FALSE) -> INST15161237
B15: Fecha de Emisión | C15: =+HLOOKUP(C11,Características!B1:F7,4,FALSE) -> 2022-12-16
B16: Fecha de Vencimiento Contractual | C16: =+HLOOKUP(C11,Características!B1:F8,5,FALSE) -> 2037-12-16
B17: Fecha estimada para el pago del 100% del título
B18: Fecha estimada para el pago del 100% del título | C18: =+VLOOKUP(0,Flujos!D2:I182,6,FALSE) -> 2033-12-16
B19: Tasa Facial Efectiva Anual | C19: =+HLOOKUP(C11,Características!B1:F7,6,FALSE) -> 0.078
B20: Tasa Facial Nominal Anual | C20: =+ROUND(((1+C19)^(1/12)-1)*12,6) -> 0.075343
B21: Duración Macaulay (Años en los que recuperas tu inversión) | C21: =+SUMPRODUCT(Flujos!B2:B182,Flujos!H2:H182)/Flujos!H183/365 -> 3.070596392
B22: Nominal Inicial UVR (Monto del título al momento de la emisión) | C22: =Flujos!L2 -> 109099002.9
B23: UVR* | C23: =IF(VLOOKUP(C30,UVR!$A:$B,2,FALSE)=0,"Actualizar base",VLOOKUP(C30,UVR!$A:$B,2,FALSE)) -> 378.2189 | D23: UVR*: El valor de la UVR se proyecta desde el 15/02/2024 con el promedio de las expectivas de nuestros agentes colocadores
B25: Datos de Compra
B26: Fecha de Compra | C26: 2022-03-14 | E26: Fecha de Compra y Valor de Compra son datos opcionales deben incluirse solo para calcular la TIR de Tenencia
B27: Valor de Compra (COP) | C27: 52000000
B29: Datos de Venta
B30: Fecha de Venta | C30: 2025-02-01
B31: Valor nominal negociado (UVR) | C31: 81012045 | E31: Incluir los datos de las celdas grises
B32: Tasa de negociación / tasa de valoración | C32: 0.0396
B33: Precio Limpio (sin incluir intereses causados) | C33: 94.307
B34: Precio sucio (incluyendo intereses causados) | C34: 94.505
B35: Porcentaje del nominal inicial que falta por pagar del capital | C35: =+Flujos!C183*100 -> 74.255532
B36: Valor de Giro (COP) | C36: =+Características!B20 -> 28992114893
B38: TIR de Tenencia en COP* | C38: =+'TIR de Tenencia'!N2 ->  | E38: TIR de Tenencia en COP*
B40: Oficina de Atención a Inversionistas al 601 618 3030 ext 257 - 239, o al correo asalcedo@titularizadora.com - josorio@titularizadora.com

Sheet Características (hidden)
A1: Serie | B1: TIPS UVR U-2 A 2027 | C1: TIPS UVR U-3 A 2028 | D1: TIPS UVR U-4 A 2029 | E1: TIPS UVR U-5 A 2036 | F1: TIPS UVR U-6 A 2037
A2: Nemo MEC | B2: INST10091127 | C2: INST10250728 | D2: INST10150829 | E2: INST15071036 | F2: INST15161237
A3: ISIN | B3: COT80CHGRALTITIP0AD0146 | C3: COT80CH02555 | D3: COT80CHxxxxxx | E3: COT80CHxxxxxx | F3: COT80CHxxxxxx
A4: Emisión | B4: 2017-11-09 | C4: 2018-07-25 | D4: 2019-08-15 | E4: 2021-10-07 | F4: 2022-12-16
A5: Vencimiento contractual | B5: 2027-11-09 | C5: 2028-07-25 | D5: 2029-08-15 | E5: 2036-10-07 | F5: 2037-12-16
A6: Cupón EA | B6: 0.0319 | C6: 0.0318 | D6: 0.0222 | E6: 0.0258 | F6: 0.078
A7: Moneda | B7: UVR | C7: UVR | D7: UVR | E7: UVR | F7: UVR
A9: Cálculo de tasa y precio sucio a partir del limpio
A10: Fecha de liquidación | B10: =+CALCULADORA!C30 -> 2025-02-01
A11: Fecha último pago cupón | B11: =+VLOOKUP(B10,Flujos!$A$2:$A$182,1) -> 2025-01-16
A12: Valor Par | B12: =+VLOOKUP(B11,Flujos!$A$2:$D$182,4) -> 74.255532
A13: Próximo pago de interés | B13: =+VLOOKUP(EDATE(B10,1),Flujos!$A$2:$F$182,6) -> 0.46625
A14: Días corridos | B14: =+DAYS360(B11,B10,TRUE) -> 15
A15: Días entre flujos | B15: 30
A16: Cupón corrido | B16: =ROUND(B13/B12*B14/B15*100,4) -> 0.3139
A17: Precio limpio | B17: =+CALCULADORA!C33 -> 94.307
A18: Nominal | B18: =+CALCULADORA!C31 -> 81012045
A19: Moneda | B19: =+CALCULADORA!$C$23 -> 378.2189
A20: Contravalor | B20: =ROUND(B18*B19*(B17+B16)/100,0) -> 28992114893
A21: Precio unitario | B21: =TRUNC(B20/B18,5) -> 357.87412
A22: Precio sucio MEC | B22: =TRUNC(B21/B19*100,3) -> 94.62
A23: Precio sucio modelo | B23: =TRUNC(Flujos!H183/VLOOKUP(CALCULADORA!C30,Flujos!A2:D182,4)*100,3) -> 111.796
A24: Diferencia | B24: =+B22-B23 -> -17.176
A25: Tasa de descuento equivalente | B25: =TRUNC(CALCULADORA!C32,5) -> 0.0396
A27: Cálculo de precio limpio y sucio a partir de tasa
A28: Tasa de descuento | B28: =TRUNC(CALCULADORA!C32,5) -> 0.0396
A29: Precio sucio modelo | B29: =TRUNC(Flujos!H183/VLOOKUP(CALCULADORA!C30,Flujos!A2:D182,4)*100,3) -> 111.796
A30: Moneda | B30: =+CALCULADORA!$C$23 -> 378.2189
A31: Nominal | B31: =+CALCULADORA!C31 -> 81012045
A32: Contravalor | B32: =+ROUND(B29/100*B31*B30,0) -> 34254614748
A33: Valor Par | B33: =+VLOOKUP(B11,Flujos!$A$2:$D$182,4) -> 74.255532
A34: Próximo pago de interés | B34: =+VLOOKUP(EDATE(B10,1),Flujos!$A$2:$F$182,6) -> 0.46625
A35: Días corridos | B35: =+DAYS360(B11,B10,TRUE) -> 15
A36: Días entre flujos | B36: 30
A37: Precio unitario | B37: =TRUNC(B32/(B30*B31),5) -> 1.11796
A38: Cupón corrido | B38: =ROUND(B34/B33*B35/B36,6)*100 -> 0.3139
A39: Precio limpio | B39: =ROUND((B37-(B38/100))*100,3) -> 111.482

Sheet Flujos
A1: Fecha | B1: Días 365 / Days 365 | C1: Amortización / Amortization | D1: Factor Saldo | E1: Factor Capital | F1: Factor Intereses | G1: Factor Total | H1: VPN | I1: Control | J1: Mes inicial | K1: Días iniciales | L1: Saldo / Balance | M1: Pago de Capital en UVR | N1: Pago de Intereses en UVR | O1: Pago Total UVR | P1: Pago de Capital en COP | Q1: Pago de Intereses en COP | R1: Pago Total COP
A2: =+CALCULADORA!C15 -> 2022-12-16 | B2: =IF(DIAS365(CALCULADORA!$C$30,A2)<0,0,DIAS365(CALCULADORA!$C$30,A2)) -> 0 | C2: 0 | D2: =+CALCULADORA!C35/Flujos!C183 -> 100 | E2: 0 | F2: 0 | G2: =F2+E2 -> 0 | H2: =IF($B2<0,0,G2/POWER(1+CALCULADORA!$C$32,Flujos!$B2/365)) -> 0 | I2: =+A2 -> 2022-12-16 | J2: 0 | K2: 0 | L2: =+Características!B18/Flujos!C183 -> 109099002.9 | M2: 0 | N2: 0 | O2: =+N2+M2 -> 0 | P2: 0 | Q2: 0 | R2: =+Q2+P2 -> 0
A3: =EDATE(A2,1) -> 2023-01-16 | B3: =IF(DIAS365(CALCULADORA!$C$30,A3)<0,0,DIAS365(CALCULADORA!$C$30,A3)) -> 0 | C3: =+HLOOKUP(CALCULADORA!$C$11,Tablas!$B$1:$B$181,Flujos!J3+1,FALSE) -> 0.01013202 | D3: =+ROUND(D2-E3,6) -> 98.986798 | E3: =ROUND(C3*$D$2,6) -> 1.013202 | F3: =ROUND(D2*ROUND(((1+CALCULADORA!$C$19)^(1/12)-1),6),6) -> 0.6279 | G3: =F3+E3 -> 1.641102 | H3: =IF($B3=0,0,G3/POWER(1+CALCULADORA!$C$32,Flujos!$B3/365)) -> 0 | I3: =+A3 -> 2023-01-16 | J3: 1 | K3: =+DIAS365($A$2,A3) -> 31 | L3: =+L2-M3 -> 107993609.6 | M3: =+$L$2*C3 -> 1105393.279 | N3: =+L2*$F$3% -> 685032.6391 | O3: =+N3+M3 -> 1790425.918 | P3: =M3*IFERROR(VLOOKUP($A3,UVR!$A:$B,2,0),CALCULADORA!$C$23) -> 360060968.8 | Q3: =N3*IFERROR(VLOOKUP($A3,UVR!$A:$B,2,0),CALCULADORA!$C$23) -> 223136435.1 | R3: =O3*IFERROR(VLOOKUP($A3,UVR!$A:$B,2,0),CALCULADORA!$C$23) -> 583197403.9
A4: =EDATE(A3,1) -> 2023-02-16 | B4: =IF(DIAS365(CALCULADORA!$C$30,A4)<0,0,DIAS365(CALCULADORA!$C$30,A4)) -> 0 | C4: =+HLOOKUP(CALCULADORA!$C$11,Tablas!$B$1:$B$181,Flujos!J4+1,FALSE) -> 0.00673869 | D4: =+ROUND(D3-E4,6) -> 98.312929 | E4: =ROUND(C4*$D$2,6) -> 0.673869 | F4: =ROUND(D3*ROUND(((1+CALCULADORA!$C$19)^(1/12)-1),6),6) -> 0.621538 | G4: =F4+E4 -> 1.295407 | H4: =IF($B4=0,0,G4/POWER(1+CALCULADORA!$C$32,Flujos!$B4/365)) -> 0 | I4: 2023-02-16 | J4: 2 | K4: =+DIAS365($A$2,A4) -> 62 | L4: =+L3-M4 -> 107258425.2 | M4: =+$L$2*C4 -> 735184.3598 | N4: =+L3*$F$3% -> 678091.8747 | O4: =+N4+M4 -> 1413276.234 | P4: =M4*IFERROR(VLOOKUP($A4,UVR!$A:$B,2,0),CALCULADORA!$C$23) -> 242544672.1 | Q4: =N4*IFERROR(VLOOKUP($A4,UVR!$A:$B,2,0),CALCULADORA!$C$23) -> 223709290.4 | R4: =O4*IFERROR(VLOOKUP($A4,UVR!$A:$B,2,0),CALCULADORA!$C$23) -> 466253962.5
A5: 2023-03-16 | B5: =IF(DIAS365(CALCULADORA!$C$30,A5)<0,0,DIAS365(CALCULADORA!$C$30,A5)) -> 0 | C5: =+HLOOKUP(CALCULADORA!$C$11,Tablas!$B$1:$B$181,Flujos!J5+1,FALSE) -> 0.01048377 | D5: =+ROUND(D4-E5,6) -> 97.264552 | E5: 1.048377 | F5: =ROUND(D4*ROUND(((1+CALCULADORA!$C$19)^(1/12)-1),6),6) -> 0.617307 | G5: 1.665684 | H5: =IF($B5=0,0,G5/POWER(1+CALCULADORA!$C$32,Flujos!$B5/365)) -> 0 | I5: 2023-03-16 | J5: 3 | K5: 90 | L5: 106114656.4 | M5: 1143768.853 | N5: 673475.6521 | O5: 1817244.506 | P5: =M5*IFERROR(VLOOKUP($A5,UVR!$A:$B,2,0),CALCULADORA!$C$23) -> 384019477.5 | Q5: =N5*IFERROR(VLOOKUP($A5,UVR!$A:$B,2,0),CALCULADORA!$C$23) -> 226118911.4 | R5: =O5*IFERROR(VLOOKUP($A5,UVR!$A:$B,2,0),CALCULADORA!$C$23) -> 610138389
A6: 2023-04-16 | B6: =IF(DIAS365(CALCULADORA!$C$30,A6)<0,0,DIAS365(CALCULADORA!$C$30,A6)) -> 0 | C6: =+HLOOKUP(CALCULADORA!$C$11,Tablas!$B$1:$B$181,Flujos!J6+1,FALSE) -> 0.00595883 | D6: 96.668669 | E6: 0.595883 | F6: =ROUND(D5*ROUND(((1+CALCULADORA!$C$19)^(1/12)-1),6),6) -> 0.610724 | G6: 1.206607 | H6: =IF($B6=0,0,G6/POWER(1+CALCULADORA!$C$32,Flujos!$B6/365)) -> 0 | I6: 2023-04-16 | J6: 4 | K6: 121 | L6: 105464554 | M6: 650102.4114 | N6: 666293.9275 | O6: 1316396.339 | P6: =M6*IFERROR(VLOOKUP($A6,UVR!$A:$B,2,0),CALCULADORA!$C$23) -> 221854078.9 | Q6: =N6*IFERROR(VLOOKUP($A6,UVR!$A:$B,2,0),CALCULADORA!$C$23) -> 227379599 | R6: =O6*IFERROR(VLOOKUP($A6,UVR!$A:$B,2,0),CALCULADORA!$C$23) -> 449233677.9
A7: 2023-05-16 | B7: =IF(DIAS365(CALCULADORA!$C$30,A7)<0,0,DIAS365(CALCULADORA!$C$30,A7)) -> 0 | C7: =+HLOOKUP(CALCULADORA!$C$11,Tablas!$B$1:$B$181,Flujos!J7+1,FALSE) -> 0.0086504 | D7: 95.803629 | E7: 0.86504 | F7: =ROUND(D6*ROUND(((1+CALCULADORA!$C$19)^(1/12)-1),6),6) -> 0.606983 | G7: 1.472023 | H7: =IF($B7=0,0,G7/POWER(1+CALCULADORA!$C$32,Flujos!$B7/365)) -> 0 | I7: 2023-05-16 | J7: 5 | K7: 151 | L7: 104520804 | M7: 943750.0146 | N7: 662211.9345 | O7: 1605961.949 | P7: =M7*IFERROR(VLOOKUP($A7,UVR!$A:$B,2,0),CALCULADORA!$C$23) -> 325414253.8 | Q7: =N7*IFERROR(VLOOKUP($A7,UVR!$A:$B,2,0),CALCULADORA!$C$23) -> 228337164.7 | R7: =O7*IFERROR(VLOOKUP($A7,UVR!$A:$B,2,0),CALCULADORA!$C$23) -> 553751418.5
A8: 2023-06-16 | B8: =IF(DIAS365(CALCULADORA!$C$30,A8)<0,0,DIAS365(CALCULADORA!$C$30,A8)) -> 0 | C8: =+HLOOKUP(CALCULADORA!$C$11,Tablas!$B$1:$B$181,Flujos!J8+1,FALSE) -> 0.01126498 | D8: 94.677131 | E8: 1.126498 | F8: =ROUND(D7*ROUND(((1+CALCULADORA!$C$19)^(1/12)-1),6),6) -> 0.601551 | G8: 1.728049 | H8: =IF($B8=0,0,G8/POWER(1+CALCULADORA!$C$32,Flujos!$B8/365)) -> 0 | I8: 2023-06-16 | J8: 6 | K8: 182 | L8: 103291805.9 | M8: 1228998.086 | N8: 656286.1281 | O8: 1885284.214 | P8: =M8*IFERROR(VLOOKUP($A8,UVR!$A:$B,2,0),CALCULADORA!$C$23) -> 427030009.9 | Q8: =N8*IFERROR(VLOOKUP($A8,UVR!$A:$B,2,0),CALCULADORA!$C$23) -> 228034425 | R8: =O8*IFERROR(VLOOKUP($A8,UVR!$A:$B,2,0),CALCULADORA!$C$23) -> 655064434.9
A9: 2023-07-16 | B9: =IF(DIAS365(CALCULADORA!$C$30,A9)<0,0,DIAS365(CALCULADORA!$C$30,A9)) -> 0 | C9: =+HLOOKUP(CALCULADORA!$C$11,Tablas!$B$1:$B$181,Flujos!J9+1,FALSE) -> 0.00895723 | D9: 93.781408 | E9: 0.895723 | F9: =ROUND(D8*ROUND(((1+CALCULADORA!$C$19)^(1/12)-1),6),6) -> 0.594478 | G9: 1.490201 | H9: =IF($B9=0,0,G9/POWER(1+CALCULADORA!$C$32,Flujos!$B9/365)) -> 0 | I9: 2023-07-16 | J9: 7 | K9: 212 | L9: 102314581 | M9: 977224.8616 | N9: 648569.2491 | O9: 1625794.111 | P9: =M9*IFERROR(VLOOKUP($A9,UVR!$A:$B,2,0),CALCULADORA!$C$23) -> 340992647.8 | Q9: =N9*IFERROR(VLOOKUP($A9,UVR!$A:$B,2,0),CALCULADORA!$C$23) -> 226311624.1 | R9: =O9*IFERROR(VLOOKUP($A9,UVR!$A:$B,2,0),CALCULADORA!$C$23) -> 567304271.8
A10: 2023-08-16 | B10: =IF(DIAS365(CALCULADORA!$C$30,A10)<0,0,DIAS365(CALCULADORA!$C$30,A10)) -> 0 | C10: =+HLOOKUP(CALCULADORA!$C$11,Tablas!$B$1:$B$181,Flujos!J10+1,FALSE) -> 0.00714902 | D10: 93.066506 | E10: 0.714902 | F10: =ROUND(D9*ROUND(((1+CALCULADORA!$C$19)^(1/12)-1),6),6) -> 0.588853 | G10: 1.303755 | H10: =IF($B10=0,0,G10/POWER(1+CALCULADORA!$C$32,Flujos!$B10/365)) -> 0 | I10: 2023-08-16 | J10: 8 | K10: 243 | L10: 101534630.1 | M10: 779950.9536 | N10: 642433.2542 | O10: 1422384.208 | P10: =M10*IFERROR(VLOOKUP($A10,UVR!$A:$B,2,0),CALCULADORA!$C$23) -> 272989931.3 | Q10: =N10*IFERROR(VLOOKUP($A10,UVR!$A:$B,2,0),CALCULADORA!$C$23) -> 224857485.1 | R10: =O10*IFERROR(VLOOKUP($A10,UVR!$A:$B,2,0),CALCULADORA!$C$23) -> 497847416.4
A11: 2023-09-16 | B11: =IF(DIAS365(CALCULADORA!$C$30,A11)<0,0,DIAS365(CALCULADORA!$C$30,A11)) -> 0 | C11: =+HLOOKUP(CALCULADORA!$C$11,Tablas!$B$1:$B$181,Flujos!J11+1,FALSE) -> 0.00869482 | D11: 92.197024 | E11: 0.869482 | F11: =ROUND(D10*ROUND(((1+CALCULADORA!$C$19)^(1/12)-1),6),6) -> 0.584365 | G11: 1.453847 | H11: =IF($B11=0,0,G11/POWER(1+CALCULADORA!$C$32,Flujos!$B11/365)) -> 0 | I11: 2023-09-16 | J11: 9 | K11: 274 | L11: 100586033.9 | M11: 948596.1923 | N11: 637535.9422 | O11: 1586132.134 | P11: =M11*IFERROR(VLOOKUP($A11,UVR!$A:$B,2,0),CALCULADORA!$C$23) -> 333701342.3 | Q11: =N11*IFERROR(VLOOKUP($A11,UVR!$A:$B,2,0),CALCULADORA!$C$23) -> 224275198.9 | R11: =O11*IFERROR(VLOOKUP($A11,UVR!$A:$B,2,0),CALCULADORA!$C$23) -> 557976541.2
A12: 2023-10-16 | B12: =IF(DIAS365(CALCULADORA!$C$30,A12)<0,0,DIAS365(CALCULADORA!$C$30,A12)) -> 0 | C12: =+HLOOKUP(CALCULADORA!$C$11,Tablas!$B$1:$B$181,Flujos!J12+1,FALSE) -> 0.00425685 | D12: 91.771339 | E12: 0.425685 | F12: =ROUND(D11*ROUND(((1+CALCULADORA!$C$19)^(1/12)-1),6),6) -> 0.578905 | G12: 1.00459 | H12: =IF($B12=0,0,G12/POWER(1+CALCULADORA!$C$32,Flujos!$B12/365)) -> 0 | I12: 2023-10-16 | J12: 10 | K12: 304 | L12: 100121615.8 | M12: 464418.0904 | N12: 631579.7067 | O12: 1095997.797 | P12: =M12*IFERROR(VLOOKUP($A12,UVR!$A:$B,2,0),CALCULADORA!$C$23) -> 164508962.5 | Q12: =N12*IFERROR(VLOOKUP($A12,UVR!$A:$B,2,0),CALCULADORA!$C$23) -> 223721953.2 | R12: =O12*IFERROR(VLOOKUP($A12,UVR!$A:$B,2,0),CALCULADORA!$C$23) -> 388230915.7
A13: 2023-11-16 | B13: =IF(DIAS365(CALCULADORA!$C$30,A13)<0,0,DIAS365(CALCULADORA!$C$30,A13)) -> 0 | C13: =+HLOOKUP(CALCULADORA!$C$11,Tablas!$B$1:$B$181,Flujos!J13+1,FALSE) -> 0.01052075 | D13: 90.719264 | E13: 1.052075 | F13: =ROUND(D12*ROUND(((1+CALCULADORA!$C$19)^(1/12)-1),6),6) -> 0.576232 | G13: 1.628307 | H13: =IF($B13=0,0,G13/POWER(1+CALCULADORA!$C$32,Flujos!$B13/365)) -> 0 | I13: 2023-11-16 | J13: 11 | K13: 335 | L13: 98973812.45 | M13: 1147803.335 | N13: 628663.6255 | O13: 1776466.96 | P13: =M13*IFERROR(VLOOKUP($A13,UVR!$A:$B,2,0),CALCULADORA!$C$23) -> 408740343 | Q13: =N13*IFERROR(VLOOKUP($A13,UVR!$A:$B,2,0),CALCULADORA!$C$23) -> 223871266.2 | R13: =O13*IFERROR(VLOOKUP($A13,UVR!$A:$B,2,0),CALCULADORA!$C$23) -> 632611609.2
A14: 2023-12-16 | B14: =IF(DIAS365(CALCULADORA!$C$30,A14)<0,0,DIAS365(CALCULADORA!$C$30,A14)) -> 0 | C14: =+HLOOKUP(CALCULADORA!$C$11,Tablas!$B$1:$B$181,Flujos!J14+1,FALSE) -> 0.0077276 | D14: 89.946504 | E14: 0.77276 | F14: =ROUND(D13*ROUND(((1+CALCULADORA!$C$19)^(1/12)-1),6),6) -> 0.569626 | G14: 1.342386 | H14: =IF($B14=0,0,G14/POWER(1+CALCULADORA!$C$32,Flujos!$B14/365)) -> 0 | I14: 2023-12-16 | J14: 12 | K14: 365 | L14: 98130739 | M14: 843073.4547 | N14: 621456.5684 | O14: 1464530.023 | P14: =M14*IFERROR(VLOOKUP($A14,UVR!$A:$B,2,0),CALCULADORA!$C$23) -> 300224021.5 | Q14: =N14*IFERROR(VLOOKUP($A14,UVR!$A:$B,2,0),CALCULADORA!$C$23) -> 221304785.6 | R14: =O14*IFERROR(VLOOKUP($A14,UVR!$A:$B,2,0),CALCULADORA!$C$23) -> 521528807.1
A15: 2024-01-16 | B15: =IF(DIAS365(CALCULADORA!$C$30,A15)<0,0,DIAS365(CALCULADORA!$C$30,A15)) -> 0 | C15: =+HLOOKUP(CALCULADORA!$C$11,Tablas!$B$1:$B$181,Flujos!J15+1,FALSE) -> 0.01009764 | D15: 88.93674 | E15: 1.009764 | F15: =ROUND(D14*ROUND(((1+CALCULADORA!$C$19)^(1/12)-1),6),6) -> 0.564774 | G15: 1.574538 | H15: =IF($B15=0,0,G15/POWER(1+CALCULADORA!$C$32,Flujos!$B15/365)) -> 0 | I15: 2024-01-16 | J15: 13 | K15: 396 | L15: 97029096.54 | M15: 1101642.456 | N15: 616162.9102 | O15: 1717805.366 | P15: =M15*IFERROR(VLOOKUP($A15,UVR!$A:$B,2,0),CALCULADORA!$C$23) -> 396818883.3 | Q15: =N15*IFERROR(VLOOKUP($A15,UVR!$A:$B,2,0),CALCULADORA!$C$23) -> 221945946.9 | R15: =O15*IFERROR(VLOOKUP($A15,UVR!$A:$B,2,0),CALCULADORA!$C$23) -> 618764830.2
A16: 2024-02-16 | B16: =IF(DIAS365(CALCULADORA!$C$30,A16)<0,0,DIAS365(CALCULADORA!$C$30,A16)) -> 0 | C16: =+HLOOKUP(CALCULADORA!$C$11,Tablas!$B$1:$B$181,Flujos!J16+1,FALSE) -> 0.01548427 | D16: 87.388313 | E16: 1.548427 | F16: =ROUND(D15*ROUND(((1+CALCULADORA!$C$19)^(1/12)-1),6),6) -> 0.558434 | G16: 2.106861 | H16: =IF($B16=0,0,G16/POWER(1+CALCULADORA!$C$32,Flujos!$B16/365)) -> 0 | I16: 2024-02-16 | J16: 14 | K16: 427 | L16: 95339778.12 | M16: 1689318.417 | N16: 609245.6972 | O16: 2298564.115 | P16: =M16*IFERROR(VLOOKUP($A16,UVR!$A:$B,2,0),CALCULADORA!$C$23) -> 608784070.3 | Q16: =N16*IFERROR(VLOOKUP($A16,UVR!$A:$B,2,0),CALCULADORA!$C$23) -> 219555455.9 | R16: =O16*IFERROR(VLOOKUP($A16,UVR!$A:$B,2,0),CALCULADORA!$C$23) -> 828339526.2
A17: 2024-03-16 | B17: =IF(DIAS365(CALCULADORA!$C$30,A17)<0,0,DIAS365(CALCULADORA!$C$30,A17)) -> 0 | C17: =+HLOOKUP(CALCULADORA!$C$11,Tablas!$B$1:$B$181,Flujos!J17+1,FALSE) -> 0.00928863 | D17: 86.45945 | E17: 0.928863 | F17: =ROUND(D16*ROUND(((1+CALCULADORA!$C$19)^(1/12)-1),6),6) -> 0.548711 | G17: 1.477574 | H17: =IF($B17=0,0,G17/POWER(1+CALCULADORA!$C$32,Flujos!$B17/365)) -> 0 | I17: 2024-03-16 | J17: 15 | K17: 455 | L17: 94326397.85 | M17: 1013380.271 | N17: 598638.4668 | O17: 1612018.738 | P17: =M17*IFERROR(VLOOKUP($A17,UVR!$A:$B,2,0),CALCULADORA!$C$23) -> 368566810 | Q17: =N17*IFERROR(VLOOKUP($A17,UVR!$A:$B,2,0),CALCULADORA!$C$23) -> 217725049.8 | R17: =O17*IFERROR(VLOOKUP($A17,UVR!$A:$B,2,0),CALCULADORA!$C$23) -> 586291859.8
A18: 2024-04-16 | B18: =IF(DIAS365(CALCULADORA!$C$30,A18)<0,0,DIAS365(CALCULADORA!$C$30,A18)) -> 0 | C18: =+HLOOKUP(CALCULADORA!$C$11,Tablas!$B$1:$B$181,Flujos!J18+1,FALSE) -> 0.00754268 | D18: 85.705182 | E18: 0.754268 | F18: =ROUND(D17*ROUND(((1+CALCULADORA!$C$19)^(1/12)-1),6),6) -> 0.542879 | G18: 1.297147 | H18: =IF($B18=0,0,G18/POWER(1+CALCULADORA!$C$32,Flujos!$B18/365)) -> 0 | I18: 2024-04-16 | J18: 16 | K18: 486 | L18: 93503498.98 | M18: 822898.8671 | N18: 592275.4521 | O18: 1415174.319 | P18: =M18*IFERROR(VLOOKUP($A18,UVR!$A:$B,2,0),CALCULADORA!$C$23) -> 302515398.2 | Q18: =N18*IFERROR(VLOOKUP($A18,UVR!$A:$B,2,0),CALCULADORA!$C$23) -> 217733249.3 | R18: =O18*IFERROR(VLOOKUP($A18,UVR!$A:$B,2,0),CALCULADORA!$C$23) -> 520248647.5
A19: 2024-05-16 | B19: =IF(DIAS365(CALCULADORA!$C$30,A19)<0,0,DIAS365(CALCULADORA!$C$30,A19)) -> 0 | C19: =+HLOOKUP(CALCULADORA!$C$11,Tablas!$B$1:$B$181,Flujos!J19+1,FALSE) -> 0.01463474 | D19: 84.241708 | E19: 1.463474 | F19: =ROUND(D18*ROUND(((1+CALCULADORA!$C$19)^(1/12)-1),6),6) -> 0.538143 | G19: 2.001617 | H19: =IF($B19=0,0,G19/POWER(1+CALCULADORA!$C$32,Flujos!$B19/365)) -> 0 | I19: 2024-05-16 | J19: 17 | K19: 516 | L19: 91906863.44 | M19: 1596635.542 | N19: 587108.4701 | O19: 2183744.012 | P19: =M19*IFERROR(VLOOKUP($A19,UVR!$A:$B,2,0),CALCULADORA!$C$23) -> 591041107.8 | Q19: =N19*IFERROR(VLOOKUP($A19,UVR!$A:$B,2,0),CALCULADORA!$C$23) -> 217335285.1 | R19: =O19*IFERROR(VLOOKUP($A19,UVR!$A:$B,2,0),CALCULADORA!$C$23) -> 808376392.9
A20: 2024-06-16 | B20: =IF(DIAS365(CALCULADORA!$C$30,A20)<0,0,DIAS365(CALCULADORA!$C$30,A20)) -> 0 | C20: =+HLOOKUP(CALCULADORA!$C$11,Tablas!$B$1:$B$181,Flujos!J20+1,FALSE) -> 0.01242813 | D20: 82.998895 | E20: 1.242813 | F20: =ROUND(D19*ROUND(((1+CALCULADORA!$C$19)^(1/12)-1),6),6) -> 0.528954 | G20: 1.771767 | H20: =IF($B20=0,0,G20/POWER(1+CALCULADORA!$C$32,Flujos!$B20/365)) -> 0 | I20: 2024-06-16 | J20: 18 | K20: 547 | L20: 90550966.85 | M20: 1355896.591 | N20: 577083.1956 | O20: 1932979.786 | P20: =M20*IFERROR(VLOOKUP($A20,UVR!$A:$B,2,0),CALCULADORA!$C$23) -> 504862400.8 | Q20: =N20*IFERROR(VLOOKUP($A20,UVR!$A:$B,2,0),CALCULADORA!$C$23) -> 214874504.1 | R20: =O20*IFERROR(VLOOKUP($A20,UVR!$A:$B,2,0),CALCULADORA!$C$23) -> 719736904.9
A21: 2024-07-16 | B21: =IF(DIAS365(CALCULADORA!$C$30,A21)<0,0,DIAS365(CALCULADORA!$C$30,A21)) -> 0 | C21: =+HLOOKUP(CALCULADORA!$C$11,Tablas!$B$1:$B$181,Flujos!J21+1,FALSE) -> 0.00960182 | D21: 82.038713 | E21: 0.960182 | F21: =ROUND(D20*ROUND(((1+CALCULADORA!$C$19)^(1/12)-1),6),6) -> 0.52115 | G21: 1.481332 | H21: =IF($B21=0,0,G21/POWER(1+CALCULADORA!$C$32,Flujos!$B21/365)) -> 0 | I21: 2024-07-16 | J21: 19 | K21: 577 | L21: 89503417.86 | M21: 1047548.988 | N21: 568569.5209 | O21: 1616118.509 | P21: =M21*IFERROR(VLOOKUP($A21,UVR!$A:$B,2,0),CALCULADORA!$C$23) -> 391711983.4 | Q21: =N21*IFERROR(VLOOKUP($A21,UVR!$A:$B,2,0),CALCULADORA!$C$23) -> 212606281.2 | R21: =O21*IFERROR(VLOOKUP($A21,UVR!$A:$B,2,0),CALCULADORA!$C$23) -> 604318264.6
A22: 2024-08-16 | B22: =IF(DIAS365(CALCULADORA!$C$30,A22)<0,0,DIAS365(CALCULADORA!$C$30,A22)) -> 0 | C22: =+HLOOKUP(CALCULADORA!$C$11,Tablas!$B$1:$B$181,Flujos!J22+1,FALSE) -> 0.00734035 | D22: 81.304678 | E22: 0.734035 | F22: =ROUND(D21*ROUND(((1+CALCULADORA!$C$19)^(1/12)-1),6),6) -> 0.515121 | G22: 1.249156 | H22: =IF($B22=0,0,G22/POWER(1+CALCULADORA!$C$32,Flujos!$B22/365)) -> 0 | I22: 2024-08-16 | J22: 20 | K22: 608 | L22: 88702593 | M22: 800824.8658 | N22: 561991.9608 | O22: 1362816.827 | P22: =M22*IFERROR(VLOOKUP($A22,UVR!$A:$B,2,0),CALCULADORA!$C$23) -> 300400698.8 | Q22: =N22*IFERROR(VLOOKUP($A22,UVR!$A:$B,2,0),CALCULADORA!$C$23) -> 210811108.6 | R22: =O22*IFERROR(VLOOKUP($A22,UVR!$A:$B,2,0),CALCULADORA!$C$23) -> 511211807.4
A23: 2024-09-16 | B23: =IF(DIAS365(CALCULADORA!$C$30,A23)<0,0,DIAS365(CALCULADORA!$C$30,A23)) -> 0 | C23: =+HLOOKUP(CALCULADORA!$C$11,Tablas!$B$1:$B$181,Flujos!J23+1,FALSE) -> 0.01551479 | D23: 79.753199 | E23: 1.551479 | F23: =ROUND(D22*ROUND(((1+CALCULADORA!$C$19)^(1/12)-1),6),6) -> 0.510512 | G23: 2.061991 | H23: =IF($B23=0,0,G23/POWER(1+CALCULADORA!$C$32,Flujos!$B23/365)) -> 0 | I23: 2024-09-16 | J23: 21 | K23: 639 | L23: 87009944.88 | M23: 1692648.119 | N23: 556963.5814 | O23: 2249611.7 | P23: =M23*IFERROR(VLOOKUP($A23,UVR!$A:$B,2,0),CALCULADORA!$C$23) -> 636165038.3 | Q23: =N23*IFERROR(VLOOKUP($A23,UVR!$A:$B,2,0),CALCULADORA!$C$23) -> 209329248.1 | R23: =O23*IFERROR(VLOOKUP($A23,UVR!$A:$B,2,0),CALCULADORA!$C$23) -> 845494286.4
A24: 2024-10-16 | B24: =IF(DIAS365(CALCULADORA!$C$30,A24)<0,0,DIAS365(CALCULADORA!$C$30,A24)) -> 0 | C24: =+HLOOKUP(CALCULADORA!$C$11,Tablas!$B$1:$B$181,Flujos!J24+1,FALSE) -> 0.01587886 | D24: 78.165313 | E24: 1.587886 | F24: =ROUND(D23*ROUND(((1+CALCULADORA!$C$19)^(1/12)-1),6),6) -> 0.50077 | G24: 2.088656 | H24: =IF($B24=0,0,G24/POWER(1+CALCULADORA!$C$32,Flujos!$B24/365)) -> 0 | I24: 2024-10-16 | J24: 22 | K24: 669 | L24: 85277577.09 | M24: 1732367.793 | N24: 546335.4439 | O24: 2278703.237 | P24: =M24*IFERROR(VLOOKUP($A24,UVR!$A:$B,2,0),CALCULADORA!$C$23) -> 651143696.5 | Q24: =N24*IFERROR(VLOOKUP($A24,UVR!$A:$B,2,0),CALCULADORA!$C$23) -> 205350666.2 | R24: =O24*IFERROR(VLOOKUP($A24,UVR!$A:$B,2,0),CALCULADORA!$C$23) -> 856494362.7
A25: 2024-11-16 | B25: =IF(DIAS365(CALCULADORA!$C$30,A25)<0,0,DIAS365(CALCULADORA!$C$30,A25)) -> 0 | C25: =+HLOOKUP(CALCULADORA!$C$11,Tablas!$B$1:$B$181,Flujos!J25+1,FALSE) -> 0.01280261 | D25: 76.885052 | E25: 1.280261 | F25: =ROUND(D24*ROUND(((1+CALCULADORA!$C$19)^(1/12)-1),6),6) -> 0.4908 | G25: 1.771061 | H25: =IF($B25=0,0,G25/POWER(1+CALCULADORA!$C$32,Flujos!$B25/365)) -> 0 | I25: 2024-11-16 | J25: 23 | K25: 700 | L25: 83880825.1 | M25: 1396751.985 | N25: 535457.9065 | O25: 1932209.892 | P25: =M25*IFERROR(VLOOKUP($A25,UVR!$A:$B,2,0),CALCULADORA!$C$23) -> 526192509.1 | Q25: =N25*IFERROR(VLOOKUP($A25,UVR!$A:$B,2,0),CALCULADORA!$C$23) -> 201720808.2 | R25: =O25*IFERROR(VLOOKUP($A25,UVR!$A:$B,2,0),CALCULADORA!$C$23) -> 727913317.3
A26: 2024-12-16 | B26: =IF(DIAS365(CALCULADORA!$C$30,A26)<0,0,DIAS365(CALCULADORA!$C$30,A26)) -> 0 | C26: =+HLOOKUP(CALCULADORA!$C$11,Tablas!$B$1:$B$181,Flujos!J26+1,FALSE) -> 0.01229783 | D26: 75.655269 | E26: 1.229783 | F26: =ROUND(D25*ROUND(((1+CALCULADORA!$C$19)^(1/12)-1),6),6) -> 0.482761 | G26: 1.712544 | H26: =IF($B26=0,0,G26/POWER(1+CALCULADORA!$C$32,Flujos!$B26/365)) -> 0 | I26: 2024-12-16 | J26: 24 | K26: 730 | L26: 82539144.11 | M26: 1341680.991 | N26: 526687.7008 | O26: 1868368.691 | P26: =M26*IFERROR(VLOOKUP($A26,UVR!$A:$B,2,0),CALCULADORA!$C$23) -> 504854431.6 | Q26: =N26*IFERROR(VLOOKUP($A26,UVR!$A:$B,2,0),CALCULADORA!$C$23) -> 198184681.5 | R26: =O26*IFERROR(VLOOKUP($A26,UVR!$A:$B,2,0),CALCULADORA!$C$23) -> 703039113.1
A27: 2025-01-16 | B27: =IF(DIAS365(CALCULADORA!$C$30,A27)<0,0,DIAS365(CALCULADORA!$C$30,A27)) -> 0 | C27: =+HLOOKUP(CALCULADORA!$C$11,Tablas!$B$1:$B$181,Flujos!J27+1,FALSE) -> 0.01399737 | D27: 74.255532 | E27: 1.399737 | F27: =ROUND(D26*ROUND(((1+CALCULADORA!$C$19)^(1/12)-1),6),6) -> 0.475039 | G27: 1.874776 | H27: =IF($B27=0,0,G27/POWER(1+CALCULADORA!$C$32,Flujos!$B27/365)) -> 0 | I27: 2025-01-16 | J27: 25 | K27: 761 | L27: 81012045 | M27: 1527099.11 | N27: 518263.2859 | O27: 2045362.396 | P27: =M27*IFERROR(VLOOKUP($A27,UVR!$A:$B,2,0),CALCULADORA!$C$23) -> 576211297.3 | Q27: =N27*IFERROR(VLOOKUP($A27,UVR!$A:$B,2,0),CALCULADORA!$C$23) -> 195553227.9 | R27: =O27*IFERROR(VLOOKUP($A27,UVR!$A:$B,2,0),CALCULADORA!$C$23) -> 771764525.2
A28: 2025-02-16 | B28: =IF(DIAS365(CALCULADORA!$C$30,A28)<0,0,DIAS365(CALCULADORA!$C$30,A28)) -> 15 | C28: =+HLOOKUP(CALCULADORA!$C$11,Tablas!$B$1:$B$181,Flujos!J28+1,FALSE) -> 0.01582013 | D28: 72.673519 | E28: 1.582013 | F28: =ROUND(D27*ROUND(((1+CALCULADORA!$C$19)^(1/12)-1),6),6) -> 0.46625 | G28: 2.048263 | H28: =IF($B28=0,0,G28/POWER(1+CALCULADORA!$C$32,Flujos!$B28/365)) -> 2.044996578 | I28: 2025-02-16 | J28: 26 | K28: 792 | L28: 79286084.59 | M28: 1725960.409 | N28: 508674.6306 | O28: 2234635.039 | P28: =M28*IFERROR(VLOOKUP($A28,UVR!$A:$B,2,0),CALCULADORA!$C$23) -> 654363887.5 | Q28: =N28*IFERROR(VLOOKUP($A28,UVR!$A:$B,2,0),CALCULADORA!$C$23) -> 192853965.3 | R28: =O28*IFERROR(VLOOKUP($A28,UVR!$A:$B,2,0),CALCULADORA!$C$23) -> 847217852.8
A29: 2025-03-16 | B29: =IF(DIAS365(CALCULADORA!$C$30,A29)<0,0,DIAS365(CALCULADORA!$C$30,A29)) -> 43 | C29: =+HLOOKUP(CALCULADORA!$C$11,Tablas!$B$1:$B$181,Flujos!J29+1,FALSE) -> 0.01340969 | D29: 71.33255 | E29: 1.340969 | F29: =ROUND(D28*ROUND(((1+CALCULADORA!$C$19)^(1/12)-1),6),6) -> 0.456317 | G29: 1.797286 | H29: =IF($B29=0,0,G29/POWER(1+CALCULADORA!$C$32,Flujos!$B29/365)) -> 1.789081834 | I29: 2025-03-16 | J29: 27 | K29: 820 | L29: 77823100.78 | M29: 1462983.808 | N29: 497837.3251 | O29: 1960821.133 | P29: =M29*IFERROR(VLOOKUP($A29,UVR!$A:$B,2,0),CALCULADORA!$C$23) -> 554311983.2 | Q29: =N29*IFERROR(VLOOKUP($A29,UVR!$A:$B,2,0),CALCULADORA!$C$23) -> 188626281.1 | R29: =O29*IFERROR(VLOOKUP($A29,UVR!$A:$B,2,0),CALCULADORA!$C$23) -> 742938264.3
A30: 2025-04-16 | B30: =IF(DIAS365(CALCULADORA!$C$30,A30)<0,0,DIAS365(CALCULADORA!$C$30,A30)) -> 74 | C30: =+HLOOKUP(CALCULADORA!$C$11,Tablas!$B$1:$B$181,Flujos!J30+1,FALSE) -> 0.01073312 | D30: 70.259238 | E30: 1.073312 | F30: =ROUND(D29*ROUND(((1+CALCULADORA!$C$19)^(1/12)-1),6),6) -> 0.447897 | G30: 1.521209 | H30: =IF($B30=0,0,G30/POWER(1+CALCULADORA!$C$32,Flujos!$B30/365)) -> 1.509278631 | I30: 2025-04-16 | J30: 28 | K30: 851 | L30: 76652128.09 | M30: 1170972.69 | N30: 488651.2498 | O30: 1659623.94 | P30: =M30*IFERROR(VLOOKUP($A30,UVR!$A:$B,2,0),CALCULADORA!$C$23) -> 430374735.6 | Q30: =N30*IFERROR(VLOOKUP($A30,UVR!$A:$B,2,0),CALCULADORA!$C$23) -> 179596974.6 | R30: =O30*IFERROR(VLOOKUP($A30,UVR!$A:$B,2,0),CALCULADORA!$C$23) -> 609971710.3
A31: 2025-05-16 | B31: =IF(DIAS365(CALCULADORA!$C$30,A31)<0,0,DIAS365(CALCULADORA!$C$30,A31)) -> 104 | C31: =+HLOOKUP(CALCULADORA!$C$11,Tablas!$B$1:$B$181,Flujos!J31+1,FALSE) -> 0.01067899 | D31: 69.191339 | E31: 1.067899 | F31: =ROUND(D30*ROUND(((1+CALCULADORA!$C$19)^(1/12)-1),6),6) -> 0.441158 | G31: 1.509057 | H31: =IF($B31=0,0,G31/POWER(1+CALCULADORA!$C$32,Flujos!$B31/365)) -> 1.492450419 | I31: 2025-05-16 | J31: 29 | K31: 881 | L31: 75487060.93 | M31: 1165067.161 | N31: 481298.7123 | O31: 1646365.873 | P31: =M31*IFERROR(VLOOKUP($A31,UVR!$A:$B,2,0),CALCULADORA!$C$23) -> 439810095.5 | Q31: =N31*IFERROR(VLOOKUP($A31,UVR!$A:$B,2,0),CALCULADORA!$C$23) -> 181689124.7 | R31: =O31*IFERROR(VLOOKUP($A31,UVR!$A:$B,2,0),CALCULADORA!$C$23) -> 621499220.1
A32: 2025-06-16 | B32: =IF(DIAS365(CALCULADORA!$C$30,A32)<0,0,DIAS365(CALCULADORA!$C$30,A32)) -> 135 | C32: =+HLOOKUP(CALCULADORA!$C$11,Tablas!$B$1:$B$181,Flujos!J32+1,FALSE) -> 0.01066968 | D32: 68.124371 | E32: 1.066968 | F32: =ROUND(D31*ROUND(((1+CALCULADORA!$C$19)^(1/12)-1),6),6) -> 0.434452 | G32: 1.50142 | H32: =IF($B32=0,0,G32/POWER(1+CALCULADORA!$C$32,Flujos!$B32/365)) -> 1.480007741 | I32: 2025-06-16 | J32: 30 | K32: 912 | L32: 74323009.48 | M32: 1164051.449 | N32: 473983.2556 | O32: 1638034.705 | P32: =M32*IFERROR(VLOOKUP($A32,UVR!$A:$B,2,0),CALCULADORA!$C$23) -> 443061098.3 | Q32: =N32*IFERROR(VLOOKUP($A32,UVR!$A:$B,2,0),CALCULADORA!$C$23) -> 180407439.9 | R32: =O32*IFERROR(VLOOKUP($A32,UVR!$A:$B,2,0),CALCULADORA!$C$23) -> 623468538.1
A33: 2025-07-16 | B33: =IF(DIAS365(CALCULADORA!$C$30,A33)<0,0,DIAS365(CALCULADORA!$C$30,A33)) -> 165 | C33: =+HLOOKUP(CALCULADORA!$C$11,Tablas!$B$1:$B$181,Flujos!J33+1,FALSE) -> 0.0105964 | D33: 67.064731 | E33: 1.05964 | F33: =ROUND(D32*ROUND(((1+CALCULADORA!$C$19)^(1/12)-1),6),6) -> 0.427753 | G33: 1.487393 | H33: =IF($B33=0,0,G33/POWER(1+CALCULADORA!$C$32,Flujos!$B33/365)) -> 1.461508194 | I33: 2025-07-16 | J33: 31 | K33: 942 | L33: 73166952.81 | M33: 1156056.674 | N33: 466674.1765 | O33: 1622730.851 | P33: =M33*IFERROR(VLOOKUP($A33,UVR!$A:$B,2,0),CALCULADORA!$C$23) -> 443116458.9 | Q33: =N33*IFERROR(VLOOKUP($A33,UVR!$A:$B,2,0),CALCULADORA!$C$23) -> 178876185.9 | R33: =O33*IFERROR(VLOOKUP($A33,UVR!$A:$B,2,0),CALCULADORA!$C$23) -> 621992644.8
A34: 2025-08-16 | B34: =IF(DIAS365(CALCULADORA!$C$30,A34)<0,0,DIAS365(CALCULADORA!$C$30,A34)) -> 196 | C34: =+HLOOKUP(CALCULADORA!$C$11,Tablas!$B$1:$B$181,Flujos!J34+1,FALSE) -> 0.01048296 | D34: 66.016435 | E34: 1.048296 | F34: =ROUND(D33*ROUND(((1+CALCULADORA!$C$19)^(1/12)-1),6),6) -> 0.421099 | G34: 1.469395 | H34: =IF($B34=0,0,G34/POWER(1+CALCULADORA!$C$32,Flujos!$B34/365)) -> 1.439068945 | I34: 2025-08-16 | J34: 32 | K34: 973 | L34: 72023272.33 | M34: 1143680.483 | N34: 459415.2967 | O34: 1603095.78 | P34: =M34*IFERROR(VLOOKUP($A34,UVR!$A:$B,2,0),CALCULADORA!$C$23) -> 440955976.5 | Q34: =N34*IFERROR(VLOOKUP($A34,UVR!$A:$B,2,0),CALCULADORA!$C$23) -> 177131571.1 | R34: =O34*IFERROR(VLOOKUP($A34,UVR!$A:$B,2,0),CALCULADORA!$C$23) -> 618087547.6
A35: =EDATE(A34,1) -> 2025-09-16 | B35: =IF(DIAS365(CALCULADORA!$C$30,A35)<0,0,DIAS365(CALCULADORA!$C$30,A35)) -> 227 | C35: =+HLOOKUP(CALCULADORA!$C$11,Tablas!$B$1:$B$181,Flujos!J35+1,FALSE) -> 0.01047287 | D35: 64.969148 | E35: 1.047287 | F35: =ROUND(D34*ROUND(((1+CALCULADORA!$C$19)^(1/12)-1),6),6) -> 0.414517 | G35: 1.461804 | H35: =IF($B35=0,0,G35/POWER(1+CALCULADORA!$C$32,Flujos!$B35/365)) -> 1.426920284 | I35: 2025-09-16 | J35: 33 | K35: 1004 | L35: 70880692.65 | M35: 1142579.674 | N35: 452234.1269 | O35: 1594813.801 | P35: =M35*IFERROR(VLOOKUP($A35,UVR!$A:$B,2,0),CALCULADORA!$C$23) -> 441804107.2 | Q35: =N35*IFERROR(VLOOKUP($A35,UVR!$A:$B,2,0),CALCULADORA!$C$23) -> 174866487.8 | R35: =O35*IFERROR(VLOOKUP($A35,UVR!$A:$B,2,0),CALCULADORA!$C$23) -> 616670595
A36: 2025-10-16 | B36: =IF(DIAS365(CALCULADORA!$C$30,A36)<0,0,DIAS365(CALCULADORA!$C$30,A36)) -> 257 | C36: =+HLOOKUP(CALCULADORA!$C$11,Tablas!$B$1:$B$181,Flujos!J36+1,FALSE) -> 0.01043738 | D36: 63.92541 | E36: 1.043738 | F36: =ROUND(D35*ROUND(((1+CALCULADORA!$C$19)^(1/12)-1),6),6) -> 0.407941 | G36: 1.451679 | H36: =IF($B36=0,0,G36/POWER(1+CALCULADORA!$C$32,Flujos!$B36/365)) -> 1.412520929 | I36: 2025-10-16 | J36: 34 | K36: 1034 | L36: 69741984.9 | M36: 1138707.751 | N36: 445059.8692 | O36: 1583767.62 | P36: =M36*IFERROR(VLOOKUP($A36,UVR!$A:$B,2,0),CALCULADORA!$C$23) -> 440306940.9 | Q36: =N36*IFERROR(VLOOKUP($A36,UVR!$A:$B,2,0),CALCULADORA!$C$23) -> 172092399.8 | R36: =O36*IFERROR(VLOOKUP($A36,UVR!$A:$B,2,0),CALCULADORA!$C$23) -> 612399340.8
A37: 2025-11-16 | B37: =IF(DIAS365(CALCULADORA!$C$30,A37)<0,0,DIAS365(CALCULADORA!$C$30,A37)) -> 288 | C37: =+HLOOKUP(CALCULADORA!$C$11,Tablas!$B$1:$B$181,Flujos!J37+1,FALSE) -> 0.01039328 | D37: 62.886082 | E37: 1.039328 | F37: =ROUND(D36*ROUND(((1+CALCULADORA!$C$19)^(1/12)-1),6),6) -> 0.401388 | G37: 1.440716 | H37: =IF($B37=0,0,G37/POWER(1+CALCULADORA!$C$32,Flujos!$B37/365)) -> 1.397237389 | I37: 2025-11-16 | J37: 35 | K37: 1065 | L37: 68608088.42 | M37: 1133896.485 | N37: 437909.9232 | O37: 1571806.408 | P37: =M37*IFERROR(VLOOKUP($A37,UVR!$A:$B,2,0),CALCULADORA!$C$23) -> 438531417.2 | Q37: =N37*IFERROR(VLOOKUP($A37,UVR!$A:$B,2,0),CALCULADORA!$C$23) -> 169360485.5 | R37: =O37*IFERROR(VLOOKUP($A37,UVR!$A:$B,2,0),CALCULADORA!$C$23) -> 607891902.7
A38: 2025-12-16 | B38: =IF(DIAS365(CALCULADORA!$C$30,A38)<0,0,DIAS365(CALCULADORA!$C$30,A38)) -> 318 | C38: =+HLOOKUP(CALCULADORA!$C$11,Tablas!$B$1:$B$181,Flujos!J38+1,FALSE) -> 0.00937524 | D38: 61.948558 | E38: 0.937524 | F38: =ROUND(D37*ROUND(((1+CALCULADORA!$C$19)^(1/12)-1),6),6) -> 0.394862 | G38: 1.332386 | H38: =IF($B38=0,0,G38/POWER(1+CALCULADORA!$C$32,Flujos!$B38/365)) -> 1.288058569 | I38: 2025-12-16 | J38: 36 | K38: 1095 | L38: 67585259.08 | M38: 1022829.336 | N38: 430790.1872 | O38: 1453619.523 | P38: =M38*IFERROR(VLOOKUP($A38,UVR!$A:$B,2,0),CALCULADORA!$C$23) -> 396133504.3 | Q38: =N38*IFERROR(VLOOKUP($A38,UVR!$A:$B,2,0),CALCULADORA!$C$23) -> 166841544.8 | R38: =O38*IFERROR(VLOOKUP($A38,UVR!$A:$B,2,0),CALCULADORA!$C$23) -> 562975049.2
A39: 2026-01-16 | B39: =IF(DIAS365(CALCULADORA!$C$30,A39)<0,0,DIAS365(CALCULADORA!$C$30,A39)) -> 349 | C39: =+HLOOKUP(CALCULADORA!$C$11,Tablas!$B$1:$B$181,Flujos!J39+1,FALSE) -> 0.01026734 | D39: 60.921824 | E39: 1.026734 | F39: =ROUND(D38*ROUND(((1+CALCULADORA!$C$19)^(1/12)-1),6),6) -> 0.388975 | G39: 1.415709 | H39: =IF($B39=0,0,G39/POWER(1+CALCULADORA!$C$32,Flujos!$B39/365)) -> 1.364102691 | I39: 2026-01-16 | J39: 37 | K39: 1126 | L39: 66465102.52 | M39: 1120156.556 | N39: 424367.8418 | O39: 1544524.398 | P39: =M39*IFERROR(VLOOKUP($A39,UVR!$A:$B,2,0),CALCULADORA!$C$23) -> 423664380.5 | Q39: =N39*IFERROR(VLOOKUP($A39,UVR!$A:$B,2,0),CALCULADORA!$C$23) -> 160503938.3 | R39: =O39*IFERROR(VLOOKUP($A39,UVR!$A:$B,2,0),CALCULADORA!$C$23) -> 584168318.9
A40: 2026-02-16 | B40: =IF(DIAS365(CALCULADORA!$C$30,A40)<0,0,DIAS365(CALCULADORA!$C$30,A40)) -> 380 | C40: =+HLOOKUP(CALCULADORA!$C$11,Tablas!$B$1:$B$181,Flujos!J40+1,FALSE) -> 0.01029725 | D40: =+ROUND(D39-E40,6) -> 59.892099 | E40: =ROUND(C40*$D$2,6) -> 1.029725 | F40: =ROUND(D39*ROUND(((1+CALCULADORA!$C$19)^(1/12)-1),6),6) -> 0.382528 | G40: =F40+E40 -> 1.412253 | H40: =IF($B40=0,0,G40/POWER(1+CALCULADORA!$C$32,Flujos!$B40/365)) -> 1.35629169 | I40: =+A40 -> 2026-02-16 | J40: 38 | K40: 1157 | L40: 65341682.82 | M40: 1123419.707 | N40: 417334.3787 | O40: 1540754.086 | P40: =M40*IFERROR(VLOOKUP($A40,UVR!$A:$B,2,0),CALCULADORA!$C$23) -> 424898566 | Q40: =N40*IFERROR(VLOOKUP($A40,UVR!$A:$B,2,0),CALCULADORA!$C$23) -> 157843749.7 | R40: =O40*IFERROR(VLOOKUP($A40,UVR!$A:$B,2,0),CALCULADORA!$C$23) -> 582742315.7
A41: 2026-03-16 | B41: =IF(DIAS365(CALCULADORA!$C$30,A41)<0,0,DIAS365(CALCULADORA!$C$30,A41)) -> 408 | C41: =+HLOOKUP(CALCULADORA!$C$11,Tablas!$B$1:$B$181,Flujos!J41+1,FALSE) -> 0.01017952 | D41: 58.874147 | E41: 1.017952 | F41: =ROUND(D40*ROUND(((1+CALCULADORA!$C$19)^(1/12)-1),6),6) -> 0.376062 | G41: 1.394014 | H41: =IF($B41=0,0,G41/POWER(1+CALCULADORA!$C$32,Flujos!$B41/365)) -> 1.334792873 | I41: 2026-03-16 | J41: 39 | K41: 1185 | L41: 64231107.33 | M41: 1110575.482 | N41: 410280.4264 | O41: 1520855.908 | P41: =M41*IFERROR(VLOOKUP($A41,UVR!$A:$B,2,0),CALCULADORA!$C$23) -> 420040637.1 | Q41: =N41*IFERROR(VLOOKUP($A41,UVR!$A:$B,2,0),CALCULADORA!$C$23) -> 155175811.6 | R41: =O41*IFERROR(VLOOKUP($A41,UVR!$A:$B,2,0),CALCULADORA!$C$23) -> 575216448.7
A42: 2026-04-16 | B42: =IF(DIAS365(CALCULADORA!$C$30,A42)<0,0,DIAS365(CALCULADORA!$C$30,A42)) -> 439 | C42: =+HLOOKUP(CALCULADORA!$C$11,Tablas!$B$1:$B$181,Flujos!J42+1,FALSE) -> 0.01018746 | D42: 57.855401 | E42: 1.018746 | F42: =ROUND(D41*ROUND(((1+CALCULADORA!$C$19)^(1/12)-1),6),6) -> 0.369671 | G42: 1.388417 | H42: =IF($B42=0,0,G42/POWER(1+CALCULADORA!$C$32,Flujos!$B42/365)) -> 1.325055865 | I42: 2026-04-16 | J42: 40 | K42: 1216 | L42: 63119665.61 | M42: 1111441.728 | N42: 403307.123 | O42: 1514748.851 | P42: =M42*IFERROR(VLOOKUP($A42,UVR!$A:$B,2,0),CALCULADORA!$C$23) -> 420368267.8 | Q42: =N42*IFERROR(VLOOKUP($A42,UVR!$A:$B,2,0),CALCULADORA!$C$23) -> 152538376.4 | R42: =O42*IFERROR(VLOOKUP($A42,UVR!$A:$B,2,0),CALCULADORA!$C$23) -> 572906644.2
A43: 2026-05-16 | B43: =IF(DIAS365(CALCULADORA!$C$30,A43)<0,0,DIAS365(CALCULADORA!$C$30,A43)) -> 469 | C43: =+HLOOKUP(CALCULADORA!$C$11,Tablas!$B$1:$B$181,Flujos!J43+1,FALSE) -> 0.01014101 | D43: 56.8413 | E43: 1.014101 | F43: =ROUND(D42*ROUND(((1+CALCULADORA!$C$19)^(1/12)-1),6),6) -> 0.363274 | G43: 1.377375 | H43: =IF($B43=0,0,G43/POWER(1+CALCULADORA!$C$32,Flujos!$B43/365)) -> 1.310328519 | I43: 2026-05-16 | J43: 41 | K43: 1246 | L43: 62013291.53 | M43: 1106374.079 | N43: 396328.3803 | O43: 1502702.46 | P43: =M43*IFERROR(VLOOKUP($A43,UVR!$A:$B,2,0),CALCULADORA!$C$23) -> 418451587.2 | Q43: =N43*IFERROR(VLOOKUP($A43,UVR!$A:$B,2,0),CALCULADORA!$C$23) -> 149898884.1 | R43: =O43*IFERROR(VLOOKUP($A43,UVR!$A:$B,2,0),CALCULADORA!$C$23) -> 568350471.3
A44: 2026-06-16 | B44: =IF(DIAS365(CALCULADORA!$C$30,A44)<0,0,DIAS365(CALCULADORA!$C$30,A44)) -> 500 | C44: =+HLOOKUP(CALCULADORA!$C$11,Tablas!$B$1:$B$181,Flujos!J44+1,FALSE) -> 0.01007983 | D44: 55.833317 | E44: 1.007983 | F44: =ROUND(D43*ROUND(((1+CALCULADORA!$C$19)^(1/12)-1),6),6) -> 0.356907 | G44: 1.36489 | H44: =IF($B44=0,0,G44/POWER(1+CALCULADORA!$C$32,Flujos!$B44/365)) -> 1.294175492 | I44: 2026-06-16 | J44: 42 | K44: 1277 | L44: 60913592.13 | M44: 1099699.402 | N44: 389381.4575 | O44: 1489080.86 | P44: =M44*IFERROR(VLOOKUP($A44,UVR!$A:$B,2,0),CALCULADORA!$C$23) -> 415927098.3 | Q44: =N44*IFERROR(VLOOKUP($A44,UVR!$A:$B,2,0),CALCULADORA!$C$23) -> 147271426.5 | R44: =O44*IFERROR(VLOOKUP($A44,UVR!$A:$B,2,0),CALCULADORA!$C$23) -> 563198524.8
A45: 2026-07-16 | B45: =IF(DIAS365(CALCULADORA!$C$30,A45)<0,0,DIAS365(CALCULADORA!$C$30,A45)) -> 530 | C45: =+HLOOKUP(CALCULADORA!$C$11,Tablas!$B$1:$B$181,Flujos!J45+1,FALSE) -> 0.01005705 | D45: 54.827612 | E45: 1.005705 | F45: =ROUND(D44*ROUND(((1+CALCULADORA!$C$19)^(1/12)-1),6),6) -> 0.350577 | G45: 1.356282 | H45: =IF($B45=0,0,G45/POWER(1+CALCULADORA!$C$32,Flujos!$B45/365)) -> 1.281915057 | I45: 2026-07-16 | J45: 43 | K45: 1307 | L45: 59816378 | M45: 1097214.127 | N45: 382476.445 | O45: 1479690.572 | P45: =M45*IFERROR(VLOOKUP($A45,UVR!$A:$B,2,0),CALCULADORA!$C$23) -> 414987120.2 | Q45: =N45*IFERROR(VLOOKUP($A45,UVR!$A:$B,2,0),CALCULADORA!$C$23) -> 144659820.3 | R45: =O45*IFERROR(VLOOKUP($A45,UVR!$A:$B,2,0),CALCULADORA!$C$23) -> 559646940.5
A46: 2026-08-16 | B46: =IF(DIAS365(CALCULADORA!$C$30,A46)<0,0,DIAS365(CALCULADORA!$C$30,A46)) -> 561 | C46: =+HLOOKUP(CALCULADORA!$C$11,Tablas!$B$1:$B$181,Flujos!J46+1,FALSE) -> 0.01006308 | D46: 53.821304 | E46: 1.006308 | F46: =ROUND(D45*ROUND(((1+CALCULADORA!$C$19)^(1/12)-1),6),6) -> 0.344263 | G46: 1.350571 | H46: =IF($B46=0,0,G46/POWER(1+CALCULADORA!$C$32,Flujos!$B46/365)) -> 1.272313669 | I46: 2026-08-16 | J46: 44 | K46: 1338 | L46: 58718506 | M46: 1097871.994 | N46: 375587.0375 | O46: 1473459.031 | P46: =M46*IFERROR(VLOOKUP($A46,UVR!$A:$B,2,0),CALCULADORA!$C$23) -> 415235937.9 | Q46: =N46*IFERROR(VLOOKUP($A46,UVR!$A:$B,2,0),CALCULADORA!$C$23) -> 142054116.2 | R46: =O46*IFERROR(VLOOKUP($A46,UVR!$A:$B,2,0),CALCULADORA!$C$23) -> 557290054.1
A47: 2026-09-16 | B47: =IF(DIAS365(CALCULADORA!$C$30,A47)<0,0,DIAS365(CALCULADORA!$C$30,A47)) -> 592 | C47: =+HLOOKUP(CALCULADORA!$C$11,Tablas!$B$1:$B$181,Flujos!J47+1,FALSE) -> 0.00998622 | D47: 52.822682 | E47: 0.998622 | F47: =ROUND(D46*ROUND(((1+CALCULADORA!$C$19)^(1/12)-1),6),6) -> 0.337944 | G47: 1.336566 | H47: =IF($B47=0,0,G47/POWER(1+CALCULADORA!$C$32,Flujos!$B47/365)) -> 1.25497393 | I47: 2026-09-16 | J47: 45 | K47: 1369 | L47: 57629019.36 | M47: 1089486.645 | N47: 368693.4992 | O47: 1458180.144 | P47: =M47*IFERROR(VLOOKUP($A47,UVR!$A:$B,2,0),CALCULADORA!$C$23) -> 412064440.3 | Q47: =N47*IFERROR(VLOOKUP($A47,UVR!$A:$B,2,0),CALCULADORA!$C$23) -> 139446849.7 | R47: =O47*IFERROR(VLOOKUP($A47,UVR!$A:$B,2,0),CALCULADORA!$C$23) -> 551511290
A48: 2026-10-16 | B48: =IF(DIAS365(CALCULADORA!$C$30,A48)<0,0,DIAS365(CALCULADORA!$C$30,A48)) -> 622 | C48: =+HLOOKUP(CALCULADORA!$C$11,Tablas!$B$1:$B$181,Flujos!J48+1,FALSE) -> 0.0099256 | D48: 51.830122 | E48: 0.99256 | F48: =ROUND(D47*ROUND(((1+CALCULADORA!$C$19)^(1/12)-1),6),6) -> 0.331674 | G48: 1.324234 | H48: =IF($B48=0,0,G48/POWER(1+CALCULADORA!$C$32,Flujos!$B48/365)) -> 1.239432159 | I48: 2026-10-16 | J48: 46 | K48: 1399 | L48: 56546146.3 | M48: 1082873.063 | N48: 361852.6126 | O48: 1444725.676 | P48: =M48*IFERROR(VLOOKUP($A48,UVR!$A:$B,2,0),CALCULADORA!$C$23) -> 409563058.7 | Q48: =N48*IFERROR(VLOOKUP($A48,UVR!$A:$B,2,0),CALCULADORA!$C$23) -> 136859497.1 | R48: =O48*IFERROR(VLOOKUP($A48,UVR!$A:$B,2,0),CALCULADORA!$C$23) -> 546422555.8
A49: 2026-11-16 | B49: =IF(DIAS365(CALCULADORA!$C$30,A49)<0,0,DIAS365(CALCULADORA!$C$30,A49)) -> 653 | C49: =+HLOOKUP(CALCULADORA!$C$11,Tablas!$B$1:$B$181,Flujos!J49+1,FALSE) -> 0.00987837 | D49: 50.842285 | E49: 0.987837 | F49: =ROUND(D48*ROUND(((1+CALCULADORA!$C$19)^(1/12)-1),6),6) -> 0.325441 | G49: 1.313278 | H49: =IF($B49=0,0,G49/POWER(1+CALCULADORA!$C$32,Flujos!$B49/365)) -> 1.225130121 | I49: 2026-11-16 | J49: 47 | K49: 1430 | L49: 55468425.98 | M49: 1077720.317 | N49: 355053.2526 | O49: 1432773.57 | P49: =M49*IFERROR(VLOOKUP($A49,UVR!$A:$B,2,0),CALCULADORA!$C$23) -> 407614192.9 | Q49: =N49*IFERROR(VLOOKUP($A49,UVR!$A:$B,2,0),CALCULADORA!$C$23) -> 134287850.6 | R49: =O49*IFERROR(VLOOKUP($A49,UVR!$A:$B,2,0),CALCULADORA!$C$23) -> 541902043.5
A50: 2026-12-16 | B50: =IF(DIAS365(CALCULADORA!$C$30,A50)<0,0,DIAS365(CALCULADORA!$C$30,A50)) -> 683 | C50: =+HLOOKUP(CALCULADORA!$C$11,Tablas!$B$1:$B$181,Flujos!J50+1,FALSE) -> 0.00877632 | D50: 49.964653 | E50: 0.877632 | F50: =ROUND(D49*ROUND(((1+CALCULADORA!$C$19)^(1/12)-1),6),6) -> 0.319239 | G50: 1.196871 | H50: =IF($B50=0,0,G50/POWER(1+CALCULADORA!$C$32,Flujos!$B50/365)) -> 1.112978113 | I50: 2026-12-16 | J50: 48 | K50: 1460 | L50: 54510938.22 | M50: 957487.761 | N50: 348286.2467 | O50: 1305774.008 | P50: =M50*IFERROR(VLOOKUP($A50,UVR!$A:$B,2,0),CALCULADORA!$C$23) -> 362139967.7 | Q50: =N50*IFERROR(VLOOKUP($A50,UVR!$A:$B,2,0),CALCULADORA!$C$23) -> 131728441.1 | R50: =O50*IFERROR(VLOOKUP($A50,UVR!$A:$B,2,0),CALCULADORA!$C$23) -> 493868408.9
A51: 2027-01-16 | B51: =IF(DIAS365(CALCULADORA!$C$30,A51)<0,0,DIAS365(CALCULADORA!$C$30,A51)) -> 714 | C51: =+HLOOKUP(CALCULADORA!$C$11,Tablas!$B$1:$B$181,Flujos!J51+1,FALSE) -> 0.00973909 | D51: 48.990744 | E51: 0.973909 | F51: =ROUND(D50*ROUND(((1+CALCULADORA!$C$19)^(1/12)-1),6),6) -> 0.313728 | G51: 1.287637 | H51: =IF($B51=0,0,G51/POWER(1+CALCULADORA!$C$32,Flujos!$B51/365)) -> 1.193439064 | I51: 2027-01-16 | J51: 49 | K51: 1491 | L51: 53448413.21 | M51: 1062525.008 | N51: 342274.1811 | O51: 1404799.189 | P51: =M51*IFERROR(VLOOKUP($A51,UVR!$A:$B,2,0),CALCULADORA!$C$23) -> 401867039.8 | Q51: =N51*IFERROR(VLOOKUP($A51,UVR!$A:$B,2,0),CALCULADORA!$C$23) -> 129454564.3 | R51: =O51*IFERROR(VLOOKUP($A51,UVR!$A:$B,2,0),CALCULADORA!$C$23) -> 531321604
A52: 2027-02-16 | B52: =IF(DIAS365(CALCULADORA!$C$30,A52)<0,0,DIAS365(CALCULADORA!$C$30,A52)) -> 745 | C52: =+HLOOKUP(CALCULADORA!$C$11,Tablas!$B$1:$B$181,Flujos!J52+1,FALSE) -> 0.00961244 | D52: 48.0295 | E52: 0.961244 | F52: =ROUND(D51*ROUND(((1+CALCULADORA!$C$19)^(1/12)-1),6),6) -> 0.307613 | G52: 1.268857 | H52: =IF($B52=0,0,G52/POWER(1+CALCULADORA!$C$32,Flujos!$B52/365)) -> 1.172160288 | I52: 2027-02-16 | J52: 50 | K52: 1522 | L52: 52399705.59 | M52: 1048707.619 | N52: 335602.5865 | O52: 1384310.206 | P52: =M52*IFERROR(VLOOKUP($A52,UVR!$A:$B,2,0),CALCULADORA!$C$23) -> 396641042.2 | Q52: =N52*IFERROR(VLOOKUP($A52,UVR!$A:$B,2,0),CALCULADORA!$C$23) -> 126931241.1 | R52: =O52*IFERROR(VLOOKUP($A52,UVR!$A:$B,2,0),CALCULADORA!$C$23) -> 523572283.3
A53: 2027-03-16 | B53: =IF(DIAS365(CALCULADORA!$C$30,A53)<0,0,DIAS365(CALCULADORA!$C$30,A53)) -> 773 | C53: =+HLOOKUP(CALCULADORA!$C$11,Tablas!$B$1:$B$181,Flujos!J53+1,FALSE) -> 0.00948277 | D53: 47.081223 | E53: 0.948277 | F53: =ROUND(D52*ROUND(((1+CALCULADORA!$C$19)^(1/12)-1),6),6) -> 0.301577 | G53: 1.249854 | H53: =IF($B53=0,0,G53/POWER(1+CALCULADORA!$C$32,Flujos!$B53/365)) -> 1.15117078 | I53: 2027-03-16 | J53: 51 | K53: 1550 | L53: 51365144.84 | M53: 1034560.752 | N53: 329017.7514 | O53: 1363578.503 | P53: =M53*IFERROR(VLOOKUP($A53,UVR!$A:$B,2,0),CALCULADORA!$C$23) -> 391290429.5 | Q53: =N53*IFERROR(VLOOKUP($A53,UVR!$A:$B,2,0),CALCULADORA!$C$23) -> 124440732 | R53: =O53*IFERROR(VLOOKUP($A53,UVR!$A:$B,2,0),CALCULADORA!$C$23) -> 515731161.5
A54: 2027-04-16 | B54: =IF(DIAS365(CALCULADORA!$C$30,A54)<0,0,DIAS365(CALCULADORA!$C$30,A54)) -> 804 | C54: =+HLOOKUP(CALCULADORA!$C$11,Tablas!$B$1:$B$181,Flujos!J54+1,FALSE) -> 0.00945239 | D54: 46.135984 | E54: 0.945239 | F54: =ROUND(D53*ROUND(((1+CALCULADORA!$C$19)^(1/12)-1),6),6) -> 0.295623 | G54: 1.240862 | H54: =IF($B54=0,0,G54/POWER(1+CALCULADORA!$C$32,Flujos!$B54/365)) -> 1.139125254 | I54: 2027-04-16 | J54: 52 | K54: 1581 | L54: 50333898.52 | M54: 1031246.324 | N54: 322521.7444 | O54: 1353768.068 | P54: =M54*IFERROR(VLOOKUP($A54,UVR!$A:$B,2,0),CALCULADORA!$C$23) -> 390036850.3 | Q54: =N54*IFERROR(VLOOKUP($A54,UVR!$A:$B,2,0),CALCULADORA!$C$23) -> 121983819.4 | R54: =O54*IFERROR(VLOOKUP($A54,UVR!$A:$B,2,0),CALCULADORA!$C$23) -> 512020669.7
A55: 2027-05-16 | B55: =IF(DIAS365(CALCULADORA!$C$30,A55)<0,0,DIAS365(CALCULADORA!$C$30,A55)) -> 834 | C55: =+HLOOKUP(CALCULADORA!$C$11,Tablas!$B$1:$B$181,Flujos!J55+1,FALSE) -> 0.00935064 | D55: 45.20092 | E55: 0.935064 | F55: =ROUND(D54*ROUND(((1+CALCULADORA!$C$19)^(1/12)-1),6),6) -> 0.289688 | G55: 1.224752 | H55: =IF($B55=0,0,G55/POWER(1+CALCULADORA!$C$32,Flujos!$B55/365)) -> 1.120752932 | I55: 2027-05-16 | J55: 53 | K55: 1611 | L55: 49313753.02 | M55: 1020145.5 | N55: 316046.5488 | O55: 1336192.049 | P55: =M55*IFERROR(VLOOKUP($A55,UVR!$A:$B,2,0),CALCULADORA!$C$23) -> 385838309 | Q55: =N55*IFERROR(VLOOKUP($A55,UVR!$A:$B,2,0),CALCULADORA!$C$23) -> 119534778 | R55: =O55*IFERROR(VLOOKUP($A55,UVR!$A:$B,2,0),CALCULADORA!$C$23) -> 505373087
A56: 2027-06-16 | B56: =IF(DIAS365(CALCULADORA!$C$30,A56)<0,0,DIAS365(CALCULADORA!$C$30,A56)) -> 865 | C56: =+HLOOKUP(CALCULADORA!$C$11,Tablas!$B$1:$B$181,Flujos!J56+1,FALSE) -> 0.00929657 | D56: 44.271263 | E56: 0.929657 | F56: =ROUND(D55*ROUND(((1+CALCULADORA!$C$19)^(1/12)-1),6),6) -> 0.283817 | G56: 1.213474 | H56: =IF($B56=0,0,G56/POWER(1+CALCULADORA!$C$32,Flujos!$B56/365)) -> 1.106775977 | I56: 2027-06-16 | J56: 54 | K56: 1642 | L56: 48299506.5 | M56: 1014246.517 | N56: 309641.0552 | O56: 1323887.572 | P56: =M56*IFERROR(VLOOKUP($A56,UVR!$A:$B,2,0),CALCULADORA!$C$23) -> 383607202.1 | Q56: =N56*IFERROR(VLOOKUP($A56,UVR!$A:$B,2,0),CALCULADORA!$C$23) -> 117112099.3 | R56: =O56*IFERROR(VLOOKUP($A56,UVR!$A:$B,2,0),CALCULADORA!$C$23) -> 500719301.4
A57: 2027-07-16 | B57: =IF(DIAS365(CALCULADORA!$C$30,A57)<0,0,DIAS365(CALCULADORA!$C$30,A57)) -> 895 | C57: =+HLOOKUP(CALCULADORA!$C$11,Tablas!$B$1:$B$181,Flujos!J57+1,FALSE) -> 0.00917694 | D57: 43.353569 | E57: 0.917694 | F57: =ROUND(D56*ROUND(((1+CALCULADORA!$C$19)^(1/12)-1),6),6) -> 0.277979 | G57: 1.195673 | H57: =IF($B57=0,0,G57/POWER(1+CALCULADORA!$C$32,Flujos!$B57/365)) -> 1.087064722 | I57: 2027-07-16 | J57: 55 | K57: 1672 | L57: 47298311.49 | M57: 1001195.004 | N57: 303272.6013 | O57: 1304467.605 | P57: =M57*IFERROR(VLOOKUP($A57,UVR!$A:$B,2,0),CALCULADORA!$C$23) -> 378670872.9 | Q57: =N57*IFERROR(VLOOKUP($A57,UVR!$A:$B,2,0),CALCULADORA!$C$23) -> 114703429.7 | R57: =O57*IFERROR(VLOOKUP($A57,UVR!$A:$B,2,0),CALCULADORA!$C$23) -> 493374302.6
A58: 2027-08-16 | B58: =IF(DIAS365(CALCULADORA!$C$30,A58)<0,0,DIAS365(CALCULADORA!$C$30,A58)) -> 926 | C58: =+HLOOKUP(CALCULADORA!$C$11,Tablas!$B$1:$B$181,Flujos!J58+1,FALSE) -> 0.00913044 | D58: 42.440525 | E58: 0.913044 | F58: =ROUND(D57*ROUND(((1+CALCULADORA!$C$19)^(1/12)-1),6),6) -> 0.272217 | G58: 1.185261 | H58: =IF($B58=0,0,G58/POWER(1+CALCULADORA!$C$32,Flujos!$B58/365)) -> 1.074049993 | I58: 2027-08-16 | J58: 56 | K58: 1703 | L58: 46302189.59 | M58: 996121.8999 | N58: 296986.0979 | O58: 1293107.998 | P58: =M58*IFERROR(VLOOKUP($A58,UVR!$A:$B,2,0),CALCULADORA!$C$23) -> 376752129.3 | Q58: =N58*IFERROR(VLOOKUP($A58,UVR!$A:$B,2,0),CALCULADORA!$C$23) -> 112325755.3 | R58: =O58*IFERROR(VLOOKUP($A58,UVR!$A:$B,2,0),CALCULADORA!$C$23) -> 489077884.5
A59: 2027-09-16 | B59: =IF(DIAS365(CALCULADORA!$C$30,A59)<0,0,DIAS365(CALCULADORA!$C$30,A59)) -> 957 | C59: =+HLOOKUP(CALCULADORA!$C$11,Tablas!$B$1:$B$181,Flujos!J59+1,FALSE) -> 0.00901128 | D59: 41.539397 | E59: 0.901128 | F59: =ROUND(D58*ROUND(((1+CALCULADORA!$C$19)^(1/12)-1),6),6) -> 0.266484 | G59: 1.167612 | H59: =IF($B59=0,0,G59/POWER(1+CALCULADORA!$C$32,Flujos!$B59/365)) -> 1.05457282 | I59: 2027-09-16 | J59: 57 | K59: 1734 | L59: 45319067.93 | M59: 983121.6627 | N59: 290731.4485 | O59: 1273853.111 | P59: =M59*IFERROR(VLOOKUP($A59,UVR!$A:$B,2,0),CALCULADORA!$C$23) -> 371835193.8 | Q59: =N59*IFERROR(VLOOKUP($A59,UVR!$A:$B,2,0),CALCULADORA!$C$23) -> 109960128.6 | R59: =O59*IFERROR(VLOOKUP($A59,UVR!$A:$B,2,0),CALCULADORA!$C$23) -> 481795322.5
A60: 2027-10-16 | B60: =IF(DIAS365(CALCULADORA!$C$30,A60)<0,0,DIAS365(CALCULADORA!$C$30,A60)) -> 987 | C60: =+HLOOKUP(CALCULADORA!$C$11,Tablas!$B$1:$B$181,Flujos!J60+1,FALSE) -> 0.00894002 | D60: 40.645395 | E60: 0.894002 | F60: =ROUND(D59*ROUND(((1+CALCULADORA!$C$19)^(1/12)-1),6),6) -> 0.260826 | G60: 1.154828 | H60: =IF($B60=0,0,G60/POWER(1+CALCULADORA!$C$32,Flujos!$B60/365)) -> 1.039702434 | I60: 2027-10-16 | J60: 58 | K60: 1764 | L60: 44343720.66 | M60: 975347.2678 | N60: 284558.4275 | O60: 1259905.695 | P60: =M60*IFERROR(VLOOKUP($A60,UVR!$A:$B,2,0),CALCULADORA!$C$23) -> 368894770.7 | Q60: =N60*IFERROR(VLOOKUP($A60,UVR!$A:$B,2,0),CALCULADORA!$C$23) -> 107625375.5 | R60: =O60*IFERROR(VLOOKUP($A60,UVR!$A:$B,2,0),CALCULADORA!$C$23) -> 476520146.2
A61: 2027-11-16 | B61: =IF(DIAS365(CALCULADORA!$C$30,A61)<0,0,DIAS365(CALCULADORA!$C$30,A61)) -> 1018 | C61: =+HLOOKUP(CALCULADORA!$C$11,Tablas!$B$1:$B$181,Flujos!J61+1,FALSE) -> 0.00882452 | D61: 39.762943 | E61: 0.882452 | F61: =ROUND(D60*ROUND(((1+CALCULADORA!$C$19)^(1/12)-1),6),6) -> 0.255212 | G61: 1.137664 | H61: =IF($B61=0,0,G61/POWER(1+CALCULADORA!$C$32,Flujos!$B61/365)) -> 1.020876703 | I61: 2027-11-16 | J61: 59 | K61: 1795 | L61: 43380974.33 | M61: 962746.333 | N61: 278434.2221 | O61: 1241180.555 | P61: =M61*IFERROR(VLOOKUP($A61,UVR!$A:$B,2,0),CALCULADORA!$C$23) -> 364128859 | Q61: =N61*IFERROR(VLOOKUP($A61,UVR!$A:$B,2,0),CALCULADORA!$C$23) -> 105309085.2 | R61: =O61*IFERROR(VLOOKUP($A61,UVR!$A:$B,2,0),CALCULADORA!$C$23) -> 469437944.2
A62: 2027-12-16 | B62: =IF(DIAS365(CALCULADORA!$C$30,A62)<0,0,DIAS365(CALCULADORA!$C$30,A62)) -> 1048 | C62: =+HLOOKUP(CALCULADORA!$C$11,Tablas!$B$1:$B$181,Flujos!J62+1,FALSE) -> 0.0076692 | D62: 38.996023 | E62: 0.76692 | F62: =ROUND(D61*ROUND(((1+CALCULADORA!$C$19)^(1/12)-1),6),6) -> 0.249672 | G62: 1.016592 | H62: =IF($B62=0,0,G62/POWER(1+CALCULADORA!$C$32,Flujos!$B62/365)) -> 0.9093261833 | I62: 2027-12-16 | J62: 60 | K62: 1825 | L62: 42544272.26 | M62: 836702.0729 | N62: 272389.1378 | O62: 1109091.211 | P62: =M62*IFERROR(VLOOKUP($A62,UVR!$A:$B,2,0),CALCULADORA!$C$23) -> 316456537.7 | Q62: =N62*IFERROR(VLOOKUP($A62,UVR!$A:$B,2,0),CALCULADORA!$C$23) -> 103022720.1 | R62: =O62*IFERROR(VLOOKUP($A62,UVR!$A:$B,2,0),CALCULADORA!$C$23) -> 419479257.7
A63: 2028-01-16 | B63: =IF(DIAS365(CALCULADORA!$C$30,A63)<0,0,DIAS365(CALCULADORA!$C$30,A63)) -> 1079 | C63: =+HLOOKUP(CALCULADORA!$C$11,Tablas!$B$1:$B$181,Flujos!J63+1,FALSE) -> 0.00855733 | D63: 38.14029 | E63: 0.855733 | F63: =ROUND(D62*ROUND(((1+CALCULADORA!$C$19)^(1/12)-1),6),6) -> 0.244856 | G63: 1.100589 | H63: =IF($B63=0,0,G63/POWER(1+CALCULADORA!$C$32,Flujos!$B63/365)) -> 0.9812184343 | I63: 2028-01-16 | J63: 61 | K63: 1856 | L63: 41610676.09 | M63: 933596.1704 | N63: 267135.4855 | O63: 1200731.656 | P63: =M63*IFERROR(VLOOKUP($A63,UVR!$A:$B,2,0),CALCULADORA!$C$23) -> 353103716.6 | Q63: =N63*IFERROR(VLOOKUP($A63,UVR!$A:$B,2,0),CALCULADORA!$C$23) -> 101035689.5 | R63: =O63*IFERROR(VLOOKUP($A63,UVR!$A:$B,2,0),CALCULADORA!$C$23) -> 454139406.1
A64: 2028-02-16 | B64: =IF(DIAS365(CALCULADORA!$C$30,A64)<0,0,DIAS365(CALCULADORA!$C$30,A64)) -> 1110 | C64: =+HLOOKUP(CALCULADORA!$C$11,Tablas!$B$1:$B$181,Flujos!J64+1,FALSE) -> 0.00839711 | D64: 37.300579 | E64: 0.839711 | F64: =ROUND(D63*ROUND(((1+CALCULADORA!$C$19)^(1/12)-1),6),6) -> 0.239483 | G64: 1.079194 | H64: =IF($B64=0,0,G64/POWER(1+CALCULADORA!$C$32,Flujos!$B64/365)) -> 0.9589756398 | I64: 2028-02-16 | J64: 62 | K64: 1887 | L64: 40694559.76 | M64: 916116.3281 | N64: 261273.4352 | O64: 1177389.763 | P64: =M64*IFERROR(VLOOKUP($A64,UVR!$A:$B,2,0),CALCULADORA!$C$23) -> 346492509.9 | Q64: =N64*IFERROR(VLOOKUP($A64,UVR!$A:$B,2,0),CALCULADORA!$C$23) -> 98818551.24 | R64: =O64*IFERROR(VLOOKUP($A64,UVR!$A:$B,2,0),CALCULADORA!$C$23) -> 445311061.1
A65: 2028-03-16 | B65: =IF(DIAS365(CALCULADORA!$C$30,A65)<0,0,DIAS365(CALCULADORA!$C$30,A65)) -> 1138 | C65: =+HLOOKUP(CALCULADORA!$C$11,Tablas!$B$1:$B$181,Flujos!J65+1,FALSE) -> 0.00830306 | D65: 36.470273 | E65: 0.830306 | F65: =ROUND(D64*ROUND(((1+CALCULADORA!$C$19)^(1/12)-1),6),6) -> 0.23421 | G65: 1.064516 | H65: =IF($B65=0,0,G65/POWER(1+CALCULADORA!$C$32,Flujos!$B65/365)) -> 0.9431187858 | I65: 2028-03-16 | J65: 63 | K65: 1915 | L65: 39788704.19 | M65: 905855.5669 | N65: 255521.1407 | O65: 1161376.708 | P65: =M65*IFERROR(VLOOKUP($A65,UVR!$A:$B,2,0),CALCULADORA!$C$23) -> 342611696.1 | Q65: =N65*IFERROR(VLOOKUP($A65,UVR!$A:$B,2,0),CALCULADORA!$C$23) -> 96642924.77 | R65: =O65*IFERROR(VLOOKUP($A65,UVR!$A:$B,2,0),CALCULADORA!$C$23) -> 439254620.8
A66: 2028-04-16 | B66: =IF(DIAS365(CALCULADORA!$C$30,A66)<0,0,DIAS365(CALCULADORA!$C$30,A66)) -> 1169 | C66: =+HLOOKUP(CALCULADORA!$C$11,Tablas!$B$1:$B$181,Flujos!J66+1,FALSE) -> 0.00821908 | D66: 35.648365 | E66: 0.821908 | F66: =ROUND(D65*ROUND(((1+CALCULADORA!$C$19)^(1/12)-1),6),6) -> 0.228997 | G66: 1.050905 | H66: =IF($B66=0,0,G66/POWER(1+CALCULADORA!$C$32,Flujos!$B66/365)) -> 0.9279940309 | I66: 2028-04-16 | J66: 64 | K66: 1946 | L66: 38892010.76 | M66: 896693.4326 | N66: 249833.2736 | O66: 1146526.706 | P66: =M66*IFERROR(VLOOKUP($A66,UVR!$A:$B,2,0),CALCULADORA!$C$23) -> 339146403.7 | Q66: =N66*IFERROR(VLOOKUP($A66,UVR!$A:$B,2,0),CALCULADORA!$C$23) -> 94491665.93 | R66: =O66*IFERROR(VLOOKUP($A66,UVR!$A:$B,2,0),CALCULADORA!$C$23) -> 433638069.7
A67: =EDATE(A66,1) -> 2028-05-16 | B67: =IF(DIAS365(CALCULADORA!$C$30,A67)<0,0,DIAS365(CALCULADORA!$C$30,A67)) -> 1199 | C67: =+HLOOKUP(CALCULADORA!$C$11,Tablas!$B$1:$B$181,Flujos!J67+1,FALSE) -> 0.00810513 | D67: 34.837852 | E67: 0.810513 | F67: =ROUND(D66*ROUND(((1+CALCULADORA!$C$19)^(1/12)-1),6),6) -> 0.223836 | G67: 1.034349 | H67: =IF($B67=0,0,G67/POWER(1+CALCULADORA!$C$32,Flujos!$B67/365)) -> 0.9104635307 | I67: =+A67 -> 2028-05-16 | J67: 65 | K67: 1976 | L67: 38007749.16 | M67: 884261.6013 | N67: 244202.9356 | O67: 1128464.537 | P67: =M67*IFERROR(VLOOKUP($A67,UVR!$A:$B,2,0),CALCULADORA!$C$23) -> 334444450.1 | Q67: =N67*IFERROR(VLOOKUP($A67,UVR!$A:$B,2,0),CALCULADORA!$C$23) -> 92362165.67 | R67: =O67*IFERROR(VLOOKUP($A67,UVR!$A:$B,2,0),CALCULADORA!$C$23) -> 426806615.8
A68: 2028-06-16 | B68: =IF(DIAS365(CALCULADORA!$C$30,A68)<0,0,DIAS365(CALCULADORA!$C$30,A68)) -> 1230 | C68: =+HLOOKUP(CALCULADORA!$C$11,Tablas!$B$1:$B$181,Flujos!J68+1,FALSE) -> 0.00795145 | D68: =+ROUND(D67-E68,6) -> 34.042707 | E68: =ROUND(C68*$D$2,6) -> 0.795145 | F68: =ROUND(D67*ROUND(((1+CALCULADORA!$C$19)^(1/12)-1),6),6) -> 0.218747 | G68: =F68+E68 -> 1.013892 | H68: =IF($B68=0,0,G68/POWER(1+CALCULADORA!$C$32,Flujos!$B68/365)) -> 0.8895178634 | I68: 2028-06-16 | J68: 66 | K68: =+DIAS365($A$2,A68) -> 2007 | L68: =+L67-M68 -> 37140253.89 | M68: =+$L$2*C68 -> 867495.2665 | N68: =+L67*$F$3% -> 238650.657 | O68: =+N68+M68 -> 1106145.923 | P68: =M68*IFERROR(VLOOKUP($A68,UVR!$A:$B,2,0),CALCULADORA!$C$23) -> 328103105.5 | Q68: =N68*IFERROR(VLOOKUP($A68,UVR!$A:$B,2,0),CALCULADORA!$C$23) -> 90262188.96 | R68: =O68*IFERROR(VLOOKUP($A68,UVR!$A:$B,2,0),CALCULADORA!$C$23) -> 418365294.4
A69: 2028-07-16 | B69: =IF(DIAS365(CALCULADORA!$C$30,A69)<0,0,DIAS365(CALCULADORA!$C$30,A69)) -> 1260 | C69: =+HLOOKUP(CALCULADORA!$C$11,Tablas!$B$1:$B$181,Flujos!J69+1,FALSE) -> 0.0078277 | D69: 33.259937 | E69: 0.78277 | F69: =ROUND(D68*ROUND(((1+CALCULADORA!$C$19)^(1/12)-1),6),6) -> 0.213754 | G69: 0.996524 | H69: =IF($B69=0,0,G69/POWER(1+CALCULADORA!$C$32,Flujos!$B69/365)) -> 0.8714941406 | I69: 2028-07-16 | J69: 67 | K69: 2037 | L69: 36286259.63 | M69: 853994.2649 | N69: 233203.6542 | O69: 1087197.919 | P69: =M69*IFERROR(VLOOKUP($A69,UVR!$A:$B,2,0),CALCULADORA!$C$23) -> 322996771.5 | Q69: =N69*IFERROR(VLOOKUP($A69,UVR!$A:$B,2,0),CALCULADORA!$C$23) -> 88202029.56 | R69: =O69*IFERROR(VLOOKUP($A69,UVR!$A:$B,2,0),CALCULADORA!$C$23) -> 411198801
A70: 2028-08-16 | B70: =IF(DIAS365(CALCULADORA!$C$30,A70)<0,0,DIAS365(CALCULADORA!$C$30,A70)) -> 1291 | C70: =+HLOOKUP(CALCULADORA!$C$11,Tablas!$B$1:$B$181,Flujos!J70+1,FALSE) -> 0.00774172 | D70: 32.485765 | E70: 0.774172 | F70: =ROUND(D69*ROUND(((1+CALCULADORA!$C$19)^(1/12)-1),6),6) -> 0.208839 | G70: 0.983011 | H70: =IF($B70=0,0,G70/POWER(1+CALCULADORA!$C$32,Flujos!$B70/365)) -> 0.8568456747 | I70: 2028-08-16 | J70: 68 | K70: 2068 | L70: 35441645.7 | M70: 844613.9326 | N70: 227841.4242 | O70: 1072455.357 | P70: =M70*IFERROR(VLOOKUP($A70,UVR!$A:$B,2,0),CALCULADORA!$C$23) -> 319448952.5 | Q70: =N70*IFERROR(VLOOKUP($A70,UVR!$A:$B,2,0),CALCULADORA!$C$23) -> 86173932.84 | R70: =O70*IFERROR(VLOOKUP($A70,UVR!$A:$B,2,0),CALCULADORA!$C$23) -> 405622885.4
A71: 2028-09-16 | B71: =IF(DIAS365(CALCULADORA!$C$30,A71)<0,0,DIAS365(CALCULADORA!$C$30,A71)) -> 1322 | C71: =+HLOOKUP(CALCULADORA!$C$11,Tablas!$B$1:$B$181,Flujos!J71+1,FALSE) -> 0.00765573 | D71: 31.720192 | E71: 0.765573 | F71: =ROUND(D70*ROUND(((1+CALCULADORA!$C$19)^(1/12)-1),6),6) -> 0.203978 | G71: 0.969551 | H71: =IF($B71=0,0,G71/POWER(1+CALCULADORA!$C$32,Flujos!$B71/365)) -> 0.8423302781 | I71: 2028-09-16 | J71: 69 | K71: 2099 | L71: 34606413.19 | M71: 835232.5094 | N71: 222538.0933 | O71: 1057770.603 | P71: =M71*IFERROR(VLOOKUP($A71,UVR!$A:$B,2,0),CALCULADORA!$C$23) -> 315900720.9 | Q71: =N71*IFERROR(VLOOKUP($A71,UVR!$A:$B,2,0),CALCULADORA!$C$23) -> 84168112.86 | R71: =O71*IFERROR(VLOOKUP($A71,UVR!$A:$B,2,0),CALCULADORA!$C$23) -> 400068833.8
A72: 2028-10-16 | B72: =IF(DIAS365(CALCULADORA!$C$30,A72)<0,0,DIAS365(CALCULADORA!$C$30,A72)) -> 1352 | C72: =+HLOOKUP(CALCULADORA!$C$11,Tablas!$B$1:$B$181,Flujos!J72+1,FALSE) -> 0.00754469 | D72: 30.965723 | E72: 0.754469 | F72: =ROUND(D71*ROUND(((1+CALCULADORA!$C$19)^(1/12)-1),6),6) -> 0.199171 | G72: 0.95364 | H72: =IF($B72=0,0,G72/POWER(1+CALCULADORA!$C$32,Flujos!$B72/365)) -> 0.8258666779 | I72: 2028-10-16 | J72: 70 | K72: 2129 | L72: 33783295.03 | M72: 823118.1561 | N72: 217293.6684 | O72: 1040411.824 | P72: =M72*IFERROR(VLOOKUP($A72,UVR!$A:$B,2,0),CALCULADORA!$C$23) -> 311318843.6 | Q72: =N72*IFERROR(VLOOKUP($A72,UVR!$A:$B,2,0),CALCULADORA!$C$23) -> 82184572.24 | R72: =O72*IFERROR(VLOOKUP($A72,UVR!$A:$B,2,0),CALCULADORA!$C$23) -> 393503415.8
A73: 2028-11-16 | B73: =IF(DIAS365(CALCULADORA!$C$30,A73)<0,0,DIAS365(CALCULADORA!$C$30,A73)) -> 1383 | C73: =+HLOOKUP(CALCULADORA!$C$11,Tablas!$B$1:$B$181,Flujos!J73+1,FALSE) -> 0.0074391 | D73: 30.221813 | E73: 0.74391 | F73: =ROUND(D72*ROUND(((1+CALCULADORA!$C$19)^(1/12)-1),6),6) -> 0.194434 | G73: 0.938344 | H73: =IF($B73=0,0,G73/POWER(1+CALCULADORA!$C$32,Flujos!$B73/365)) -> 0.8099441781 | I73: 2028-11-16 | J73: 71 | K73: 2160 | L73: 32971696.64 | M73: 811598.3924 | N73: 212125.3095 | O73: 1023723.702 | P73: =M73*IFERROR(VLOOKUP($A73,UVR!$A:$B,2,0),CALCULADORA!$C$23) -> 306961851.2 | Q73: =N73*IFERROR(VLOOKUP($A73,UVR!$A:$B,2,0),CALCULADORA!$C$23) -> 80229801.22 | R73: =O73*IFERROR(VLOOKUP($A73,UVR!$A:$B,2,0),CALCULADORA!$C$23) -> 387191652.4
A74: 2028-12-16 | B74: =IF(DIAS365(CALCULADORA!$C$30,A74)<0,0,DIAS365(CALCULADORA!$C$30,A74)) -> 1413 | C74: =+HLOOKUP(CALCULADORA!$C$11,Tablas!$B$1:$B$181,Flujos!J74+1,FALSE) -> 0.00624798 | D74: 29.597015 | E74: 0.624798 | F74: =ROUND(D73*ROUND(((1+CALCULADORA!$C$19)^(1/12)-1),6),6) -> 0.189763 | G74: 0.814561 | H74: =IF($B74=0,0,G74/POWER(1+CALCULADORA!$C$32,Flujos!$B74/365)) -> 0.7008585095 | I74: 2028-12-16 | J74: 72 | K74: 2190 | L74: 32290048.25 | M74: 681648.3881 | N74: 207029.2832 | O74: 888677.6712 | P74: =M74*IFERROR(VLOOKUP($A74,UVR!$A:$B,2,0),CALCULADORA!$C$23) -> 257812303.5 | Q74: =N74*IFERROR(VLOOKUP($A74,UVR!$A:$B,2,0),CALCULADORA!$C$23) -> 78302387.75 | R74: =O74*IFERROR(VLOOKUP($A74,UVR!$A:$B,2,0),CALCULADORA!$C$23) -> 336114691.3
A75: 2029-01-16 | B75: =IF(DIAS365(CALCULADORA!$C$30,A75)<0,0,DIAS365(CALCULADORA!$C$30,A75)) -> 1444 | C75: =+HLOOKUP(CALCULADORA!$C$11,Tablas!$B$1:$B$181,Flujos!J75+1,FALSE) -> 0.0071897 | D75: 28.878045 | E75: 0.71897 | F75: =ROUND(D74*ROUND(((1+CALCULADORA!$C$19)^(1/12)-1),6),6) -> 0.18584 | G75: 0.90481 | H75: =IF($B75=0,0,G75/POWER(1+CALCULADORA!$C$32,Flujos!$B75/365)) -> 0.7759462737 | I75: 2029-01-16 | J75: 73 | K75: 2221 | L75: 31505659.15 | M75: 784389.1011 | N75: 202749.213 | O75: 987138.314 | P75: =M75*IFERROR(VLOOKUP($A75,UVR!$A:$B,2,0),CALCULADORA!$C$23) -> 296670783 | Q75: =N75*IFERROR(VLOOKUP($A75,UVR!$A:$B,2,0),CALCULADORA!$C$23) -> 76683584.3 | R75: =O75*IFERROR(VLOOKUP($A75,UVR!$A:$B,2,0),CALCULADORA!$C$23) -> 373354367.3
A76: 2029-02-16 | B76: =IF(DIAS365(CALCULADORA!$C$30,A76)<0,0,DIAS365(CALCULADORA!$C$30,A76)) -> 1475 | C76: =+HLOOKUP(CALCULADORA!$C$11,Tablas!$B$1:$B$181,Flujos!J76+1,FALSE) -> 0.00709459 | D76: 28.168586 | E76: 0.709459 | F76: =ROUND(D75*ROUND(((1+CALCULADORA!$C$19)^(1/12)-1),6),6) -> 0.181325 | G76: 0.890784 | H76: =IF($B76=0,0,G76/POWER(1+CALCULADORA!$C$32,Flujos!$B76/365)) -> 0.7614023099 | I76: 2029-02-16 | J76: 74 | K76: 2252 | L76: 30731646.45 | M76: 774012.6949 | N76: 197824.0338 | O76: 971836.7287 | P76: =M76*IFERROR(VLOOKUP($A76,UVR!$A:$B,2,0),CALCULADORA!$C$23) -> 292746230 | Q76: =N76*IFERROR(VLOOKUP($A76,UVR!$A:$B,2,0),CALCULADORA!$C$23) -> 74820788.45 | R76: =O76*IFERROR(VLOOKUP($A76,UVR!$A:$B,2,0),CALCULADORA!$C$23) -> 367567018.5
A77: 2029-03-16 | B77: =IF(DIAS365(CALCULADORA!$C$30,A77)<0,0,DIAS365(CALCULADORA!$C$30,A77)) -> 1503 | C77: =+HLOOKUP(CALCULADORA!$C$11,Tablas!$B$1:$B$181,Flujos!J77+1,FALSE) -> 0.00699276 | D77: 27.46931 | E77: 0.699276 | F77: =ROUND(D76*ROUND(((1+CALCULADORA!$C$19)^(1/12)-1),6),6) -> 0.176871 | G77: 0.876147 | H77: =IF($B77=0,0,G77/POWER(1+CALCULADORA!$C$32,Flujos!$B77/365)) -> 0.7466634791 | I77: 2029-03-16 | J77: 75 | K77: 2280 | L77: 29968743.31 | M77: 762903.1434 | N77: 192964.0081 | O77: 955867.1515 | P77: =M77*IFERROR(VLOOKUP($A77,UVR!$A:$B,2,0),CALCULADORA!$C$23) -> 288544387.7 | Q77: =N77*IFERROR(VLOOKUP($A77,UVR!$A:$B,2,0),CALCULADORA!$C$23) -> 72982634.88 | R77: =O77*IFERROR(VLOOKUP($A77,UVR!$A:$B,2,0),CALCULADORA!$C$23) -> 361527022.6
A78: 2029-04-16 | B78: =IF(DIAS365(CALCULADORA!$C$30,A78)<0,0,DIAS365(CALCULADORA!$C$30,A78)) -> 1534 | C78: =+HLOOKUP(CALCULADORA!$C$11,Tablas!$B$1:$B$181,Flujos!J78+1,FALSE) -> 0.00692601 | D78: 26.776709 | E78: 0.692601 | F78: =ROUND(D77*ROUND(((1+CALCULADORA!$C$19)^(1/12)-1),6),6) -> 0.17248 | G78: 0.865081 | H78: =IF($B78=0,0,G78/POWER(1+CALCULADORA!$C$32,Flujos!$B78/365)) -> 0.7348052104 | I78: 2029-04-16 | J78: 76 | K78: 2311 | L78: 29213122.52 | M78: 755620.785 | N78: 188173.7392 | O78: 943794.5242 | P78: =M78*IFERROR(VLOOKUP($A78,UVR!$A:$B,2,0),CALCULADORA!$C$23) -> 285790062.1 | Q78: =N78*IFERROR(VLOOKUP($A78,UVR!$A:$B,2,0),CALCULADORA!$C$23) -> 71170864.67 | R78: =O78*IFERROR(VLOOKUP($A78,UVR!$A:$B,2,0),CALCULADORA!$C$23) -> 356960926.8
A79: 2029-05-16 | B79: =IF(DIAS365(CALCULADORA!$C$30,A79)<0,0,DIAS365(CALCULADORA!$C$30,A79)) -> 1564 | C79: =+HLOOKUP(CALCULADORA!$C$11,Tablas!$B$1:$B$181,Flujos!J79+1,FALSE) -> 0.00685453 | D79: 26.091256 | E79: 0.685453 | F79: =ROUND(D78*ROUND(((1+CALCULADORA!$C$19)^(1/12)-1),6),6) -> 0.168131 | G79: 0.853584 | H79: =IF($B79=0,0,G79/POWER(1+CALCULADORA!$C$32,Flujos!$B79/365)) -> 0.7227289487 | I79: 2029-05-16 | J79: 77 | K79: 2341 | L79: 28465300.14 | M79: 747822.3883 | N79: 183429.1963 | O79: 931251.5846 | P79: =M79*IFERROR(VLOOKUP($A79,UVR!$A:$B,2,0),CALCULADORA!$C$23) -> 282840561.1 | Q79: =N79*IFERROR(VLOOKUP($A79,UVR!$A:$B,2,0),CALCULADORA!$C$23) -> 69376388.87 | R79: =O79*IFERROR(VLOOKUP($A79,UVR!$A:$B,2,0),CALCULADORA!$C$23) -> 352216949.9
A80: 2029-06-16 | B80: =IF(DIAS365(CALCULADORA!$C$30,A80)<0,0,DIAS365(CALCULADORA!$C$30,A80)) -> 1595 | C80: =+HLOOKUP(CALCULADORA!$C$11,Tablas!$B$1:$B$181,Flujos!J80+1,FALSE) -> 0.00678744 | D80: 25.412512 | E80: 0.678744 | F80: =ROUND(D79*ROUND(((1+CALCULADORA!$C$19)^(1/12)-1),6),6) -> 0.163827 | G80: 0.842571 | H80: =IF($B80=0,0,G80/POWER(1+CALCULADORA!$C$32,Flujos!$B80/365)) -> 0.7110550321 | I80: 2029-06-16 | J80: 78 | K80: 2372 | L80: 27724797.2 | M80: 740502.9362 | N80: 178733.6196 | O80: 919236.5557 | P80: =M80*IFERROR(VLOOKUP($A80,UVR!$A:$B,2,0),CALCULADORA!$C$23) -> 280072206 | Q80: =N80*IFERROR(VLOOKUP($A80,UVR!$A:$B,2,0),CALCULADORA!$C$23) -> 67600432.98 | R80: =O80*IFERROR(VLOOKUP($A80,UVR!$A:$B,2,0),CALCULADORA!$C$23) -> 347672638.9
A81: 2029-07-16 | B81: =IF(DIAS365(CALCULADORA!$C$30,A81)<0,0,DIAS365(CALCULADORA!$C$30,A81)) -> 1625 | C81: =+HLOOKUP(CALCULADORA!$C$11,Tablas!$B$1:$B$181,Flujos!J81+1,FALSE) -> 0.00671627 | D81: 24.740885 | E81: 0.671627 | F81: =ROUND(D80*ROUND(((1+CALCULADORA!$C$19)^(1/12)-1),6),6) -> 0.159565 | G81: 0.831192 | H81: =IF($B81=0,0,G81/POWER(1+CALCULADORA!$C$32,Flujos!$B81/365)) -> 0.6992167005 | I81: 2029-07-16 | J81: 79 | K81: 2402 | L81: 26992058.84 | M81: 732738.3601 | N81: 174084.0016 | O81: 906822.3617 | P81: =M81*IFERROR(VLOOKUP($A81,UVR!$A:$B,2,0),CALCULADORA!$C$23) -> 277135496.6 | Q81: =N81*IFERROR(VLOOKUP($A81,UVR!$A:$B,2,0),CALCULADORA!$C$23) -> 65841859.6 | R81: =O81*IFERROR(VLOOKUP($A81,UVR!$A:$B,2,0),CALCULADORA!$C$23) -> 342977356.2
A82: 2029-08-16 | B82: =IF(DIAS365(CALCULADORA!$C$30,A82)<0,0,DIAS365(CALCULADORA!$C$30,A82)) -> 1656 | C82: =+HLOOKUP(CALCULADORA!$C$11,Tablas!$B$1:$B$181,Flujos!J82+1,FALSE) -> 0.00667414 | D82: 24.073471 | E82: 0.667414 | F82: =ROUND(D81*ROUND(((1+CALCULADORA!$C$19)^(1/12)-1),6),6) -> 0.155348 | G82: 0.822762 | H82: =IF($B82=0,0,G82/POWER(1+CALCULADORA!$C$32,Flujos!$B82/365)) -> 0.6898460557 | I82: 2029-08-16 | J82: 80 | K82: 2433 | L82: 26263916.82 | M82: 728142.0191 | N82: 169483.1375 | O82: 897625.1566 | P82: =M82*IFERROR(VLOOKUP($A82,UVR!$A:$B,2,0),CALCULADORA!$C$23) -> 275397073.5 | Q82: =N82*IFERROR(VLOOKUP($A82,UVR!$A:$B,2,0),CALCULADORA!$C$23) -> 64101725.82 | R82: =O82*IFERROR(VLOOKUP($A82,UVR!$A:$B,2,0),CALCULADORA!$C$23) -> 339498799.3
A83: 2029-09-16 | B83: =IF(DIAS365(CALCULADORA!$C$30,A83)<0,0,DIAS365(CALCULADORA!$C$30,A83)) -> 1687 | C83: =+HLOOKUP(CALCULADORA!$C$11,Tablas!$B$1:$B$181,Flujos!J83+1,FALSE) -> 0.00662089 | D83: 23.411382 | E83: 0.662089 | F83: =ROUND(D82*ROUND(((1+CALCULADORA!$C$19)^(1/12)-1),6),6) -> 0.151157 | G83: 0.813246 | H83: =IF($B83=0,0,G83/POWER(1+CALCULADORA!$C$32,Flujos!$B83/365)) -> 0.6796219834 | I83: 2029-09-16 | J83: 81 | K83: 2464 | L83: 25541584.32 | M83: 722332.4972 | N83: 164911.1337 | O83: 887243.6309 | P83: =M83*IFERROR(VLOOKUP($A83,UVR!$A:$B,2,0),CALCULADORA!$C$23) -> 273199802.5 | Q83: =N83*IFERROR(VLOOKUP($A83,UVR!$A:$B,2,0),CALCULADORA!$C$23) -> 62372507.59 | R83: =O83*IFERROR(VLOOKUP($A83,UVR!$A:$B,2,0),CALCULADORA!$C$23) -> 335572310.1
A84: 2029-10-16 | B84: =IF(DIAS365(CALCULADORA!$C$30,A84)<0,0,DIAS365(CALCULADORA!$C$30,A84)) -> 1717 | C84: =+HLOOKUP(CALCULADORA!$C$11,Tablas!$B$1:$B$181,Flujos!J84+1,FALSE) -> 0.00658968 | D84: 22.752414 | E84: 0.658968 | F84: =ROUND(D83*ROUND(((1+CALCULADORA!$C$19)^(1/12)-1),6),6) -> 0.147 | G84: 0.805968 | H84: =IF($B84=0,0,G84/POWER(1+CALCULADORA!$C$32,Flujos!$B84/365)) -> 0.6713933149 | I84: 2029-10-16 | J84: 82 | K84: 2494 | L84: 24822656.81 | M84: 718927.5173 | N84: 160375.608 | O84: 879303.1253 | P84: =M84*IFERROR(VLOOKUP($A84,UVR!$A:$B,2,0),CALCULADORA!$C$23) -> 271911974.8 | Q84: =N84*IFERROR(VLOOKUP($A84,UVR!$A:$B,2,0),CALCULADORA!$C$23) -> 60657086.03 | R84: =O84*IFERROR(VLOOKUP($A84,UVR!$A:$B,2,0),CALCULADORA!$C$23) -> 332569060.8
A85: 2029-11-16 | B85: =IF(DIAS365(CALCULADORA!$C$30,A85)<0,0,DIAS365(CALCULADORA!$C$30,A85)) -> 1748 | C85: =+HLOOKUP(CALCULADORA!$C$11,Tablas!$B$1:$B$181,Flujos!J85+1,FALSE) -> 0.00655828 | D85: 22.096586 | E85: 0.655828 | F85: =ROUND(D84*ROUND(((1+CALCULADORA!$C$19)^(1/12)-1),6),6) -> 0.142862 | G85: 0.79869 | H85: =IF($B85=0,0,G85/POWER(1+CALCULADORA!$C$32,Flujos!$B85/365)) -> 0.6631396302 | I85: 2029-11-16 | J85: 83 | K85: 2525 | L85: 24107155 | M85: 715501.8086 | N85: 155861.4621 | O85: 871363.2707 | P85: =M85*IFERROR(VLOOKUP($A85,UVR!$A:$B,2,0),CALCULADORA!$C$23) -> 270616307 | Q85: =N85*IFERROR(VLOOKUP($A85,UVR!$A:$B,2,0),CALCULADORA!$C$23) -> 58949750.74 | R85: =O85*IFERROR(VLOOKUP($A85,UVR!$A:$B,2,0),CALCULADORA!$C$23) -> 329566057.8
A86: 2029-12-16 | B86: =IF(DIAS365(CALCULADORA!$C$30,A86)<0,0,DIAS365(CALCULADORA!$C$30,A86)) -> 1778 | C86: =+HLOOKUP(CALCULADORA!$C$11,Tablas!$B$1:$B$181,Flujos!J86+1,FALSE) -> 0.00544219 | D86: 21.552367 | E86: 0.544219 | F86: =ROUND(D85*ROUND(((1+CALCULADORA!$C$19)^(1/12)-1),6),6) -> 0.138744 | G86: 0.682963 | H86: =IF($B86=0,0,G86/POWER(1+CALCULADORA!$C$32,Flujos!$B86/365)) -> 0.5652461893 | I86: 2029-12-16 | J86: 84 | K86: 2555 | L86: 23513417.5 | M86: 593737.5025 | N86: 151368.8262 | O86: 745106.3288 | P86: =M86*IFERROR(VLOOKUP($A86,UVR!$A:$B,2,0),CALCULADORA!$C$23) -> 224562745.1 | Q86: =N86*IFERROR(VLOOKUP($A86,UVR!$A:$B,2,0),CALCULADORA!$C$23) -> 57250550.95 | R86: =O86*IFERROR(VLOOKUP($A86,UVR!$A:$B,2,0),CALCULADORA!$C$23) -> 281813296
A87: 2030-01-16 | B87: =IF(DIAS365(CALCULADORA!$C$30,A87)<0,0,DIAS365(CALCULADORA!$C$30,A87)) -> 1809 | C87: =+HLOOKUP(CALCULADORA!$C$11,Tablas!$B$1:$B$181,Flujos!J87+1,FALSE) -> 0.0064759 | D87: 20.904777 | E87: 0.64759 | F87: =ROUND(D86*ROUND(((1+CALCULADORA!$C$19)^(1/12)-1),6),6) -> 0.135327 | G87: 0.782917 | H87: =IF($B87=0,0,G87/POWER(1+CALCULADORA!$C$32,Flujos!$B87/365)) -> 0.6458381754 | I87: 2030-01-16 | J87: 85 | K87: 2586 | L87: 22806903.26 | M87: 706514.2328 | N87: 147640.7485 | O87: 854154.9812 | P87: =M87*IFERROR(VLOOKUP($A87,UVR!$A:$B,2,0),CALCULADORA!$C$23) -> 267217036 | Q87: =N87*IFERROR(VLOOKUP($A87,UVR!$A:$B,2,0),CALCULADORA!$C$23) -> 55840521.48 | R87: =O87*IFERROR(VLOOKUP($A87,UVR!$A:$B,2,0),CALCULADORA!$C$23) -> 323057557.4
A88: 2030-02-16 | B88: =IF(DIAS365(CALCULADORA!$C$30,A88)<0,0,DIAS365(CALCULADORA!$C$30,A88)) -> 1840 | C88: =+HLOOKUP(CALCULADORA!$C$11,Tablas!$B$1:$B$181,Flujos!J88+1,FALSE) -> 0.00642277 | D88: 20.2625 | E88: 0.642277 | F88: =ROUND(D87*ROUND(((1+CALCULADORA!$C$19)^(1/12)-1),6),6) -> 0.131261 | G88: 0.773538 | H88: =IF($B88=0,0,G88/POWER(1+CALCULADORA!$C$32,Flujos!$B88/365)) -> 0.6360000718 | I88: 2030-02-16 | J88: 86 | K88: 2617 | L88: 22106185.46 | M88: 700717.8028 | N88: 143204.5456 | O88: 843922.3484 | P88: =M88*IFERROR(VLOOKUP($A88,UVR!$A:$B,2,0),CALCULADORA!$C$23) -> 265024716.6 | Q88: =N88*IFERROR(VLOOKUP($A88,UVR!$A:$B,2,0),CALCULADORA!$C$23) -> 54162665.71 | R88: =O88*IFERROR(VLOOKUP($A88,UVR!$A:$B,2,0),CALCULADORA!$C$23) -> 319187382.3
A89: 2030-03-16 | B89: =IF(DIAS365(CALCULADORA!$C$30,A89)<0,0,DIAS365(CALCULADORA!$C$30,A89)) -> 1868 | C89: =+HLOOKUP(CALCULADORA!$C$11,Tablas!$B$1:$B$181,Flujos!J89+1,FALSE) -> 0.00637348 | D89: 19.625152 | E89: 0.637348 | F89: =ROUND(D88*ROUND(((1+CALCULADORA!$C$19)^(1/12)-1),6),6) -> 0.127228 | G89: 0.764576 | H89: =IF($B89=0,0,G89/POWER(1+CALCULADORA!$C$32,Flujos!$B89/365)) -> 0.6267615154 | I89: 2030-03-16 | J89: 87 | K89: 2645 | L89: 21410845.15 | M89: 695340.3129 | N89: 138804.7385 | O89: 834145.0514 | P89: =M89*IFERROR(VLOOKUP($A89,UVR!$A:$B,2,0),CALCULADORA!$C$23) -> 262990848.3 | Q89: =N89*IFERROR(VLOOKUP($A89,UVR!$A:$B,2,0),CALCULADORA!$C$23) -> 52498575.51 | R89: =O89*IFERROR(VLOOKUP($A89,UVR!$A:$B,2,0),CALCULADORA!$C$23) -> 315489423.8
A90: 2030-04-16 | B90: =IF(DIAS365(CALCULADORA!$C$30,A90)<0,0,DIAS365(CALCULADORA!$C$30,A90)) -> 1899 | C90: =+HLOOKUP(CALCULADORA!$C$11,Tablas!$B$1:$B$181,Flujos!J90+1,FALSE) -> 0.00628857 | D90: 18.996295 | E90: 0.628857 | F90: =ROUND(D89*ROUND(((1+CALCULADORA!$C$19)^(1/12)-1),6),6) -> 0.123226 | G90: 0.752083 | H90: =IF($B90=0,0,G90/POWER(1+CALCULADORA!$C$32,Flujos!$B90/365)) -> 0.6144901911 | I90: 2030-04-16 | J90: 88 | K90: 2676 | L90: 20724768.43 | M90: 686076.7166 | N90: 134438.6967 | O90: 820515.4133 | P90: =M90*IFERROR(VLOOKUP($A90,UVR!$A:$B,2,0),CALCULADORA!$C$23) -> 259487181.1 | Q90: =N90*IFERROR(VLOOKUP($A90,UVR!$A:$B,2,0),CALCULADORA!$C$23) -> 50847255.97 | R90: =O90*IFERROR(VLOOKUP($A90,UVR!$A:$B,2,0),CALCULADORA!$C$23) -> 310334437
A91: 2030-05-16 | B91: =IF(DIAS365(CALCULADORA!$C$30,A91)<0,0,DIAS365(CALCULADORA!$C$30,A91)) -> 1929 | C91: =+HLOOKUP(CALCULADORA!$C$11,Tablas!$B$1:$B$181,Flujos!J91+1,FALSE) -> 0.00623756 | D91: 18.372539 | E91: 0.623756 | F91: =ROUND(D90*ROUND(((1+CALCULADORA!$C$19)^(1/12)-1),6),6) -> 0.119278 | G91: 0.743034 | H91: =IF($B91=0,0,G91/POWER(1+CALCULADORA!$C$32,Flujos!$B91/365)) -> 0.605161932 | I91: 2030-05-16 | J91: 89 | K91: 2706 | L91: 20044256.85 | M91: 680511.5764 | N91: 130130.821 | O91: 810642.3974 | P91: =M91*IFERROR(VLOOKUP($A91,UVR!$A:$B,2,0),CALCULADORA!$C$23) -> 257382339.9 | Q91: =N91*IFERROR(VLOOKUP($A91,UVR!$A:$B,2,0),CALCULADORA!$C$23) -> 49217935.96 | R91: =O91*IFERROR(VLOOKUP($A91,UVR!$A:$B,2,0),CALCULADORA!$C$23) -> 306600275.8
A92: 2030-06-16 | B92: =IF(DIAS365(CALCULADORA!$C$30,A92)<0,0,DIAS365(CALCULADORA!$C$30,A92)) -> 1960 | C92: =+HLOOKUP(CALCULADORA!$C$11,Tablas!$B$1:$B$181,Flujos!J92+1,FALSE) -> 0.00618939 | D92: 17.7536 | E92: 0.618939 | F92: =ROUND(D91*ROUND(((1+CALCULADORA!$C$19)^(1/12)-1),6),6) -> 0.115361 | G92: 0.7343 | H92: =IF($B92=0,0,G92/POWER(1+CALCULADORA!$C$32,Flujos!$B92/365)) -> 0.5960791956 | I92: 2030-06-16 | J92: 90 | K92: 2737 | L92: 19369000.58 | M92: 675256.2775 | N92: 125857.8888 | O92: 801114.1663 | P92: =M92*IFERROR(VLOOKUP($A92,UVR!$A:$B,2,0),CALCULADORA!$C$23) -> 255394686.5 | Q92: =N92*IFERROR(VLOOKUP($A92,UVR!$A:$B,2,0),CALCULADORA!$C$23) -> 47601832.25 | R92: =O92*IFERROR(VLOOKUP($A92,UVR!$A:$B,2,0),CALCULADORA!$C$23) -> 302996518.7
A93: 2030-07-16 | B93: =IF(DIAS365(CALCULADORA!$C$30,A93)<0,0,DIAS365(CALCULADORA!$C$30,A93)) -> 1990 | C93: =+HLOOKUP(CALCULADORA!$C$11,Tablas!$B$1:$B$181,Flujos!J93+1,FALSE) -> 0.00614899 | D93: 17.138701 | E93: 0.614899 | F93: =ROUND(D92*ROUND(((1+CALCULADORA!$C$19)^(1/12)-1),6),6) -> 0.111475 | G93: 0.726374 | H93: =IF($B93=0,0,G93/POWER(1+CALCULADORA!$C$32,Flujos!$B93/365)) -> 0.5877659968 | I93: 2030-07-16 | J93: 91 | K93: 2767 | L93: 18698151.9 | M93: 670848.6778 | N93: 121617.9546 | O93: 792466.6324 | P93: =M93*IFERROR(VLOOKUP($A93,UVR!$A:$B,2,0),CALCULADORA!$C$23) -> 253727649 | Q93: =N93*IFERROR(VLOOKUP($A93,UVR!$A:$B,2,0),CALCULADORA!$C$23) -> 45998209.02 | R93: =O93*IFERROR(VLOOKUP($A93,UVR!$A:$B,2,0),CALCULADORA!$C$23) -> 299725858
A94: 2030-08-16 | B94: =IF(DIAS365(CALCULADORA!$C$30,A94)<0,0,DIAS365(CALCULADORA!$C$30,A94)) -> 2021 | C94: =+HLOOKUP(CALCULADORA!$C$11,Tablas!$B$1:$B$181,Flujos!J94+1,FALSE) -> 0.00610296 | D94: 16.528405 | E94: 0.610296 | F94: =ROUND(D93*ROUND(((1+CALCULADORA!$C$19)^(1/12)-1),6),6) -> 0.107614 | G94: 0.71791 | H94: =IF($B94=0,0,G94/POWER(1+CALCULADORA!$C$32,Flujos!$B94/365)) -> 0.579004171 | I94: 2030-08-16 | J94: 92 | K94: 2798 | L94: 18032325.05 | M94: 665826.8507 | N94: 117405.6958 | O94: 783232.5464 | P94: =M94*IFERROR(VLOOKUP($A94,UVR!$A:$B,2,0),CALCULADORA!$C$23) -> 251828299 | Q94: =N94*IFERROR(VLOOKUP($A94,UVR!$A:$B,2,0),CALCULADORA!$C$23) -> 44405053.11 | R94: =O94*IFERROR(VLOOKUP($A94,UVR!$A:$B,2,0),CALCULADORA!$C$23) -> 296233352.2
A95: 2030-09-16 | B95: =IF(DIAS365(CALCULADORA!$C$30,A95)<0,0,DIAS365(CALCULADORA!$C$30,A95)) -> 2052 | C95: =+HLOOKUP(CALCULADORA!$C$11,Tablas!$B$1:$B$181,Flujos!J95+1,FALSE) -> 0.00603473 | D95: 15.924932 | E95: 0.603473 | F95: =ROUND(D94*ROUND(((1+CALCULADORA!$C$19)^(1/12)-1),6),6) -> 0.103782 | G95: 0.707255 | H95: =IF($B95=0,0,G95/POWER(1+CALCULADORA!$C$32,Flujos!$B95/365)) -> 0.5685324241 | I95: 2030-09-16 | J95: 93 | K95: 2829 | L95: 17373942.02 | M95: 658383.0257 | N95: 113224.969 | O95: 771607.9947 | P95: =M95*IFERROR(VLOOKUP($A95,UVR!$A:$B,2,0),CALCULADORA!$C$23) -> 249012903.8 | Q95: =N95*IFERROR(VLOOKUP($A95,UVR!$A:$B,2,0),CALCULADORA!$C$23) -> 42823823.22 | R95: =O95*IFERROR(VLOOKUP($A95,UVR!$A:$B,2,0),CALCULADORA!$C$23) -> 291836727
A96: 2030-10-16 | B96: =IF(DIAS365(CALCULADORA!$C$30,A96)<0,0,DIAS365(CALCULADORA!$C$30,A96)) -> 2082 | C96: =+HLOOKUP(CALCULADORA!$C$11,Tablas!$B$1:$B$181,Flujos!J96+1,FALSE) -> 0.00593948 | D96: 15.330984 | E96: 0.593948 | F96: =ROUND(D95*ROUND(((1+CALCULADORA!$C$19)^(1/12)-1),6),6) -> 0.099993 | G96: 0.693941 | H96: =IF($B96=0,0,G96/POWER(1+CALCULADORA!$C$32,Flujos!$B96/365)) -> 0.5560521066 | I96: 2030-10-16 | J96: 94 | K96: 2859 | L96: 16725950.68 | M96: 647991.3457 | N96: 109090.982 | O96: 757082.3276 | P96: =M96*IFERROR(VLOOKUP($A96,UVR!$A:$B,2,0),CALCULADORA!$C$23) -> 245082574 | Q96: =N96*IFERROR(VLOOKUP($A96,UVR!$A:$B,2,0),CALCULADORA!$C$23) -> 41260271.2 | R96: =O96*IFERROR(VLOOKUP($A96,UVR!$A:$B,2,0),CALCULADORA!$C$23) -> 286342845.2
A97: 2030-11-16 | B97: =IF(DIAS365(CALCULADORA!$C$30,A97)<0,0,DIAS365(CALCULADORA!$C$30,A97)) -> 2113 | C97: =+HLOOKUP(CALCULADORA!$C$11,Tablas!$B$1:$B$181,Flujos!J97+1,FALSE) -> 0.00588431 | D97: 14.742553 | E97: 0.588431 | F97: =ROUND(D96*ROUND(((1+CALCULADORA!$C$19)^(1/12)-1),6),6) -> 0.096263 | G97: 0.684694 | H97: =IF($B97=0,0,G97/POWER(1+CALCULADORA!$C$32,Flujos!$B97/365)) -> 0.5468358606 | I97: 2030-11-16 | J97: 95 | K97: 2890 | L97: 16083978.32 | M97: 641972.3537 | N97: 105022.2443 | O97: 746994.598 | P97: =M97*IFERROR(VLOOKUP($A97,UVR!$A:$B,2,0),CALCULADORA!$C$23) -> 242806077.4 | Q97: =N97*IFERROR(VLOOKUP($A97,UVR!$A:$B,2,0),CALCULADORA!$C$23) -> 39721397.71 | R97: =O97*IFERROR(VLOOKUP($A97,UVR!$A:$B,2,0),CALCULADORA!$C$23) -> 282527475.2
A98: 2030-12-16 | B98: =IF(DIAS365(CALCULADORA!$C$30,A98)<0,0,DIAS365(CALCULADORA!$C$30,A98)) -> 2143 | C98: =+HLOOKUP(CALCULADORA!$C$11,Tablas!$B$1:$B$181,Flujos!J98+1,FALSE) -> 0.00470713 | D98: 14.27184 | E98: 0.470713 | F98: =ROUND(D97*ROUND(((1+CALCULADORA!$C$19)^(1/12)-1),6),6) -> 0.092568 | G98: 0.563281 | H98: =IF($B98=0,0,G98/POWER(1+CALCULADORA!$C$32,Flujos!$B98/365)) -> 0.4484347903 | I98: 2030-12-16 | J98: 96 | K98: 2920 | L98: 15570435.13 | M98: 513543.1895 | N98: 100991.2999 | O98: 614534.4893 | P98: =M98*IFERROR(VLOOKUP($A98,UVR!$A:$B,2,0),CALCULADORA!$C$23) -> 194231740.2 | Q98: =N98*IFERROR(VLOOKUP($A98,UVR!$A:$B,2,0),CALCULADORA!$C$23) -> 38196818.35 | R98: =O98*IFERROR(VLOOKUP($A98,UVR!$A:$B,2,0),CALCULADORA!$C$23) -> 232428558.6
A99: =EDATE(A98,1) -> 2031-01-16 | B99: =IF(DIAS365(CALCULADORA!$C$30,A99)<0,0,DIAS365(CALCULADORA!$C$30,A99)) -> 2174 | C99: =+HLOOKUP(CALCULADORA!$C$11,Tablas!$B$1:$B$181,Flujos!J99+1,FALSE) -> 0.00568157 | D99: 13.703683 | E99: 0.568157 | F99: =ROUND(D98*ROUND(((1+CALCULADORA!$C$19)^(1/12)-1),6),6) -> 0.089613 | G99: 0.65777 | H99: =IF($B99=0,0,G99/POWER(1+CALCULADORA!$C$32,Flujos!$B99/365)) -> 0.5219342304 | I99: 2031-01-16 | J99: 97 | K99: 2951 | L99: 14950581.51 | M99: 619853.6218 | N99: 97766.7622 | O99: 717620.384 | P99: =M99*IFERROR(VLOOKUP($A99,UVR!$A:$B,2,0),CALCULADORA!$C$23) -> 234440355 | Q99: =N99*IFERROR(VLOOKUP($A99,UVR!$A:$B,2,0),CALCULADORA!$C$23) -> 36977237.26 | R99: =O99*IFERROR(VLOOKUP($A99,UVR!$A:$B,2,0),CALCULADORA!$C$23) -> 271417592.3
A100: 2031-02-16 | B100: =IF(DIAS365(CALCULADORA!$C$30,A100)<0,0,DIAS365(CALCULADORA!$C$30,A100)) -> 2205 | C100: =+HLOOKUP(CALCULADORA!$C$11,Tablas!$B$1:$B$181,Flujos!J100+1,FALSE) -> 0.00559665 | D100: 13.144018 | E100: 0.559665 | F100: =ROUND(D99*ROUND(((1+CALCULADORA!$C$19)^(1/12)-1),6),6) -> 0.086045 | G100: 0.64571 | H100: =IF($B100=0,0,G100/POWER(1+CALCULADORA!$C$32,Flujos!$B100/365)) -> 0.5106775344 | I100: 2031-02-16 | J100: 98 | K100: 2982 | L100: 14339992.58 | M100: 610588.9345 | N100: 93874.70131 | O100: 704463.6358 | P100: =M100*IFERROR(VLOOKUP($A100,UVR!$A:$B,2,0),CALCULADORA!$C$23) -> 230936275.2 | Q100: =N100*IFERROR(VLOOKUP($A100,UVR!$A:$B,2,0),CALCULADORA!$C$23) -> 35505186.27 | R100: =O100*IFERROR(VLOOKUP($A100,UVR!$A:$B,2,0),CALCULADORA!$C$23) -> 266441461.4
A101: 2031-03-16 | B101: =IF(DIAS365(CALCULADORA!$C$30,A101)<0,0,DIAS365(CALCULADORA!$C$30,A101)) -> 2233 | C101: =+HLOOKUP(CALCULADORA!$C$11,Tablas!$B$1:$B$181,Flujos!J101+1,FALSE) -> 0.00554844 | D101: 12.589174 | E101: 0.554844 | F101: =ROUND(D100*ROUND(((1+CALCULADORA!$C$19)^(1/12)-1),6),6) -> 0.082531 | G101: 0.637375 | H101: =IF($B101=0,0,G101/POWER(1+CALCULADORA!$C$32,Flujos!$B101/365)) -> 0.5025860323 | I101: 2031-03-16 | J101: 99 | K101: 3010 | L101: 13734663.31 | M101: 605329.2716 | N101: 90040.81339 | O101: 695370.085 | P101: =M101*IFERROR(VLOOKUP($A101,UVR!$A:$B,2,0),CALCULADORA!$C$23) -> 228946971.2 | Q101: =N101*IFERROR(VLOOKUP($A101,UVR!$A:$B,2,0),CALCULADORA!$C$23) -> 34055137.4 | R101: =O101*IFERROR(VLOOKUP($A101,UVR!$A:$B,2,0),CALCULADORA!$C$23) -> 263002108.6
A102: 2031-04-16 | B102: =IF(DIAS365(CALCULADORA!$C$30,A102)<0,0,DIAS365(CALCULADORA!$C$30,A102)) -> 2264 | C102: =+HLOOKUP(CALCULADORA!$C$11,Tablas!$B$1:$B$181,Flujos!J102+1,FALSE) -> 0.00549794 | D102: 12.03938 | E102: 0.549794 | F102: =ROUND(D101*ROUND(((1+CALCULADORA!$C$19)^(1/12)-1),6),6) -> 0.079047 | G102: 0.628841 | H102: =IF($B102=0,0,G102/POWER(1+CALCULADORA!$C$32,Flujos!$B102/365)) -> 0.4942239206 | I102: 2031-04-16 | J102: 100 | K102: 3041 | L102: 13134843.53 | M102: 599819.7719 | N102: 86239.9509 | O102: 686059.7228 | P102: =M102*IFERROR(VLOOKUP($A102,UVR!$A:$B,2,0),CALCULADORA!$C$23) -> 226863174.3 | Q102: =N102*IFERROR(VLOOKUP($A102,UVR!$A:$B,2,0),CALCULADORA!$C$23) -> 32617579.36 | R102: =O102*IFERROR(VLOOKUP($A102,UVR!$A:$B,2,0),CALCULADORA!$C$23) -> 259480753.7
A103: 2031-05-16 | B103: =IF(DIAS365(CALCULADORA!$C$30,A103)<0,0,DIAS365(CALCULADORA!$C$30,A103)) -> 2294 | C103: =+HLOOKUP(CALCULADORA!$C$11,Tablas!$B$1:$B$181,Flujos!J103+1,FALSE) -> 0.00545057 | D103: 11.494323 | E103: 0.545057 | F103: =ROUND(D102*ROUND(((1+CALCULADORA!$C$19)^(1/12)-1),6),6) -> 0.075595 | G103: 0.620652 | H103: =IF($B103=0,0,G103/POWER(1+CALCULADORA!$C$32,Flujos!$B103/365)) -> 0.4862334162 | I103: 2031-05-16 | J103: 101 | K103: 3071 | L103: 12540191.78 | M103: 594651.7522 | N103: 82473.68255 | O103: 677125.4347 | P103: =M103*IFERROR(VLOOKUP($A103,UVR!$A:$B,2,0),CALCULADORA!$C$23) -> 224908531.6 | Q103: =N103*IFERROR(VLOOKUP($A103,UVR!$A:$B,2,0),CALCULADORA!$C$23) -> 31193105.49 | R103: =O103*IFERROR(VLOOKUP($A103,UVR!$A:$B,2,0),CALCULADORA!$C$23) -> 256101637.1
A104: 2031-06-16 | B104: =IF(DIAS365(CALCULADORA!$C$30,A104)<0,0,DIAS365(CALCULADORA!$C$30,A104)) -> 2325 | C104: =+HLOOKUP(CALCULADORA!$C$11,Tablas!$B$1:$B$181,Flujos!J104+1,FALSE) -> 0.00541375 | D104: 10.952948 | E104: 0.541375 | F104: =ROUND(D103*ROUND(((1+CALCULADORA!$C$19)^(1/12)-1),6),6) -> 0.072173 | G104: 0.613548 | H104: =IF($B104=0,0,G104/POWER(1+CALCULADORA!$C$32,Flujos!$B104/365)) -> 0.4790851507 | I104: 2031-06-16 | J104: 102 | K104: 3102 | L104: 11949557.05 | M104: 590634.7269 | N104: 78739.8642 | O104: 669374.5911 | P104: =M104*IFERROR(VLOOKUP($A104,UVR!$A:$B,2,0),CALCULADORA!$C$23) -> 223389216.7 | Q104: =N104*IFERROR(VLOOKUP($A104,UVR!$A:$B,2,0),CALCULADORA!$C$23) -> 29780904.82 | R104: =O104*IFERROR(VLOOKUP($A104,UVR!$A:$B,2,0),CALCULADORA!$C$23) -> 253170121.5
A105: 2031-07-16 | B105: =IF(DIAS365(CALCULADORA!$C$30,A105)<0,0,DIAS365(CALCULADORA!$C$30,A105)) -> 2355 | C105: =+HLOOKUP(CALCULADORA!$C$11,Tablas!$B$1:$B$181,Flujos!J105+1,FALSE) -> 0.00537983 | D105: 10.414965 | E105: 0.537983 | F105: =ROUND(D104*ROUND(((1+CALCULADORA!$C$19)^(1/12)-1),6),6) -> 0.068774 | G105: 0.606757 | H105: =IF($B105=0,0,G105/POWER(1+CALCULADORA!$C$32,Flujos!$B105/365)) -> 0.4722725371 | I105: 2031-07-16 | J105: 103 | K105: 3132 | L105: 11362622.97 | M105: 586934.0887 | N105: 75031.26875 | O105: 661965.3574 | P105: =M105*IFERROR(VLOOKUP($A105,UVR!$A:$B,2,0),CALCULADORA!$C$23) -> 221989565.4 | Q105: =N105*IFERROR(VLOOKUP($A105,UVR!$A:$B,2,0),CALCULADORA!$C$23) -> 28378243.93 | R105: =O105*IFERROR(VLOOKUP($A105,UVR!$A:$B,2,0),CALCULADORA!$C$23) -> 250367809.3
A106: 2031-08-16 | B106: =IF(DIAS365(CALCULADORA!$C$30,A106)<0,0,DIAS365(CALCULADORA!$C$30,A106)) -> 2386 | C106: =+HLOOKUP(CALCULADORA!$C$11,Tablas!$B$1:$B$181,Flujos!J106+1,FALSE) -> 0.00534448 | D106: 9.880517 | E106: 0.534448 | F106: =ROUND(D105*ROUND(((1+CALCULADORA!$C$19)^(1/12)-1),6),6) -> 0.065396 | G106: 0.599844 | H106: =IF($B106=0,0,G106/POWER(1+CALCULADORA!$C$32,Flujos!$B106/365)) -> 0.465354307 | I106: 2031-08-16 | J106: 104 | K106: 3163 | L106: 10779545.53 | M106: 583077.4389 | N106: 71345.9096 | O106: 654423.3485 | P106: =M106*IFERROR(VLOOKUP($A106,UVR!$A:$B,2,0),CALCULADORA!$C$23) -> 220530907.6 | Q106: =N106*IFERROR(VLOOKUP($A106,UVR!$A:$B,2,0),CALCULADORA!$C$23) -> 26984371.45 | R106: =O106*IFERROR(VLOOKUP($A106,UVR!$A:$B,2,0),CALCULADORA!$C$23) -> 247515279
A107: 2031-09-16 | B107: =IF(DIAS365(CALCULADORA!$C$30,A107)<0,0,DIAS365(CALCULADORA!$C$30,A107)) -> 2417 | C107: =+HLOOKUP(CALCULADORA!$C$11,Tablas!$B$1:$B$181,Flujos!J107+1,FALSE) -> 0.00530767 | D107: 9.34975 | E107: 0.530767 | F107: =ROUND(D106*ROUND(((1+CALCULADORA!$C$19)^(1/12)-1),6),6) -> 0.06204 | G107: 0.592807 | H107: =IF($B107=0,0,G107/POWER(1+CALCULADORA!$C$32,Flujos!$B107/365)) -> 0.4583806373 | I107: 2031-09-16 | J107: 105 | K107: 3194 | L107: 10200484.02 | M107: 579061.5047 | N107: 67684.76636 | O107: 646746.271 | P107: =M107*IFERROR(VLOOKUP($A107,UVR!$A:$B,2,0),CALCULADORA!$C$23) -> 219012005.3 | Q107: =N107*IFERROR(VLOOKUP($A107,UVR!$A:$B,2,0),CALCULADORA!$C$23) -> 25599657.88 | R107: =O107*IFERROR(VLOOKUP($A107,UVR!$A:$B,2,0),CALCULADORA!$C$23) -> 244611663.2
A108: 2031-10-16 | B108: =IF(DIAS365(CALCULADORA!$C$30,A108)<0,0,DIAS365(CALCULADORA!$C$30,A108)) -> 2447 | C108: =+HLOOKUP(CALCULADORA!$C$11,Tablas!$B$1:$B$181,Flujos!J108+1,FALSE) -> 0.00527322 | D108: 8.822428 | E108: 0.527322 | F108: =ROUND(D107*ROUND(((1+CALCULADORA!$C$19)^(1/12)-1),6),6) -> 0.058707 | G108: 0.586029 | H108: =IF($B108=0,0,G108/POWER(1+CALCULADORA!$C$32,Flujos!$B108/365)) -> 0.4516955166 | I108: 2031-10-16 | J108: 106 | K108: 3224 | L108: 9625180.978 | M108: 575303.044 | N108: 64048.83918 | O108: 639351.8832 | P108: =M108*IFERROR(VLOOKUP($A108,UVR!$A:$B,2,0),CALCULADORA!$C$23) -> 217590484.5 | Q108: =N108*IFERROR(VLOOKUP($A108,UVR!$A:$B,2,0),CALCULADORA!$C$23) -> 24224481.5 | R108: =O108*IFERROR(VLOOKUP($A108,UVR!$A:$B,2,0),CALCULADORA!$C$23) -> 241814966
A109: 2031-11-16 | B109: =IF(DIAS365(CALCULADORA!$C$30,A109)<0,0,DIAS365(CALCULADORA!$C$30,A109)) -> 2478 | C109: =+HLOOKUP(CALCULADORA!$C$11,Tablas!$B$1:$B$181,Flujos!J109+1,FALSE) -> 0.00524639 | D109: 8.297789 | E109: 0.524639 | F109: =ROUND(D108*ROUND(((1+CALCULADORA!$C$19)^(1/12)-1),6),6) -> 0.055396 | G109: 0.580035 | H109: =IF($B109=0,0,G109/POWER(1+CALCULADORA!$C$32,Flujos!$B109/365)) -> 0.4456032959 | I109: 2031-11-16 | J109: 107 | K109: 3255 | L109: 9052805.061 | M109: 572375.9178 | N109: 60436.51136 | O109: 632812.4291 | P109: =M109*IFERROR(VLOOKUP($A109,UVR!$A:$B,2,0),CALCULADORA!$C$23) -> 216483390 | Q109: =N109*IFERROR(VLOOKUP($A109,UVR!$A:$B,2,0),CALCULADORA!$C$23) -> 22858230.85 | R109: =O109*IFERROR(VLOOKUP($A109,UVR!$A:$B,2,0),CALCULADORA!$C$23) -> 239341620.8
A110: 2031-12-16 | B110: =IF(DIAS365(CALCULADORA!$C$30,A110)<0,0,DIAS365(CALCULADORA!$C$30,A110)) -> 2508 | C110: =+HLOOKUP(CALCULADORA!$C$11,Tablas!$B$1:$B$181,Flujos!J110+1,FALSE) -> 0.0040574 | D110: 7.892049 | E110: 0.40574 | F110: =ROUND(D109*ROUND(((1+CALCULADORA!$C$19)^(1/12)-1),6),6) -> 0.052102 | G110: 0.457842 | H110: =IF($B110=0,0,G110/POWER(1+CALCULADORA!$C$32,Flujos!$B110/365)) -> 0.3506093999 | I110: 2031-12-16 | J110: 108 | K110: 3285 | L110: 8610146.766 | M110: 442658.2943 | N110: 56842.56298 | O110: 499500.8573 | P110: =M110*IFERROR(VLOOKUP($A110,UVR!$A:$B,2,0),CALCULADORA!$C$23) -> 167421733.2 | Q110: =N110*IFERROR(VLOOKUP($A110,UVR!$A:$B,2,0),CALCULADORA!$C$23) -> 21498931.64 | R110: =O110*IFERROR(VLOOKUP($A110,UVR!$A:$B,2,0),CALCULADORA!$C$23) -> 188920664.8
A111: 2032-01-16 | B111: =IF(DIAS365(CALCULADORA!$C$30,A111)<0,0,DIAS365(CALCULADORA!$C$30,A111)) -> 2539 | C111: =+HLOOKUP(CALCULADORA!$C$11,Tablas!$B$1:$B$181,Flujos!J111+1,FALSE) -> 0.00515358 | D111: 7.376691 | E111: 0.515358 | F111: =ROUND(D110*ROUND(((1+CALCULADORA!$C$19)^(1/12)-1),6),6) -> 0.049554 | G111: 0.564912 | H111: =IF($B111=0,0,G111/POWER(1+CALCULADORA!$C$32,Flujos!$B111/365)) -> 0.4311776566 | I111: 2032-01-16 | J111: 109 | K111: 3316 | L111: 8047896.327 | M111: 562250.4393 | N111: 54063.11155 | O111: 616313.5508 | P111: =M111*IFERROR(VLOOKUP($A111,UVR!$A:$B,2,0),CALCULADORA!$C$23) -> 212653742.7 | Q111: =N111*IFERROR(VLOOKUP($A111,UVR!$A:$B,2,0),CALCULADORA!$C$23) -> 20447690.58 | R111: =O111*IFERROR(VLOOKUP($A111,UVR!$A:$B,2,0),CALCULADORA!$C$23) -> 233101433.3
A112: 2032-02-16 | B112: =IF(DIAS365(CALCULADORA!$C$30,A112)<0,0,DIAS365(CALCULADORA!$C$30,A112)) -> 2570 | C112: =+HLOOKUP(CALCULADORA!$C$11,Tablas!$B$1:$B$181,Flujos!J112+1,FALSE) -> 0.00508727 | D112: 6.867964 | E112: 0.508727 | F112: =ROUND(D111*ROUND(((1+CALCULADORA!$C$19)^(1/12)-1),6),6) -> 0.046318 | G112: 0.555045 | H112: =IF($B112=0,0,G112/POWER(1+CALCULADORA!$C$32,Flujos!$B112/365)) -> 0.4222514645 | I112: 2032-02-16 | J112: 110 | K112: 3347 | L112: 7492880.243 | M112: 555016.0844 | N112: 50532.74104 | O112: 605548.8255 | P112: =M112*IFERROR(VLOOKUP($A112,UVR!$A:$B,2,0),CALCULADORA!$C$23) -> 209917572.9 | Q112: =N112*IFERROR(VLOOKUP($A112,UVR!$A:$B,2,0),CALCULADORA!$C$23) -> 19112437.73 | R112: =O112*IFERROR(VLOOKUP($A112,UVR!$A:$B,2,0),CALCULADORA!$C$23) -> 229030010.7
A113: 2032-03-16 | B113: =IF(DIAS365(CALCULADORA!$C$30,A113)<0,0,DIAS365(CALCULADORA!$C$30,A113)) -> 2598 | C113: =+HLOOKUP(CALCULADORA!$C$11,Tablas!$B$1:$B$181,Flujos!J113+1,FALSE) -> 0.00502191 | D113: 6.365773 | E113: 0.502191 | F113: =ROUND(D112*ROUND(((1+CALCULADORA!$C$19)^(1/12)-1),6),6) -> 0.043124 | G113: 0.545315 | H113: =IF($B113=0,0,G113/POWER(1+CALCULADORA!$C$32,Flujos!$B113/365)) -> 0.4136152691 | I113: 2032-03-16 | J113: 111 | K113: 3375 | L113: 6944994.869 | M113: 547885.3736 | N113: 47047.79504 | O113: 594933.1686 | P113: =M113*IFERROR(VLOOKUP($A113,UVR!$A:$B,2,0),CALCULADORA!$C$23) -> 207220603.3 | Q113: =N113*IFERROR(VLOOKUP($A113,UVR!$A:$B,2,0),CALCULADORA!$C$23) -> 17794365.29 | R113: =O113*IFERROR(VLOOKUP($A113,UVR!$A:$B,2,0),CALCULADORA!$C$23) -> 225014968.6
A114: 2032-04-16 | B114: =IF(DIAS365(CALCULADORA!$C$30,A114)<0,0,DIAS365(CALCULADORA!$C$30,A114)) -> 2629 | C114: =+HLOOKUP(CALCULADORA!$C$11,Tablas!$B$1:$B$181,Flujos!J114+1,FALSE) -> 0.0039646 | D114: 5.969313 | E114: 0.39646 | F114: =ROUND(D113*ROUND(((1+CALCULADORA!$C$19)^(1/12)-1),6),6) -> 0.039971 | G114: 0.436431 | H114: =IF($B114=0,0,G114/POWER(1+CALCULADORA!$C$32,Flujos!$B114/365)) -> 0.3299379201 | I114: 2032-04-16 | J114: 112 | K114: 3406 | L114: 6512460.962 | M114: 432533.9068 | N114: 43607.62278 | O114: 476141.5296 | P114: =M114*IFERROR(VLOOKUP($A114,UVR!$A:$B,2,0),CALCULADORA!$C$23) -> 163592498.5 | Q114: =N114*IFERROR(VLOOKUP($A114,UVR!$A:$B,2,0),CALCULADORA!$C$23) -> 16493227.12 | R114: =O114*IFERROR(VLOOKUP($A114,UVR!$A:$B,2,0),CALCULADORA!$C$23) -> 180085725.6
A115: 2032-05-16 | B115: =IF(DIAS365(CALCULADORA!$C$30,A115)<0,0,DIAS365(CALCULADORA!$C$30,A115)) -> 2659 | C115: =+HLOOKUP(CALCULADORA!$C$11,Tablas!$B$1:$B$181,Flujos!J115+1,FALSE) -> 0.00349125 | D115: 5.620188 | E115: 0.349125 | F115: =ROUND(D114*ROUND(((1+CALCULADORA!$C$19)^(1/12)-1),6),6) -> 0.037481 | G115: 0.386606 | H115: =IF($B115=0,0,G115/POWER(1+CALCULADORA!$C$32,Flujos!$B115/365)) -> 0.291339226 | I115: 2032-05-16 | J115: 113 | K115: 3436 | L115: 6131569.068 | M115: 380891.8938 | N115: 40891.74238 | O115: 421783.6362 | P115: =M115*IFERROR(VLOOKUP($A115,UVR!$A:$B,2,0),CALCULADORA!$C$23) -> 144060513.1 | Q115: =N115*IFERROR(VLOOKUP($A115,UVR!$A:$B,2,0),CALCULADORA!$C$23) -> 15466029.82 | R115: =O115*IFERROR(VLOOKUP($A115,UVR!$A:$B,2,0),CALCULADORA!$C$23) -> 159526542.9
A116: 2032-06-16 | B116: =IF(DIAS365(CALCULADORA!$C$30,A116)<0,0,DIAS365(CALCULADORA!$C$30,A116)) -> 2690 | C116: =+HLOOKUP(CALCULADORA!$C$11,Tablas!$B$1:$B$181,Flujos!J116+1,FALSE) -> 0.00341184 | D116: 5.279004 | E116: 0.341184 | F116: =ROUND(D115*ROUND(((1+CALCULADORA!$C$19)^(1/12)-1),6),6) -> 0.035289 | G116: 0.376473 | H116: =IF($B116=0,0,G116/POWER(1+CALCULADORA!$C$32,Flujos!$B116/365)) -> 0.2827689565 | I116: 2032-06-16 | J116: 114 | K116: 3467 | L116: 5759340.726 | M116: 372228.342 | N116: 38500.12218 | O116: 410728.4642 | P116: =M116*IFERROR(VLOOKUP($A116,UVR!$A:$B,2,0),CALCULADORA!$C$23) -> 140783794.1 | Q116: =N116*IFERROR(VLOOKUP($A116,UVR!$A:$B,2,0),CALCULADORA!$C$23) -> 14561473.86 | R116: =O116*IFERROR(VLOOKUP($A116,UVR!$A:$B,2,0),CALCULADORA!$C$23) -> 155345267.9
A117: 2032-07-16 | B117: =IF(DIAS365(CALCULADORA!$C$30,A117)<0,0,DIAS365(CALCULADORA!$C$30,A117)) -> 2720 | C117: =+HLOOKUP(CALCULADORA!$C$11,Tablas!$B$1:$B$181,Flujos!J117+1,FALSE) -> 0.00334836 | D117: 4.944168 | E117: 0.334836 | F117: =ROUND(D116*ROUND(((1+CALCULADORA!$C$19)^(1/12)-1),6),6) -> 0.033147 | G117: 0.367983 | H117: =IF($B117=0,0,G117/POWER(1+CALCULADORA!$C$32,Flujos!$B117/365)) -> 0.275511278 | I117: 2032-07-16 | J117: 115 | K117: 3497 | L117: 5394037.989 | M117: 365302.7373 | N117: 36162.90042 | O117: 401465.6377 | P117: =M117*IFERROR(VLOOKUP($A117,UVR!$A:$B,2,0),CALCULADORA!$C$23) -> 138164399.5 | Q117: =N117*IFERROR(VLOOKUP($A117,UVR!$A:$B,2,0),CALCULADORA!$C$23) -> 13677492.42 | R117: =O117*IFERROR(VLOOKUP($A117,UVR!$A:$B,2,0),CALCULADORA!$C$23) -> 151841891.9
A118: 2032-08-16 | B118: =IF(DIAS365(CALCULADORA!$C$30,A118)<0,0,DIAS365(CALCULADORA!$C$30,A118)) -> 2751 | C118: =+HLOOKUP(CALCULADORA!$C$11,Tablas!$B$1:$B$181,Flujos!J118+1,FALSE) -> 0.00328999 | D118: 4.615169 | E118: 0.328999 | F118: =ROUND(D117*ROUND(((1+CALCULADORA!$C$19)^(1/12)-1),6),6) -> 0.031044 | G118: 0.360043 | H118: =IF($B118=0,0,G118/POWER(1+CALCULADORA!$C$32,Flujos!$B118/365)) -> 0.268678874 | I118: 2032-08-16 | J118: 116 | K118: 3528 | L118: 5035103.361 | M118: 358934.6285 | N118: 33869.16453 | O118: 392803.793 | P118: =M118*IFERROR(VLOOKUP($A118,UVR!$A:$B,2,0),CALCULADORA!$C$23) -> 135755860.4 | Q118: =N118*IFERROR(VLOOKUP($A118,UVR!$A:$B,2,0),CALCULADORA!$C$23) -> 12809958.15 | R118: =O118*IFERROR(VLOOKUP($A118,UVR!$A:$B,2,0),CALCULADORA!$C$23) -> 148565818.5
A119: 2032-09-16 | B119: =IF(DIAS365(CALCULADORA!$C$30,A119)<0,0,DIAS365(CALCULADORA!$C$30,A119)) -> 2782 | C119: =+HLOOKUP(CALCULADORA!$C$11,Tablas!$B$1:$B$181,Flujos!J119+1,FALSE) -> 0.003219 | D119: 4.293269 | E119: 0.3219 | F119: =ROUND(D118*ROUND(((1+CALCULADORA!$C$19)^(1/12)-1),6),6) -> 0.028979 | G119: 0.350879 | H119: =IF($B119=0,0,G119/POWER(1+CALCULADORA!$C$32,Flujos!$B119/365)) -> 0.2609780889 | I119: =+A119 -> 2032-09-16 | J119: 117 | K119: 3559 | L119: 4683913.67 | M119: 351189.6903 | N119: 31615.414 | O119: 382805.1043 | P119: =M119*IFERROR(VLOOKUP($A119,UVR!$A:$B,2,0),CALCULADORA!$C$23) -> 132826578.4 | Q119: =N119*IFERROR(VLOOKUP($A119,UVR!$A:$B,2,0),CALCULADORA!$C$23) -> 11957547.11 | R119: =O119*IFERROR(VLOOKUP($A119,UVR!$A:$B,2,0),CALCULADORA!$C$23) -> 144784125.5
A120: 2032-10-16 | B120: =IF(DIAS365(CALCULADORA!$C$30,A120)<0,0,DIAS365(CALCULADORA!$C$30,A120)) -> 2812 | C120: =+HLOOKUP(CALCULADORA!$C$11,Tablas!$B$1:$B$181,Flujos!J120+1,FALSE) -> 0.00315065 | D120: 3.978204 | E120: 0.315065 | F120: =ROUND(D119*ROUND(((1+CALCULADORA!$C$19)^(1/12)-1),6),6) -> 0.026957 | G120: 0.342022 | H120: =IF($B120=0,0,G120/POWER(1+CALCULADORA!$C$32,Flujos!$B120/365)) -> 0.2535796765 | I120: =+A120 -> 2032-10-16 | J120: 118 | K120: 3589 | L120: 4340180.897 | M120: 343732.7734 | N120: 29410.29394 | O120: 373143.0674 | P120: =M120*IFERROR(VLOOKUP($A120,UVR!$A:$B,2,0),CALCULADORA!$C$23) -> 130006231.5 | Q120: =N120*IFERROR(VLOOKUP($A120,UVR!$A:$B,2,0),CALCULADORA!$C$23) -> 11123529.02 | R120: =O120*IFERROR(VLOOKUP($A120,UVR!$A:$B,2,0),CALCULADORA!$C$23) -> 141129760.5
A121: 2032-11-16 | B121: =IF(DIAS365(CALCULADORA!$C$30,A121)<0,0,DIAS365(CALCULADORA!$C$30,A121)) -> 2843 | C121: =+HLOOKUP(CALCULADORA!$C$11,Tablas!$B$1:$B$181,Flujos!J121+1,FALSE) -> 0.00293967 | D121: 3.684237 | E121: 0.293967 | F121: =ROUND(D120*ROUND(((1+CALCULADORA!$C$19)^(1/12)-1),6),6) -> 0.024979 | G121: 0.318946 | H121: =IF($B121=0,0,G121/POWER(1+CALCULADORA!$C$32,Flujos!$B121/365)) -> 0.2356921311 | I121: 2032-11-16 | J121: 119 | K121: 3620 | L121: 4019465.831 | M121: 320715.0658 | N121: 27251.99585 | O121: 347967.0617 | P121: =M121*IFERROR(VLOOKUP($A121,UVR!$A:$B,2,0),CALCULADORA!$C$23) -> 121300499.4 | Q121: =N121*IFERROR(VLOOKUP($A121,UVR!$A:$B,2,0),CALCULADORA!$C$23) -> 10307219.89 | R121: =O121*IFERROR(VLOOKUP($A121,UVR!$A:$B,2,0),CALCULADORA!$C$23) -> 131607719.3
A122: 2032-12-16 | B122: =IF(DIAS365(CALCULADORA!$C$30,A122)<0,0,DIAS365(CALCULADORA!$C$30,A122)) -> 2873 | C122: =+HLOOKUP(CALCULADORA!$C$11,Tablas!$B$1:$B$181,Flujos!J122+1,FALSE) -> 0.00293967 | D122: 3.39027 | E122: 0.293967 | F122: =ROUND(D121*ROUND(((1+CALCULADORA!$C$19)^(1/12)-1),6),6) -> 0.023133 | G122: 0.3171 | H122: =IF($B122=0,0,G122/POWER(1+CALCULADORA!$C$32,Flujos!$B122/365)) -> 0.2335812061 | I122: 2032-12-16 | J122: 120 | K122: 3650 | L122: 3698750.765 | M122: 320715.0658 | N122: 25238.22595 | O122: 345953.2918 | P122: =M122*IFERROR(VLOOKUP($A122,UVR!$A:$B,2,0),CALCULADORA!$C$23) -> 121300499.4 | Q122: =N122*IFERROR(VLOOKUP($A122,UVR!$A:$B,2,0),CALCULADORA!$C$23) -> 9545574.058 | R122: =O122*IFERROR(VLOOKUP($A122,UVR!$A:$B,2,0),CALCULADORA!$C$23) -> 130846073.5
A123: 2033-01-16 | B123: =IF(DIAS365(CALCULADORA!$C$30,A123)<0,0,DIAS365(CALCULADORA!$C$30,A123)) -> 2904 | C123: =+HLOOKUP(CALCULADORA!$C$11,Tablas!$B$1:$B$181,Flujos!J123+1,FALSE) -> 0.00293967 | D123: 3.096303 | E123: 0.293967 | F123: =ROUND(D122*ROUND(((1+CALCULADORA!$C$19)^(1/12)-1),6),6) -> 0.021288 | G123: 0.315255 | H123: =IF($B123=0,0,G123/POWER(1+CALCULADORA!$C$32,Flujos!$B123/365)) -> 0.2314574478 | I123: 2033-01-16 | J123: 121 | K123: 3681 | L123: 3378035.699 | M123: 320715.0658 | N123: 23224.45605 | O123: 343939.5219 | P123: =M123*IFERROR(VLOOKUP($A123,UVR!$A:$B,2,0),CALCULADORA!$C$23) -> 121300499.4 | Q123: =N123*IFERROR(VLOOKUP($A123,UVR!$A:$B,2,0),CALCULADORA!$C$23) -> 8783928.222 | R123: =O123*IFERROR(VLOOKUP($A123,UVR!$A:$B,2,0),CALCULADORA!$C$23) -> 130084427.6
A124: 2033-02-16 | B124: =IF(DIAS365(CALCULADORA!$C$30,A124)<0,0,DIAS365(CALCULADORA!$C$30,A124)) -> 2935 | C124: =+HLOOKUP(CALCULADORA!$C$11,Tablas!$B$1:$B$181,Flujos!J124+1,FALSE) -> 0.00293967 | D124: 2.802336 | E124: 0.293967 | F124: =ROUND(D123*ROUND(((1+CALCULADORA!$C$19)^(1/12)-1),6),6) -> 0.019442 | G124: 0.313409 | H124: =IF($B124=0,0,G124/POWER(1+CALCULADORA!$C$32,Flujos!$B124/365)) -> 0.2293444118 | I124: 2033-02-16 | J124: 122 | K124: 3712 | L124: 3057320.634 | M124: 320715.0658 | N124: 21210.68616 | O124: 341925.752 | P124: =M124*IFERROR(VLOOKUP($A124,UVR!$A:$B,2,0),CALCULADORA!$C$23) -> 121300499.4 | Q124: =N124*IFERROR(VLOOKUP($A124,UVR!$A:$B,2,0),CALCULADORA!$C$23) -> 8022282.386 | R124: =O124*IFERROR(VLOOKUP($A124,UVR!$A:$B,2,0),CALCULADORA!$C$23) -> 129322781.8
A125: 2033-03-16 | B125: =IF(DIAS365(CALCULADORA!$C$30,A125)<0,0,DIAS365(CALCULADORA!$C$30,A125)) -> 2963 | C125: =+HLOOKUP(CALCULADORA!$C$11,Tablas!$B$1:$B$181,Flujos!J125+1,FALSE) -> 0.00293967 | D125: 2.508369 | E125: 0.293967 | F125: =ROUND(D124*ROUND(((1+CALCULADORA!$C$19)^(1/12)-1),6),6) -> 0.017596 | G125: 0.311563 | H125: =IF($B125=0,0,G125/POWER(1+CALCULADORA!$C$32,Flujos!$B125/365)) -> 0.2273153299 | I125: 2033-03-16 | J125: 123 | K125: 3740 | L125: 2736605.568 | M125: 320715.0658 | N125: 19196.91626 | O125: 339911.9821 | P125: =M125*IFERROR(VLOOKUP($A125,UVR!$A:$B,2,0),CALCULADORA!$C$23) -> 121300499.4 | Q125: =N125*IFERROR(VLOOKUP($A125,UVR!$A:$B,2,0),CALCULADORA!$C$23) -> 7260636.55 | R125: =O125*IFERROR(VLOOKUP($A125,UVR!$A:$B,2,0),CALCULADORA!$C$23) -> 128561136
A126: 2033-04-16 | B126: =IF(DIAS365(CALCULADORA!$C$30,A126)<0,0,DIAS365(CALCULADORA!$C$30,A126)) -> 2994 | C126: =+HLOOKUP(CALCULADORA!$C$11,Tablas!$B$1:$B$181,Flujos!J126+1,FALSE) -> 0.00293967 | D126: 2.214402 | E126: 0.293967 | F126: =ROUND(D125*ROUND(((1+CALCULADORA!$C$19)^(1/12)-1),6),6) -> 0.01575 | G126: 0.309717 | H126: =IF($B126=0,0,G126/POWER(1+CALCULADORA!$C$32,Flujos!$B126/365)) -> 0.2252243873 | I126: 2033-04-16 | J126: 124 | K126: 3771 | L126: 2415890.502 | M126: 320715.0658 | N126: 17183.14636 | O126: 337898.2122 | P126: =M126*IFERROR(VLOOKUP($A126,UVR!$A:$B,2,0),CALCULADORA!$C$23) -> 121300499.4 | Q126: =N126*IFERROR(VLOOKUP($A126,UVR!$A:$B,2,0),CALCULADORA!$C$23) -> 6498990.715 | R126: =O126*IFERROR(VLOOKUP($A126,UVR!$A:$B,2,0),CALCULADORA!$C$23) -> 127799490.1
A127: 2033-05-16 | B127: =IF(DIAS365(CALCULADORA!$C$30,A127)<0,0,DIAS365(CALCULADORA!$C$30,A127)) -> 3024 | C127: =+HLOOKUP(CALCULADORA!$C$11,Tablas!$B$1:$B$181,Flujos!J127+1,FALSE) -> 0.00293967 | D127: 1.920435 | E127: 0.293967 | F127: =ROUND(D126*ROUND(((1+CALCULADORA!$C$19)^(1/12)-1),6),6) -> 0.013904 | G127: 0.307871 | H127: =IF($B127=0,0,G127/POWER(1+CALCULADORA!$C$32,Flujos!$B127/365)) -> 0.2231684945 | I127: 2033-05-16 | J127: 125 | K127: 3801 | L127: 2095175.436 | M127: 320715.0658 | N127: 15169.37646 | O127: 335884.4423 | P127: =M127*IFERROR(VLOOKUP($A127,UVR!$A:$B,2,0),CALCULADORA!$C$23) -> 121300499.4 | Q127: =N127*IFERROR(VLOOKUP($A127,UVR!$A:$B,2,0),CALCULADORA!$C$23) -> 5737344.879 | R127: =O127*IFERROR(VLOOKUP($A127,UVR!$A:$B,2,0),CALCULADORA!$C$23) -> 127037844.3
A128: 2033-06-16 | B128: =IF(DIAS365(CALCULADORA!$C$30,A128)<0,0,DIAS365(CALCULADORA!$C$30,A128)) -> 3055 | C128: =+HLOOKUP(CALCULADORA!$C$11,Tablas!$B$1:$B$181,Flujos!J128+1,FALSE) -> 0.00274348 | D128: 1.646087 | E128: 0.274348 | F128: =ROUND(D127*ROUND(((1+CALCULADORA!$C$19)^(1/12)-1),6),6) -> 0.012058 | G128: 0.286406 | H128: =IF($B128=0,0,G128/POWER(1+CALCULADORA!$C$32,Flujos!$B128/365)) -> 0.2069253677 | I128: 2033-06-16 | J128: 126 | K128: 3832 | L128: 1795864.504 | M128: 299310.9324 | N128: 13155.60656 | O128: 312466.539 | P128: =M128*IFERROR(VLOOKUP($A128,UVR!$A:$B,2,0),CALCULADORA!$C$23) -> 113205051.6 | Q128: =N128*IFERROR(VLOOKUP($A128,UVR!$A:$B,2,0),CALCULADORA!$C$23) -> 4975699.043 | R128: =O128*IFERROR(VLOOKUP($A128,UVR!$A:$B,2,0),CALCULADORA!$C$23) -> 118180750.7
A129: 2033-07-16 | B129: =IF(DIAS365(CALCULADORA!$C$30,A129)<0,0,DIAS365(CALCULADORA!$C$30,A129)) -> 3085 | C129: =+HLOOKUP(CALCULADORA!$C$11,Tablas!$B$1:$B$181,Flujos!J129+1,FALSE) -> 0.00274348 | D129: 1.371739 | E129: 0.274348 | F129: =ROUND(D128*ROUND(((1+CALCULADORA!$C$19)^(1/12)-1),6),6) -> 0.010336 | G129: 0.284684 | H129: =IF($B129=0,0,G129/POWER(1+CALCULADORA!$C$32,Flujos!$B129/365)) -> 0.2050257523 | I129: 2033-07-16 | J129: 127 | K129: 3862 | L129: 1496553.571 | M129: 299310.9324 | N129: 11276.23322 | O129: 310587.1657 | P129: =M129*IFERROR(VLOOKUP($A129,UVR!$A:$B,2,0),CALCULADORA!$C$23) -> 113205051.6 | Q129: =N129*IFERROR(VLOOKUP($A129,UVR!$A:$B,2,0),CALCULADORA!$C$23) -> 4264884.524 | R129: =O129*IFERROR(VLOOKUP($A129,UVR!$A:$B,2,0),CALCULADORA!$C$23) -> 117469936.1
A130: 2033-08-16 | B130: =IF(DIAS365(CALCULADORA!$C$30,A130)<0,0,DIAS365(CALCULADORA!$C$30,A130)) -> 3116 | C130: =+HLOOKUP(CALCULADORA!$C$11,Tablas!$B$1:$B$181,Flujos!J130+1,FALSE) -> 0.00274348 | D130: 1.097391 | E130: 0.274348 | F130: =ROUND(D129*ROUND(((1+CALCULADORA!$C$19)^(1/12)-1),6),6) -> 0.008613 | G130: 0.282961 | H130: =IF($B130=0,0,G130/POWER(1+CALCULADORA!$C$32,Flujos!$B130/365)) -> 0.2031138128 | I130: 2033-08-16 | J130: 128 | K130: 3893 | L130: 1197242.639 | M130: 299310.9324 | N130: 9396.859874 | O130: 308707.7923 | P130: =M130*IFERROR(VLOOKUP($A130,UVR!$A:$B,2,0),CALCULADORA!$C$23) -> 113205051.6 | Q130: =N130*IFERROR(VLOOKUP($A130,UVR!$A:$B,2,0),CALCULADORA!$C$23) -> 3554070.005 | R130: =O130*IFERROR(VLOOKUP($A130,UVR!$A:$B,2,0),CALCULADORA!$C$23) -> 116759121.6
A131: =EDATE(A130,1) -> 2033-09-16 | B131: =IF(DIAS365(CALCULADORA!$C$30,A131)<0,0,DIAS365(CALCULADORA!$C$30,A131)) -> 3147 | C131: =+HLOOKUP(CALCULADORA!$C$11,Tablas!$B$1:$B$181,Flujos!J131+1,FALSE) -> 0.00274348 | D131: 0.823043 | E131: 0.274348 | F131: =ROUND(D130*ROUND(((1+CALCULADORA!$C$19)^(1/12)-1),6),6) -> 0.006891 | G131: 0.281239 | H131: =IF($B131=0,0,G131/POWER(1+CALCULADORA!$C$32,Flujos!$B131/365)) -> 0.2012129574 | I131: =+A131 -> 2033-09-16 | J131: 129 | K131: 3924 | L131: 897931.7063 | M131: 299310.9324 | N131: 7517.486529 | O131: 306828.419 | P131: =M131*IFERROR(VLOOKUP($A131,UVR!$A:$B,2,0),CALCULADORA!$C$23) -> 113205051.6 | Q131: =N131*IFERROR(VLOOKUP($A131,UVR!$A:$B,2,0),CALCULADORA!$C$23) -> 2843255.486 | R131: =O131*IFERROR(VLOOKUP($A131,UVR!$A:$B,2,0),CALCULADORA!$C$23) -> 116048307.1
A132: 2033-10-16 | B132: =IF(DIAS365(CALCULADORA!$C$30,A132)<0,0,DIAS365(CALCULADORA!$C$30,A132)) -> 3177 | C132: =+HLOOKUP(CALCULADORA!$C$11,Tablas!$B$1:$B$181,Flujos!J132+1,FALSE) -> 0.00274348 | D132: =+ROUND(D131-E132,6) -> 0.548695 | E132: =ROUND(C132*$D$2,6) -> 0.274348 | F132: =ROUND(D131*ROUND(((1+CALCULADORA!$C$19)^(1/12)-1),6),6) -> 0.005168 | G132: =F132+E132 -> 0.279516 | H132: =IF($B132=0,0,G132/POWER(1+CALCULADORA!$C$32,Flujos!$B132/365)) -> 0.1993429143 | I132: 2033-10-16 | J132: 130 | K132: =+DIAS365($A$2,A132) -> 3954 | L132: =+L131-M132 -> 598620.7739 | M132: =+$L$2*C132 -> 299310.9324 | N132: =+L131*$F$3% -> 5638.113184 | O132: =+N132+M132 -> 304949.0456 | P132: =M132*IFERROR(VLOOKUP($A132,UVR!$A:$B,2,0),CALCULADORA!$C$23) -> 113205051.6 | Q132: =N132*IFERROR(VLOOKUP($A132,UVR!$A:$B,2,0),CALCULADORA!$C$23) -> 2132440.967 | R132: =O132*IFERROR(VLOOKUP($A132,UVR!$A:$B,2,0),CALCULADORA!$C$23) -> 115337492.6
A133: 2033-11-16 | B133: =IF(DIAS365(CALCULADORA!$C$30,A133)<0,0,DIAS365(CALCULADORA!$C$30,A133)) -> 3208 | C133: =+HLOOKUP(CALCULADORA!$C$11,Tablas!$B$1:$B$181,Flujos!J133+1,FALSE) -> 0.00274348 | D133: 0.274347 | E133: 0.274348 | F133: =ROUND(D132*ROUND(((1+CALCULADORA!$C$19)^(1/12)-1),6),6) -> 0.003445 | G133: 0.277793 | H133: =IF($B133=0,0,G133/POWER(1+CALCULADORA!$C$32,Flujos!$B133/365)) -> 0.1974617358 | I133: 2033-11-16 | J133: 131 | K133: 3985 | L133: 299309.8414 | M133: 299310.9324 | N133: 3758.739839 | O133: 303069.6723 | P133: =M133*IFERROR(VLOOKUP($A133,UVR!$A:$B,2,0),CALCULADORA!$C$23) -> 113205051.6 | Q133: =N133*IFERROR(VLOOKUP($A133,UVR!$A:$B,2,0),CALCULADORA!$C$23) -> 1421626.447 | R133: =O133*IFERROR(VLOOKUP($A133,UVR!$A:$B,2,0),CALCULADORA!$C$23) -> 114626678.1
A134: 2033-12-16 | B134: =IF(DIAS365(CALCULADORA!$C$30,A134)<0,0,DIAS365(CALCULADORA!$C$30,A134)) -> 3238 | C134: =+HLOOKUP(CALCULADORA!$C$11,Tablas!$B$1:$B$181,Flujos!J134+1,FALSE) -> 0.00274347 | D134: 0 | E134: 0.274347 | F134: =ROUND(D133*ROUND(((1+CALCULADORA!$C$19)^(1/12)-1),6),6) -> 0.001723 | G134: 0.27607 | H134: =IF($B134=0,0,G134/POWER(1+CALCULADORA!$C$32,Flujos!$B134/365)) -> 0.1956115971 | I134: 2033-12-16 | J134: 132 | K134: 4015 | L134: -1.100124791e-08 | M134: 299309.8414 | N134: 1879.366494 | O134: 301189.2079 | P134: =M134*IFERROR(VLOOKUP($A134,UVR!$A:$B,2,0),CALCULADORA!$C$23) -> 113204639 | Q134: =N134*IFERROR(VLOOKUP($A134,UVR!$A:$B,2,0),CALCULADORA!$C$23) -> 710811.9282 | R134: =O134*IFERROR(VLOOKUP($A134,UVR!$A:$B,2,0),CALCULADORA!$C$23) -> 113915450.9
A135: 2034-01-16 | B135: =IF(DIAS365(CALCULADORA!$C$30,A135)<0,0,DIAS365(CALCULADORA!$C$30,A135)) -> 3269 | C135: =+HLOOKUP(CALCULADORA!$C$11,Tablas!$B$1:$B$181,Flujos!J135+1,FALSE) -> 0 | D135: 0 | E135: 0 | F135: =ROUND(D134*ROUND(((1+CALCULADORA!$C$19)^(1/12)-1),6),6) -> 0 | G135: 0 | H135: =IF($B135=0,0,G135/POWER(1+CALCULADORA!$C$32,Flujos!$B135/365)) -> 0 | I135: 2034-01-16 | J135: 133 | K135: 4046 | L135: -1.100124791e-08 | M135: 0 | N135: -6.907683564e-11 | O135: -6.907683564e-11 | P135: =M135*IFERROR(VLOOKUP($A135,UVR!$A:$B,2,0),CALCULADORA!$C$23) -> 0 | Q135: =N135*IFERROR(VLOOKUP($A135,UVR!$A:$B,2,0),CALCULADORA!$C$23) -> -2.612616479e-08 | R135: =O135*IFERROR(VLOOKUP($A135,UVR!$A:$B,2,0),CALCULADORA!$C$23) -> -2.612616479e-08
A136: 2034-02-16 | B136: =IF(DIAS365(CALCULADORA!$C$30,A136)<0,0,DIAS365(CALCULADORA!$C$30,A136)) -> 3300 | C136: =+HLOOKUP(CALCULADORA!$C$11,Tablas!$B$1:$B$181,Flujos!J136+1,FALSE) -> 0 | D136: 0 | E136: 0 | F136: =ROUND(D135*ROUND(((1+CALCULADORA!$C$19)^(1/12)-1),6),6) -> 0 | G136: 0 | H136: =IF($B136=0,0,G136/POWER(1+CALCULADORA!$C$32,Flujos!$B136/365)) -> 0 | I136: 2034-02-16 | J136: 134 | K136: 4077 | L136: -1.100124791e-08 | M136: 0 | N136: -6.907683564e-11 | O136: -6.907683564e-11 | P136: =M136*IFERROR(VLOOKUP($A136,UVR!$A:$B,2,0),CALCULADORA!$C$23) -> 0 | Q136: =N136*IFERROR(VLOOKUP($A136,UVR!$A:$B,2,0),CALCULADORA!$C$23) -> -2.612616479e-08 | R136: =O136*IFERROR(VLOOKUP($A136,UVR!$A:$B,2,0),CALCULADORA!$C$23) -> -2.612616479e-08
A137: 2034-03-16 | B137: =IF(DIAS365(CALCULADORA!$C$30,A137)<0,0,DIAS365(CALCULADORA!$C$30,A137)) -> 3328 | C137: =+HLOOKUP(CALCULADORA!$C$11,Tablas!$B$1:$B$181,Flujos!J137+1,FALSE) -> 0 | D137: 0 | E137: 0 | F137: =ROUND(D136*ROUND(((1+CALCULADORA!$C$19)^(1/12)-1),6),6) -> 0 | G137: 0 | H137: =IF($B137=0,0,G137/POWER(1+CALCULADORA!$C$32,Flujos!$B137/365)) -> 0 | I137: 2034-03-16 | J137: 135 | K137: 4105 | L137: -1.100124791e-08 | M137: 0 | N137: -6.907683564e-11 | O137: -6.907683564e-11 | P137: =M137*IFERROR(VLOOKUP($A137,UVR!$A:$B,2,0),CALCULADORA!$C$23) -> 0 | Q137: =N137*IFERROR(VLOOKUP($A137,UVR!$A:$B,2,0),CALCULADORA!$C$23) -> -2.612616479e-08 | R137: =O137*IFERROR(VLOOKUP($A137,UVR!$A:$B,2,0),CALCULADORA!$C$23) -> -2.612616479e-08
A138: 2034-04-16 | B138: =IF(DIAS365(CALCULADORA!$C$30,A138)<0,0,DIAS365(CALCULADORA!$C$30,A138)) -> 3359 | C138: =+HLOOKUP(CALCULADORA!$C$11,Tablas!$B$1:$B$181,Flujos!J138+1,FALSE) -> 0 | D138: 0 | E138: 0 | F138: =ROUND(D137*ROUND(((1+CALCULADORA!$C$19)^(1/12)-1),6),6) -> 0 | G138: 0 | H138: =IF($B138=0,0,G138/POWER(1+CALCULADORA!$C$32,Flujos!$B138/365)) -> 0 | I138: 2034-04-16 | J138: 136 | K138: 4136 | L138: -1.100124791e-08 | M138: 0 | N138: -6.907683564e-11 | O138: -6.907683564e-11 | P138: =M138*IFERROR(VLOOKUP($A138,UVR!$A:$B,2,0),CALCULADORA!$C$23) -> 0 | Q138: =N138*IFERROR(VLOOKUP($A138,UVR!$A:$B,2,0),CALCULADORA!$C$23) -> -2.612616479e-08 | R138: =O138*IFERROR(VLOOKUP($A138,UVR!$A:$B,2,0),CALCULADORA!$C$23) -> -2.612616479e-08
A139: 2034-05-16 | B139: =IF(DIAS365(CALCULADORA!$C$30,A139)<0,0,DIAS365(CALCULADORA!$C$30,A139)) -> 3389 | C139: =+HLOOKUP(CALCULADORA!$C$11,Tablas!$B$1:$B$181,Flujos!J139+1,FALSE) -> 0 | D139: 0 | E139: 0 | F139: =ROUND(D138*ROUND(((1+CALCULADORA!$C$19)^(1/12)-1),6),6) -> 0 | G139: 0 | H139: =IF($B139=0,0,G139/POWER(1+CALCULADORA!$C$32,Flujos!$B139/365)) -> 0 | I139: 2034-05-16 | J139: 137 | K139: 4166 | L139: -1.100124791e-08 | M139: 0 | N139: -6.907683564e-11 | O139: -6.907683564e-11 | P139: =M139*IFERROR(VLOOKUP($A139,UVR!$A:$B,2,0),CALCULADORA!$C$23) -> 0 | Q139: =N139*IFERROR(VLOOKUP($A139,UVR!$A:$B,2,0),CALCULADORA!$C$23) -> -2.612616479e-08 | R139: =O139*IFERROR(VLOOKUP($A139,UVR!$A:$B,2,0),CALCULADORA!$C$23) -> -2.612616479e-08
A140: 2034-06-16 | B140: =IF(DIAS365(CALCULADORA!$C$30,A140)<0,0,DIAS365(CALCULADORA!$C$30,A140)) -> 3420 | C140: =+HLOOKUP(CALCULADORA!$C$11,Tablas!$B$1:$B$181,Flujos!J140+1,FALSE) -> 0 | D140: 0 | E140: 0 | F140: =ROUND(D139*ROUND(((1+CALCULADORA!$C$19)^(1/12)-1),6),6) -> 0 | G140: 0 | H140: =IF($B140=0,0,G140/POWER(1+CALCULADORA!$C$32,Flujos!$B140/365)) -> 0 | I140: 2034-06-16 | J140: 138 | K140: 4197 | L140: -1.100124791e-08 | M140: 0 | N140: -6.907683564e-11 | O140: -6.907683564e-11 | P140: =M140*IFERROR(VLOOKUP($A140,UVR!$A:$B,2,0),CALCULADORA!$C$23) -> 0 | Q140: =N140*IFERROR(VLOOKUP($A140,UVR!$A:$B,2,0),CALCULADORA!$C$23) -> -2.612616479e-08 | R140: =O140*IFERROR(VLOOKUP($A140,UVR!$A:$B,2,0),CALCULADORA!$C$23) -> -2.612616479e-08
A141: 2034-07-16 | B141: =IF(DIAS365(CALCULADORA!$C$30,A141)<0,0,DIAS365(CALCULADORA!$C$30,A141)) -> 3450 | C141: =+HLOOKUP(CALCULADORA!$C$11,Tablas!$B$1:$B$181,Flujos!J141+1,FALSE) -> 0 | D141: 0 | E141: 0 | F141: =ROUND(D140*ROUND(((1+CALCULADORA!$C$19)^(1/12)-1),6),6) -> 0 | G141: 0 | H141: =IF($B141=0,0,G141/POWER(1+CALCULADORA!$C$32,Flujos!$B141/365)) -> 0 | I141: 2034-07-16 | J141: 139 | K141: 4227 | L141: -1.100124791e-08 | M141: 0 | N141: -6.907683564e-11 | O141: -6.907683564e-11 | P141: =M141*IFERROR(VLOOKUP($A141,UVR!$A:$B,2,0),CALCULADORA!$C$23) -> 0 | Q141: =N141*IFERROR(VLOOKUP($A141,UVR!$A:$B,2,0),CALCULADORA!$C$23) -> -2.612616479e-08 | R141: =O141*IFERROR(VLOOKUP($A141,UVR!$A:$B,2,0),CALCULADORA!$C$23) -> -2.612616479e-08
A142: 2034-08-16 | B142: =IF(DIAS365(CALCULADORA!$C$30,A142)<0,0,DIAS365(CALCULADORA!$C$30,A142)) -> 3481 | C142: =+HLOOKUP(CALCULADORA!$C$11,Tablas!$B$1:$B$181,Flujos!J142+1,FALSE) -> 0 | D142: 0 | E142: 0 | F142: =ROUND(D141*ROUND(((1+CALCULADORA!$C$19)^(1/12)-1),6),6) -> 0 | G142: 0 | H142: =IF($B142=0,0,G142/POWER(1+CALCULADORA!$C$32,Flujos!$B142/365)) -> 0 | I142: 2034-08-16 | J142: 140 | K142: 4258 | L142: -1.100124791e-08 | M142: 0 | N142: -6.907683564e-11 | O142: -6.907683564e-11 | P142: =M142*IFERROR(VLOOKUP($A142,UVR!$A:$B,2,0),CALCULADORA!$C$23) -> 0 | Q142: =N142*IFERROR(VLOOKUP($A142,UVR!$A:$B,2,0),CALCULADORA!$C$23) -> -2.612616479e-08 | R142: =O142*IFERROR(VLOOKUP($A142,UVR!$A:$B,2,0),CALCULADORA!$C$23) -> -2.612616479e-08
A143: 2034-09-16 | B143: =IF(DIAS365(CALCULADORA!$C$30,A143)<0,0,DIAS365(CALCULADORA!$C$30,A143)) -> 3512 | C143: =+HLOOKUP(CALCULADORA!$C$11,Tablas!$B$1:$B$181,Flujos!J143+1,FALSE) -> 0 | D143: 0 | E143: 0 | F143: =ROUND(D142*ROUND(((1+CALCULADORA!$C$19)^(1/12)-1),6),6) -> 0 | G143: 0 | H143: =IF($B143=0,0,G143/POWER(1+CALCULADORA!$C$32,Flujos!$B143/365)) -> 0 | I143: 2034-09-16 | J143: 141 | K143: 4289 | L143: -1.100124791e-08 | M143: 0 | N143: -6.907683564e-11 | O143: -6.907683564e-11 | P143: =M143*IFERROR(VLOOKUP($A143,UVR!$A:$B,2,0),CALCULADORA!$C$23) -> 0 | Q143: =N143*IFERROR(VLOOKUP($A143,UVR!$A:$B,2,0),CALCULADORA!$C$23) -> -2.612616479e-08 | R143: =O143*IFERROR(VLOOKUP($A143,UVR!$A:$B,2,0),CALCULADORA!$C$23) -> -2.612616479e-08
A144: 2034-10-16 | B144: =IF(DIAS365(CALCULADORA!$C$30,A144)<0,0,DIAS365(CALCULADORA!$C$30,A144)) -> 3542 | C144: =+HLOOKUP(CALCULADORA!$C$11,Tablas!$B$1:$B$181,Flujos!J144+1,FALSE) -> 0 | D144: 0 | E144: 0 | F144: =ROUND(D143*ROUND(((1+CALCULADORA!$C$19)^(1/12)-1),6),6) -> 0 | G144: 0 | H144: =IF($B144=0,0,G144/POWER(1+CALCULADORA!$C$32,Flujos!$B144/365)) -> 0 | I144: 2034-10-16 | J144: 142 | K144: 4319 | L144: -1.100124791e-08 | M144: 0 | N144: -6.907683564e-11 | O144: -6.907683564e-11 | P144: =M144*IFERROR(VLOOKUP($A144,UVR!$A:$B,2,0),CALCULADORA!$C$23) -> 0 | Q144: =N144*IFERROR(VLOOKUP($A144,UVR!$A:$B,2,0),CALCULADORA!$C$23) -> -2.612616479e-08 | R144: =O144*IFERROR(VLOOKUP($A144,UVR!$A:$B,2,0),CALCULADORA!$C$23) -> -2.612616479e-08
A145: 2034-11-16 | B145: =IF(DIAS365(CALCULADORA!$C$30,A145)<0,0,DIAS365(CALCULADORA!$C$30,A145)) -> 3573 | C145: =+HLOOKUP(CALCULADORA!$C$11,Tablas!$B$1:$B$181,Flujos!J145+1,FALSE) -> 0 | D145: 0 | E145: 0 | F145: =ROUND(D144*ROUND(((1+CALCULADORA!$C$19)^(1/12)-1),6),6) -> 0 | G145: 0 | H145: =IF($B145=0,0,G145/POWER(1+CALCULADORA!$C$32,Flujos!$B145/365)) -> 0 | I145: 2034-11-16 | J145: 143 | K145: 4350 | L145: -1.100124791e-08 | M145: 0 | N145: -6.907683564e-11 | O145: -6.907683564e-11 | P145: =M145*IFERROR(VLOOKUP($A145,UVR!$A:$B,2,0),CALCULADORA!$C$23) -> 0 | Q145: =N145*IFERROR(VLOOKUP($A145,UVR!$A:$B,2,0),CALCULADORA!$C$23) -> -2.612616479e-08 | R145: =O145*IFERROR(VLOOKUP($A145,UVR!$A:$B,2,0),CALCULADORA!$C$23) -> -2.612616479e-08
A146: 2034-12-16 | B146: =IF(DIAS365(CALCULADORA!$C$30,A146)<0,0,DIAS365(CALCULADORA!$C$30,A146)) -> 3603 | C146: =+HLOOKUP(CALCULADORA!$C$11,Tablas!$B$1:$B$181,Flujos!J146+1,FALSE) -> 0 | D146: 0 | E146: 0 | F146: =ROUND(D145*ROUND(((1+CALCULADORA!$C$19)^(1/12)-1),6),6) -> 0 | G146: 0 | H146: =IF($B146=0,0,G146/POWER(1+CALCULADORA!$C$32,Flujos!$B146/365)) -> 0 | I146: 2034-12-16 | J146: 144 | K146: 4380 | L146: -1.100124791e-08 | M146: 0 | N146: -6.907683564e-11 | O146: -6.907683564e-11 | P146: =M146*IFERROR(VLOOKUP($A146,UVR!$A:$B,2,0),CALCULADORA!$C$23) -> 0 | Q146: =N146*IFERROR(VLOOKUP($A146,UVR!$A:$B,2,0),CALCULADORA!$C$23) -> -2.612616479e-08 | R146: =O146*IFERROR(VLOOKUP($A146,UVR!$A:$B,2,0),CALCULADORA!$C$23) -> -2.612616479e-08
A147: 2035-01-16 | B147: =IF(DIAS365(CALCULADORA!$C$30,A147)<0,0,DIAS365(CALCULADORA!$C$30,A147)) -> 3634 | C147: =+HLOOKUP(CALCULADORA!$C$11,Tablas!$B$1:$B$181,Flujos!J147+1,FALSE) -> 0 | D147: 0 | E147: 0 | F147: =ROUND(D146*ROUND(((1+CALCULADORA!$C$19)^(1/12)-1),6),6) -> 0 | G147: 0 | H147: =IF($B147=0,0,G147/POWER(1+CALCULADORA!$C$32,Flujos!$B147/365)) -> 0 | I147: 2035-01-16 | J147: 145 | K147: 4411 | L147: -1.100124791e-08 | M147: 0 | N147: -6.907683564e-11 | O147: -6.907683564e-11 | P147: =M147*IFERROR(VLOOKUP($A147,UVR!$A:$B,2,0),CALCULADORA!$C$23) -> 0 | Q147: =N147*IFERROR(VLOOKUP($A147,UVR!$A:$B,2,0),CALCULADORA!$C$23) -> -2.612616479e-08 | R147: =O147*IFERROR(VLOOKUP($A147,UVR!$A:$B,2,0),CALCULADORA!$C$23) -> -2.612616479e-08
A148: 2035-02-16 | B148: =IF(DIAS365(CALCULADORA!$C$30,A148)<0,0,DIAS365(CALCULADORA!$C$30,A148)) -> 3665 | C148: =+HLOOKUP(CALCULADORA!$C$11,Tablas!$B$1:$B$181,Flujos!J148+1,FALSE) -> 0 | D148: 0 | E148: 0 | F148: =ROUND(D147*ROUND(((1+CALCULADORA!$C$19)^(1/12)-1),6),6) -> 0 | G148: 0 | H148: =IF($B148=0,0,G148/POWER(1+CALCULADORA!$C$32,Flujos!$B148/365)) -> 0 | I148: 2035-02-16 | J148: 146 | K148: 4442 | L148: -1.100124791e-08 | M148: 0 | N148: -6.907683564e-11 | O148: -6.907683564e-11 | P148: =M148*IFERROR(VLOOKUP($A148,UVR!$A:$B,2,0),CALCULADORA!$C$23) -> 0 | Q148: =N148*IFERROR(VLOOKUP($A148,UVR!$A:$B,2,0),CALCULADORA!$C$23) -> -2.612616479e-08 | R148: =O148*IFERROR(VLOOKUP($A148,UVR!$A:$B,2,0),CALCULADORA!$C$23) -> -2.612616479e-08
A149: 2035-03-16 | B149: =IF(DIAS365(CALCULADORA!$C$30,A149)<0,0,DIAS365(CALCULADORA!$C$30,A149)) -> 3693 | C149: =+HLOOKUP(CALCULADORA!$C$11,Tablas!$B$1:$B$181,Flujos!J149+1,FALSE) -> 0 | D149: 0 | E149: 0 | F149: =ROUND(D148*ROUND(((1+CALCULADORA!$C$19)^(1/12)-1),6),6) -> 0 | G149: 0 | H149: =IF($B149=0,0,G149/POWER(1+CALCULADORA!$C$32,Flujos!$B149/365)) -> 0 | I149: 2035-03-16 | J149: 147 | K149: 4470 | L149: -1.100124791e-08 | M149: 0 | N149: -6.907683564e-11 | O149: -6.907683564e-11 | P149: =M149*IFERROR(VLOOKUP($A149,UVR!$A:$B,2,0),CALCULADORA!$C$23) -> 0 | Q149: =N149*IFERROR(VLOOKUP($A149,UVR!$A:$B,2,0),CALCULADORA!$C$23) -> -2.612616479e-08 | R149: =O149*IFERROR(VLOOKUP($A149,UVR!$A:$B,2,0),CALCULADORA!$C$23) -> -2.612616479e-08
A150: 2035-04-16 | B150: =IF(DIAS365(CALCULADORA!$C$30,A150)<0,0,DIAS365(CALCULADORA!$C$30,A150)) -> 3724 | C150: =+HLOOKUP(CALCULADORA!$C$11,Tablas!$B$1:$B$181,Flujos!J150+1,FALSE) -> 0 | D150: 0 | E150: 0 | F150: =ROUND(D149*ROUND(((1+CALCULADORA!$C$19)^(1/12)-1),6),6) -> 0 | G150: 0 | H150: =IF($B150=0,0,G150/POWER(1+CALCULADORA!$C$32,Flujos!$B150/365)) -> 0 | I150: 2035-04-16 | J150: 148 | K150: 4501 | L150: -1.100124791e-08 | M150: 0 | N150: -6.907683564e-11 | O150: -6.907683564e-11 | P150: =M150*IFERROR(VLOOKUP($A150,UVR!$A:$B,2,0),CALCULADORA!$C$23) -> 0 | Q150: =N150*IFERROR(VLOOKUP($A150,UVR!$A:$B,2,0),CALCULADORA!$C$23) -> -2.612616479e-08 | R150: =O150*IFERROR(VLOOKUP($A150,UVR!$A:$B,2,0),CALCULADORA!$C$23) -> -2.612616479e-08
A151: 2035-05-16 | B151: =IF(DIAS365(CALCULADORA!$C$30,A151)<0,0,DIAS365(CALCULADORA!$C$30,A151)) -> 3754 | C151: =+HLOOKUP(CALCULADORA!$C$11,Tablas!$B$1:$B$181,Flujos!J151+1,FALSE) -> 0 | D151: 0 | E151: 0 | F151: =ROUND(D150*ROUND(((1+CALCULADORA!$C$19)^(1/12)-1),6),6) -> 0 | G151: 0 | H151: =IF($B151=0,0,G151/POWER(1+CALCULADORA!$C$32,Flujos!$B151/365)) -> 0 | I151: 2035-05-16 | J151: 149 | K151: 4531 | L151: -1.100124791e-08 | M151: 0 | N151: -6.907683564e-11 | O151: -6.907683564e-11 | P151: =M151*IFERROR(VLOOKUP($A151,UVR!$A:$B,2,0),CALCULADORA!$C$23) -> 0 | Q151: =N151*IFERROR(VLOOKUP($A151,UVR!$A:$B,2,0),CALCULADORA!$C$23) -> -2.612616479e-08 | R151: =O151*IFERROR(VLOOKUP($A151,UVR!$A:$B,2,0),CALCULADORA!$C$23) -> -2.612616479e-08
A152: 2035-06-16 | B152: =IF(DIAS365(CALCULADORA!$C$30,A152)<0,0,DIAS365(CALCULADORA!$C$30,A152)) -> 3785 | C152: =+HLOOKUP(CALCULADORA!$C$11,Tablas!$B$1:$B$181,Flujos!J152+1,FALSE) -> 0 | D152: 0 | E152: 0 | F152: =ROUND(D151*ROUND(((1+CALCULADORA!$C$19)^(1/12)-1),6),6) -> 0 | G152: 0 | H152: =IF($B152=0,0,G152/POWER(1+CALCULADORA!$C$32,Flujos!$B152/365)) -> 0 | I152: 2035-06-16 | J152: 150 | K152: 4562 | L152: -1.100124791e-08 | M152: 0 | N152: -6.907683564e-11 | O152: -6.907683564e-11 | P152: =M152*IFERROR(VLOOKUP($A152,UVR!$A:$B,2,0),CALCULADORA!$C$23) -> 0 | Q152: =N152*IFERROR(VLOOKUP($A152,UVR!$A:$B,2,0),CALCULADORA!$C$23) -> -2.612616479e-08 | R152: =O152*IFERROR(VLOOKUP($A152,UVR!$A:$B,2,0),CALCULADORA!$C$23) -> -2.612616479e-08
A153: 2035-07-16 | B153: =IF(DIAS365(CALCULADORA!$C$30,A153)<0,0,DIAS365(CALCULADORA!$C$30,A153)) -> 3815 | C153: =+HLOOKUP(CALCULADORA!$C$11,Tablas!$B$1:$B$181,Flujos!J153+1,FALSE) -> 0 | D153: 0 | E153: 0 | F153: =ROUND(D152*ROUND(((1+CALCULADORA!$C$19)^(1/12)-1),6),6) -> 0 | G153: 0 | H153: =IF($B153=0,0,G153/POWER(1+CALCULADORA!$C$32,Flujos!$B153/365)) -> 0 | I153: 2035-07-16 | J153: 151 | K153: 4592 | L153: -1.100124791e-08 | M153: 0 | N153: -6.907683564e-11 | O153: -6.907683564e-11 | P153: =M153*IFERROR(VLOOKUP($A153,UVR!$A:$B,2,0),CALCULADORA!$C$23) -> 0 | Q153: =N153*IFERROR(VLOOKUP($A153,UVR!$A:$B,2,0),CALCULADORA!$C$23) -> -2.612616479e-08 | R153: =O153*IFERROR(VLOOKUP($A153,UVR!$A:$B,2,0),CALCULADORA!$C$23) -> -2.612616479e-08
A154: 2035-08-16 | B154: =IF(DIAS365(CALCULADORA!$C$30,A154)<0,0,DIAS365(CALCULADORA!$C$30,A154)) -> 3846 | C154: =+HLOOKUP(CALCULADORA!$C$11,Tablas!$B$1:$B$181,Flujos!J154+1,FALSE) -> 0 | D154: 0 | E154: 0 | F154: =ROUND(D153*ROUND(((1+CALCULADORA!$C$19)^(1/12)-1),6),6) -> 0 | G154: 0 | H154: =IF($B154=0,0,G154/POWER(1+CALCULADORA!$C$32,Flujos!$B154/365)) -> 0 | I154: 2035-08-16 | J154: 152 | K154: 4623 | L154: -1.100124791e-08 | M154: 0 | N154: -6.907683564e-11 | O154: -6.907683564e-11 | P154: =M154*IFERROR(VLOOKUP($A154,UVR!$A:$B,2,0),CALCULADORA!$C$23) -> 0 | Q154: =N154*IFERROR(VLOOKUP($A154,UVR!$A:$B,2,0),CALCULADORA!$C$23) -> -2.612616479e-08 | R154: =O154*IFERROR(VLOOKUP($A154,UVR!$A:$B,2,0),CALCULADORA!$C$23) -> -2.612616479e-08
A155: 2035-09-16 | B155: =IF(DIAS365(CALCULADORA!$C$30,A155)<0,0,DIAS365(CALCULADORA!$C$30,A155)) -> 3877 | C155: =+HLOOKUP(CALCULADORA!$C$11,Tablas!$B$1:$B$181,Flujos!J155+1,FALSE) -> 0 | D155: 0 | E155: 0 | F155: =ROUND(D154*ROUND(((1+CALCULADORA!$C$19)^(1/12)-1),6),6) -> 0 | G155: 0 | H155: =IF($B155=0,0,G155/POWER(1+CALCULADORA!$C$32,Flujos!$B155/365)) -> 0 | I155: 2035-09-16 | J155: 153 | K155: 4654 | L155: -1.100124791e-08 | M155: 0 | N155: -6.907683564e-11 | O155: -6.907683564e-11 | P155: =M155*IFERROR(VLOOKUP($A155,UVR!$A:$B,2,0),CALCULADORA!$C$23) -> 0 | Q155: =N155*IFERROR(VLOOKUP($A155,UVR!$A:$B,2,0),CALCULADORA!$C$23) -> -2.612616479e-08 | R155: =O155*IFERROR(VLOOKUP($A155,UVR!$A:$B,2,0),CALCULADORA!$C$23) -> -2.612616479e-08
A156: 2035-10-16 | B156: =IF(DIAS365(CALCULADORA!$C$30,A156)<0,0,DIAS365(CALCULADORA!$C$30,A156)) -> 3907 | C156: =+HLOOKUP(CALCULADORA!$C$11,Tablas!$B$1:$B$181,Flujos!J156+1,FALSE) -> 0 | D156: 0 | E156: 0 | F156: =ROUND(D155*ROUND(((1+CALCULADORA!$C$19)^(1/12)-1),6),6) -> 0 | G156: 0 | H156: =IF($B156=0,0,G156/POWER(1+CALCULADORA!$C$32,Flujos!$B156/365)) -> 0 | I156: 2035-10-16 | J156: 154 | K156: 4684 | L156: -1.100124791e-08 | M156: 0 | N156: -6.907683564e-11 | O156: -6.907683564e-11 | P156: =M156*IFERROR(VLOOKUP($A156,UVR!$A:$B,2,0),CALCULADORA!$C$23) -> 0 | Q156: =N156*IFERROR(VLOOKUP($A156,UVR!$A:$B,2,0),CALCULADORA!$C$23) -> -2.612616479e-08 | R156: =O156*IFERROR(VLOOKUP($A156,UVR!$A:$B,2,0),CALCULADORA!$C$23) -> -2.612616479e-08
A157: 2035-11-16 | B157: =IF(DIAS365(CALCULADORA!$C$30,A157)<0,0,DIAS365(CALCULADORA!$C$30,A157)) -> 3938 | C157: =+HLOOKUP(CALCULADORA!$C$11,Tablas!$B$1:$B$181,Flujos!J157+1,FALSE) -> 0 | D157: 0 | E157: 0 | F157: =ROUND(D156*ROUND(((1+CALCULADORA!$C$19)^(1/12)-1),6),6) -> 0 | G157: 0 | H157: =IF($B157=0,0,G157/POWER(1+CALCULADORA!$C$32,Flujos!$B157/365)) -> 0 | I157: 2035-11-16 | J157: 155 | K157: 4715 | L157: -1.100124791e-08 | M157: 0 | N157: -6.907683564e-11 | O157: -6.907683564e-11 | P157: =M157*IFERROR(VLOOKUP($A157,UVR!$A:$B,2,0),CALCULADORA!$C$23) -> 0 | Q157: =N157*IFERROR(VLOOKUP($A157,UVR!$A:$B,2,0),CALCULADORA!$C$23) -> -2.612616479e-08 | R157: =O157*IFERROR(VLOOKUP($A157,UVR!$A:$B,2,0),CALCULADORA!$C$23) -> -2.612616479e-08
A158: 2035-12-16 | B158: =IF(DIAS365(CALCULADORA!$C$30,A158)<0,0,DIAS365(CALCULADORA!$C$30,A158)) -> 3968 | C158: =+HLOOKUP(CALCULADORA!$C$11,Tablas!$B$1:$B$181,Flujos!J158+1,FALSE) -> 0 | D158: 0 | E158: 0 | F158: =ROUND(D157*ROUND(((1+CALCULADORA!$C$19)^(1/12)-1),6),6) -> 0 | G158: 0 | H158: =IF($B158=0,0,G158/POWER(1+CALCULADORA!$C$32,Flujos!$B158/365)) -> 0 | I158: 2035-12-16 | J158: 156 | K158: 4745 | L158: -1.100124791e-08 | M158: 0 | N158: -6.907683564e-11 | O158: -6.907683564e-11 | P158: =M158*IFERROR(VLOOKUP($A158,UVR!$A:$B,2,0),CALCULADORA!$C$23) -> 0 | Q158: =N158*IFERROR(VLOOKUP($A158,UVR!$A:$B,2,0),CALCULADORA!$C$23) -> -2.612616479e-08 | R158: =O158*IFERROR(VLOOKUP($A158,UVR!$A:$B,2,0),CALCULADORA!$C$23) -> -2.612616479e-08
A159: 2036-01-16 | B159: =IF(DIAS365(CALCULADORA!$C$30,A159)<0,0,DIAS365(CALCULADORA!$C$30,A159)) -> 3999 | C159: =+HLOOKUP(CALCULADORA!$C$11,Tablas!$B$1:$B$181,Flujos!J159+1,FALSE) -> 0 | D159: 0 | E159: 0 | F159: =ROUND(D158*ROUND(((1+CALCULADORA!$C$19)^(1/12)-1),6),6) -> 0 | G159: 0 | H159: =IF($B159=0,0,G159/POWER(1+CALCULADORA!$C$32,Flujos!$B159/365)) -> 0 | I159: 2036-01-16 | J159: 157 | K159: 4776 | L159: -1.100124791e-08 | M159: 0 | N159: -6.907683564e-11 | O159: -6.907683564e-11 | P159: =M159*IFERROR(VLOOKUP($A159,UVR!$A:$B,2,0),CALCULADORA!$C$23) -> 0 | Q159: =N159*IFERROR(VLOOKUP($A159,UVR!$A:$B,2,0),CALCULADORA!$C$23) -> -2.612616479e-08 | R159: =O159*IFERROR(VLOOKUP($A159,UVR!$A:$B,2,0),CALCULADORA!$C$23) -> -2.612616479e-08
A160: 2036-02-16 | B160: =IF(DIAS365(CALCULADORA!$C$30,A160)<0,0,DIAS365(CALCULADORA!$C$30,A160)) -> 4030 | C160: =+HLOOKUP(CALCULADORA!$C$11,Tablas!$B$1:$B$181,Flujos!J160+1,FALSE) -> 0 | D160: 0 | E160: 0 | F160: =ROUND(D159*ROUND(((1+CALCULADORA!$C$19)^(1/12)-1),6),6) -> 0 | G160: 0 | H160: =IF($B160=0,0,G160/POWER(1+CALCULADORA!$C$32,Flujos!$B160/365)) -> 0 | I160: 2036-02-16 | J160: 158 | K160: 4807 | L160: -1.100124791e-08 | M160: 0 | N160: -6.907683564e-11 | O160: -6.907683564e-11 | P160: =M160*IFERROR(VLOOKUP($A160,UVR!$A:$B,2,0),CALCULADORA!$C$23) -> 0 | Q160: =N160*IFERROR(VLOOKUP($A160,UVR!$A:$B,2,0),CALCULADORA!$C$23) -> -2.612616479e-08 | R160: =O160*IFERROR(VLOOKUP($A160,UVR!$A:$B,2,0),CALCULADORA!$C$23) -> -2.612616479e-08
A161: 2036-03-16 | B161: =IF(DIAS365(CALCULADORA!$C$30,A161)<0,0,DIAS365(CALCULADORA!$C$30,A161)) -> 4058 | C161: =+HLOOKUP(CALCULADORA!$C$11,Tablas!$B$1:$B$181,Flujos!J161+1,FALSE) -> 0 | D161: 0 | E161: 0 | F161: =ROUND(D160*ROUND(((1+CALCULADORA!$C$19)^(1/12)-1),6),6) -> 0 | G161: 0 | H161: =IF($B161=0,0,G161/POWER(1+CALCULADORA!$C$32,Flujos!$B161/365)) -> 0 | I161: 2036-03-16 | J161: 159 | K161: 4835 | L161: -1.100124791e-08 | M161: 0 | N161: -6.907683564e-11 | O161: -6.907683564e-11 | P161: =M161*IFERROR(VLOOKUP($A161,UVR!$A:$B,2,0),CALCULADORA!$C$23) -> 0 | Q161: =N161*IFERROR(VLOOKUP($A161,UVR!$A:$B,2,0),CALCULADORA!$C$23) -> -2.612616479e-08 | R161: =O161*IFERROR(VLOOKUP($A161,UVR!$A:$B,2,0),CALCULADORA!$C$23) -> -2.612616479e-08
A162: 2036-04-16 | B162: =IF(DIAS365(CALCULADORA!$C$30,A162)<0,0,DIAS365(CALCULADORA!$C$30,A162)) -> 4089 | C162: =+HLOOKUP(CALCULADORA!$C$11,Tablas!$B$1:$B$181,Flujos!J162+1,FALSE) -> 0 | D162: 0 | E162: 0 | F162: =ROUND(D161*ROUND(((1+CALCULADORA!$C$19)^(1/12)-1),6),6) -> 0 | G162: 0 | H162: =IF($B162=0,0,G162/POWER(1+CALCULADORA!$C$32,Flujos!$B162/365)) -> 0 | I162: 2036-04-16 | J162: 160 | K162: 4866 | L162: -1.100124791e-08 | M162: 0 | N162: -6.907683564e-11 | O162: -6.907683564e-11 | P162: =M162*IFERROR(VLOOKUP($A162,UVR!$A:$B,2,0),CALCULADORA!$C$23) -> 0 | Q162: =N162*IFERROR(VLOOKUP($A162,UVR!$A:$B,2,0),CALCULADORA!$C$23) -> -2.612616479e-08 | R162: =O162*IFERROR(VLOOKUP($A162,UVR!$A:$B,2,0),CALCULADORA!$C$23) -> -2.612616479e-08
A163: =EDATE(A162,1) -> 2036-05-16 | B163: =IF(DIAS365(CALCULADORA!$C$30,A163)<0,0,DIAS365(CALCULADORA!$C$30,A163)) -> 4119 | C163: =+HLOOKUP(CALCULADORA!$C$11,Tablas!$B$1:$B$181,Flujos!J163+1,FALSE) -> 0 | D163: 0 | E163: 0 | F163: =ROUND(D162*ROUND(((1+CALCULADORA!$C$19)^(1/12)-1),6),6) -> 0 | G163: 0 | H163: =IF($B163=0,0,G163/POWER(1+CALCULADORA!$C$32,Flujos!$B163/365)) -> 0 | I163: 2036-05-16 | J163: 161 | K163: 4896 | L163: -1.100124791e-08 | M163: 0 | N163: -6.907683564e-11 | O163: -6.907683564e-11 | P163: =M163*IFERROR(VLOOKUP($A163,UVR!$A:$B,2,0),CALCULADORA!$C$23) -> 0 | Q163: =N163*IFERROR(VLOOKUP($A163,UVR!$A:$B,2,0),CALCULADORA!$C$23) -> -2.612616479e-08 | R163: =O163*IFERROR(VLOOKUP($A163,UVR!$A:$B,2,0),CALCULADORA!$C$23) -> -2.612616479e-08
A164: 2036-06-16 | B164: =IF(DIAS365(CALCULADORA!$C$30,A164)<0,0,DIAS365(CALCULADORA!$C$30,A164)) -> 4150 | C164: =+HLOOKUP(CALCULADORA!$C$11,Tablas!$B$1:$B$181,Flujos!J164+1,FALSE) -> 0 | D164: 0 | E164: 0 | F164: =ROUND(D163*ROUND(((1+CALCULADORA!$C$19)^(1/12)-1),6),6) -> 0 | G164: 0 | H164: =IF($B164=0,0,G164/POWER(1+CALCULADORA!$C$32,Flujos!$B164/365)) -> 0 | I164: 2036-06-16 | J164: 162 | K164: 4927 | L164: -1.100124791e-08 | M164: 0 | N164: -6.907683564e-11 | O164: -6.907683564e-11 | P164: =M164*IFERROR(VLOOKUP($A164,UVR!$A:$B,2,0),CALCULADORA!$C$23) -> 0 | Q164: =N164*IFERROR(VLOOKUP($A164,UVR!$A:$B,2,0),CALCULADORA!$C$23) -> -2.612616479e-08 | R164: =O164*IFERROR(VLOOKUP($A164,UVR!$A:$B,2,0),CALCULADORA!$C$23) -> -2.612616479e-08
A165: 2036-07-16 | B165: =IF(DIAS365(CALCULADORA!$C$30,A165)<0,0,DIAS365(CALCULADORA!$C$30,A165)) -> 4180 | C165: =+HLOOKUP(CALCULADORA!$C$11,Tablas!$B$1:$B$181,Flujos!J165+1,FALSE) -> 0 | D165: 0 | E165: 0 | F165: =ROUND(D164*ROUND(((1+CALCULADORA!$C$19)^(1/12)-1),6),6) -> 0 | G165: 0 | H165: =IF($B165=0,0,G165/POWER(1+CALCULADORA!$C$32,Flujos!$B165/365)) -> 0 | I165: 2036-07-16 | J165: 163 | K165: 4957 | L165: -1.100124791e-08 | M165: 0 | N165: -6.907683564e-11 | O165: -6.907683564e-11 | P165: =M165*IFERROR(VLOOKUP($A165,UVR!$A:$B,2,0),CALCULADORA!$C$23) -> 0 | Q165: =N165*IFERROR(VLOOKUP($A165,UVR!$A:$B,2,0),CALCULADORA!$C$23) -> -2.612616479e-08 | R165: =O165*IFERROR(VLOOKUP($A165,UVR!$A:$B,2,0),CALCULADORA!$C$23) -> -2.612616479e-08
A166: 2036-08-16 | B166: =IF(DIAS365(CALCULADORA!$C$30,A166)<0,0,DIAS365(CALCULADORA!$C$30,A166)) -> 4211 | C166: =+HLOOKUP(CALCULADORA!$C$11,Tablas!$B$1:$B$181,Flujos!J166+1,FALSE) -> 0 | D166: 0 | E166: 0 | F166: =ROUND(D165*ROUND(((1+CALCULADORA!$C$19)^(1/12)-1),6),6) -> 0 | G166: 0 | H166: =IF($B166=0,0,G166/POWER(1+CALCULADORA!$C$32,Flujos!$B166/365)) -> 0 | I166: 2036-08-16 | J166: 164 | K166: 4988 | L166: -1.100124791e-08 | M166: 0 | N166: -6.907683564e-11 | O166: -6.907683564e-11 | P166: =M166*IFERROR(VLOOKUP($A166,UVR!$A:$B,2,0),CALCULADORA!$C$23) -> 0 | Q166: =N166*IFERROR(VLOOKUP($A166,UVR!$A:$B,2,0),CALCULADORA!$C$23) -> -2.612616479e-08 | R166: =O166*IFERROR(VLOOKUP($A166,UVR!$A:$B,2,0),CALCULADORA!$C$23) -> -2.612616479e-08
A167: 2036-09-16 | B167: =IF(DIAS365(CALCULADORA!$C$30,A167)<0,0,DIAS365(CALCULADORA!$C$30,A167)) -> 4242 | C167: =+HLOOKUP(CALCULADORA!$C$11,Tablas!$B$1:$B$181,Flujos!J167+1,FALSE) -> 0 | D167: 0 | E167: 0 | F167: =ROUND(D166*ROUND(((1+CALCULADORA!$C$19)^(1/12)-1),6),6) -> 0 | G167: 0 | H167: =IF($B167=0,0,G167/POWER(1+CALCULADORA!$C$32,Flujos!$B167/365)) -> 0 | I167: 2036-09-16 | J167: 165 | K167: 5019 | L167: -1.100124791e-08 | M167: 0 | N167: -6.907683564e-11 | O167: -6.907683564e-11 | P167: =M167*IFERROR(VLOOKUP($A167,UVR!$A:$B,2,0),CALCULADORA!$C$23) -> 0 | Q167: =N167*IFERROR(VLOOKUP($A167,UVR!$A:$B,2,0),CALCULADORA!$C$23) -> -2.612616479e-08 | R167: =O167*IFERROR(VLOOKUP($A167,UVR!$A:$B,2,0),CALCULADORA!$C$23) -> -2.612616479e-08
A168: 2036-10-16 | B168: =IF(DIAS365(CALCULADORA!$C$30,A168)<0,0,DIAS365(CALCULADORA!$C$30,A168)) -> 4272 | C168: =+HLOOKUP(CALCULADORA!$C$11,Tablas!$B$1:$B$181,Flujos!J168+1,FALSE) -> 0 | D168: 0 | E168: 0 | F168: =ROUND(D167*ROUND(((1+CALCULADORA!$C$19)^(1/12)-1),6),6) -> 0 | G168: 0 | H168: =IF($B168=0,0,G168/POWER(1+CALCULADORA!$C$32,Flujos!$B168/365)) -> 0 | I168: 2036-10-16 | J168: 166 | K168: 5049 | L168: -1.100124791e-08 | M168: 0 | N168: -6.907683564e-11 | O168: -6.907683564e-11 | P168: =M168*IFERROR(VLOOKUP($A168,UVR!$A:$B,2,0),CALCULADORA!$C$23) -> 0 | Q168: =N168*IFERROR(VLOOKUP($A168,UVR!$A:$B,2,0),CALCULADORA!$C$23) -> -2.612616479e-08 | R168: =O168*IFERROR(VLOOKUP($A168,UVR!$A:$B,2,0),CALCULADORA!$C$23) -> -2.612616479e-08
A169: 2036-11-16 | B169: =IF(DIAS365(CALCULADORA!$C$30,A169)<0,0,DIAS365(CALCULADORA!$C$30,A169)) -> 4303 | C169: =+HLOOKUP(CALCULADORA!$C$11,Tablas!$B$1:$B$181,Flujos!J169+1,FALSE) -> 0 | D169: 0 | E169: 0 | F169: =ROUND(D168*ROUND(((1+CALCULADORA!$C$19)^(1/12)-1),6),6) -> 0 | G169: 0 | H169: =IF($B169=0,0,G169/POWER(1+CALCULADORA!$C$32,Flujos!$B169/365)) -> 0 | I169: 2036-11-16 | J169: 167 | K169: 5080 | L169: -1.100124791e-08 | M169: 0 | N169: -6.907683564e-11 | O169: -6.907683564e-11 | P169: =M169*IFERROR(VLOOKUP($A169,UVR!$A:$B,2,0),CALCULADORA!$C$23) -> 0 | Q169: =N169*IFERROR(VLOOKUP($A169,UVR!$A:$B,2,0),CALCULADORA!$C$23) -> -2.612616479e-08 | R169: =O169*IFERROR(VLOOKUP($A169,UVR!$A:$B,2,0),CALCULADORA!$C$23) -> -2.612616479e-08
A170: 2036-12-16 | B170: =IF(DIAS365(CALCULADORA!$C$30,A170)<0,0,DIAS365(CALCULADORA!$C$30,A170)) -> 4333 | C170: =+HLOOKUP(CALCULADORA!$C$11,Tablas!$B$1:$B$181,Flujos!J170+1,FALSE) -> 0 | D170: 0 | E170: 0 | F170: =ROUND(D169*ROUND(((1+CALCULADORA!$C$19)^(1/12)-1),6),6) -> 0 | G170: 0 | H170: =IF($B170=0,0,G170/POWER(1+CALCULADORA!$C$32,Flujos!$B170/365)) -> 0 | I170: 2036-12-16 | J170: 168 | K170: 5110 | L170: -1.100124791e-08 | M170: 0 | N170: -6.907683564e-11 | O170: -6.907683564e-11 | P170: =M170*IFERROR(VLOOKUP($A170,UVR!$A:$B,2,0),CALCULADORA!$C$23) -> 0 | Q170: =N170*IFERROR(VLOOKUP($A170,UVR!$A:$B,2,0),CALCULADORA!$C$23) -> -2.612616479e-08 | R170: =O170*IFERROR(VLOOKUP($A170,UVR!$A:$B,2,0),CALCULADORA!$C$23) -> -2.612616479e-08
A171: 2037-01-16 | B171: =IF(DIAS365(CALCULADORA!$C$30,A171)<0,0,DIAS365(CALCULADORA!$C$30,A171)) -> 4364 | C171: =+HLOOKUP(CALCULADORA!$C$11,Tablas!$B$1:$B$181,Flujos!J171+1,FALSE) -> 0 | D171: 0 | E171: 0 | F171: =ROUND(D170*ROUND(((1+CALCULADORA!$C$19)^(1/12)-1),6),6) -> 0 | G171: 0 | H171: =IF($B171=0,0,G171/POWER(1+CALCULADORA!$C$32,Flujos!$B171/365)) -> 0 | I171: 2037-01-16 | J171: 169 | K171: 5141 | L171: -1.100124791e-08 | M171: 0 | N171: -6.907683564e-11 | O171: -6.907683564e-11 | P171: =M171*IFERROR(VLOOKUP($A171,UVR!$A:$B,2,0),CALCULADORA!$C$23) -> 0 | Q171: =N171*IFERROR(VLOOKUP($A171,UVR!$A:$B,2,0),CALCULADORA!$C$23) -> -2.612616479e-08 | R171: =O171*IFERROR(VLOOKUP($A171,UVR!$A:$B,2,0),CALCULADORA!$C$23) -> -2.612616479e-08
A172: 2037-02-16 | B172: =IF(DIAS365(CALCULADORA!$C$30,A172)<0,0,DIAS365(CALCULADORA!$C$30,A172)) -> 4395 | C172: =+HLOOKUP(CALCULADORA!$C$11,Tablas!$B$1:$B$181,Flujos!J172+1,FALSE) -> 0 | D172: 0 | E172: 0 | F172: =ROUND(D171*ROUND(((1+CALCULADORA!$C$19)^(1/12)-1),6),6) -> 0 | G172: 0 | H172: =IF($B172=0,0,G172/POWER(1+CALCULADORA!$C$32,Flujos!$B172/365)) -> 0 | I172: 2037-02-16 | J172: 170 | K172: 5172 | L172: -1.100124791e-08 | M172: 0 | N172: -6.907683564e-11 | O172: -6.907683564e-11 | P172: =M172*IFERROR(VLOOKUP($A172,UVR!$A:$B,2,0),CALCULADORA!$C$23) -> 0 | Q172: =N172*IFERROR(VLOOKUP($A172,UVR!$A:$B,2,0),CALCULADORA!$C$23) -> -2.612616479e-08 | R172: =O172*IFERROR(VLOOKUP($A172,UVR!$A:$B,2,0),CALCULADORA!$C$23) -> -2.612616479e-08
A173: 2037-03-16 | B173: =IF(DIAS365(CALCULADORA!$C$30,A173)<0,0,DIAS365(CALCULADORA!$C$30,A173)) -> 4423 | C173: =+HLOOKUP(CALCULADORA!$C$11,Tablas!$B$1:$B$181,Flujos!J173+1,FALSE) -> 0 | D173: 0 | E173: 0 | F173: =ROUND(D172*ROUND(((1+CALCULADORA!$C$19)^(1/12)-1),6),6) -> 0 | G173: 0 | H173: =IF($B173=0,0,G173/POWER(1+CALCULADORA!$C$32,Flujos!$B173/365)) -> 0 | I173: 2037-03-16 | J173: 171 | K173: 5200 | L173: -1.100124791e-08 | M173: 0 | N173: -6.907683564e-11 | O173: -6.907683564e-11 | P173: =M173*IFERROR(VLOOKUP($A173,UVR!$A:$B,2,0),CALCULADORA!$C$23) -> 0 | Q173: =N173*IFERROR(VLOOKUP($A173,UVR!$A:$B,2,0),CALCULADORA!$C$23) -> -2.612616479e-08 | R173: =O173*IFERROR(VLOOKUP($A173,UVR!$A:$B,2,0),CALCULADORA!$C$23) -> -2.612616479e-08
A174: 2037-04-16 | B174: =IF(DIAS365(CALCULADORA!$C$30,A174)<0,0,DIAS365(CALCULADORA!$C$30,A174)) -> 4454 | C174: =+HLOOKUP(CALCULADORA!$C$11,Tablas!$B$1:$B$181,Flujos!J174+1,FALSE) -> 0 | D174: 0 | E174: 0 | F174: =ROUND(D173*ROUND(((1+CALCULADORA!$C$19)^(1/12)-1),6),6) -> 0 | G174: 0 | H174: =IF($B174=0,0,G174/POWER(1+CALCULADORA!$C$32,Flujos!$B174/365)) -> 0 | I174: 2037-04-16 | J174: 172 | K174: 5231 | L174: -1.100124791e-08 | M174: 0 | N174: -6.907683564e-11 | O174: -6.907683564e-11 | P174: =M174*IFERROR(VLOOKUP($A174,UVR!$A:$B,2,0),CALCULADORA!$C$23) -> 0 | Q174: =N174*IFERROR(VLOOKUP($A174,UVR!$A:$B,2,0),CALCULADORA!$C$23) -> -2.612616479e-08 | R174: =O174*IFERROR(VLOOKUP($A174,UVR!$A:$B,2,0),CALCULADORA!$C$23) -> -2.612616479e-08
A175: 2037-05-16 | B175: =IF(DIAS365(CALCULADORA!$C$30,A175)<0,0,DIAS365(CALCULADORA!$C$30,A175)) -> 4484 | C175: =+HLOOKUP(CALCULADORA!$C$11,Tablas!$B$1:$B$181,Flujos!J175+1,FALSE) -> 0 | D175: 0 | E175: 0 | F175: =ROUND(D174*ROUND(((1+CALCULADORA!$C$19)^(1/12)-1),6),6) -> 0 | G175: 0 | H175: =IF($B175=0,0,G175/POWER(1+CALCULADORA!$C$32,Flujos!$B175/365)) -> 0 | I175: 2037-05-16 | J175: 173 | K175: 5261 | L175: -1.100124791e-08 | M175: 0 | N175: -6.907683564e-11 | O175: -6.907683564e-11 | P175: =M175*IFERROR(VLOOKUP($A175,UVR!$A:$B,2,0),CALCULADORA!$C$23) -> 0 | Q175: =N175*IFERROR(VLOOKUP($A175,UVR!$A:$B,2,0),CALCULADORA!$C$23) -> -2.612616479e-08 | R175: =O175*IFERROR(VLOOKUP($A175,UVR!$A:$B,2,0),CALCULADORA!$C$23) -> -2.612616479e-08
A176: 2037-06-16 | B176: =IF(DIAS365(CALCULADORA!$C$30,A176)<0,0,DIAS365(CALCULADORA!$C$30,A176)) -> 4515 | C176: =+HLOOKUP(CALCULADORA!$C$11,Tablas!$B$1:$B$181,Flujos!J176+1,FALSE) -> 0 | D176: 0 | E176: 0 | F176: =ROUND(D175*ROUND(((1+CALCULADORA!$C$19)^(1/12)-1),6),6) -> 0 | G176: 0 | H176: =IF($B176=0,0,G176/POWER(1+CALCULADORA!$C$32,Flujos!$B176/365)) -> 0 | I176: 2037-06-16 | J176: 174 | K176: 5292 | L176: -1.100124791e-08 | M176: 0 | N176: -6.907683564e-11 | O176: -6.907683564e-11 | P176: =M176*IFERROR(VLOOKUP($A176,UVR!$A:$B,2,0),CALCULADORA!$C$23) -> 0 | Q176: =N176*IFERROR(VLOOKUP($A176,UVR!$A:$B,2,0),CALCULADORA!$C$23) -> -2.612616479e-08 | R176: =O176*IFERROR(VLOOKUP($A176,UVR!$A:$B,2,0),CALCULADORA!$C$23) -> -2.612616479e-08
A177: 2037-07-16 | B177: =IF(DIAS365(CALCULADORA!$C$30,A177)<0,0,DIAS365(CALCULADORA!$C$30,A177)) -> 4545 | C177: =+HLOOKUP(CALCULADORA!$C$11,Tablas!$B$1:$B$181,Flujos!J177+1,FALSE) -> 0 | D177: 0 | E177: 0 | F177: =ROUND(D176*ROUND(((1+CALCULADORA!$C$19)^(1/12)-1),6),6) -> 0 | G177: 0 | H177: =IF($B177=0,0,G177/POWER(1+CALCULADORA!$C$32,Flujos!$B177/365)) -> 0 | I177: 2037-07-16 | J177: 175 | K177: 5322 | L177: -1.100124791e-08 | M177: 0 | N177: -6.907683564e-11 | O177: -6.907683564e-11 | P177: =M177*IFERROR(VLOOKUP($A177,UVR!$A:$B,2,0),CALCULADORA!$C$23) -> 0 | Q177: =N177*IFERROR(VLOOKUP($A177,UVR!$A:$B,2,0),CALCULADORA!$C$23) -> -2.612616479e-08 | R177: =O177*IFERROR(VLOOKUP($A177,UVR!$A:$B,2,0),CALCULADORA!$C$23) -> -2.612616479e-08
A178: 2037-08-16 | B178: =IF(DIAS365(CALCULADORA!$C$30,A178)<0,0,DIAS365(CALCULADORA!$C$30,A178)) -> 4576 | C178: =+HLOOKUP(CALCULADORA!$C$11,Tablas!$B$1:$B$181,Flujos!J178+1,FALSE) -> 0 | D178: 0 | E178: 0 | F178: =ROUND(D177*ROUND(((1+CALCULADORA!$C$19)^(1/12)-1),6),6) -> 0 | G178: 0 | H178: =IF($B178=0,0,G178/POWER(1+CALCULADORA!$C$32,Flujos!$B178/365)) -> 0 | I178: 2037-08-16 | J178: 176 | K178: 5353 | L178: -1.100124791e-08 | M178: 0 | N178: -6.907683564e-11 | O178: -6.907683564e-11 | P178: =M178*IFERROR(VLOOKUP($A178,UVR!$A:$B,2,0),CALCULADORA!$C$23) -> 0 | Q178: =N178*IFERROR(VLOOKUP($A178,UVR!$A:$B,2,0),CALCULADORA!$C$23) -> -2.612616479e-08 | R178: =O178*IFERROR(VLOOKUP($A178,UVR!$A:$B,2,0),CALCULADORA!$C$23) -> -2.612616479e-08
A179: 2037-09-16 | B179: =IF(DIAS365(CALCULADORA!$C$30,A179)<0,0,DIAS365(CALCULADORA!$C$30,A179)) -> 4607 | C179: =+HLOOKUP(CALCULADORA!$C$11,Tablas!$B$1:$B$181,Flujos!J179+1,FALSE) -> 0 | D179: 0 | E179: 0 | F179: =ROUND(D178*ROUND(((1+CALCULADORA!$C$19)^(1/12)-1),6),6) -> 0 | G179: 0 | H179: =IF($B179=0,0,G179/POWER(1+CALCULADORA!$C$32,Flujos!$B179/365)) -> 0 | I179: 2037-09-16 | J179: 177 | K179: 5384 | L179: -1.100124791e-08 | M179: 0 | N179: -6.907683564e-11 | O179: -6.907683564e-11 | P179: =M179*IFERROR(VLOOKUP($A179,UVR!$A:$B,2,0),CALCULADORA!$C$23) -> 0 | Q179: =N179*IFERROR(VLOOKUP($A179,UVR!$A:$B,2,0),CALCULADORA!$C$23) -> -2.612616479e-08 | R179: =O179*IFERROR(VLOOKUP($A179,UVR!$A:$B,2,0),CALCULADORA!$C$23) -> -2.612616479e-08
A180: 2037-10-16 | B180: =IF(DIAS365(CALCULADORA!$C$30,A180)<0,0,DIAS365(CALCULADORA!$C$30,A180)) -> 4637 | C180: =+HLOOKUP(CALCULADORA!$C$11,Tablas!$B$1:$B$181,Flujos!J180+1,FALSE) -> 0 | D180: 0 | E180: 0 | F180: =ROUND(D179*ROUND(((1+CALCULADORA!$C$19)^(1/12)-1),6),6) -> 0 | G180: 0 | H180: =IF($B180=0,0,G180/POWER(1+CALCULADORA!$C$32,Flujos!$B180/365)) -> 0 | I180: 2037-10-16 | J180: 178 | K180: 5414 | L180: -1.100124791e-08 | M180: 0 | N180: -6.907683564e-11 | O180: -6.907683564e-11 | P180: =M180*IFERROR(VLOOKUP($A180,UVR!$A:$B,2,0),CALCULADORA!$C$23) -> 0 | Q180: =N180*IFERROR(VLOOKUP($A180,UVR!$A:$B,2,0),CALCULADORA!$C$23) -> -2.612616479e-08 | R180: =O180*IFERROR(VLOOKUP($A180,UVR!$A:$B,2,0),CALCULADORA!$C$23) -> -2.612616479e-08
A181: 2037-11-16 | B181: =IF(DIAS365(CALCULADORA!$C$30,A181)<0,0,DIAS365(CALCULADORA!$C$30,A181)) -> 4668 | C181: =+HLOOKUP(CALCULADORA!$C$11,Tablas!$B$1:$B$181,Flujos!J181+1,FALSE) -> 0 | D181: 0 | E181: 0 | F181: =ROUND(D180*ROUND(((1+CALCULADORA!$C$19)^(1/12)-1),6),6) -> 0 | G181: 0 | H181: =IF($B181=0,0,G181/POWER(1+CALCULADORA!$C$32,Flujos!$B181/365)) -> 0 | I181: 2037-11-16 | J181: 179 | K181: 5445 | L181: -1.100124791e-08 | M181: 0 | N181: -6.907683564e-11 | O181: -6.907683564e-11 | P181: =M181*IFERROR(VLOOKUP($A181,UVR!$A:$B,2,0),CALCULADORA!$C$23) -> 0 | Q181: =N181*IFERROR(VLOOKUP($A181,UVR!$A:$B,2,0),CALCULADORA!$C$23) -> -2.612616479e-08 | R181: =O181*IFERROR(VLOOKUP($A181,UVR!$A:$B,2,0),CALCULADORA!$C$23) -> -2.612616479e-08
A182: 2037-12-16 | B182: =IF(DIAS365(CALCULADORA!$C$30,A182)<0,0,DIAS365(CALCULADORA!$C$30,A182)) -> 4698 | C182: =+HLOOKUP(CALCULADORA!$C$11,Tablas!$B$1:$B$181,Flujos!J182+1,FALSE) -> 0 | D182: 0 | E182: 0 | F182: =ROUND(D181*ROUND(((1+CALCULADORA!$C$19)^(1/12)-1),6),6) -> 0 | G182: 0 | H182: =IF($B182=0,0,G182/POWER(1+CALCULADORA!$C$32,Flujos!$B182/365)) -> 0 | I182: 2037-12-16 | J182: 180 | K182: 5475 | L182: -1.100124791e-08 | M182: 0 | N182: -6.907683564e-11 | O182: -6.907683564e-11 | P182: =M182*IFERROR(VLOOKUP($A182,UVR!$A:$B,2,0),CALCULADORA!$C$23) -> 0 | Q182: =N182*IFERROR(VLOOKUP($A182,UVR!$A:$B,2,0),CALCULADORA!$C$23) -> -2.612616479e-08 | R182: =O182*IFERROR(VLOOKUP($A182,UVR!$A:$B,2,0),CALCULADORA!$C$23) -> -2.612616479e-08
C183: =+SUMIF(B2:B182,">0",C2:C182) -> 0.74255532 | E183: =SUM(E2:E182) -> 100 | F183: =SUM(F2:F182) -> 33.601338 | G183: =SUM(G2:G182) -> 133.601338 | H183: =SUM(H2:H182) -> 83.01525808 | L183: Totales | M183: =SUM(M2:M182) -> 109099002.9 | N183: 36658728.02 | O183: 145757730.9 | P183: 4.082614159e+10 | Q183: 1.356723074e+10 | R183: 5.439337233e+10

Sheet TIR de Tenencia (hidden)
A1: =+Flujos!A1 -> Fecha | B1: =+Flujos!L1 -> Saldo / Balance | C1: =+Flujos!M1 -> Pago de Capital en UVR | D1: =+Flujos!N1 -> Pago de Intereses en UVR | E1: =+Flujos!O1 -> Pago Total UVR | F1: =+Flujos!P1 -> Pago de Capital en COP | G1: =+Flujos!Q1 -> Pago de Intereses en COP | H1: =+Flujos!R1 -> Pago Total COP | I1: =+CALCULADORA!C30 -> 2025-02-01 | J1: Fecha | K1: Flujo | L1: Fecha | M1: Flujo 1 | N1: TIR | O1: =+DAY(A2) -> 16 | P1: =+MONTH(J2) -> 3 | Q1: =+YEAR(J2) -> 2022 | S1: =MATCH(MAX('TIR de Tenencia'!L:L),'TIR de Tenencia'!L:L,0) -> 
A2: =+Flujos!A2 -> 2022-12-16 | B2: =+Flujos!L2 -> 109099002.9 | C2: =+Flujos!M2 -> 0 | D2: =+Flujos!N2 -> 0 | E2: =+Flujos!O2 -> 0 | F2: =+Flujos!P2 -> 0 | G2: =+Flujos!Q2 -> 0 | H2: =+Flujos!R2 -> 0 | J2: =+CALCULADORA!C26 -> 2022-03-14 | K2: =-CALCULADORA!C27 -> -52000000 | L2: =IF(K2=K1, " ", IF(J2 > CALCULADORA!$C$30, CALCULADORA!$C$30, J2)) -> 2022-03-14 | M2: =+K2 -> -52000000 | N2: =+XIRR(M2:M19,L2:L19) ->  | O2: =+O1 -> 16 | P2: =+IF(P1=12,1,P1+1) -> 4 | Q2: =+IF(P2=1,Q1+1,Q1) -> 2022 | S2: 1 | T2: Enero
A3: =+Flujos!A3 -> 2023-01-16 | B3: =+Flujos!L3 -> 107993609.6 | C3: =+Flujos!M3 -> 1105393.279 | D3: =+Flujos!N3 -> 685032.6391 | E3: =+Flujos!O3 -> 1790425.918 | F3: =+Flujos!P3 -> 360060968.8 | G3: =+Flujos!Q3 -> 223136435.1 | H3: =+Flujos!R3 -> 583197403.9 | J3: =+DATE(Q2,P2,O2) -> 2022-04-16 | K3: =IF(J3<CALCULADORA!$C$26,0,IF(CALCULADORA!$C$30>'TIR de Tenencia'!J3,VLOOKUP(J3,A:H,7),CALCULADORA!$C$36)) ->  | L3: =IF(K3=K2, " ", IF(J3 > CALCULADORA!$C$30, CALCULADORA!$C$30, J3)) ->  | M3: =+IF(K3=K2," ",K3) ->  | O3: =+O2 -> 16 | P3: =+IF(P2=12,1,P2+1) -> 5 | Q3: =+IF(P3=1,Q2+1,Q2) -> 2022 | S3: 2 | T3: Febrero
A4: =+Flujos!A4 -> 2023-02-16 | B4: =+Flujos!L4 -> 107258425.2 | C4: =+Flujos!M4 -> 735184.3598 | D4: =+Flujos!N4 -> 678091.8747 | E4: =+Flujos!O4 -> 1413276.234 | F4: =+Flujos!P4 -> 242544672.1 | G4: =+Flujos!Q4 -> 223709290.4 | H4: =+Flujos!R4 -> 466253962.5 | J4: =+DATE(Q3,P3,O3) -> 2022-05-16 | K4: =IF(J4<CALCULADORA!$C$26,0,IF(CALCULADORA!$C$30>'TIR de Tenencia'!J4,VLOOKUP(J4,A:H,7),CALCULADORA!$C$36)) ->  | L4: =IF(K4=K3, " ", IF(J4 > CALCULADORA!$C$30, CALCULADORA!$C$30, J4)) ->  | M4: =+IF(K4=K3," ",K4) ->  | O4: 16 | P4: =+IF(P3=12,1,P3+1) -> 6 | Q4: =+IF(P4=1,Q3+1,Q3) -> 2022 | S4: 3 | T4: Marzo
A5: =+Flujos!A5 -> 2023-03-16 | B5: =+Flujos!L5 -> 106114656.4 | C5: =+Flujos!M5 -> 1143768.853 | D5: =+Flujos!N5 -> 673475.6521 | E5: =+Flujos!O5 -> 1817244.506 | F5: =+Flujos!P5 -> 384019477.5 | G5: =+Flujos!Q5 -> 226118911.4 | H5: =+Flujos!R5 -> 610138389 | J5: 2022-06-16 | K5: =IF(J5<CALCULADORA!$C$26,0,IF(CALCULADORA!$C$30>'TIR de Tenencia'!J5,VLOOKUP(J5,A:H,7),CALCULADORA!$C$36)) ->  | L5: =IF(K5=K4, " ", IF(J5 > CALCULADORA!$C$30, CALCULADORA!$C$30, J5)) ->  | O5: 16 | P5: 7 | Q5: 2022 | S5: 4 | T5: Abril
A6: =+Flujos!A6 -> 2023-04-16 | B6: =+Flujos!L6 -> 105464554 | C6: =+Flujos!M6 -> 650102.4114 | D6: =+Flujos!N6 -> 666293.9275 | E6: =+Flujos!O6 -> 1316396.339 | F6: =+Flujos!P6 -> 221854078.9 | G6: =+Flujos!Q6 -> 227379599 | H6: =+Flujos!R6 -> 449233677.9 | J6: 2022-07-16 | K6: =IF(J6<CALCULADORA!$C$26,0,IF(CALCULADORA!$C$30>'TIR de Tenencia'!J6,VLOOKUP(J6,A:H,7),CALCULADORA!$C$36)) ->  | L6: =IF(K6=K5, " ", IF(J6 > CALCULADORA!$C$30, CALCULADORA!$C$30, J6)) ->  | O6: 16 | P6: =+IF(P5=12,1,P5+1) -> 8 | Q6: 2022 | S6: 5 | T6: Mayo
A7: =+Flujos!A7 -> 2023-05-16 | B7: =+Flujos!L7 -> 104520804 | C7: =+Flujos!M7 -> 943750.0146 | D7: =+Flujos!N7 -> 662211.9345 | E7: =+Flujos!O7 -> 1605961.949 | F7: =+Flujos!P7 -> 325414253.8 | G7: =+Flujos!Q7 -> 228337164.7 | H7: =+Flujos!R7 -> 553751418.5 | J7: 2022-08-16 | K7: =IF(J7<CALCULADORA!$C$26,0,IF(CALCULADORA!$C$30>'TIR de Tenencia'!J7,VLOOKUP(J7,A:H,7),CALCULADORA!$C$36)) ->  | L7: =IF(K7=K6, " ", IF(J7 > CALCULADORA!$C$30, CALCULADORA!$C$30, J7)) ->  | O7: 16 | P7: 9 | Q7: 2022 | S7: 6 | T7: Junio
A8: =+Flujos!A8 -> 2023-06-16 | B8: =+Flujos!L8 -> 103291805.9 | C8: =+Flujos!M8 -> 1228998.086 | D8: =+Flujos!N8 -> 656286.1281 | E8: =+Flujos!O8 -> 1885284.214 | F8: =+Flujos!P8 -> 427030009.9 | G8: =+Flujos!Q8 -> 228034425 | H8: =+Flujos!R8 -> 655064434.9 | J8: 2022-09-16 | K8: =IF(J8<CALCULADORA!$C$26,0,IF(CALCULADORA!$C$30>'TIR de Tenencia'!J8,VLOOKUP(J8,A:H,7),CALCULADORA!$C$36)) ->  | L8: =IF(K8=K7, " ", IF(J8 > CALCULADORA!$C$30, CALCULADORA!$C$30, J8)) ->  | O8: =+O7 -> 16 | P8: 10 | Q8: 2022 | S8: 7 | T8: Julio
A9: =+Flujos!A9 -> 2023-07-16 | B9: =+Flujos!L9 -> 102314581 | C9: =+Flujos!M9 -> 977224.8616 | D9: =+Flujos!N9 -> 648569.2491 | E9: =+Flujos!O9 -> 1625794.111 | F9: =+Flujos!P9 -> 340992647.8 | G9: =+Flujos!Q9 -> 226311624.1 | H9: =+Flujos!R9 -> 567304271.8 | J9: 2022-10-16 | K9: =IF(J9<CALCULADORA!$C$26,0,IF(CALCULADORA!$C$30>'TIR de Tenencia'!J9,VLOOKUP(J9,A:H,7),CALCULADORA!$C$36)) ->  | L9: =IF(K9=K8, " ", IF(J9 > CALCULADORA!$C$30, CALCULADORA!$C$30, J9)) ->  | O9: =+O8 -> 16 | P9: =+IF(P8=12,1,P8+1) -> 11 | Q9: 2022 | S9: 8 | T9: Agosto
A10: =+Flujos!A10 -> 2023-08-16 | B10: =+Flujos!L10 -> 101534630.1 | C10: =+Flujos!M10 -> 779950.9536 | D10: =+Flujos!N10 -> 642433.2542 | E10: =+Flujos!O10 -> 1422384.208 | F10: =+Flujos!P10 -> 272989931.3 | G10: =+Flujos!Q10 -> 224857485.1 | H10: =+Flujos!R10 -> 497847416.4 | J10: 2022-11-16 | K10: =IF(J10<CALCULADORA!$C$26,0,IF(CALCULADORA!$C$30>'TIR de Tenencia'!J10,VLOOKUP(J10,A:H,7),CALCULADORA!$C$36)) ->  | L10: =IF(K10=K9, " ", IF(J10 > CALCULADORA!$C$30, CALCULADORA!$C$30, J10)) ->  | M10: =+IF(K10=K9," ",K10) ->  | O10: 16 | P10: =+IF(P9=12,1,P9+1) -> 12 | Q10: 2022 | S10: 9 | T10: Septiembre
A11: =+Flujos!A11 -> 2023-09-16 | B11: =+Flujos!L11 -> 100586033.9 | C11: =+Flujos!M11 -> 948596.1923 | D11: =+Flujos!N11 -> 637535.9422 | E11: =+Flujos!O11 -> 1586132.134 | F11: =+Flujos!P11 -> 333701342.3 | G11: =+Flujos!Q11 -> 224275198.9 | H11: =+Flujos!R11 -> 557976541.2 | J11: 2022-12-16 | K11: =IF(J11<CALCULADORA!$C$26,0,IF(CALCULADORA!$C$30>'TIR de Tenencia'!J11,VLOOKUP(J11,A:H,7),CALCULADORA!$C$36)) -> 0 | L11: =IF(K11=K10, " ", IF(J11 > CALCULADORA!$C$30, CALCULADORA!$C$30, J11)) ->  | O11: 16 | P11: =+IF(P10=12,1,P10+1) -> 1 | Q11: 2023 | S11: 10 | T11: Octubre
A12: =+Flujos!A12 -> 2023-10-16 | B12: =+Flujos!L12 -> 100121615.8 | C12: =+Flujos!M12 -> 464418.0904 | D12: =+Flujos!N12 -> 631579.7067 | E12: =+Flujos!O12 -> 1095997.797 | F12: =+Flujos!P12 -> 164508962.5 | G12: =+Flujos!Q12 -> 223721953.2 | H12: =+Flujos!R12 -> 388230915.7 | J12: 2023-01-16 | K12: =IF(J12<CALCULADORA!$C$26,0,IF(CALCULADORA!$C$30>'TIR de Tenencia'!J12,VLOOKUP(J12,A:H,7),CALCULADORA!$C$36)) -> 223136435.1 | L12: =IF(K12=K11, " ", IF(J12 > CALCULADORA!$C$30, CALCULADORA!$C$30, J12)) -> 2023-01-16 | M12: 223136435.1 | O12: 16 | P12: 2 | Q12: =+IF(P12=1,Q11+1,Q11) -> 2023 | S12: 11 | T12: Noviembre
A13: =+Flujos!A13 -> 2023-11-16 | B13: =+Flujos!L13 -> 98973812.45 | C13: =+Flujos!M13 -> 1147803.335 | D13: =+Flujos!N13 -> 628663.6255 | E13: =+Flujos!O13 -> 1776466.96 | F13: =+Flujos!P13 -> 408740343 | G13: =+Flujos!Q13 -> 223871266.2 | H13: =+Flujos!R13 -> 632611609.2 | J13: 2023-02-16 | K13: =IF(J13<CALCULADORA!$C$26,0,IF(CALCULADORA!$C$30>'TIR de Tenencia'!J13,VLOOKUP(J13,A:H,7),CALCULADORA!$C$36)) -> 223709290.4 | L13: =IF(K13=K12, " ", IF(J13 > CALCULADORA!$C$30, CALCULADORA!$C$30, J13)) -> 2023-02-16 | M13: 223709290.4 | O13: 16 | P13: 3 | Q13: 2023 | S13: 12 | T13: Diciembre
A14: =+Flujos!A14 -> 2023-12-16 | B14: =+Flujos!L14 -> 98130739 | C14: =+Flujos!M14 -> 843073.4547 | D14: =+Flujos!N14 -> 621456.5684 | E14: =+Flujos!O14 -> 1464530.023 | F14: =+Flujos!P14 -> 300224021.5 | G14: =+Flujos!Q14 -> 221304785.6 | H14: =+Flujos!R14 -> 521528807.1 | J14: 2023-03-16 | K14: =IF(J14<CALCULADORA!$C$26,0,IF(CALCULADORA!$C$30>'TIR de Tenencia'!J14,VLOOKUP(J14,A:H,7),CALCULADORA!$C$36)) -> 226118911.4 | L14: =IF(K14=K13, " ", IF(J14 > CALCULADORA!$C$30, CALCULADORA!$C$30, J14)) -> 2023-03-16 | M14: 226118911.4 | O14: 16 | P14: 4 | Q14: 2023
A15: =+Flujos!A15 -> 2024-01-16 | B15: =+Flujos!L15 -> 97029096.54 | C15: =+Flujos!M15 -> 1101642.456 | D15: =+Flujos!N15 -> 616162.9102 | E15: =+Flujos!O15 -> 1717805.366 | F15: =+Flujos!P15 -> 396818883.3 | G15: =+Flujos!Q15 -> 221945946.9 | H15: =+Flujos!R15 -> 618764830.2 | J15: 2023-04-16 | K15: =IF(J15<CALCULADORA!$C$26,0,IF(CALCULADORA!$C$30>'TIR de Tenencia'!J15,VLOOKUP(J15,A:H,7),CALCULADORA!$C$36)) -> 227379599 | L15: =IF(K15=K14, " ", IF(J15 > CALCULADORA!$C$30, CALCULADORA!$C$30, J15)) -> 2023-04-16 | M15: 227379599 | O15: 16 | P15: =+IF(P14=12,1,P14+1) -> 5 | Q15: 2023
A16: =+Flujos!A16 -> 2024-02-16 | B16: =+Flujos!L16 -> 95339778.12 | C16: =+Flujos!M16 -> 1689318.417 | D16: =+Flujos!N16 -> 609245.6972 | E16: =+Flujos!O16 -> 2298564.115 | F16: =+Flujos!P16 -> 608784070.3 | G16: =+Flujos!Q16 -> 219555455.9 | H16: =+Flujos!R16 -> 828339526.2 | J16: 2023-05-16 | K16: =IF(J16<CALCULADORA!$C$26,0,IF(CALCULADORA!$C$30>'TIR de Tenencia'!J16,VLOOKUP(J16,A:H,7),CALCULADORA!$C$36)) -> 228337164.7 | L16: =IF(K16=K15, " ", IF(J16 > CALCULADORA!$C$30, CALCULADORA!$C$30, J16)) -> 2023-05-16 | M16: 228337164.7 | O16: 16 | P16: 6 | Q16: 2023
A17: =+Flujos!A17 -> 2024-03-16 | B17: =+Flujos!L17 -> 94326397.85 | C17: =+Flujos!M17 -> 1013380.271 | D17: =+Flujos!N17 -> 598638.4668 | E17: =+Flujos!O17 -> 1612018.738 | F17: =+Flujos!P17 -> 368566810 | G17: =+Flujos!Q17 -> 217725049.8 | H17: =+Flujos!R17 -> 586291859.8 | J17: 2023-06-16 | K17: =IF(J17<CALCULADORA!$C$26,0,IF(CALCULADORA!$C$30>'TIR de Tenencia'!J17,VLOOKUP(J17,A:H,7),CALCULADORA!$C$36)) -> 228034425 | L17: =IF(K17=K16, " ", IF(J17 > CALCULADORA!$C$30, CALCULADORA!$C$30, J17)) -> 2023-06-16 | M17: 228034425 | O17: 16 | P17: 7 | Q17: 2023
A18: =+Flujos!A18 -> 2024-04-16 | B18: =+Flujos!L18 -> 93503498.98 | C18: =+Flujos!M18 -> 822898.8671 | D18: =+Flujos!N18 -> 592275.4521 | E18: =+Flujos!O18 -> 1415174.319 | F18: =+Flujos!P18 -> 302515398.2 | G18: =+Flujos!Q18 -> 217733249.3 | H18: =+Flujos!R18 -> 520248647.5 | J18: 2023-07-16 | K18: =IF(J18<CALCULADORA!$C$26,0,IF(CALCULADORA!$C$30>'TIR de Tenencia'!J18,VLOOKUP(J18,A:H,7),CALCULADORA!$C$36)) -> 226311624.1 | L18: =IF(K18=K17, " ", IF(J18 > CALCULADORA!$C$30, CALCULADORA!$C$30, J18)) -> 2023-07-16 | M18: 226311624.1 | O18: 16 | P18: 8 | Q18: 2023
A19: =+Flujos!A19 -> 2024-05-16 | B19: =+Flujos!L19 -> 91906863.44 | C19: =+Flujos!M19 -> 1596635.542 | D19: =+Flujos!N19 -> 587108.4701 | E19: =+Flujos!O19 -> 2183744.012 | F19: =+Flujos!P19 -> 591041107.8 | G19: =+Flujos!Q19 -> 217335285.1 | H19: =+Flujos!R19 -> 808376392.9 | J19: 2023-08-16 | K19: =IF(J19<CALCULADORA!$C$26,0,IF(CALCULADORA!$C$30>'TIR de Tenencia'!J19,VLOOKUP(J19,A:H,7),CALCULADORA!$C$36)) -> 224857485.1 | L19: =IF(K19=K18, " ", IF(J19 > CALCULADORA!$C$30, CALCULADORA!$C$30, J19)) -> 2023-08-16 | M19: 224857485.1 | O19: 16 | P19: 9 | Q19: 2023
A20: =+Flujos!A20 -> 2024-06-16 | B20: =+Flujos!L20 -> 90550966.85 | C20: =+Flujos!M20 -> 1355896.591 | D20: =+Flujos!N20 -> 577083.1956 | E20: =+Flujos!O20 -> 1932979.786 | F20: =+Flujos!P20 -> 504862400.8 | G20: =+Flujos!Q20 -> 214874504.1 | H20: =+Flujos!R20 -> 719736904.9 | J20: 2023-09-16 | K20: =IF(J20<CALCULADORA!$C$26,0,IF(CALCULADORA!$C$30>'TIR de Tenencia'!J20,VLOOKUP(J20,A:H,7),CALCULADORA!$C$36)) -> 224275198.9 | L20: =IF(K20=K19, " ", IF(J20 > CALCULADORA!$C$30, CALCULADORA!$C$30, J20)) -> 2023-09-16 | M20: 224275198.9 | O20: 16 | P20: =+IF(P19=12,1,P19+1) -> 10 | Q20: 2023
A21: =+Flujos!A21 -> 2024-07-16 | B21: =+Flujos!L21 -> 89503417.86 | C21: =+Flujos!M21 -> 1047548.988 | D21: =+Flujos!N21 -> 568569.5209 | E21: =+Flujos!O21 -> 1616118.509 | F21: =+Flujos!P21 -> 391711983.4 | G21: =+Flujos!Q21 -> 212606281.2 | H21: =+Flujos!R21 -> 604318264.6 | J21: 2023-10-16 | K21: =IF(J21<CALCULADORA!$C$26,0,IF(CALCULADORA!$C$30>'TIR de Tenencia'!J21,VLOOKUP(J21,A:H,7),CALCULADORA!$C$36)) -> 223721953.2 | L21: =IF(K21=K20, " ", IF(J21 > CALCULADORA!$C$30, CALCULADORA!$C$30, J21)) -> 2023-10-16 | M21: 223721953.2 | O21: 16 | P21: 11 | Q21: 2023
A22: =+Flujos!A22 -> 2024-08-16 | B22: =+Flujos!L22 -> 88702593 | C22: =+Flujos!M22 -> 800824.8658 | D22: =+Flujos!N22 -> 561991.9608 | E22: =+Flujos!O22 -> 1362816.827 | F22: =+Flujos!P22 -> 300400698.8 | G22: =+Flujos!Q22 -> 210811108.6 | H22: =+Flujos!R22 -> 511211807.4 | J22: 2023-11-16 | K22: =IF(J22<CALCULADORA!$C$26,0,IF(CALCULADORA!$C$30>'TIR de Tenencia'!J22,VLOOKUP(J22,A:H,7),CALCULADORA!$C$36)) -> 223871266.2 | L22: =IF(K22=K21, " ", IF(J22 > CALCULADORA!$C$30, CALCULADORA!$C$30, J22)) -> 2023-11-16 | M22: 223871266.2 | O22: 16 | P22: 12 | Q22: 2023
A23: =+Flujos!A23 -> 2024-09-16 | B23: =+Flujos!L23 -> 87009944.88 | C23: =+Flujos!M23 -> 1692648.119 | D23: =+Flujos!N23 -> 556963.5814 | E23: =+Flujos!O23 -> 2249611.7 | F23: =+Flujos!P23 -> 636165038.3 | G23: =+Flujos!Q23 -> 209329248.1 | H23: =+Flujos!R23 -> 845494286.4 | J23: 2023-12-16 | K23: =IF(J23<CALCULADORA!$C$26,0,IF(CALCULADORA!$C$30>'TIR de Tenencia'!J23,VLOOKUP(J23,A:H,7),CALCULADORA!$C$36)) -> 221304785.6 | L23: =IF(K23=K22, " ", IF(J23 > CALCULADORA!$C$30, CALCULADORA!$C$30, J23)) -> 2023-12-16 | M23: 221304785.6 | O23: 16 | P23: 1 | Q23: 2024
A24: =+Flujos!A24 -> 2024-10-16 | B24: =+Flujos!L24 -> 85277577.09 | C24: =+Flujos!M24 -> 1732367.793 | D24: =+Flujos!N24 -> 546335.4439 | E24: =+Flujos!O24 -> 2278703.237 | F24: =+Flujos!P24 -> 651143696.5 | G24: =+Flujos!Q24 -> 205350666.2 | H24: =+Flujos!R24 -> 856494362.7 | J24: 2024-01-16 | K24: =IF(J24<CALCULADORA!$C$26,0,IF(CALCULADORA!$C$30>'TIR de Tenencia'!J24,VLOOKUP(J24,A:H,7),CALCULADORA!$C$36)) -> 221945946.9 | L24: =IF(K24=K23, " ", IF(J24 > CALCULADORA!$C$30, CALCULADORA!$C$30, J24)) -> 2024-01-16 | M24: 221945946.9 | O24: 16 | P24: 2 | Q24: 2024
A25: =+Flujos!A25 -> 2024-11-16 | B25: =+Flujos!L25 -> 83880825.1 | C25: =+Flujos!M25 -> 1396751.985 | D25: =+Flujos!N25 -> 535457.9065 | E25: =+Flujos!O25 -> 1932209.892 | F25: =+Flujos!P25 -> 526192509.1 | G25: =+Flujos!Q25 -> 201720808.2 | H25: =+Flujos!R25 -> 727913317.3 | J25: 2024-02-16 | K25: =IF(J25<CALCULADORA!$C$26,0,IF(CALCULADORA!$C$30>'TIR de Tenencia'!J25,VLOOKUP(J25,A:H,7),CALCULADORA!$C$36)) -> 219555455.9 | L25: =IF(K25=K24, " ", IF(J25 > CALCULADORA!$C$30, CALCULADORA!$C$30, J25)) -> 2024-02-16 | M25: 219555455.9 | O25: 16 | P25: 3 | Q25: 2024
A26: =+Flujos!A26 -> 2024-12-16 | B26: =+Flujos!L26 -> 82539144.11 | C26: =+Flujos!M26 -> 1341680.991 | D26: =+Flujos!N26 -> 526687.7008 | E26: =+Flujos!O26 -> 1868368.691 | F26: =+Flujos!P26 -> 504854431.6 | G26: =+Flujos!Q26 -> 198184681.5 | H26: =+Flujos!R26 -> 703039113.1 | J26: 2024-03-16 | K26: =IF(J26<CALCULADORA!$C$26,0,IF(CALCULADORA!$C$30>'TIR de Tenencia'!J26,VLOOKUP(J26,A:H,7),CALCULADORA!$C$36)) -> 217725049.8 | L26: =IF(K26=K25, " ", IF(J26 > CALCULADORA!$C$30, CALCULADORA!$C$30, J26)) -> 2024-03-16 | M26: =+IF(K26=K25," ",K26) -> 217725049.8 | O26: 16 | P26: 4 | Q26: 2024
A27: =+Flujos!A27 -> 2025-01-16 | B27: =+Flujos!L27 -> 81012045 | C27: =+Flujos!M27 -> 1527099.11 | D27: =+Flujos!N27 -> 518263.2859 | E27: =+Flujos!O27 -> 2045362.396 | F27: =+Flujos!P27 -> 576211297.3 | G27: =+Flujos!Q27 -> 195553227.9 | H27: =+Flujos!R27 -> 771764525.2 | J27: 2024-04-16 | K27: =IF(J27<CALCULADORA!$C$26,0,IF(CALCULADORA!$C$30>'TIR de Tenencia'!J27,VLOOKUP(J27,A:H,7),CALCULADORA!$C$36)) -> 217733249.3 | L27: =IF(K27=K26, " ", IF(J27 > CALCULADORA!$C$30, CALCULADORA!$C$30, J27)) -> 2024-04-16 | M27: 217733249.3 | O27: 16 | P27: 5 | Q27: 2024
A28: =+Flujos!A28 -> 2025-02-16 | B28: =+Flujos!L28 -> 79286084.59 | C28: =+Flujos!M28 -> 1725960.409 | D28: =+Flujos!N28 -> 508674.6306 | E28: =+Flujos!O28 -> 2234635.039 | F28: =+Flujos!P28 -> 654363887.5 | G28: =+Flujos!Q28 -> 192853965.3 | H28: =+Flujos!R28 -> 847217852.8 | J28: 2024-05-16 | K28: =IF(J28<CALCULADORA!$C$26,0,IF(CALCULADORA!$C$30>'TIR de Tenencia'!J28,VLOOKUP(J28,A:H,7),CALCULADORA!$C$36)) -> 217335285.1 | L28: =IF(K28=K27, " ", IF(J28 > CALCULADORA!$C$30, CALCULADORA!$C$30, J28)) -> 2024-05-16 | M28: 217335285.1 | O28: 16 | P28: 6 | Q28: 2024
A29: =+Flujos!A29 -> 2025-03-16 | B29: =+Flujos!L29 -> 77823100.78 | C29: =+Flujos!M29 -> 1462983.808 | D29: =+Flujos!N29 -> 497837.3251 | E29: =+Flujos!O29 -> 1960821.133 | F29: =+Flujos!P29 -> 554311983.2 | G29: =+Flujos!Q29 -> 188626281.1 | H29: =+Flujos!R29 -> 742938264.3 | J29: 2024-06-16 | K29: =IF(J29<CALCULADORA!$C$26,0,IF(CALCULADORA!$C$30>'TIR de Tenencia'!J29,VLOOKUP(J29,A:H,7),CALCULADORA!$C$36)) -> 214874504.1 | L29: =IF(K29=K28, " ", IF(J29 > CALCULADORA!$C$30, CALCULADORA!$C$30, J29)) -> 2024-06-16 | M29: 214874504.1 | O29: 16 | P29: 7 | Q29: 2024
A30: =+Flujos!A30 -> 2025-04-16 | B30: =+Flujos!L30 -> 76652128.09 | C30: =+Flujos!M30 -> 1170972.69 | D30: =+Flujos!N30 -> 488651.2498 | E30: =+Flujos!O30 -> 1659623.94 | F30: =+Flujos!P30 -> 430374735.6 | G30: =+Flujos!Q30 -> 179596974.6 | H30: =+Flujos!R30 -> 609971710.3 | J30: 2024-07-16 | K30: =IF(J30<CALCULADORA!$C$26,0,IF(CALCULADORA!$C$30>'TIR de Tenencia'!J30,VLOOKUP(J30,A:H,7),CALCULADORA!$C$36)) -> 212606281.2 | L30: =IF(K30=K29, " ", IF(J30 > CALCULADORA!$C$30, CALCULADORA!$C$30, J30)) -> 2024-07-16 | M30: 212606281.2 | O30: 16 | P30: 8 | Q30: 2024
A31: =+Flujos!A31 -> 2025-05-16 | B31: =+Flujos!L31 -> 75487060.93 | C31: =+Flujos!M31 -> 1165067.161 | D31: =+Flujos!N31 -> 481298.7123 | E31: =+Flujos!O31 -> 1646365.873 | F31: =+Flujos!P31 -> 439810095.5 | G31: =+Flujos!Q31 -> 181689124.7 | H31: =+Flujos!R31 -> 621499220.1 | J31: 2024-08-16 | K31: =IF(J31<CALCULADORA!$C$26,0,IF(CALCULADORA!$C$30>'TIR de Tenencia'!J31,VLOOKUP(J31,A:H,7),CALCULADORA!$C$36)) -> 210811108.6 | L31: =IF(K31=K30, " ", IF(J31 > CALCULADORA!$C$30, CALCULADORA!$C$30, J31)) -> 2024-08-16 | M31: 210811108.6 | O31: 16 | P31: 9 | Q31: 2024
A32: =+Flujos!A32 -> 2025-06-16 | B32: =+Flujos!L32 -> 74323009.48 | C32: =+Flujos!M32 -> 1164051.449 | D32: =+Flujos!N32 -> 473983.2556 | E32: =+Flujos!O32 -> 1638034.705 | F32: =+Flujos!P32 -> 443061098.3 | G32: =+Flujos!Q32 -> 180407439.9 | H32: =+Flujos!R32 -> 623468538.1 | J32: 2024-09-16 | K32: =IF(J32<CALCULADORA!$C$26,0,IF(CALCULADORA!$C$30>'TIR de Tenencia'!J32,VLOOKUP(J32,A:H,7),CALCULADORA!$C$36)) -> 209329248.1 | L32: =IF(K32=K31, " ", IF(J32 > CALCULADORA!$C$30, CALCULADORA!$C$30, J32)) -> 2024-09-16 | M32: 209329248.1 | O32: 16 | P32: 10 | Q32: 2024
A33: =+Flujos!A33 -> 2025-07-16 | B33: =+Flujos!L33 -> 73166952.81 | C33: =+Flujos!M33 -> 1156056.674 | D33: =+Flujos!N33 -> 466674.1765 | E33: =+Flujos!O33 -> 1622730.851 | F33: =+Flujos!P33 -> 443116458.9 | G33: =+Flujos!Q33 -> 178876185.9 | H33: =+Flujos!R33 -> 621992644.8 | J33: 2024-10-16 | K33: =IF(J33<CALCULADORA!$C$26,0,IF(CALCULADORA!$C$30>'TIR de Tenencia'!J33,VLOOKUP(J33,A:H,7),CALCULADORA!$C$36)) -> 205350666.2 | L33: =IF(K33=K32, " ", IF(J33 > CALCULADORA!$C$30, CALCULADORA!$C$30, J33)) -> 2024-10-16 | M33: 205350666.2 | O33: 16 | P33: 11 | Q33: 2024
A34: =+Flujos!A34 -> 2025-08-16 | B34: =+Flujos!L34 -> 72023272.33 | C34: =+Flujos!M34 -> 1143680.483 | D34: =+Flujos!N34 -> 459415.2967 | E34: =+Flujos!O34 -> 1603095.78 | F34: =+Flujos!P34 -> 440955976.5 | G34: =+Flujos!Q34 -> 177131571.1 | H34: =+Flujos!R34 -> 618087547.6 | J34: 2024-11-16 | K34: =IF(J34<CALCULADORA!$C$26,0,IF(CALCULADORA!$C$30>'TIR de Tenencia'!J34,VLOOKUP(J34,A:H,7),CALCULADORA!$C$36)) -> 201720808.2 | L34: =IF(K34=K33, " ", IF(J34 > CALCULADORA!$C$30, CALCULADORA!$C$30, J34)) -> 2024-11-16 | M34: 201720808.2 | O34: 16 | P34: 12 | Q34: 2024
A35: =+Flujos!A35 -> 2025-09-16 | B35: =+Flujos!L35 -> 70880692.65 | C35: =+Flujos!M35 -> 1142579.674 | D35: =+Flujos!N35 -> 452234.1269 | E35: =+Flujos!O35 -> 1594813.801 | F35: =+Flujos!P35 -> 441804107.2 | G35: =+Flujos!Q35 -> 174866487.8 | H35: =+Flujos!R35 -> 616670595 | J35: =+DATE(Q34,P34,O34) -> 2024-12-16 | K35: =IF(J35<CALCULADORA!$C$26,0,IF(CALCULADORA!$C$30>'TIR de Tenencia'!J35,VLOOKUP(J35,A:H,7),CALCULADORA!$C$36)) -> 198184681.5 | L35: =IF(K35=K34, " ", IF(J35 > CALCULADORA!$C$30, CALCULADORA!$C$30, J35)) -> 2024-12-16 | M35: 198184681.5 | O35: 16 | P35: 1 | Q35: 2025
A36: =+Flujos!A36 -> 2025-10-16 | B36: =+Flujos!L36 -> 69741984.9 | C36: =+Flujos!M36 -> 1138707.751 | D36: =+Flujos!N36 -> 445059.8692 | E36: =+Flujos!O36 -> 1583767.62 | F36: =+Flujos!P36 -> 440306940.9 | G36: =+Flujos!Q36 -> 172092399.8 | H36: =+Flujos!R36 -> 612399340.8 | J36: 2025-01-16 | K36: =IF(J36<CALCULADORA!$C$26,0,IF(CALCULADORA!$C$30>'TIR de Tenencia'!J36,VLOOKUP(J36,A:H,7),CALCULADORA!$C$36)) -> 195553227.9 | L36: =IF(K36=K35, " ", IF(J36 > CALCULADORA!$C$30, CALCULADORA!$C$30, J36)) -> 2025-01-16 | M36: 195553227.9 | O36: 16 | P36: 2 | Q36: 2025
A37: =+Flujos!A37 -> 2025-11-16 | B37: =+Flujos!L37 -> 68608088.42 | C37: =+Flujos!M37 -> 1133896.485 | D37: =+Flujos!N37 -> 437909.9232 | E37: =+Flujos!O37 -> 1571806.408 | F37: =+Flujos!P37 -> 438531417.2 | G37: =+Flujos!Q37 -> 169360485.5 | H37: =+Flujos!R37 -> 607891902.7 | J37: 2025-02-16 | K37: =IF(J37<CALCULADORA!$C$26,0,IF(CALCULADORA!$C$30>'TIR de Tenencia'!J37,VLOOKUP(J37,A:H,7),CALCULADORA!$C$36)) -> 28992114893 | L37: =IF(K37=K36, " ", IF(J37 > CALCULADORA!$C$30, CALCULADORA!$C$30, J37)) -> 2025-02-01 | M37: 28992114893 | O37: 16 | P37: 3 | Q37: 2025
A38: =+Flujos!A38 -> 2025-12-16 | B38: =+Flujos!L38 -> 67585259.08 | C38: =+Flujos!M38 -> 1022829.336 | D38: =+Flujos!N38 -> 430790.1872 | E38: =+Flujos!O38 -> 1453619.523 | F38: =+Flujos!P38 -> 396133504.3 | G38: =+Flujos!Q38 -> 166841544.8 | H38: =+Flujos!R38 -> 562975049.2 | J38: 2025-03-16 | K38: =IF(J38<CALCULADORA!$C$26,0,IF(CALCULADORA!$C$30>'TIR de Tenencia'!J38,VLOOKUP(J38,A:H,7),CALCULADORA!$C$36)) -> 28992114893 | L38: =IF(K38=K37, " ", IF(J38 > CALCULADORA!$C$30, CALCULADORA!$C$30, J38)) ->  | O38: 16 | P38: 4 | Q38: 2025
A39: =+Flujos!A39 -> 2026-01-16 | B39: =+Flujos!L39 -> 66465102.52 | C39: =+Flujos!M39 -> 1120156.556 | D39: =+Flujos!N39 -> 424367.8418 | E39: =+Flujos!O39 -> 1544524.398 | F39: =+Flujos!P39 -> 423664380.5 | G39: =+Flujos!Q39 -> 160503938.3 | H39: =+Flujos!R39 -> 584168318.9 | J39: 2025-04-16 | K39: =IF(J39<CALCULADORA!$C$26,0,IF(CALCULADORA!$C$30>'TIR de Tenencia'!J39,VLOOKUP(J39,A:H,7),CALCULADORA!$C$36)) -> 28992114893 | L39: =IF(K39=K38, " ", IF(J39 > CALCULADORA!$C$30, CALCULADORA!$C$30, J39)) ->  | O39: 16 | P39: 5 | Q39: 2025
A40: =+Flujos!A40 -> 2026-02-16 | B40: =+Flujos!L40 -> 65341682.82 | C40: =+Flujos!M40 -> 1123419.707 | D40: =+Flujos!N40 -> 417334.3787 | E40: =+Flujos!O40 -> 1540754.086 | F40: =+Flujos!P40 -> 424898566 | G40: =+Flujos!Q40 -> 157843749.7 | H40: =+Flujos!R40 -> 582742315.7 | J40: 2025-05-16 | K40: =IF(J40<CALCULADORA!$C$26,0,IF(CALCULADORA!$C$30>'TIR de Tenencia'!J40,VLOOKUP(J40,A:H,7),CALCULADORA!$C$36)) -> 28992114893 | L40: =IF(K40=K39, " ", IF(J40 > CALCULADORA!$C$30, CALCULADORA!$C$30, J40)) ->  | O40: 16 | P40: 6 | Q40: 2025
A41: =+Flujos!A41 -> 2026-03-16 | B41: =+Flujos!L41 -> 64231107.33 | C41: =+Flujos!M41 -> 1110575.482 | D41: =+Flujos!N41 -> 410280.4264 | E41: =+Flujos!O41 -> 1520855.908 | F41: =+Flujos!P41 -> 420040637.1 | G41: =+Flujos!Q41 -> 155175811.6 | H41: =+Flujos!R41 -> 575216448.7 | J41: 2025-06-16 | K41: =IF(J41<CALCULADORA!$C$26,0,IF(CALCULADORA!$C$30>'TIR de Tenencia'!J41,VLOOKUP(J41,A:H,7),CALCULADORA!$C$36)) -> 28992114893 | L41: =IF(K41=K40, " ", IF(J41 > CALCULADORA!$C$30, CALCULADORA!$C$30, J41)) ->  | O41: 16 | P41: 7 | Q41: 2025
A42: =+Flujos!A42 -> 2026-04-16 | B42: =+Flujos!L42 -> 63119665.61 | C42: =+Flujos!M42 -> 1111441.728 | D42: =+Flujos!N42 -> 403307.123 | E42: =+Flujos!O42 -> 1514748.851 | F42: =+Flujos!P42 -> 420368267.8 | G42: =+Flujos!Q42 -> 152538376.4 | H42: =+Flujos!R42 -> 572906644.2 | J42: 2025-07-16 | K42: =IF(J42<CALCULADORA!$C$26,0,IF(CALCULADORA!$C$30>'TIR de Tenencia'!J42,VLOOKUP(J42,A:H,7),CALCULADORA!$C$36)) -> 28992114893 | L42: =IF(K42=K41, " ", IF(J42 > CALCULADORA!$C$30, CALCULADORA!$C$30, J42)) ->  | M42: =+IF(K42=K41," ",K42) ->  | O42: 16 | P42: 8 | Q42: 2025
A43: =+Flujos!A43 -> 2026-05-16 | B43: =+Flujos!L43 -> 62013291.53 | C43: =+Flujos!M43 -> 1106374.079 | D43: =+Flujos!N43 -> 396328.3803 | E43: =+Flujos!O43 -> 1502702.46 | F43: =+Flujos!P43 -> 418451587.2 | G43: =+Flujos!Q43 -> 149898884.1 | H43: =+Flujos!R43 -> 568350471.3 | J43: 2025-08-16 | K43: =IF(J43<CALCULADORA!$C$26,0,IF(CALCULADORA!$C$30>'TIR de Tenencia'!J43,VLOOKUP(J43,A:H,7),CALCULADORA!$C$36)) -> 28992114893 | L43: =IF(K43=K42, " ", IF(J43 > CALCULADORA!$C$30, CALCULADORA!$C$30, J43)) ->  | O43: 16 | P43: 9 | Q43: 2025
A44: =+Flujos!A44 -> 2026-06-16 | B44: =+Flujos!L44 -> 60913592.13 | C44: =+Flujos!M44 -> 1099699.402 | D44: =+Flujos!N44 -> 389381.4575 | E44: =+Flujos!O44 -> 1489080.86 | F44: =+Flujos!P44 -> 415927098.3 | G44: =+Flujos!Q44 -> 147271426.5 | H44: =+Flujos!R44 -> 563198524.8 | J44: 2025-09-16 | K44: =IF(J44<CALCULADORA!$C$26,0,IF(CALCULADORA!$C$30>'TIR de Tenencia'!J44,VLOOKUP(J44,A:H,7),CALCULADORA!$C$36)) -> 28992114893 | L44: =IF(K44=K43, " ", IF(J44 > CALCULADORA!$C$30, CALCULADORA!$C$30, J44)) ->  | O44: 16 | P44: 10 | Q44: 2025
A45: =+Flujos!A45 -> 2026-07-16 | B45: =+Flujos!L45 -> 59816378 | C45: =+Flujos!M45 -> 1097214.127 | D45: =+Flujos!N45 -> 382476.445 | E45: =+Flujos!O45 -> 1479690.572 | F45: =+Flujos!P45 -> 414987120.2 | G45: =+Flujos!Q45 -> 144659820.3 | H45: =+Flujos!R45 -> 559646940.5 | J45: 2025-10-16 | K45: =IF(J45<CALCULADORA!$C$26,0,IF(CALCULADORA!$C$30>'TIR de Tenencia'!J45,VLOOKUP(J45,A:H,7),CALCULADORA!$C$36)) -> 28992114893 | L45: =IF(K45=K44, " ", IF(J45 > CALCULADORA!$C$30, CALCULADORA!$C$30, J45)) ->  | O45: 16 | P45: 11 | Q45: 2025
A46: =+Flujos!A46 -> 2026-08-16 | B46: =+Flujos!L46 -> 58718506 | C46: =+Flujos!M46 -> 1097871.994 | D46: =+Flujos!N46 -> 375587.0375 | E46: =+Flujos!O46 -> 1473459.031 | F46: =+Flujos!P46 -> 415235937.9 | G46: =+Flujos!Q46 -> 142054116.2 | H46: =+Flujos!R46 -> 557290054.1 | J46: 2025-11-16 | K46: =IF(J46<CALCULADORA!$C$26,0,IF(CALCULADORA!$C$30>'TIR de Tenencia'!J46,VLOOKUP(J46,A:H,7),CALCULADORA!$C$36)) -> 28992114893 | L46: =IF(K46=K45, " ", IF(J46 > CALCULADORA!$C$30, CALCULADORA!$C$30, J46)) ->  | O46: 16 | P46: 12 | Q46: 2025
A47: =+Flujos!A47 -> 2026-09-16 | B47: =+Flujos!L47 -> 57629019.36 | C47: =+Flujos!M47 -> 1089486.645 | D47: =+Flujos!N47 -> 368693.4992 | E47: =+Flujos!O47 -> 1458180.144 | F47: =+Flujos!P47 -> 412064440.3 | G47: =+Flujos!Q47 -> 139446849.7 | H47: =+Flujos!R47 -> 551511290 | J47: 2025-12-16 | K47: =IF(J47<CALCULADORA!$C$26,0,IF(CALCULADORA!$C$30>'TIR de Tenencia'!J47,VLOOKUP(J47,A:H,7),CALCULADORA!$C$36)) -> 28992114893 | L47: =IF(K47=K46, " ", IF(J47 > CALCULADORA!$C$30, CALCULADORA!$C$30, J47)) ->  | O47: 16 | P47: 1 | Q47: 2026
A48: =+Flujos!A48 -> 2026-10-16 | B48: =+Flujos!L48 -> 56546146.3 | C48: =+Flujos!M48 -> 1082873.063 | D48: =+Flujos!N48 -> 361852.6126 | E48: =+Flujos!O48 -> 1444725.676 | F48: =+Flujos!P48 -> 409563058.7 | G48: =+Flujos!Q48 -> 136859497.1 | H48: =+Flujos!R48 -> 546422555.8 | J48: 2026-01-16 | K48: =IF(J48<CALCULADORA!$C$26,0,IF(CALCULADORA!$C$30>'TIR de Tenencia'!J48,VLOOKUP(J48,A:H,7),CALCULADORA!$C$36)) -> 28992114893 | L48: =IF(K48=K47, " ", IF(J48 > CALCULADORA!$C$30, CALCULADORA!$C$30, J48)) ->  | O48: 16 | P48: 2 | Q48: 2026
A49: =+Flujos!A49 -> 2026-11-16 | B49: =+Flujos!L49 -> 55468425.98 | C49: =+Flujos!M49 -> 1077720.317 | D49: =+Flujos!N49 -> 355053.2526 | E49: =+Flujos!O49 -> 1432773.57 | F49: =+Flujos!P49 -> 407614192.9 | G49: =+Flujos!Q49 -> 134287850.6 | H49: =+Flujos!R49 -> 541902043.5 | J49: 2026-02-16 | K49: =IF(J49<CALCULADORA!$C$26,0,IF(CALCULADORA!$C$30>'TIR de Tenencia'!J49,VLOOKUP(J49,A:H,7),CALCULADORA!$C$36)) -> 28992114893 | L49: =IF(K49=K48, " ", IF(J49 > CALCULADORA!$C$30, CALCULADORA!$C$30, J49)) ->  | O49: 16 | P49: 3 | Q49: 2026
A50: =+Flujos!A50 -> 2026-12-16 | B50: =+Flujos!L50 -> 54510938.22 | C50: =+Flujos!M50 -> 957487.761 | D50: =+Flujos!N50 -> 348286.2467 | E50: =+Flujos!O50 -> 1305774.008 | F50: =+Flujos!P50 -> 362139967.7 | G50: =+Flujos!Q50 -> 131728441.1 | H50: =+Flujos!R50 -> 493868408.9 | J50: 2026-03-16 | K50: =IF(J50<CALCULADORA!$C$26,0,IF(CALCULADORA!$C$30>'TIR de Tenencia'!J50,VLOOKUP(J50,A:H,7),CALCULADORA!$C$36)) -> 28992114893 | L50: =IF(K50=K49, " ", IF(J50 > CALCULADORA!$C$30, CALCULADORA!$C$30, J50)) ->  | O50: 16 | P50: 4 | Q50: 2026
A51: =+Flujos!A51 -> 2027-01-16 | B51: =+Flujos!L51 -> 53448413.21 | C51: =+Flujos!M51 -> 1062525.008 | D51: =+Flujos!N51 -> 342274.1811 | E51: =+Flujos!O51 -> 1404799.189 | F51: =+Flujos!P51 -> 401867039.8 | G51: =+Flujos!Q51 -> 129454564.3 | H51: =+Flujos!R51 -> 531321604 | J51: 2026-04-16 | K51: =IF(J51<CALCULADORA!$C$26,0,IF(CALCULADORA!$C$30>'TIR de Tenencia'!J51,VLOOKUP(J51,A:H,7),CALCULADORA!$C$36)) -> 28992114893 | L51: =IF(K51=K50, " ", IF(J51 > CALCULADORA!$C$30, CALCULADORA!$C$30, J51)) ->  | O51: 16 | P51: 5 | Q51: 2026
A52: =+Flujos!A52 -> 2027-02-16 | B52: =+Flujos!L52 -> 52399705.59 | C52: =+Flujos!M52 -> 1048707.619 | D52: =+Flujos!N52 -> 335602.5865 | E52: =+Flujos!O52 -> 1384310.206 | F52: =+Flujos!P52 -> 396641042.2 | G52: =+Flujos!Q52 -> 126931241.1 | H52: =+Flujos!R52 -> 523572283.3 | J52: 2026-05-16 | K52: =IF(J52<CALCULADORA!$C$26,0,IF(CALCULADORA!$C$30>'TIR de Tenencia'!J52,VLOOKUP(J52,A:H,7),CALCULADORA!$C$36)) -> 28992114893 | L52: =IF(K52=K51, " ", IF(J52 > CALCULADORA!$C$30, CALCULADORA!$C$30, J52)) ->  | O52: 16 | P52: 6 | Q52: 2026
A53: =+Flujos!A53 -> 2027-03-16 | B53: =+Flujos!L53 -> 51365144.84 | C53: =+Flujos!M53 -> 1034560.752 | D53: =+Flujos!N53 -> 329017.7514 | E53: =+Flujos!O53 -> 1363578.503 | F53: =+Flujos!P53 -> 391290429.5 | G53: =+Flujos!Q53 -> 124440732 | H53: =+Flujos!R53 -> 515731161.5 | J53: 2026-06-16 | K53: =IF(J53<CALCULADORA!$C$26,0,IF(CALCULADORA!$C$30>'TIR de Tenencia'!J53,VLOOKUP(J53,A:H,7),CALCULADORA!$C$36)) -> 28992114893 | L53: =IF(K53=K52, " ", IF(J53 > CALCULADORA!$C$30, CALCULADORA!$C$30, J53)) ->  | O53: 16 | P53: 7 | Q53: 2026
A54: =+Flujos!A54 -> 2027-04-16 | B54: =+Flujos!L54 -> 50333898.52 | C54: =+Flujos!M54 -> 1031246.324 | D54: =+Flujos!N54 -> 322521.7444 | E54: =+Flujos!O54 -> 1353768.068 | F54: =+Flujos!P54 -> 390036850.3 | G54: =+Flujos!Q54 -> 121983819.4 | H54: =+Flujos!R54 -> 512020669.7 | J54: 2026-07-16 | K54: =IF(J54<CALCULADORA!$C$26,0,IF(CALCULADORA!$C$30>'TIR de Tenencia'!J54,VLOOKUP(J54,A:H,7),CALCULADORA!$C$36)) -> 28992114893 | L54: =IF(K54=K53, " ", IF(J54 > CALCULADORA!$C$30, CALCULADORA!$C$30, J54)) ->  | O54: 16 | P54: 8 | Q54: 2026
A55: =+Flujos!A55 -> 2027-05-16 | B55: =+Flujos!L55 -> 49313753.02 | C55: =+Flujos!M55 -> 1020145.5 | D55: =+Flujos!N55 -> 316046.5488 | E55: =+Flujos!O55 -> 1336192.049 | F55: =+Flujos!P55 -> 385838309 | G55: =+Flujos!Q55 -> 119534778 | H55: =+Flujos!R55 -> 505373087 | J55: 2026-08-16 | K55: =IF(J55<CALCULADORA!$C$26,0,IF(CALCULADORA!$C$30>'TIR de Tenencia'!J55,VLOOKUP(J55,A:H,7),CALCULADORA!$C$36)) -> 28992114893 | L55: =IF(K55=K54, " ", IF(J55 > CALCULADORA!$C$30, CALCULADORA!$C$30, J55)) ->  | O55: 16 | P55: 9 | Q55: 2026
A56: =+Flujos!A56 -> 2027-06-16 | B56: =+Flujos!L56 -> 48299506.5 | C56: =+Flujos!M56 -> 1014246.517 | D56: =+Flujos!N56 -> 309641.0552 | E56: =+Flujos!O56 -> 1323887.572 | F56: =+Flujos!P56 -> 383607202.1 | G56: =+Flujos!Q56 -> 117112099.3 | H56: =+Flujos!R56 -> 500719301.4 | J56: 2026-09-16 | K56: =IF(J56<CALCULADORA!$C$26,0,IF(CALCULADORA!$C$30>'TIR de Tenencia'!J56,VLOOKUP(J56,A:H,7),CALCULADORA!$C$36)) -> 28992114893 | L56: =IF(K56=K55, " ", IF(J56 > CALCULADORA!$C$30, CALCULADORA!$C$30, J56)) ->  | O56: 16 | P56: 10 | Q56: 2026
A57: =+Flujos!A57 -> 2027-07-16 | B57: =+Flujos!L57 -> 47298311.49 | C57: =+Flujos!M57 -> 1001195.004 | D57: =+Flujos!N57 -> 303272.6013 | E57: =+Flujos!O57 -> 1304467.605 | F57: =+Flujos!P57 -> 378670872.9 | G57: =+Flujos!Q57 -> 114703429.7 | H57: =+Flujos!R57 -> 493374302.6 | J57: 2026-10-16 | K57: =IF(J57<CALCULADORA!$C$26,0,IF(CALCULADORA!$C$30>'TIR de Tenencia'!J57,VLOOKUP(J57,A:H,7),CALCULADORA!$C$36)) -> 28992114893 | L57: =IF(K57=K56, " ", IF(J57 > CALCULADORA!$C$30, CALCULADORA!$C$30, J57)) ->  | O57: 16 | P57: 11 | Q57: 2026
A58: =+Flujos!A58 -> 2027-08-16 | B58: =+Flujos!L58 -> 46302189.59 | C58: =+Flujos!M58 -> 996121.8999 | D58: =+Flujos!N58 -> 296986.0979 | E58: =+Flujos!O58 -> 1293107.998 | F58: =+Flujos!P58 -> 376752129.3 | G58: =+Flujos!Q58 -> 112325755.3 | H58: =+Flujos!R58 -> 489077884.5 | J58: 2026-11-16 | K58: =IF(J58<CALCULADORA!$C$26,0,IF(CALCULADORA!$C$30>'TIR de Tenencia'!J58,VLOOKUP(J58,A:H,7),CALCULADORA!$C$36)) -> 28992114893 | L58: =IF(K58=K57, " ", IF(J58 > CALCULADORA!$C$30, CALCULADORA!$C$30, J58)) ->  | O58: 16 | P58: 12 | Q58: 2026
A59: =+Flujos!A59 -> 2027-09-16 | B59: =+Flujos!L59 -> 45319067.93 | C59: =+Flujos!M59 -> 983121.6627 | D59: =+Flujos!N59 -> 290731.4485 | E59: =+Flujos!O59 -> 1273853.111 | F59: =+Flujos!P59 -> 371835193.8 | G59: =+Flujos!Q59 -> 109960128.6 | H59: =+Flujos!R59 -> 481795322.5 | J59: 2026-12-16 | K59: =IF(J59<CALCULADORA!$C$26,0,IF(CALCULADORA!$C$30>'TIR de Tenencia'!J59,VLOOKUP(J59,A:H,7),CALCULADORA!$C$36)) -> 28992114893 | L59: =IF(K59=K58, " ", IF(J59 > CALCULADORA!$C$30, CALCULADORA!$C$30, J59)) ->  | O59: 16 | P59: 1 | Q59: 2027
A60: =+Flujos!A60 -> 2027-10-16 | B60: =+Flujos!L60 -> 44343720.66 | C60: =+Flujos!M60 -> 975347.2678 | D60: =+Flujos!N60 -> 284558.4275 | E60: =+Flujos!O60 -> 1259905.695 | F60: =+Flujos!P60 -> 368894770.7 | G60: =+Flujos!Q60 -> 107625375.5 | H60: =+Flujos!R60 -> 476520146.2 | J60: 2027-01-16 | K60: =IF(J60<CALCULADORA!$C$26,0,IF(CALCULADORA!$C$30>'TIR de Tenencia'!J60,VLOOKUP(J60,A:H,7),CALCULADORA!$C$36)) -> 28992114893 | L60: =IF(K60=K59, " ", IF(J60 > CALCULADORA!$C$30, CALCULADORA!$C$30, J60)) ->  | O60: 16 | P60: 2 | Q60: 2027
A61: =+Flujos!A61 -> 2027-11-16 | B61: =+Flujos!L61 -> 43380974.33 | C61: =+Flujos!M61 -> 962746.333 | D61: =+Flujos!N61 -> 278434.2221 | E61: =+Flujos!O61 -> 1241180.555 | F61: =+Flujos!P61 -> 364128859 | G61: =+Flujos!Q61 -> 105309085.2 | H61: =+Flujos!R61 -> 469437944.2 | J61: 2027-02-16 | K61: =IF(J61<CALCULADORA!$C$26,0,IF(CALCULADORA!$C$30>'TIR de Tenencia'!J61,VLOOKUP(J61,A:H,7),CALCULADORA!$C$36)) -> 28992114893 | L61: =IF(K61=K60, " ", IF(J61 > CALCULADORA!$C$30, CALCULADORA!$C$30, J61)) ->  | O61: 16 | P61: 3 | Q61: 2027
A62: =+Flujos!A62 -> 2027-12-16 | B62: =+Flujos!L62 -> 42544272.26 | C62: =+Flujos!M62 -> 836702.0729 | D62: =+Flujos!N62 -> 272389.1378 | E62: =+Flujos!O62 -> 1109091.211 | F62: =+Flujos!P62 -> 316456537.7 | G62: =+Flujos!Q62 -> 103022720.1 | H62: =+Flujos!R62 -> 419479257.7 | J62: 2027-03-16 | K62: =IF(J62<CALCULADORA!$C$26,0,IF(CALCULADORA!$C$30>'TIR de Tenencia'!J62,VLOOKUP(J62,A:H,7),CALCULADORA!$C$36)) -> 28992114893 | L62: =IF(K62=K61, " ", IF(J62 > CALCULADORA!$C$30, CALCULADORA!$C$30, J62)) ->  | O62: 16 | P62: 4 | Q62: 2027
A63: =+Flujos!A63 -> 2028-01-16 | B63: =+Flujos!L63 -> 41610676.09 | C63: =+Flujos!M63 -> 933596.1704 | D63: =+Flujos!N63 -> 267135.4855 | E63: =+Flujos!O63 -> 1200731.656 | F63: =+Flujos!P63 -> 353103716.6 | G63: =+Flujos!Q63 -> 101035689.5 | H63: =+Flujos!R63 -> 454139406.1 | J63: 2027-04-16 | K63: =IF(J63<CALCULADORA!$C$26,0,IF(CALCULADORA!$C$30>'TIR de Tenencia'!J63,VLOOKUP(J63,A:H,7),CALCULADORA!$C$36)) -> 28992114893 | L63: =IF(K63=K62, " ", IF(J63 > CALCULADORA!$C$30, CALCULADORA!$C$30, J63)) ->  | O63: 16 | P63: 5 | Q63: 2027
A64: =+Flujos!A64 -> 2028-02-16 | B64: =+Flujos!L64 -> 40694559.76 | C64: =+Flujos!M64 -> 916116.3281 | D64: =+Flujos!N64 -> 261273.4352 | E64: =+Flujos!O64 -> 1177389.763 | F64: =+Flujos!P64 -> 346492509.9 | G64: =+Flujos!Q64 -> 98818551.24 | H64: =+Flujos!R64 -> 445311061.1 | J64: 2027-05-16 | K64: =IF(J64<CALCULADORA!$C$26,0,IF(CALCULADORA!$C$30>'TIR de Tenencia'!J64,VLOOKUP(J64,A:H,7),CALCULADORA!$C$36)) -> 28992114893 | L64: =IF(K64=K63, " ", IF(J64 > CALCULADORA!$C$30, CALCULADORA!$C$30, J64)) ->  | O64: 16 | P64: 6 | Q64: 2027
A65: =+Flujos!A65 -> 2028-03-16 | B65: =+Flujos!L65 -> 39788704.19 | C65: =+Flujos!M65 -> 905855.5669 | D65: =+Flujos!N65 -> 255521.1407 | E65: =+Flujos!O65 -> 1161376.708 | F65: =+Flujos!P65 -> 342611696.1 | G65: =+Flujos!Q65 -> 96642924.77 | H65: =+Flujos!R65 -> 439254620.8 | J65: 2027-06-16 | K65: =IF(J65<CALCULADORA!$C$26,0,IF(CALCULADORA!$C$30>'TIR de Tenencia'!J65,VLOOKUP(J65,A:H,7),CALCULADORA!$C$36)) -> 28992114893 | L65: =IF(K65=K64, " ", IF(J65 > CALCULADORA!$C$30, CALCULADORA!$C$30, J65)) ->  | O65: 16 | P65: 7 | Q65: 2027
A66: =+Flujos!A66 -> 2028-04-16 | B66: =+Flujos!L66 -> 38892010.76 | C66: =+Flujos!M66 -> 896693.4326 | D66: =+Flujos!N66 -> 249833.2736 | E66: =+Flujos!O66 -> 1146526.706 | F66: =+Flujos!P66 -> 339146403.7 | G66: =+Flujos!Q66 -> 94491665.93 | H66: =+Flujos!R66 -> 433638069.7 | J66: 2027-07-16 | K66: =IF(J66<CALCULADORA!$C$26,0,IF(CALCULADORA!$C$30>'TIR de Tenencia'!J66,VLOOKUP(J66,A:H,7),CALCULADORA!$C$36)) -> 28992114893 | L66: =IF(K66=K65, " ", IF(J66 > CALCULADORA!$C$30, CALCULADORA!$C$30, J66)) ->  | O66: 16 | P66: 8 | Q66: 2027
A67: =+Flujos!A67 -> 2028-05-16 | B67: =+Flujos!L67 -> 38007749.16 | C67: =+Flujos!M67 -> 884261.6013 | D67: =+Flujos!N67 -> 244202.9356 | E67: =+Flujos!O67 -> 1128464.537 | F67: =+Flujos!P67 -> 334444450.1 | G67: =+Flujos!Q67 -> 92362165.67 | H67: =+Flujos!R67 -> 426806615.8 | J67: =+DATE(Q66,P66,O66) -> 2027-08-16 | K67: =IF(J67<CALCULADORA!$C$26,0,IF(CALCULADORA!$C$30>'TIR de Tenencia'!J67,VLOOKUP(J67,A:H,7),CALCULADORA!$C$36)) -> 28992114893 | L67: =IF(K67=K66, " ", IF(J67 > CALCULADORA!$C$30, CALCULADORA!$C$30, J67)) ->  | O67: =+O66 -> 16 | P67: =+IF(P66=12,1,P66+1) -> 9 | Q67: 2027
A68: =+Flujos!A68 -> 2028-06-16 | B68: =+Flujos!L68 -> 37140253.89 | C68: =+Flujos!M68 -> 867495.2665 | D68: =+Flujos!N68 -> 238650.657 | E68: =+Flujos!O68 -> 1106145.923 | F68: =+Flujos!P68 -> 328103105.5 | G68: =+Flujos!Q68 -> 90262188.96 | H68: =+Flujos!R68 -> 418365294.4 | J68: 2027-09-16 | K68: =IF(J68<CALCULADORA!$C$26,0,IF(CALCULADORA!$C$30>'TIR de Tenencia'!J68,VLOOKUP(J68,A:H,7),CALCULADORA!$C$36)) -> 28992114893 | L68: =IF(K68=K67, " ", IF(J68 > CALCULADORA!$C$30, CALCULADORA!$C$30, J68)) ->  | M68: =+IF(K68=K67," ",K68) ->  | O68: 16 | P68: 10 | Q68: 2027
A69: =+Flujos!A69 -> 2028-07-16 | B69: =+Flujos!L69 -> 36286259.63 | C69: =+Flujos!M69 -> 853994.2649 | D69: =+Flujos!N69 -> 233203.6542 | E69: =+Flujos!O69 -> 1087197.919 | F69: =+Flujos!P69 -> 322996771.5 | G69: =+Flujos!Q69 -> 88202029.56 | H69: =+Flujos!R69 -> 411198801 | J69: 2027-10-16 | K69: =IF(J69<CALCULADORA!$C$26,0,IF(CALCULADORA!$C$30>'TIR de Tenencia'!J69,VLOOKUP(J69,A:H,7),CALCULADORA!$C$36)) -> 28992114893 | L69: =IF(K69=K68, " ", IF(J69 > CALCULADORA!$C$30, CALCULADORA!$C$30, J69)) ->  | O69: 16 | P69: 11 | Q69: 2027
A70: =+Flujos!A70 -> 2028-08-16 | B70: =+Flujos!L70 -> 35441645.7 | C70: =+Flujos!M70 -> 844613.9326 | D70: =+Flujos!N70 -> 227841.4242 | E70: =+Flujos!O70 -> 1072455.357 | F70: =+Flujos!P70 -> 319448952.5 | G70: =+Flujos!Q70 -> 86173932.84 | H70: =+Flujos!R70 -> 405622885.4 | J70: 2027-11-16 | K70: =IF(J70<CALCULADORA!$C$26,0,IF(CALCULADORA!$C$30>'TIR de Tenencia'!J70,VLOOKUP(J70,A:H,7),CALCULADORA!$C$36)) -> 28992114893 | L70: =IF(K70=K69, " ", IF(J70 > CALCULADORA!$C$30, CALCULADORA!$C$30, J70)) ->  | O70: 16 | P70: 12 | Q70: 2027
A71: =+Flujos!A71 -> 2028-09-16 | B71: =+Flujos!L71 -> 34606413.19 | C71: =+Flujos!M71 -> 835232.5094 | D71: =+Flujos!N71 -> 222538.0933 | E71: =+Flujos!O71 -> 1057770.603 | F71: =+Flujos!P71 -> 315900720.9 | G71: =+Flujos!Q71 -> 84168112.86 | H71: =+Flujos!R71 -> 400068833.8 | J71: 2027-12-16 | K71: =IF(J71<CALCULADORA!$C$26,0,IF(CALCULADORA!$C$30>'TIR de Tenencia'!J71,VLOOKUP(J71,A:H,7),CALCULADORA!$C$36)) -> 28992114893 | L71: =IF(K71=K70, " ", IF(J71 > CALCULADORA!$C$30, CALCULADORA!$C$30, J71)) ->  | O71: 16 | P71: 1 | Q71: 2028
A72: =+Flujos!A72 -> 2028-10-16 | B72: =+Flujos!L72 -> 33783295.03 | C72: =+Flujos!M72 -> 823118.1561 | D72: =+Flujos!N72 -> 217293.6684 | E72: =+Flujos!O72 -> 1040411.824 | F72: =+Flujos!P72 -> 311318843.6 | G72: =+Flujos!Q72 -> 82184572.24 | H72: =+Flujos!R72 -> 393503415.8 | J72: 2028-01-16 | K72: =IF(J72<CALCULADORA!$C$26,0,IF(CALCULADORA!$C$30>'TIR de Tenencia'!J72,VLOOKUP(J72,A:H,7),CALCULADORA!$C$36)) -> 28992114893 | L72: =IF(K72=K71, " ", IF(J72 > CALCULADORA!$C$30, CALCULADORA!$C$30, J72)) ->  | O72: 16 | P72: 2 | Q72: 2028
A73: =+Flujos!A73 -> 2028-11-16 | B73: =+Flujos!L73 -> 32971696.64 | C73: =+Flujos!M73 -> 811598.3924 | D73: =+Flujos!N73 -> 212125.3095 | E73: =+Flujos!O73 -> 1023723.702 | F73: =+Flujos!P73 -> 306961851.2 | G73: =+Flujos!Q73 -> 80229801.22 | H73: =+Flujos!R73 -> 387191652.4 | J73: 2028-02-16 | K73: =IF(J73<CALCULADORA!$C$26,0,IF(CALCULADORA!$C$30>'TIR de Tenencia'!J73,VLOOKUP(J73,A:H,7),CALCULADORA!$C$36)) -> 28992114893 | L73: =IF(K73=K72, " ", IF(J73 > CALCULADORA!$C$30, CALCULADORA!$C$30, J73)) ->  | O73: 16 | P73: 3 | Q73: 2028
A74: =+Flujos!A74 -> 2028-12-16 | B74: =+Flujos!L74 -> 32290048.25 | C74: =+Flujos!M74 -> 681648.3881 | D74: =+Flujos!N74 -> 207029.2832 | E74: =+Flujos!O74 -> 888677.6712 | F74: =+Flujos!P74 -> 257812303.5 | G74: =+Flujos!Q74 -> 78302387.75 | H74: =+Flujos!R74 -> 336114691.3 | J74: 2028-03-16 | K74: =IF(J74<CALCULADORA!$C$26,0,IF(CALCULADORA!$C$30>'TIR de Tenencia'!J74,VLOOKUP(J74,A:H,7),CALCULADORA!$C$36)) -> 28992114893 | L74: =IF(K74=K73, " ", IF(J74 > CALCULADORA!$C$30, CALCULADORA!$C$30, J74)) ->  | O74: 16 | P74: 4 | Q74: 2028
A75: =+Flujos!A75 -> 2029-01-16 | B75: =+Flujos!L75 -> 31505659.15 | C75: =+Flujos!M75 -> 784389.1011 | D75: =+Flujos!N75 -> 202749.213 | E75: =+Flujos!O75 -> 987138.314 | F75: =+Flujos!P75 -> 296670783 | G75: =+Flujos!Q75 -> 76683584.3 | H75: =+Flujos!R75 -> 373354367.3 | J75: 2028-04-16 | K75: =IF(J75<CALCULADORA!$C$26,0,IF(CALCULADORA!$C$30>'TIR de Tenencia'!J75,VLOOKUP(J75,A:H,7),CALCULADORA!$C$36)) -> 28992114893 | L75: =IF(K75=K74, " ", IF(J75 > CALCULADORA!$C$30, CALCULADORA!$C$30, J75)) ->  | O75: 16 | P75: 5 | Q75: 2028
A76: =+Flujos!A76 -> 2029-02-16 | B76: =+Flujos!L76 -> 30731646.45 | C76: =+Flujos!M76 -> 774012.6949 | D76: =+Flujos!N76 -> 197824.0338 | E76: =+Flujos!O76 -> 971836.7287 | F76: =+Flujos!P76 -> 292746230 | G76: =+Flujos!Q76 -> 74820788.45 | H76: =+Flujos!R76 -> 367567018.5 | J76: 2028-05-16 | K76: =IF(J76<CALCULADORA!$C$26,0,IF(CALCULADORA!$C$30>'TIR de Tenencia'!J76,VLOOKUP(J76,A:H,7),CALCULADORA!$C$36)) -> 28992114893 | L76: =IF(K76=K75, " ", IF(J76 > CALCULADORA!$C$30, CALCULADORA!$C$30, J76)) ->  | O76: 16 | P76: 6 | Q76: =+IF(P76=1,Q75+1,Q75) -> 2028
A77: =+Flujos!A77 -> 2029-03-16 | B77: =+Flujos!L77 -> 29968743.31 | C77: =+Flujos!M77 -> 762903.1434 | D77: =+Flujos!N77 -> 192964.0081 | E77: =+Flujos!O77 -> 955867.1515 | F77: =+Flujos!P77 -> 288544387.7 | G77: =+Flujos!Q77 -> 72982634.88 | H77: =+Flujos!R77 -> 361527022.6 | J77: 2028-06-16 | K77: =IF(J77<CALCULADORA!$C$26,0,IF(CALCULADORA!$C$30>'TIR de Tenencia'!J77,VLOOKUP(J77,A:H,7),CALCULADORA!$C$36)) -> 28992114893 | L77: =IF(K77=K76, " ", IF(J77 > CALCULADORA!$C$30, CALCULADORA!$C$30, J77)) ->  | O77: 16 | P77: 7 | Q77: 2028
A78: =+Flujos!A78 -> 2029-04-16 | B78: =+Flujos!L78 -> 29213122.52 | C78: =+Flujos!M78 -> 755620.785 | D78: =+Flujos!N78 -> 188173.7392 | E78: =+Flujos!O78 -> 943794.5242 | F78: =+Flujos!P78 -> 285790062.1 | G78: =+Flujos!Q78 -> 71170864.67 | H78: =+Flujos!R78 -> 356960926.8 | J78: 2028-07-16 | K78: =IF(J78<CALCULADORA!$C$26,0,IF(CALCULADORA!$C$30>'TIR de Tenencia'!J78,VLOOKUP(J78,A:H,7),CALCULADORA!$C$36)) -> 28992114893 | L78: =IF(K78=K77, " ", IF(J78 > CALCULADORA!$C$30, CALCULADORA!$C$30, J78)) ->  | O78: 16 | P78: 8 | Q78: 2028
A79: =+Flujos!A79 -> 2029-05-16 | B79: =+Flujos!L79 -> 28465300.14 | C79: =+Flujos!M79 -> 747822.3883 | D79: =+Flujos!N79 -> 183429.1963 | E79: =+Flujos!O79 -> 931251.5846 | F79: =+Flujos!P79 -> 282840561.1 | G79: =+Flujos!Q79 -> 69376388.87 | H79: =+Flujos!R79 -> 352216949.9 | J79: 2028-08-16 | K79: =IF(J79<CALCULADORA!$C$26,0,IF(CALCULADORA!$C$30>'TIR de Tenencia'!J79,VLOOKUP(J79,A:H,7),CALCULADORA!$C$36)) -> 28992114893 | L79: =IF(K79=K78, " ", IF(J79 > CALCULADORA!$C$30, CALCULADORA!$C$30, J79)) ->  | O79: 16 | P79: 9 | Q79: 2028
A80: =+Flujos!A80 -> 2029-06-16 | B80: =+Flujos!L80 -> 27724797.2 | C80: =+Flujos!M80 -> 740502.9362 | D80: =+Flujos!N80 -> 178733.6196 | E80: =+Flujos!O80 -> 919236.5557 | F80: =+Flujos!P80 -> 280072206 | G80: =+Flujos!Q80 -> 67600432.98 | H80: =+Flujos!R80 -> 347672638.9 | J80: 2028-09-16 | K80: =IF(J80<CALCULADORA!$C$26,0,IF(CALCULADORA!$C$30>'TIR de Tenencia'!J80,VLOOKUP(J80,A:H,7),CALCULADORA!$C$36)) -> 28992114893 | L80: =IF(K80=K79, " ", IF(J80 > CALCULADORA!$C$30, CALCULADORA!$C$30, J80)) ->  | O80: 16 | P80: 10 | Q80: 2028
A81: =+Flujos!A81 -> 2029-07-16 | B81: =+Flujos!L81 -> 26992058.84 | C81: =+Flujos!M81 -> 732738.3601 | D81: =+Flujos!N81 -> 174084.0016 | E81: =+Flujos!O81 -> 906822.3617 | F81: =+Flujos!P81 -> 277135496.6 | G81: =+Flujos!Q81 -> 65841859.6 | H81: =+Flujos!R81 -> 342977356.2 | J81: 2028-10-16 | K81: =IF(J81<CALCULADORA!$C$26,0,IF(CALCULADORA!$C$30>'TIR de Tenencia'!J81,VLOOKUP(J81,A:H,7),CALCULADORA!$C$36)) -> 28992114893 | L81: =IF(K81=K80, " ", IF(J81 > CALCULADORA!$C$30, CALCULADORA!$C$30, J81)) ->  | O81: 16 | P81: 11 | Q81: 2028
A82: =+Flujos!A82 -> 2029-08-16 | B82: =+Flujos!L82 -> 26263916.82 | C82: =+Flujos!M82 -> 728142.0191 | D82: =+Flujos!N82 -> 169483.1375 | E82: =+Flujos!O82 -> 897625.1566 | F82: =+Flujos!P82 -> 275397073.5 | G82: =+Flujos!Q82 -> 64101725.82 | H82: =+Flujos!R82 -> 339498799.3 | J82: 2028-11-16 | K82: =IF(J82<CALCULADORA!$C$26,0,IF(CALCULADORA!$C$30>'TIR de Tenencia'!J82,VLOOKUP(J82,A:H,7),CALCULADORA!$C$36)) -> 28992114893 | L82: =IF(K82=K81, " ", IF(J82 > CALCULADORA!$C$30, CALCULADORA!$C$30, J82)) ->  | O82: 16 | P82: 12 | Q82: 2028
A83: =+Flujos!A83 -> 2029-09-16 | B83: =+Flujos!L83 -> 25541584.32 | C83: =+Flujos!M83 -> 722332.4972 | D83: =+Flujos!N83 -> 164911.1337 | E83: =+Flujos!O83 -> 887243.6309 | F83: =+Flujos!P83 -> 273199802.5 | G83: =+Flujos!Q83 -> 62372507.59 | H83: =+Flujos!R83 -> 335572310.1 | J83: 2028-12-16 | K83: =IF(J83<CALCULADORA!$C$26,0,IF(CALCULADORA!$C$30>'TIR de Tenencia'!J83,VLOOKUP(J83,A:H,7),CALCULADORA!$C$36)) -> 28992114893 | L83: =IF(K83=K82, " ", IF(J83 > CALCULADORA!$C$30, CALCULADORA!$C$30, J83)) ->  | O83: 16 | P83: 1 | Q83: 2029
A84: =+Flujos!A84 -> 2029-10-16 | B84: =+Flujos!L84 -> 24822656.81 | C84: =+Flujos!M84 -> 718927.5173 | D84: =+Flujos!N84 -> 160375.608 | E84: =+Flujos!O84 -> 879303.1253 | F84: =+Flujos!P84 -> 271911974.8 | G84: =+Flujos!Q84 -> 60657086.03 | H84: =+Flujos!R84 -> 332569060.8 | J84: 2029-01-16 | K84: =IF(J84<CALCULADORA!$C$26,0,IF(CALCULADORA!$C$30>'TIR de Tenencia'!J84,VLOOKUP(J84,A:H,7),CALCULADORA!$C$36)) -> 28992114893 | L84: =IF(K84=K83, " ", IF(J84 > CALCULADORA!$C$30, CALCULADORA!$C$30, J84)) ->  | O84: 16 | P84: 2 | Q84: 2029
A85: =+Flujos!A85 -> 2029-11-16 | B85: =+Flujos!L85 -> 24107155 | C85: =+Flujos!M85 -> 715501.8086 | D85: =+Flujos!N85 -> 155861.4621 | E85: =+Flujos!O85 -> 871363.2707 | F85: =+Flujos!P85 -> 270616307 | G85: =+Flujos!Q85 -> 58949750.74 | H85: =+Flujos!R85 -> 329566057.8 | J85: 2029-02-16 | K85: =IF(J85<CALCULADORA!$C$26,0,IF(CALCULADORA!$C$30>'TIR de Tenencia'!J85,VLOOKUP(J85,A:H,7),CALCULADORA!$C$36)) -> 28992114893 | L85: =IF(K85=K84, " ", IF(J85 > CALCULADORA!$C$30, CALCULADORA!$C$30, J85)) ->  | O85: 16 | P85: 3 | Q85: 2029
A86: =+Flujos!A86 -> 2029-12-16 | B86: =+Flujos!L86 -> 23513417.5 | C86: =+Flujos!M86 -> 593737.5025 | D86: =+Flujos!N86 -> 151368.8262 | E86: =+Flujos!O86 -> 745106.3288 | F86: =+Flujos!P86 -> 224562745.1 | G86: =+Flujos!Q86 -> 57250550.95 | H86: =+Flujos!R86 -> 281813296 | J86: 2029-03-16 | K86: =IF(J86<CALCULADORA!$C$26,0,IF(CALCULADORA!$C$30>'TIR de Tenencia'!J86,VLOOKUP(J86,A:H,7),CALCULADORA!$C$36)) -> 28992114893 | L86: =IF(K86=K85, " ", IF(J86 > CALCULADORA!$C$30, CALCULADORA!$C$30, J86)) ->  | O86: 16 | P86: 4 | Q86: 2029
A87: =+Flujos!A87 -> 2030-01-16 | B87: =+Flujos!L87 -> 22806903.26 | C87: =+Flujos!M87 -> 706514.2328 | D87: =+Flujos!N87 -> 147640.7485 | E87: =+Flujos!O87 -> 854154.9812 | F87: =+Flujos!P87 -> 267217036 | G87: =+Flujos!Q87 -> 55840521.48 | H87: =+Flujos!R87 -> 323057557.4 | J87: 2029-04-16 | K87: =IF(J87<CALCULADORA!$C$26,0,IF(CALCULADORA!$C$30>'TIR de Tenencia'!J87,VLOOKUP(J87,A:H,7),CALCULADORA!$C$36)) -> 28992114893 | L87: =IF(K87=K86, " ", IF(J87 > CALCULADORA!$C$30, CALCULADORA!$C$30, J87)) ->  | O87: 16 | P87: 5 | Q87: 2029
A88: =+Flujos!A88 -> 2030-02-16 | B88: =+Flujos!L88 -> 22106185.46 | C88: =+Flujos!M88 -> 700717.8028 | D88: =+Flujos!N88 -> 143204.5456 | E88: =+Flujos!O88 -> 843922.3484 | F88: =+Flujos!P88 -> 265024716.6 | G88: =+Flujos!Q88 -> 54162665.71 | H88: =+Flujos!R88 -> 319187382.3 | J88: 2029-05-16 | K88: =IF(J88<CALCULADORA!$C$26,0,IF(CALCULADORA!$C$30>'TIR de Tenencia'!J88,VLOOKUP(J88,A:H,7),CALCULADORA!$C$36)) -> 28992114893 | L88: =IF(K88=K87, " ", IF(J88 > CALCULADORA!$C$30, CALCULADORA!$C$30, J88)) ->  | O88: 16 | P88: 6 | Q88: 2029
A89: =+Flujos!A89 -> 2030-03-16 | B89: =+Flujos!L89 -> 21410845.15 | C89: =+Flujos!M89 -> 695340.3129 | D89: =+Flujos!N89 -> 138804.7385 | E89: =+Flujos!O89 -> 834145.0514 | F89: =+Flujos!P89 -> 262990848.3 | G89: =+Flujos!Q89 -> 52498575.51 | H89: =+Flujos!R89 -> 315489423.8 | J89: 2029-06-16 | K89: =IF(J89<CALCULADORA!$C$26,0,IF(CALCULADORA!$C$30>'TIR de Tenencia'!J89,VLOOKUP(J89,A:H,7),CALCULADORA!$C$36)) -> 28992114893 | L89: =IF(K89=K88, " ", IF(J89 > CALCULADORA!$C$30, CALCULADORA!$C$30, J89)) ->  | O89: 16 | P89: 7 | Q89: 2029
A90: =+Flujos!A90 -> 2030-04-16 | B90: =+Flujos!L90 -> 20724768.43 | C90: =+Flujos!M90 -> 686076.7166 | D90: =+Flujos!N90 -> 134438.6967 | E90: =+Flujos!O90 -> 820515.4133 | F90: =+Flujos!P90 -> 259487181.1 | G90: =+Flujos!Q90 -> 50847255.97 | H90: =+Flujos!R90 -> 310334437 | J90: 2029-07-16 | K90: =IF(J90<CALCULADORA!$C$26,0,IF(CALCULADORA!$C$30>'TIR de Tenencia'!J90,VLOOKUP(J90,A:H,7),CALCULADORA!$C$36)) -> 28992114893 | L90: =IF(K90=K89, " ", IF(J90 > CALCULADORA!$C$30, CALCULADORA!$C$30, J90)) ->  | O90: 16 | P90: 8 | Q90: 2029
A91: =+Flujos!A91 -> 2030-05-16 | B91: =+Flujos!L91 -> 20044256.85 | C91: =+Flujos!M91 -> 680511.5764 | D91: =+Flujos!N91 -> 130130.821 | E91: =+Flujos!O91 -> 810642.3974 | F91: =+Flujos!P91 -> 257382339.9 | G91: =+Flujos!Q91 -> 49217935.96 | H91: =+Flujos!R91 -> 306600275.8 | J91: 2029-08-16 | K91: =IF(J91<CALCULADORA!$C$26,0,IF(CALCULADORA!$C$30>'TIR de Tenencia'!J91,VLOOKUP(J91,A:H,7),CALCULADORA!$C$36)) -> 28992114893 | L91: =IF(K91=K90, " ", IF(J91 > CALCULADORA!$C$30, CALCULADORA!$C$30, J91)) ->  | O91: 16 | P91: 9 | Q91: 2029
A92: =+Flujos!A92 -> 2030-06-16 | B92: =+Flujos!L92 -> 19369000.58 | C92: =+Flujos!M92 -> 675256.2775 | D92: =+Flujos!N92 -> 125857.8888 | E92: =+Flujos!O92 -> 801114.1663 | F92: =+Flujos!P92 -> 255394686.5 | G92: =+Flujos!Q92 -> 47601832.25 | H92: =+Flujos!R92 -> 302996518.7 | J92: 2029-09-16 | K92: =IF(J92<CALCULADORA!$C$26,0,IF(CALCULADORA!$C$30>'TIR de Tenencia'!J92,VLOOKUP(J92,A:H,7),CALCULADORA!$C$36)) -> 28992114893 | L92: =IF(K92=K91, " ", IF(J92 > CALCULADORA!$C$30, CALCULADORA!$C$30, J92)) ->  | O92: 16 | P92: 10 | Q92: 2029
A93: =+Flujos!A93 -> 2030-07-16 | B93: =+Flujos!L93 -> 18698151.9 | C93: =+Flujos!M93 -> 670848.6778 | D93: =+Flujos!N93 -> 121617.9546 | E93: =+Flujos!O93 -> 792466.6324 | F93: =+Flujos!P93 -> 253727649 | G93: =+Flujos!Q93 -> 45998209.02 | H93: =+Flujos!R93 -> 299725858 | J93: 2029-10-16 | K93: =IF(J93<CALCULADORA!$C$26,0,IF(CALCULADORA!$C$30>'TIR de Tenencia'!J93,VLOOKUP(J93,A:H,7),CALCULADORA!$C$36)) -> 28992114893 | L93: =IF(K93=K92, " ", IF(J93 > CALCULADORA!$C$30, CALCULADORA!$C$30, J93)) ->  | O93: 16 | P93: 11 | Q93: 2029
A94: =+Flujos!A94 -> 2030-08-16 | B94: =+Flujos!L94 -> 18032325.05 | C94: =+Flujos!M94 -> 665826.8507 | D94: =+Flujos!N94 -> 117405.6958 | E94: =+Flujos!O94 -> 783232.5464 | F94: =+Flujos!P94 -> 251828299 | G94: =+Flujos!Q94 -> 44405053.11 | H94: =+Flujos!R94 -> 296233352.2 | J94: 2029-11-16 | K94: =IF(J94<CALCULADORA!$C$26,0,IF(CALCULADORA!$C$30>'TIR de Tenencia'!J94,VLOOKUP(J94,A:H,7),CALCULADORA!$C$36)) -> 28992114893 | L94: =IF(K94=K93, " ", IF(J94 > CALCULADORA!$C$30, CALCULADORA!$C$30, J94)) ->  | O94: 16 | P94: 12 | Q94: 2029
A95: =+Flujos!A95 -> 2030-09-16 | B95: =+Flujos!L95 -> 17373942.02 | C95: =+Flujos!M95 -> 658383.0257 | D95: =+Flujos!N95 -> 113224.969 | E95: =+Flujos!O95 -> 771607.9947 | F95: =+Flujos!P95 -> 249012903.8 | G95: =+Flujos!Q95 -> 42823823.22 | H95: =+Flujos!R95 -> 291836727 | J95: 2029-12-16 | K95: =IF(J95<CALCULADORA!$C$26,0,IF(CALCULADORA!$C$30>'TIR de Tenencia'!J95,VLOOKUP(J95,A:H,7),CALCULADORA!$C$36)) -> 28992114893 | L95: =IF(K95=K94, " ", IF(J95 > CALCULADORA!$C$30, CALCULADORA!$C$30, J95)) ->  | O95: 16 | P95: 1 | Q95: 2030
A96: =+Flujos!A96 -> 2030-10-16 | B96: =+Flujos!L96 -> 16725950.68 | C96: =+Flujos!M96 -> 647991.3457 | D96: =+Flujos!N96 -> 109090.982 | E96: =+Flujos!O96 -> 757082.3276 | F96: =+Flujos!P96 -> 245082574 | G96: =+Flujos!Q96 -> 41260271.2 | H96: =+Flujos!R96 -> 286342845.2 | J96: 2030-01-16 | K96: =IF(J96<CALCULADORA!$C$26,0,IF(CALCULADORA!$C$30>'TIR de Tenencia'!J96,VLOOKUP(J96,A:H,7),CALCULADORA!$C$36)) -> 28992114893 | L96: =IF(K96=K95, " ", IF(J96 > CALCULADORA!$C$30, CALCULADORA!$C$30, J96)) ->  | O96: 16 | P96: 2 | Q96: 2030
A97: =+Flujos!A97 -> 2030-11-16 | B97: =+Flujos!L97 -> 16083978.32 | C97: =+Flujos!M97 -> 641972.3537 | D97: =+Flujos!N97 -> 105022.2443 | E97: =+Flujos!O97 -> 746994.598 | F97: =+Flujos!P97 -> 242806077.4 | G97: =+Flujos!Q97 -> 39721397.71 | H97: =+Flujos!R97 -> 282527475.2 | J97: 2030-02-16 | K97: =IF(J97<CALCULADORA!$C$26,0,IF(CALCULADORA!$C$30>'TIR de Tenencia'!J97,VLOOKUP(J97,A:H,7),CALCULADORA!$C$36)) -> 28992114893 | L97: =IF(K97=K96, " ", IF(J97 > CALCULADORA!$C$30, CALCULADORA!$C$30, J97)) ->  | O97: 16 | P97: 3 | Q97: 2030
A98: =+Flujos!A98 -> 2030-12-16 | B98: =+Flujos!L98 -> 15570435.13 | C98: =+Flujos!M98 -> 513543.1895 | D98: =+Flujos!N98 -> 100991.2999 | E98: =+Flujos!O98 -> 614534.4893 | F98: =+Flujos!P98 -> 194231740.2 | G98: =+Flujos!Q98 -> 38196818.35 | H98: =+Flujos!R98 -> 232428558.6 | J98: 2030-03-16 | K98: =IF(J98<CALCULADORA!$C$26,0,IF(CALCULADORA!$C$30>'TIR de Tenencia'!J98,VLOOKUP(J98,A:H,7),CALCULADORA!$C$36)) -> 28992114893 | L98: =IF(K98=K97, " ", IF(J98 > CALCULADORA!$C$30, CALCULADORA!$C$30, J98)) ->  | O98: 16 | P98: 4 | Q98: 2030
A99: =+Flujos!A99 -> 2031-01-16 | B99: =+Flujos!L99 -> 14950581.51 | C99: =+Flujos!M99 -> 619853.6218 | D99: =+Flujos!N99 -> 97766.7622 | E99: =+Flujos!O99 -> 717620.384 | F99: =+Flujos!P99 -> 234440355 | G99: =+Flujos!Q99 -> 36977237.26 | H99: =+Flujos!R99 -> 271417592.3 | J99: =+DATE(Q98,P98,O98) -> 2030-04-16 | K99: =IF(J99<CALCULADORA!$C$26,0,IF(CALCULADORA!$C$30>'TIR de Tenencia'!J99,VLOOKUP(J99,A:H,7),CALCULADORA!$C$36)) -> 28992114893 | L99: =IF(K99=K98, " ", IF(J99 > CALCULADORA!$C$30, CALCULADORA!$C$30, J99)) ->  | O99: 16 | P99: 5 | Q99: 2030
A100: =+Flujos!A100 -> 2031-02-16 | B100: =+Flujos!L100 -> 14339992.58 | C100: =+Flujos!M100 -> 610588.9345 | D100: =+Flujos!N100 -> 93874.70131 | E100: =+Flujos!O100 -> 704463.6358 | F100: =+Flujos!P100 -> 230936275.2 | G100: =+Flujos!Q100 -> 35505186.27 | H100: =+Flujos!R100 -> 266441461.4 | J100: 2030-05-16 | K100: =IF(J100<CALCULADORA!$C$26,0,IF(CALCULADORA!$C$30>'TIR de Tenencia'!J100,VLOOKUP(J100,A:H,7),CALCULADORA!$C$36)) -> 28992114893 | L100: =IF(K100=K99, " ", IF(J100 > CALCULADORA!$C$30, CALCULADORA!$C$30, J100)) ->  | O100: 16 | P100: 6 | Q100: 2030
A101: =+Flujos!A101 -> 2031-03-16 | B101: =+Flujos!L101 -> 13734663.31 | C101: =+Flujos!M101 -> 605329.2716 | D101: =+Flujos!N101 -> 90040.81339 | E101: =+Flujos!O101 -> 695370.085 | F101: =+Flujos!P101 -> 228946971.2 | G101: =+Flujos!Q101 -> 34055137.4 | H101: =+Flujos!R101 -> 263002108.6 | J101: 2030-06-16 | K101: =IF(J101<CALCULADORA!$C$26,0,IF(CALCULADORA!$C$30>'TIR de Tenencia'!J101,VLOOKUP(J101,A:H,7),CALCULADORA!$C$36)) -> 28992114893 | L101: =IF(K101=K100, " ", IF(J101 > CALCULADORA!$C$30, CALCULADORA!$C$30, J101)) ->  | O101: 16 | P101: 7 | Q101: 2030
A102: =+Flujos!A102 -> 2031-04-16 | B102: =+Flujos!L102 -> 13134843.53 | C102: =+Flujos!M102 -> 599819.7719 | D102: =+Flujos!N102 -> 86239.9509 | E102: =+Flujos!O102 -> 686059.7228 | F102: =+Flujos!P102 -> 226863174.3 | G102: =+Flujos!Q102 -> 32617579.36 | H102: =+Flujos!R102 -> 259480753.7 | J102: 2030-07-16 | K102: =IF(J102<CALCULADORA!$C$26,0,IF(CALCULADORA!$C$30>'TIR de Tenencia'!J102,VLOOKUP(J102,A:H,7),CALCULADORA!$C$36)) -> 28992114893 | L102: =IF(K102=K101, " ", IF(J102 > CALCULADORA!$C$30, CALCULADORA!$C$30, J102)) ->  | O102: 16 | P102: 8 | Q102: 2030
A103: =+Flujos!A103 -> 2031-05-16 | B103: =+Flujos!L103 -> 12540191.78 | C103: =+Flujos!M103 -> 594651.7522 | D103: =+Flujos!N103 -> 82473.68255 | E103: =+Flujos!O103 -> 677125.4347 | F103: =+Flujos!P103 -> 224908531.6 | G103: =+Flujos!Q103 -> 31193105.49 | H103: =+Flujos!R103 -> 256101637.1 | J103: 2030-08-16 | K103: =IF(J103<CALCULADORA!$C$26,0,IF(CALCULADORA!$C$30>'TIR de Tenencia'!J103,VLOOKUP(J103,A:H,7),CALCULADORA!$C$36)) -> 28992114893 | L103: =IF(K103=K102, " ", IF(J103 > CALCULADORA!$C$30, CALCULADORA!$C$30, J103)) ->  | O103: 16 | P103: 9 | Q103: 2030
A104: =+Flujos!A104 -> 2031-06-16 | B104: =+Flujos!L104 -> 11949557.05 | C104: =+Flujos!M104 -> 590634.7269 | D104: =+Flujos!N104 -> 78739.8642 | E104: =+Flujos!O104 -> 669374.5911 | F104: =+Flujos!P104 -> 223389216.7 | G104: =+Flujos!Q104 -> 29780904.82 | H104: =+Flujos!R104 -> 253170121.5 | J104: 2030-09-16 | K104: =IF(J104<CALCULADORA!$C$26,0,IF(CALCULADORA!$C$30>'TIR de Tenencia'!J104,VLOOKUP(J104,A:H,7),CALCULADORA!$C$36)) -> 28992114893 | L104: =IF(K104=K103, " ", IF(J104 > CALCULADORA!$C$30, CALCULADORA!$C$30, J104)) ->  | O104: 16 | P104: 10 | Q104: 2030
A105: =+Flujos!A105 -> 2031-07-16 | B105: =+Flujos!L105 -> 11362622.97 | C105: =+Flujos!M105 -> 586934.0887 | D105: =+Flujos!N105 -> 75031.26875 | E105: =+Flujos!O105 -> 661965.3574 | F105: =+Flujos!P105 -> 221989565.4 | G105: =+Flujos!Q105 -> 28378243.93 | H105: =+Flujos!R105 -> 250367809.3 | J105: 2030-10-16 | K105: =IF(J105<CALCULADORA!$C$26,0,IF(CALCULADORA!$C$30>'TIR de Tenencia'!J105,VLOOKUP(J105,A:H,7),CALCULADORA!$C$36)) -> 28992114893 | L105: =IF(K105=K104, " ", IF(J105 > CALCULADORA!$C$30, CALCULADORA!$C$30, J105)) ->  | O105: 16 | P105: 11 | Q105: 2030
A106: =+Flujos!A106 -> 2031-08-16 | B106: =+Flujos!L106 -> 10779545.53 | C106: =+Flujos!M106 -> 583077.4389 | D106: =+Flujos!N106 -> 71345.9096 | E106: =+Flujos!O106 -> 654423.3485 | F106: =+Flujos!P106 -> 220530907.6 | G106: =+Flujos!Q106 -> 26984371.45 | H106: =+Flujos!R106 -> 247515279 | J106: 2030-11-16 | K106: =IF(J106<CALCULADORA!$C$26,0,IF(CALCULADORA!$C$30>'TIR de Tenencia'!J106,VLOOKUP(J106,A:H,7),CALCULADORA!$C$36)) -> 28992114893 | L106: =IF(K106=K105, " ", IF(J106 > CALCULADORA!$C$30, CALCULADORA!$C$30, J106)) ->  | O106: 16 | P106: 12 | Q106: 2030
A107: =+Flujos!A107 -> 2031-09-16 | B107: =+Flujos!L107 -> 10200484.02 | C107: =+Flujos!M107 -> 579061.5047 | D107: =+Flujos!N107 -> 67684.76636 | E107: =+Flujos!O107 -> 646746.271 | F107: =+Flujos!P107 -> 219012005.3 | G107: =+Flujos!Q107 -> 25599657.88 | H107: =+Flujos!R107 -> 244611663.2 | J107: 2030-12-16 | K107: =IF(J107<CALCULADORA!$C$26,0,IF(CALCULADORA!$C$30>'TIR de Tenencia'!J107,VLOOKUP(J107,A:H,7),CALCULADORA!$C$36)) -> 28992114893 | L107: =IF(K107=K106, " ", IF(J107 > CALCULADORA!$C$30, CALCULADORA!$C$30, J107)) ->  | O107: 16 | P107: 1 | Q107: 2031
A108: =+Flujos!A108 -> 2031-10-16 | B108: =+Flujos!L108 -> 9625180.978 | C108: =+Flujos!M108 -> 575303.044 | D108: =+Flujos!N108 -> 64048.83918 | E108: =+Flujos!O108 -> 639351.8832 | F108: =+Flujos!P108 -> 217590484.5 | G108: =+Flujos!Q108 -> 24224481.5 | H108: =+Flujos!R108 -> 241814966 | J108: 2031-01-16 | K108: =IF(J108<CALCULADORA!$C$26,0,IF(CALCULADORA!$C$30>'TIR de Tenencia'!J108,VLOOKUP(J108,A:H,7),CALCULADORA!$C$36)) -> 28992114893 | L108: =IF(K108=K107, " ", IF(J108 > CALCULADORA!$C$30, CALCULADORA!$C$30, J108)) ->  | O108: 16 | P108: 2 | Q108: 2031
A109: =+Flujos!A109 -> 2031-11-16 | B109: =+Flujos!L109 -> 9052805.061 | C109: =+Flujos!M109 -> 572375.9178 | D109: =+Flujos!N109 -> 60436.51136 | E109: =+Flujos!O109 -> 632812.4291 | F109: =+Flujos!P109 -> 216483390 | G109: =+Flujos!Q109 -> 22858230.85 | H109: =+Flujos!R109 -> 239341620.8 | J109: 2031-02-16 | K109: =IF(J109<CALCULADORA!$C$26,0,IF(CALCULADORA!$C$30>'TIR de Tenencia'!J109,VLOOKUP(J109,A:H,7),CALCULADORA!$C$36)) -> 28992114893 | L109: =IF(K109=K108, " ", IF(J109 > CALCULADORA!$C$30, CALCULADORA!$C$30, J109)) ->  | O109: 16 | P109: 3 | Q109: 2031
A110: =+Flujos!A110 -> 2031-12-16 | B110: =+Flujos!L110 -> 8610146.766 | C110: =+Flujos!M110 -> 442658.2943 | D110: =+Flujos!N110 -> 56842.56298 | E110: =+Flujos!O110 -> 499500.8573 | F110: =+Flujos!P110 -> 167421733.2 | G110: =+Flujos!Q110 -> 21498931.64 | H110: =+Flujos!R110 -> 188920664.8 | J110: 2031-03-16 | K110: =IF(J110<CALCULADORA!$C$26,0,IF(CALCULADORA!$C$30>'TIR de Tenencia'!J110,VLOOKUP(J110,A:H,7),CALCULADORA!$C$36)) -> 28992114893 | L110: =IF(K110=K109, " ", IF(J110 > CALCULADORA!$C$30, CALCULADORA!$C$30, J110)) ->  | O110: 16 | P110: 4 | Q110: 2031
A111: =+Flujos!A111 -> 2032-01-16 | B111: =+Flujos!L111 -> 8047896.327 | C111: =+Flujos!M111 -> 562250.4393 | D111: =+Flujos!N111 -> 54063.11155 | E111: =+Flujos!O111 -> 616313.5508 | F111: =+Flujos!P111 -> 212653742.7 | G111: =+Flujos!Q111 -> 20447690.58 | H111: =+Flujos!R111 -> 233101433.3 | J111: 2031-04-16 | K111: =IF(J111<CALCULADORA!$C$26,0,IF(CALCULADORA!$C$30>'TIR de Tenencia'!J111,VLOOKUP(J111,A:H,7),CALCULADORA!$C$36)) -> 28992114893 | L111: =IF(K111=K110, " ", IF(J111 > CALCULADORA!$C$30, CALCULADORA!$C$30, J111)) ->  | O111: 16 | P111: 5 | Q111: 2031
A112: =+Flujos!A112 -> 2032-02-16 | B112: =+Flujos!L112 -> 7492880.243 | C112: =+Flujos!M112 -> 555016.0844 | D112: =+Flujos!N112 -> 50532.74104 | E112: =+Flujos!O112 -> 605548.8255 | F112: =+Flujos!P112 -> 209917572.9 | G112: =+Flujos!Q112 -> 19112437.73 | H112: =+Flujos!R112 -> 229030010.7 | J112: 2031-05-16 | K112: =IF(J112<CALCULADORA!$C$26,0,IF(CALCULADORA!$C$30>'TIR de Tenencia'!J112,VLOOKUP(J112,A:H,7),CALCULADORA!$C$36)) -> 28992114893 | L112: =IF(K112=K111, " ", IF(J112 > CALCULADORA!$C$30, CALCULADORA!$C$30, J112)) ->  | O112: 16 | P112: 6 | Q112: 2031
A113: =+Flujos!A113 -> 2032-03-16 | B113: =+Flujos!L113 -> 6944994.869 | C113: =+Flujos!M113 -> 547885.3736 | D113: =+Flujos!N113 -> 47047.79504 | E113: =+Flujos!O113 -> 594933.1686 | F113: =+Flujos!P113 -> 207220603.3 | G113: =+Flujos!Q113 -> 17794365.29 | H113: =+Flujos!R113 -> 225014968.6 | J113: 2031-06-16 | K113: =IF(J113<CALCULADORA!$C$26,0,IF(CALCULADORA!$C$30>'TIR de Tenencia'!J113,VLOOKUP(J113,A:H,7),CALCULADORA!$C$36)) -> 28992114893 | L113: =IF(K113=K112, " ", IF(J113 > CALCULADORA!$C$30, CALCULADORA!$C$30, J113)) ->  | O113: 16 | P113: 7 | Q113: 2031
A114: =+Flujos!A114 -> 2032-04-16 | B114: =+Flujos!L114 -> 6512460.962 | C114: =+Flujos!M114 -> 432533.9068 | D114: =+Flujos!N114 -> 43607.62278 | E114: =+Flujos!O114 -> 476141.5296 | F114: =+Flujos!P114 -> 163592498.5 | G114: =+Flujos!Q114 -> 16493227.12 | H114: =+Flujos!R114 -> 180085725.6 | J114: 2031-07-16 | K114: =IF(J114<CALCULADORA!$C$26,0,IF(CALCULADORA!$C$30>'TIR de Tenencia'!J114,VLOOKUP(J114,A:H,7),CALCULADORA!$C$36)) -> 28992114893 | L114: =IF(K114=K113, " ", IF(J114 > CALCULADORA!$C$30, CALCULADORA!$C$30, J114)) ->  | O114: 16 | P114: 8 | Q114: 2031
A115: =+Flujos!A115 -> 2032-05-16 | B115: =+Flujos!L115 -> 6131569.068 | C115: =+Flujos!M115 -> 380891.8938 | D115: =+Flujos!N115 -> 40891.74238 | E115: =+Flujos!O115 -> 421783.6362 | F115: =+Flujos!P115 -> 144060513.1 | G115: =+Flujos!Q115 -> 15466029.82 | H115: =+Flujos!R115 -> 159526542.9 | J115: 2031-08-16 | K115: =IF(J115<CALCULADORA!$C$26,0,IF(CALCULADORA!$C$30>'TIR de Tenencia'!J115,VLOOKUP(J115,A:H,7),CALCULADORA!$C$36)) -> 28992114893 | L115: =IF(K115=K114, " ", IF(J115 > CALCULADORA!$C$30, CALCULADORA!$C$30, J115)) ->  | O115: 16 | P115: 9 | Q115: 2031
A116: =+Flujos!A116 -> 2032-06-16 | B116: =+Flujos!L116 -> 5759340.726 | C116: =+Flujos!M116 -> 372228.342 | D116: =+Flujos!N116 -> 38500.12218 | E116: =+Flujos!O116 -> 410728.4642 | F116: =+Flujos!P116 -> 140783794.1 | G116: =+Flujos!Q116 -> 14561473.86 | H116: =+Flujos!R116 -> 155345267.9 | J116: 2031-09-16 | K116: =IF(J116<CALCULADORA!$C$26,0,IF(CALCULADORA!$C$30>'TIR de Tenencia'!J116,VLOOKUP(J116,A:H,7),CALCULADORA!$C$36)) -> 28992114893 | L116: =IF(K116=K115, " ", IF(J116 > CALCULADORA!$C$30, CALCULADORA!$C$30, J116)) ->  | O116: 16 | P116: 10 | Q116: 2031
A117: =+Flujos!A117 -> 2032-07-16 | B117: =+Flujos!L117 -> 5394037.989 | C117: =+Flujos!M117 -> 365302.7373 | D117: =+Flujos!N117 -> 36162.90042 | E117: =+Flujos!O117 -> 401465.6377 | F117: =+Flujos!P117 -> 138164399.5 | G117: =+Flujos!Q117 -> 13677492.42 | H117: =+Flujos!R117 -> 151841891.9 | J117: 2031-10-16 | K117: =IF(J117<CALCULADORA!$C$26,0,IF(CALCULADORA!$C$30>'TIR de Tenencia'!J117,VLOOKUP(J117,A:H,7),CALCULADORA!$C$36)) -> 28992114893 | L117: =IF(K117=K116, " ", IF(J117 > CALCULADORA!$C$30, CALCULADORA!$C$30, J117)) ->  | O117: 16 | P117: 11 | Q117: 2031
A118: =+Flujos!A118 -> 2032-08-16 | B118: =+Flujos!L118 -> 5035103.361 | C118: =+Flujos!M118 -> 358934.6285 | D118: =+Flujos!N118 -> 33869.16453 | E118: =+Flujos!O118 -> 392803.793 | F118: =+Flujos!P118 -> 135755860.4 | G118: =+Flujos!Q118 -> 12809958.15 | H118: =+Flujos!R118 -> 148565818.5 | J118: 2031-11-16 | K118: =IF(J118<CALCULADORA!$C$26,0,IF(CALCULADORA!$C$30>'TIR de Tenencia'!J118,VLOOKUP(J118,A:H,7),CALCULADORA!$C$36)) -> 28992114893 | L118: =IF(K118=K117, " ", IF(J118 > CALCULADORA!$C$30, CALCULADORA!$C$30, J118)) ->  | O118: 16 | P118: 12 | Q118: 2031
A119: =+Flujos!A119 -> 2032-09-16 | B119: =+Flujos!L119 -> 4683913.67 | C119: =+Flujos!M119 -> 351189.6903 | D119: =+Flujos!N119 -> 31615.414 | E119: =+Flujos!O119 -> 382805.1043 | F119: =+Flujos!P119 -> 132826578.4 | G119: =+Flujos!Q119 -> 11957547.11 | H119: =+Flujos!R119 -> 144784125.5 | J119: 2031-12-16 | K119: =IF(J119<CALCULADORA!$C$26,0,IF(CALCULADORA!$C$30>'TIR de Tenencia'!J119,VLOOKUP(J119,A:H,7),CALCULADORA!$C$36)) -> 28992114893 | L119: =IF(K119=K118, " ", IF(J119 > CALCULADORA!$C$30, CALCULADORA!$C$30, J119)) ->  | O119: 16 | P119: 1 | Q119: 2032
A120: =+Flujos!A120 -> 2032-10-16 | B120: =+Flujos!L120 -> 4340180.897 | C120: =+Flujos!M120 -> 343732.7734 | D120: =+Flujos!N120 -> 29410.29394 | E120: =+Flujos!O120 -> 373143.0674 | F120: =+Flujos!P120 -> 130006231.5 | G120: =+Flujos!Q120 -> 11123529.02 | H120: =+Flujos!R120 -> 141129760.5 | J120: 2032-01-16 | K120: =IF(J120<CALCULADORA!$C$26,0,IF(CALCULADORA!$C$30>'TIR de Tenencia'!J120,VLOOKUP(J120,A:H,7),CALCULADORA!$C$36)) -> 28992114893 | L120: =IF(K120=K119, " ", IF(J120 > CALCULADORA!$C$30, CALCULADORA!$C$30, J120)) ->  | O120: 16 | P120: 2 | Q120: 2032
A121: =+Flujos!A121 -> 2032-11-16 | B121: =+Flujos!L121 -> 4019465.831 | C121: =+Flujos!M121 -> 320715.0658 | D121: =+Flujos!N121 -> 27251.99585 | E121: =+Flujos!O121 -> 347967.0617 | F121: =+Flujos!P121 -> 121300499.4 | G121: =+Flujos!Q121 -> 10307219.89 | H121: =+Flujos!R121 -> 131607719.3 | J121: 2032-02-16 | K121: =IF(J121<CALCULADORA!$C$26,0,IF(CALCULADORA!$C$30>'TIR de Tenencia'!J121,VLOOKUP(J121,A:H,7),CALCULADORA!$C$36)) -> 28992114893 | L121: =IF(K121=K120, " ", IF(J121 > CALCULADORA!$C$30, CALCULADORA!$C$30, J121)) ->  | O121: 16 | P121: 3 | Q121: 2032
A122: =+Flujos!A122 -> 2032-12-16 | B122: =+Flujos!L122 -> 3698750.765 | C122: =+Flujos!M122 -> 320715.0658 | D122: =+Flujos!N122 -> 25238.22595 | E122: =+Flujos!O122 -> 345953.2918 | F122: =+Flujos!P122 -> 121300499.4 | G122: =+Flujos!Q122 -> 9545574.058 | H122: =+Flujos!R122 -> 130846073.5 | J122: 2032-03-16 | K122: =IF(J122<CALCULADORA!$C$26,0,IF(CALCULADORA!$C$30>'TIR de Tenencia'!J122,VLOOKUP(J122,A:H,7),CALCULADORA!$C$36)) -> 28992114893 | L122: =IF(K122=K121, " ", IF(J122 > CALCULADORA!$C$30, CALCULADORA!$C$30, J122)) ->  | O122: 16 | P122: 4 | Q122: 2032
A123: =+Flujos!A123 -> 2033-01-16 | B123: =+Flujos!L123 -> 3378035.699 | C123: =+Flujos!M123 -> 320715.0658 | D123: =+Flujos!N123 -> 23224.45605 | E123: =+Flujos!O123 -> 343939.5219 | F123: =+Flujos!P123 -> 121300499.4 | G123: =+Flujos!Q123 -> 8783928.222 | H123: =+Flujos!R123 -> 130084427.6 | J123: 2032-04-16 | K123: =IF(J123<CALCULADORA!$C$26,0,IF(CALCULADORA!$C$30>'TIR de Tenencia'!J123,VLOOKUP(J123,A:H,7),CALCULADORA!$C$36)) -> 28992114893 | L123: =IF(K123=K122, " ", IF(J123 > CALCULADORA!$C$30, CALCULADORA!$C$30, J123)) ->  | O123: 16 | P123: 5 | Q123: 2032
A124: =+Flujos!A124 -> 2033-02-16 | B124: =+Flujos!L124 -> 3057320.634 | C124: =+Flujos!M124 -> 320715.0658 | D124: =+Flujos!N124 -> 21210.68616 | E124: =+Flujos!O124 -> 341925.752 | F124: =+Flujos!P124 -> 121300499.4 | G124: =+Flujos!Q124 -> 8022282.386 | H124: =+Flujos!R124 -> 129322781.8 | J124: 2032-05-16 | K124: =IF(J124<CALCULADORA!$C$26,0,IF(CALCULADORA!$C$30>'TIR de Tenencia'!J124,VLOOKUP(J124,A:H,7),CALCULADORA!$C$36)) -> 28992114893 | L124: =IF(K124=K123, " ", IF(J124 > CALCULADORA!$C$30, CALCULADORA!$C$30, J124)) ->  | O124: 16 | P124: 6 | Q124: 2032
A125: =+Flujos!A125 -> 2033-03-16 | B125: =+Flujos!L125 -> 2736605.568 | C125: =+Flujos!M125 -> 320715.0658 | D125: =+Flujos!N125 -> 19196.91626 | E125: =+Flujos!O125 -> 339911.9821 | F125: =+Flujos!P125 -> 121300499.4 | G125: =+Flujos!Q125 -> 7260636.55 | H125: =+Flujos!R125 -> 128561136 | J125: 2032-06-16 | K125: =IF(J125<CALCULADORA!$C$26,0,IF(CALCULADORA!$C$30>'TIR de Tenencia'!J125,VLOOKUP(J125,A:H,7),CALCULADORA!$C$36)) -> 28992114893 | L125: =IF(K125=K124, " ", IF(J125 > CALCULADORA!$C$30, CALCULADORA!$C$30, J125)) ->  | O125: 16 | P125: 7 | Q125: 2032
A126: =+Flujos!A126 -> 2033-04-16 | B126: =+Flujos!L126 -> 2415890.502 | C126: =+Flujos!M126 -> 320715.0658 | D126: =+Flujos!N126 -> 17183.14636 | E126: =+Flujos!O126 -> 337898.2122 | F126: =+Flujos!P126 -> 121300499.4 | G126: =+Flujos!Q126 -> 6498990.715 | H126: =+Flujos!R126 -> 127799490.1 | J126: 2032-07-16 | K126: =IF(J126<CALCULADORA!$C$26,0,IF(CALCULADORA!$C$30>'TIR de Tenencia'!J126,VLOOKUP(J126,A:H,7),CALCULADORA!$C$36)) -> 28992114893 | L126: =IF(K126=K125, " ", IF(J126 > CALCULADORA!$C$30, CALCULADORA!$C$30, J126)) ->  | O126: 16 | P126: 8 | Q126: 2032
A127: =+Flujos!A127 -> 2033-05-16 | B127: =+Flujos!L127 -> 2095175.436 | C127: =+Flujos!M127 -> 320715.0658 | D127: =+Flujos!N127 -> 15169.37646 | E127: =+Flujos!O127 -> 335884.4423 | F127: =+Flujos!P127 -> 121300499.4 | G127: =+Flujos!Q127 -> 5737344.879 | H127: =+Flujos!R127 -> 127037844.3 | J127: 2032-08-16 | K127: =IF(J127<CALCULADORA!$C$26,0,IF(CALCULADORA!$C$30>'TIR de Tenencia'!J127,VLOOKUP(J127,A:H,7),CALCULADORA!$C$36)) -> 28992114893 | L127: =IF(K127=K126, " ", IF(J127 > CALCULADORA!$C$30, CALCULADORA!$C$30, J127)) ->  | O127: 16 | P127: 9 | Q127: 2032
A128: =+Flujos!A128 -> 2033-06-16 | B128: =+Flujos!L128 -> 1795864.504 | C128: =+Flujos!M128 -> 299310.9324 | D128: =+Flujos!N128 -> 13155.60656 | E128: =+Flujos!O128 -> 312466.539 | F128: =+Flujos!P128 -> 113205051.6 | G128: =+Flujos!Q128 -> 4975699.043 | H128: =+Flujos!R128 -> 118180750.7 | J128: 2032-09-16 | K128: =IF(J128<CALCULADORA!$C$26,0,IF(CALCULADORA!$C$30>'TIR de Tenencia'!J128,VLOOKUP(J128,A:H,7),CALCULADORA!$C$36)) -> 28992114893 | L128: =IF(K128=K127, " ", IF(J128 > CALCULADORA!$C$30, CALCULADORA!$C$30, J128)) ->  | O128: 16 | P128: 10 | Q128: 2032
A129: =+Flujos!A129 -> 2033-07-16 | B129: =+Flujos!L129 -> 1496553.571 | C129: =+Flujos!M129 -> 299310.9324 | D129: =+Flujos!N129 -> 11276.23322 | E129: =+Flujos!O129 -> 310587.1657 | F129: =+Flujos!P129 -> 113205051.6 | G129: =+Flujos!Q129 -> 4264884.524 | H129: =+Flujos!R129 -> 117469936.1 | J129: 2032-10-16 | K129: =IF(J129<CALCULADORA!$C$26,0,IF(CALCULADORA!$C$30>'TIR de Tenencia'!J129,VLOOKUP(J129,A:H,7),CALCULADORA!$C$36)) -> 28992114893 | L129: =IF(K129=K128, " ", IF(J129 > CALCULADORA!$C$30, CALCULADORA!$C$30, J129)) ->  | O129: 16 | P129: 11 | Q129: 2032
A130: =+Flujos!A130 -> 2033-08-16 | B130: =+Flujos!L130 -> 1197242.639 | C130: =+Flujos!M130 -> 299310.9324 | D130: =+Flujos!N130 -> 9396.859874 | E130: =+Flujos!O130 -> 308707.7923 | F130: =+Flujos!P130 -> 113205051.6 | G130: =+Flujos!Q130 -> 3554070.005 | H130: =+Flujos!R130 -> 116759121.6 | J130: 2032-11-16 | K130: =IF(J130<CALCULADORA!$C$26,0,IF(CALCULADORA!$C$30>'TIR de Tenencia'!J130,VLOOKUP(J130,A:H,7),CALCULADORA!$C$36)) -> 28992114893 | L130: =IF(K130=K129, " ", IF(J130 > CALCULADORA!$C$30, CALCULADORA!$C$30, J130)) ->  | O130: 16 | P130: 12 | Q130: 2032
A131: =+Flujos!A131 -> 2033-09-16 | B131: =+Flujos!L131 -> 897931.7063 | C131: =+Flujos!M131 -> 299310.9324 | D131: =+Flujos!N131 -> 7517.486529 | E131: =+Flujos!O131 -> 306828.419 | F131: =+Flujos!P131 -> 113205051.6 | G131: =+Flujos!Q131 -> 2843255.486 | H131: =+Flujos!R131 -> 116048307.1 | J131: =+DATE(Q130,P130,O130) -> 2032-12-16 | K131: =IF(J131<CALCULADORA!$C$26,0,IF(CALCULADORA!$C$30>'TIR de Tenencia'!J131,VLOOKUP(J131,A:H,7),CALCULADORA!$C$36)) -> 28992114893 | L131: =IF(K131=K130, " ", IF(J131 > CALCULADORA!$C$30, CALCULADORA!$C$30, J131)) ->  | O131: =+O130 -> 16 | P131: =+IF(P130=12,1,P130+1) -> 1 | Q131: 2033
A132: =+Flujos!A132 -> 2033-10-16 | B132: =+Flujos!L132 -> 598620.7739 | C132: =+Flujos!M132 -> 299310.9324 | D132: =+Flujos!N132 -> 5638.113184 | E132: =+Flujos!O132 -> 304949.0456 | F132: =+Flujos!P132 -> 113205051.6 | G132: =+Flujos!Q132 -> 2132440.967 | H132: =+Flujos!R132 -> 115337492.6 | J132: 2033-01-16 | K132: =IF(J132<CALCULADORA!$C$26,0,IF(CALCULADORA!$C$30>'TIR de Tenencia'!J132,VLOOKUP(J132,A:H,7),CALCULADORA!$C$36)) -> 28992114893 | L132: =IF(K132=K131, " ", IF(J132 > CALCULADORA!$C$30, CALCULADORA!$C$30, J132)) ->  | M132: =+IF(K132=K131," ",K132) ->  | O132: 16 | P132: 2 | Q132: 2033
A133: =+Flujos!A133 -> 2033-11-16 | B133: =+Flujos!L133 -> 299309.8414 | C133: =+Flujos!M133 -> 299310.9324 | D133: =+Flujos!N133 -> 3758.739839 | E133: =+Flujos!O133 -> 303069.6723 | F133: =+Flujos!P133 -> 113205051.6 | G133: =+Flujos!Q133 -> 1421626.447 | H133: =+Flujos!R133 -> 114626678.1 | J133: 2033-02-16 | K133: =IF(J133<CALCULADORA!$C$26,0,IF(CALCULADORA!$C$30>'TIR de Tenencia'!J133,VLOOKUP(J133,A:H,7),CALCULADORA!$C$36)) -> 28992114893 | L133: =IF(K133=K132, " ", IF(J133 > CALCULADORA!$C$30, CALCULADORA!$C$30, J133)) ->  | O133: 16 | P133: 3 | Q133: 2033
A134: =+Flujos!A134 -> 2033-12-16 | B134: =+Flujos!L134 -> -1.100124791e-08 | C134: =+Flujos!M134 -> 299309.8414 | D134: =+Flujos!N134 -> 1879.366494 | E134: =+Flujos!O134 -> 301189.2079 | F134: =+Flujos!P134 -> 113204639 | G134: =+Flujos!Q134 -> 710811.9282 | H134: =+Flujos!R134 -> 113915450.9 | J134: 2033-03-16 | K134: =IF(J134<CALCULADORA!$C$26,0,IF(CALCULADORA!$C$30>'TIR de Tenencia'!J134,VLOOKUP(J134,A:H,7),CALCULADORA!$C$36)) -> 28992114893 | L134: =IF(K134=K133, " ", IF(J134 > CALCULADORA!$C$30, CALCULADORA!$C$30, J134)) ->  | O134: 16 | P134: 4 | Q134: 2033
A135: =+Flujos!A135 -> 2034-01-16 | B135: =+Flujos!L135 -> -1.100124791e-08 | C135: =+Flujos!M135 -> 0 | D135: =+Flujos!N135 -> -6.907683564e-11 | E135: =+Flujos!O135 -> -6.907683564e-11 | F135: =+Flujos!P135 -> 0 | G135: =+Flujos!Q135 -> -2.612616479e-08 | H135: =+Flujos!R135 -> -2.612616479e-08 | J135: 2033-04-16 | K135: =IF(J135<CALCULADORA!$C$26,0,IF(CALCULADORA!$C$30>'TIR de Tenencia'!J135,VLOOKUP(J135,A:H,7),CALCULADORA!$C$36)) -> 28992114893 | L135: =IF(K135=K134, " ", IF(J135 > CALCULADORA!$C$30, CALCULADORA!$C$30, J135)) ->  | O135: 16 | P135: 5 | Q135: 2033
A136: =+Flujos!A136 -> 2034-02-16 | B136: =+Flujos!L136 -> -1.100124791e-08 | C136: =+Flujos!M136 -> 0 | D136: =+Flujos!N136 -> -6.907683564e-11 | E136: =+Flujos!O136 -> -6.907683564e-11 | F136: =+Flujos!P136 -> 0 | G136: =+Flujos!Q136 -> -2.612616479e-08 | H136: =+Flujos!R136 -> -2.612616479e-08 | J136: 2033-05-16 | K136: =IF(J136<CALCULADORA!$C$26,0,IF(CALCULADORA!$C$30>'TIR de Tenencia'!J136,VLOOKUP(J136,A:H,7),CALCULADORA!$C$36)) -> 28992114893 | L136: =IF(K136=K135, " ", IF(J136 > CALCULADORA!$C$30, CALCULADORA!$C$30, J136)) ->  | O136: 16 | P136: 6 | Q136: 2033
A137: =+Flujos!A137 -> 2034-03-16 | B137: =+Flujos!L137 -> -1.100124791e-08 | C137: =+Flujos!M137 -> 0 | D137: =+Flujos!N137 -> -6.907683564e-11 | E137: =+Flujos!O137 -> -6.907683564e-11 | F137: =+Flujos!P137 -> 0 | G137: =+Flujos!Q137 -> -2.612616479e-08 | H137: =+Flujos!R137 -> -2.612616479e-08 | J137: 2033-06-16 | K137: =IF(J137<CALCULADORA!$C$26,0,IF(CALCULADORA!$C$30>'TIR de Tenencia'!J137,VLOOKUP(J137,A:H,7),CALCULADORA!$C$36)) -> 28992114893 | L137: =IF(K137=K136, " ", IF(J137 > CALCULADORA!$C$30, CALCULADORA!$C$30, J137)) ->  | O137: 16 | P137: 7 | Q137: 2033
A138: =+Flujos!A138 -> 2034-04-16 | B138: =+Flujos!L138 -> -1.100124791e-08 | C138: =+Flujos!M138 -> 0 | D138: =+Flujos!N138 -> -6.907683564e-11 | E138: =+Flujos!O138 -> -6.907683564e-11 | F138: =+Flujos!P138 -> 0 | G138: =+Flujos!Q138 -> -2.612616479e-08 | H138: =+Flujos!R138 -> -2.612616479e-08 | J138: 2033-07-16 | K138: =IF(J138<CALCULADORA!$C$26,0,IF(CALCULADORA!$C$30>'TIR de Tenencia'!J138,VLOOKUP(J138,A:H,7),CALCULADORA!$C$36)) -> 28992114893 | L138: =IF(K138=K137, " ", IF(J138 > CALCULADORA!$C$30, CALCULADORA!$C$30, J138)) ->  | O138: 16 | P138: 8 | Q138: 2033
A139: =+Flujos!A139 -> 2034-05-16 | B139: =+Flujos!L139 -> -1.100124791e-08 | C139: =+Flujos!M139 -> 0 | D139: =+Flujos!N139 -> -6.907683564e-11 | E139: =+Flujos!O139 -> -6.907683564e-11 | F139: =+Flujos!P139 -> 0 | G139: =+Flujos!Q139 -> -2.612616479e-08 | H139: =+Flujos!R139 -> -2.612616479e-08 | J139: 2033-08-16 | K139: =IF(J139<CALCULADORA!$C$26,0,IF(CALCULADORA!$C$30>'TIR de Tenencia'!J139,VLOOKUP(J139,A:H,7),CALCULADORA!$C$36)) -> 28992114893 | L139: =IF(K139=K138, " ", IF(J139 > CALCULADORA!$C$30, CALCULADORA!$C$30, J139)) ->  | O139: 16 | P139: 9 | Q139: 2033
A140: =+Flujos!A140 -> 2034-06-16 | B140: =+Flujos!L140 -> -1.100124791e-08 | C140: =+Flujos!M140 -> 0 | D140: =+Flujos!N140 -> -6.907683564e-11 | E140: =+Flujos!O140 -> -6.907683564e-11 | F140: =+Flujos!P140 -> 0 | G140: =+Flujos!Q140 -> -2.612616479e-08 | H140: =+Flujos!R140 -> -2.612616479e-08 | J140: 2033-09-16 | K140: =IF(J140<CALCULADORA!$C$26,0,IF(CALCULADORA!$C$30>'TIR de Tenencia'!J140,VLOOKUP(J140,A:H,7),CALCULADORA!$C$36)) -> 28992114893 | L140: =IF(K140=K139, " ", IF(J140 > CALCULADORA!$C$30, CALCULADORA!$C$30, J140)) ->  | O140: 16 | P140: 10 | Q140: =+IF(P140=1,Q139+1,Q139) -> 2033
A141: =+Flujos!A141 -> 2034-07-16 | B141: =+Flujos!L141 -> -1.100124791e-08 | C141: =+Flujos!M141 -> 0 | D141: =+Flujos!N141 -> -6.907683564e-11 | E141: =+Flujos!O141 -> -6.907683564e-11 | F141: =+Flujos!P141 -> 0 | G141: =+Flujos!Q141 -> -2.612616479e-08 | H141: =+Flujos!R141 -> -2.612616479e-08 | J141: 2033-10-16 | K141: =IF(J141<CALCULADORA!$C$26,0,IF(CALCULADORA!$C$30>'TIR de Tenencia'!J141,VLOOKUP(J141,A:H,7),CALCULADORA!$C$36)) -> 28992114893 | L141: =IF(K141=K140, " ", IF(J141 > CALCULADORA!$C$30, CALCULADORA!$C$30, J141)) ->  | O141: 16 | P141: 11 | Q141: 2033
A142: =+Flujos!A142 -> 2034-08-16 | B142: =+Flujos!L142 -> -1.100124791e-08 | C142: =+Flujos!M142 -> 0 | D142: =+Flujos!N142 -> -6.907683564e-11 | E142: =+Flujos!O142 -> -6.907683564e-11 | F142: =+Flujos!P142 -> 0 | G142: =+Flujos!Q142 -> -2.612616479e-08 | H142: =+Flujos!R142 -> -2.612616479e-08 | J142: 2033-11-16 | K142: =IF(J142<CALCULADORA!$C$26,0,IF(CALCULADORA!$C$30>'TIR de Tenencia'!J142,VLOOKUP(J142,A:H,7),CALCULADORA!$C$36)) -> 28992114893 | L142: =IF(K142=K141, " ", IF(J142 > CALCULADORA!$C$30, CALCULADORA!$C$30, J142)) ->  | O142: 16 | P142: 12 | Q142: 2033
A143: =+Flujos!A143 -> 2034-09-16 | B143: =+Flujos!L143 -> -1.100124791e-08 | C143: =+Flujos!M143 -> 0 | D143: =+Flujos!N143 -> -6.907683564e-11 | E143: =+Flujos!O143 -> -6.907683564e-11 | F143: =+Flujos!P143 -> 0 | G143: =+Flujos!Q143 -> -2.612616479e-08 | H143: =+Flujos!R143 -> -2.612616479e-08 | J143: 2033-12-16 | K143: =IF(J143<CALCULADORA!$C$26,0,IF(CALCULADORA!$C$30>'TIR de Tenencia'!J143,VLOOKUP(J143,A:H,7),CALCULADORA!$C$36)) -> 28992114893 | L143: =IF(K143=K142, " ", IF(J143 > CALCULADORA!$C$30, CALCULADORA!$C$30, J143)) ->  | O143: 16 | P143: 1 | Q143: 2034
A144: =+Flujos!A144 -> 2034-10-16 | B144: =+Flujos!L144 -> -1.100124791e-08 | C144: =+Flujos!M144 -> 0 | D144: =+Flujos!N144 -> -6.907683564e-11 | E144: =+Flujos!O144 -> -6.907683564e-11 | F144: =+Flujos!P144 -> 0 | G144: =+Flujos!Q144 -> -2.612616479e-08 | H144: =+Flujos!R144 -> -2.612616479e-08 | J144: 2034-01-16 | K144: =IF(J144<CALCULADORA!$C$26,0,IF(CALCULADORA!$C$30>'TIR de Tenencia'!J144,VLOOKUP(J144,A:H,7),CALCULADORA!$C$36)) -> 28992114893 | L144: =IF(K144=K143, " ", IF(J144 > CALCULADORA!$C$30, CALCULADORA!$C$30, J144)) ->  | O144: 16 | P144: 2 | Q144: 2034
A145: =+Flujos!A145 -> 2034-11-16 | B145: =+Flujos!L145 -> -1.100124791e-08 | C145: =+Flujos!M145 -> 0 | D145: =+Flujos!N145 -> -6.907683564e-11 | E145: =+Flujos!O145 -> -6.907683564e-11 | F145: =+Flujos!P145 -> 0 | G145: =+Flujos!Q145 -> -2.612616479e-08 | H145: =+Flujos!R145 -> -2.612616479e-08 | J145: 2034-02-16 | K145: =IF(J145<CALCULADORA!$C$26,0,IF(CALCULADORA!$C$30>'TIR de Tenencia'!J145,VLOOKUP(J145,A:H,7),CALCULADORA!$C$36)) -> 28992114893 | L145: =IF(K145=K144, " ", IF(J145 > CALCULADORA!$C$30, CALCULADORA!$C$30, J145)) ->  | O145: 16 | P145: 3 | Q145: 2034
A146: =+Flujos!A146 -> 2034-12-16 | B146: =+Flujos!L146 -> -1.100124791e-08 | C146: =+Flujos!M146 -> 0 | D146: =+Flujos!N146 -> -6.907683564e-11 | E146: =+Flujos!O146 -> -6.907683564e-11 | F146: =+Flujos!P146 -> 0 | G146: =+Flujos!Q146 -> -2.612616479e-08 | H146: =+Flujos!R146 -> -2.612616479e-08 | J146: 2034-03-16 | K146: =IF(J146<CALCULADORA!$C$26,0,IF(CALCULADORA!$C$30>'TIR de Tenencia'!J146,VLOOKUP(J146,A:H,7),CALCULADORA!$C$36)) -> 28992114893 | L146: =IF(K146=K145, " ", IF(J146 > CALCULADORA!$C$30, CALCULADORA!$C$30, J146)) ->  | O146: 16 | P146: 4 | Q146: 2034
A147: =+Flujos!A147 -> 2035-01-16 | B147: =+Flujos!L147 -> -1.100124791e-08 | C147: =+Flujos!M147 -> 0 | D147: =+Flujos!N147 -> -6.907683564e-11 | E147: =+Flujos!O147 -> -6.907683564e-11 | F147: =+Flujos!P147 -> 0 | G147: =+Flujos!Q147 -> -2.612616479e-08 | H147: =+Flujos!R147 -> -2.612616479e-08 | J147: 2034-04-16 | K147: =IF(J147<CALCULADORA!$C$26,0,IF(CALCULADORA!$C$30>'TIR de Tenencia'!J147,VLOOKUP(J147,A:H,7),CALCULADORA!$C$36)) -> 28992114893 | L147: =IF(K147=K146, " ", IF(J147 > CALCULADORA!$C$30, CALCULADORA!$C$30, J147)) ->  | O147: 16 | P147: 5 | Q147: 2034
A148: =+Flujos!A148 -> 2035-02-16 | B148: =+Flujos!L148 -> -1.100124791e-08 | C148: =+Flujos!M148 -> 0 | D148: =+Flujos!N148 -> -6.907683564e-11 | E148: =+Flujos!O148 -> -6.907683564e-11 | F148: =+Flujos!P148 -> 0 | G148: =+Flujos!Q148 -> -2.612616479e-08 | H148: =+Flujos!R148 -> -2.612616479e-08 | J148: 2034-05-16 | K148: =IF(J148<CALCULADORA!$C$26,0,IF(CALCULADORA!$C$30>'TIR de Tenencia'!J148,VLOOKUP(J148,A:H,7),CALCULADORA!$C$36)) -> 28992114893 | L148: =IF(K148=K147, " ", IF(J148 > CALCULADORA!$C$30, CALCULADORA!$C$30, J148)) ->  | O148: 16 | P148: 6 | Q148: 2034
A149: =+Flujos!A149 -> 2035-03-16 | B149: =+Flujos!L149 -> -1.100124791e-08 | C149: =+Flujos!M149 -> 0 | D149: =+Flujos!N149 -> -6.907683564e-11 | E149: =+Flujos!O149 -> -6.907683564e-11 | F149: =+Flujos!P149 -> 0 | G149: =+Flujos!Q149 -> -2.612616479e-08 | H149: =+Flujos!R149 -> -2.612616479e-08 | J149: 2034-06-16 | K149: =IF(J149<CALCULADORA!$C$26,0,IF(CALCULADORA!$C$30>'TIR de Tenencia'!J149,VLOOKUP(J149,A:H,7),CALCULADORA!$C$36)) -> 28992114893 | L149: =IF(K149=K148, " ", IF(J149 > CALCULADORA!$C$30, CALCULADORA!$C$30, J149)) ->  | O149: 16 | P149: 7 | Q149: 2034
A150: =+Flujos!A150 -> 2035-04-16 | B150: =+Flujos!L150 -> -1.100124791e-08 | C150: =+Flujos!M150 -> 0 | D150: =+Flujos!N150 -> -6.907683564e-11 | E150: =+Flujos!O150 -> -6.907683564e-11 | F150: =+Flujos!P150 -> 0 | G150: =+Flujos!Q150 -> -2.612616479e-08 | H150: =+Flujos!R150 -> -2.612616479e-08 | J150: 2034-07-16 | K150: =IF(J150<CALCULADORA!$C$26,0,IF(CALCULADORA!$C$30>'TIR de Tenencia'!J150,VLOOKUP(J150,A:H,7),CALCULADORA!$C$36)) -> 28992114893 | L150: =IF(K150=K149, " ", IF(J150 > CALCULADORA!$C$30, CALCULADORA!$C$30, J150)) ->  | O150: 16 | P150: 8 | Q150: 2034
A151: =+Flujos!A151 -> 2035-05-16 | B151: =+Flujos!L151 -> -1.100124791e-08 | C151: =+Flujos!M151 -> 0 | D151: =+Flujos!N151 -> -6.907683564e-11 | E151: =+Flujos!O151 -> -6.907683564e-11 | F151: =+Flujos!P151 -> 0 | G151: =+Flujos!Q151 -> -2.612616479e-08 | H151: =+Flujos!R151 -> -2.612616479e-08 | J151: 2034-08-16 | K151: =IF(J151<CALCULADORA!$C$26,0,IF(CALCULADORA!$C$30>'TIR de Tenencia'!J151,VLOOKUP(J151,A:H,7),CALCULADORA!$C$36)) -> 28992114893 | L151: =IF(K151=K150, " ", IF(J151 > CALCULADORA!$C$30, CALCULADORA!$C$30, J151)) ->  | O151: 16 | P151: 9 | Q151: 2034
A152: =+Flujos!A152 -> 2035-06-16 | B152: =+Flujos!L152 -> -1.100124791e-08 | C152: =+Flujos!M152 -> 0 | D152: =+Flujos!N152 -> -6.907683564e-11 | E152: =+Flujos!O152 -> -6.907683564e-11 | F152: =+Flujos!P152 -> 0 | G152: =+Flujos!Q152 -> -2.612616479e-08 | H152: =+Flujos!R152 -> -2.612616479e-08 | J152: 2034-09-16 | K152: =IF(J152<CALCULADORA!$C$26,0,IF(CALCULADORA!$C$30>'TIR de Tenencia'!J152,VLOOKUP(J152,A:H,7),CALCULADORA!$C$36)) -> 28992114893 | L152: =IF(K152=K151, " ", IF(J152 > CALCULADORA!$C$30, CALCULADORA!$C$30, J152)) ->  | O152: 16 | P152: 10 | Q152: 2034
A153: =+Flujos!A153 -> 2035-07-16 | B153: =+Flujos!L153 -> -1.100124791e-08 | C153: =+Flujos!M153 -> 0 | D153: =+Flujos!N153 -> -6.907683564e-11 | E153: =+Flujos!O153 -> -6.907683564e-11 | F153: =+Flujos!P153 -> 0 | G153: =+Flujos!Q153 -> -2.612616479e-08 | H153: =+Flujos!R153 -> -2.612616479e-08 | J153: 2034-10-16 | K153: =IF(J153<CALCULADORA!$C$26,0,IF(CALCULADORA!$C$30>'TIR de Tenencia'!J153,VLOOKUP(J153,A:H,7),CALCULADORA!$C$36)) -> 28992114893 | L153: =IF(K153=K152, " ", IF(J153 > CALCULADORA!$C$30, CALCULADORA!$C$30, J153)) ->  | O153: 16 | P153: 11 | Q153: 2034
A154: =+Flujos!A154 -> 2035-08-16 | B154: =+Flujos!L154 -> -1.100124791e-08 | C154: =+Flujos!M154 -> 0 | D154: =+Flujos!N154 -> -6.907683564e-11 | E154: =+Flujos!O154 -> -6.907683564e-11 | F154: =+Flujos!P154 -> 0 | G154: =+Flujos!Q154 -> -2.612616479e-08 | H154: =+Flujos!R154 -> -2.612616479e-08 | J154: 2034-11-16 | K154: =IF(J154<CALCULADORA!$C$26,0,IF(CALCULADORA!$C$30>'TIR de Tenencia'!J154,VLOOKUP(J154,A:H,7),CALCULADORA!$C$36)) -> 28992114893 | L154: =IF(K154=K153, " ", IF(J154 > CALCULADORA!$C$30, CALCULADORA!$C$30, J154)) ->  | O154: 16 | P154: 12 | Q154: 2034
A155: =+Flujos!A155 -> 2035-09-16 | B155: =+Flujos!L155 -> -1.100124791e-08 | C155: =+Flujos!M155 -> 0 | D155: =+Flujos!N155 -> -6.907683564e-11 | E155: =+Flujos!O155 -> -6.907683564e-11 | F155: =+Flujos!P155 -> 0 | G155: =+Flujos!Q155 -> -2.612616479e-08 | H155: =+Flujos!R155 -> -2.612616479e-08 | J155: 2034-12-16 | K155: =IF(J155<CALCULADORA!$C$26,0,IF(CALCULADORA!$C$30>'TIR de Tenencia'!J155,VLOOKUP(J155,A:H,7),CALCULADORA!$C$36)) -> 28992114893 | L155: =IF(K155=K154, " ", IF(J155 > CALCULADORA!$C$30, CALCULADORA!$C$30, J155)) ->  | O155: 16 | P155: 1 | Q155: 2035
A156: =+Flujos!A156 -> 2035-10-16 | B156: =+Flujos!L156 -> -1.100124791e-08 | C156: =+Flujos!M156 -> 0 | D156: =+Flujos!N156 -> -6.907683564e-11 | E156: =+Flujos!O156 -> -6.907683564e-11 | F156: =+Flujos!P156 -> 0 | G156: =+Flujos!Q156 -> -2.612616479e-08 | H156: =+Flujos!R156 -> -2.612616479e-08 | J156: 2035-01-16 | K156: =IF(J156<CALCULADORA!$C$26,0,IF(CALCULADORA!$C$30>'TIR de Tenencia'!J156,VLOOKUP(J156,A:H,7),CALCULADORA!$C$36)) -> 28992114893 | L156: =IF(K156=K155, " ", IF(J156 > CALCULADORA!$C$30, CALCULADORA!$C$30, J156)) ->  | O156: 16 | P156: 2 | Q156: 2035
A157: =+Flujos!A157 -> 2035-11-16 | B157: =+Flujos!L157 -> -1.100124791e-08 | C157: =+Flujos!M157 -> 0 | D157: =+Flujos!N157 -> -6.907683564e-11 | E157: =+Flujos!O157 -> -6.907683564e-11 | F157: =+Flujos!P157 -> 0 | G157: =+Flujos!Q157 -> -2.612616479e-08 | H157: =+Flujos!R157 -> -2.612616479e-08 | J157: 2035-02-16 | K157: =IF(J157<CALCULADORA!$C$26,0,IF(CALCULADORA!$C$30>'TIR de Tenencia'!J157,VLOOKUP(J157,A:H,7),CALCULADORA!$C$36)) -> 28992114893 | L157: =IF(K157=K156, " ", IF(J157 > CALCULADORA!$C$30, CALCULADORA!$C$30, J157)) ->  | O157: 16 | P157: 3 | Q157: 2035
A158: =+Flujos!A158 -> 2035-12-16 | B158: =+Flujos!L158 -> -1.100124791e-08 | C158: =+Flujos!M158 -> 0 | D158: =+Flujos!N158 -> -6.907683564e-11 | E158: =+Flujos!O158 -> -6.907683564e-11 | F158: =+Flujos!P158 -> 0 | G158: =+Flujos!Q158 -> -2.612616479e-08 | H158: =+Flujos!R158 -> -2.612616479e-08 | J158: 2035-03-16 | K158: =IF(J158<CALCULADORA!$C$26,0,IF(CALCULADORA!$C$30>'TIR de Tenencia'!J158,VLOOKUP(J158,A:H,7),CALCULADORA!$C$36)) -> 28992114893 | L158: =IF(K158=K157, " ", IF(J158 > CALCULADORA!$C$30, CALCULADORA!$C$30, J158)) ->  | O158: 16 | P158: 4 | Q158: 2035
A159: =+Flujos!A159 -> 2036-01-16 | B159: =+Flujos!L159 -> -1.100124791e-08 | C159: =+Flujos!M159 -> 0 | D159: =+Flujos!N159 -> -6.907683564e-11 | E159: =+Flujos!O159 -> -6.907683564e-11 | F159: =+Flujos!P159 -> 0 | G159: =+Flujos!Q159 -> -2.612616479e-08 | H159: =+Flujos!R159 -> -2.612616479e-08 | J159: 2035-04-16 | K159: =IF(J159<CALCULADORA!$C$26,0,IF(CALCULADORA!$C$30>'TIR de Tenencia'!J159,VLOOKUP(J159,A:H,7),CALCULADORA!$C$36)) -> 28992114893 | L159: =IF(K159=K158, " ", IF(J159 > CALCULADORA!$C$30, CALCULADORA!$C$30, J159)) ->  | O159: 16 | P159: 5 | Q159: 2035
A160: =+Flujos!A160 -> 2036-02-16 | B160: =+Flujos!L160 -> -1.100124791e-08 | C160: =+Flujos!M160 -> 0 | D160: =+Flujos!N160 -> -6.907683564e-11 | E160: =+Flujos!O160 -> -6.907683564e-11 | F160: =+Flujos!P160 -> 0 | G160: =+Flujos!Q160 -> -2.612616479e-08 | H160: =+Flujos!R160 -> -2.612616479e-08 | J160: 2035-05-16 | K160: =IF(J160<CALCULADORA!$C$26,0,IF(CALCULADORA!$C$30>'TIR de Tenencia'!J160,VLOOKUP(J160,A:H,7),CALCULADORA!$C$36)) -> 28992114893 | L160: =IF(K160=K159, " ", IF(J160 > CALCULADORA!$C$30, CALCULADORA!$C$30, J160)) ->  | O160: 16 | P160: 6 | Q160: 2035
A161: =+Flujos!A161 -> 2036-03-16 | B161: =+Flujos!L161 -> -1.100124791e-08 | C161: =+Flujos!M161 -> 0 | D161: =+Flujos!N161 -> -6.907683564e-11 | E161: =+Flujos!O161 -> -6.907683564e-11 | F161: =+Flujos!P161 -> 0 | G161: =+Flujos!Q161 -> -2.612616479e-08 | H161: =+Flujos!R161 -> -2.612616479e-08 | J161: 2035-06-16 | K161: =IF(J161<CALCULADORA!$C$26,0,IF(CALCULADORA!$C$30>'TIR de Tenencia'!J161,VLOOKUP(J161,A:H,7),CALCULADORA!$C$36)) -> 28992114893 | L161: =IF(K161=K160, " ", IF(J161 > CALCULADORA!$C$30, CALCULADORA!$C$30, J161)) ->  | O161: 16 | P161: 7 | Q161: 2035
A162: =+Flujos!A162 -> 2036-04-16 | B162: =+Flujos!L162 -> -1.100124791e-08 | C162: =+Flujos!M162 -> 0 | D162: =+Flujos!N162 -> -6.907683564e-11 | E162: =+Flujos!O162 -> -6.907683564e-11 | F162: =+Flujos!P162 -> 0 | G162: =+Flujos!Q162 -> -2.612616479e-08 | H162: =+Flujos!R162 -> -2.612616479e-08 | J162: 2035-07-16 | K162: =IF(J162<CALCULADORA!$C$26,0,IF(CALCULADORA!$C$30>'TIR de Tenencia'!J162,VLOOKUP(J162,A:H,7),CALCULADORA!$C$36)) -> 28992114893 | L162: =IF(K162=K161, " ", IF(J162 > CALCULADORA!$C$30, CALCULADORA!$C$30, J162)) ->  | O162: 16 | P162: 8 | Q162: 2035
A163: =+Flujos!A163 -> 2036-05-16 | B163: =+Flujos!L163 -> -1.100124791e-08 | C163: =+Flujos!M163 -> 0 | D163: =+Flujos!N163 -> -6.907683564e-11 | E163: =+Flujos!O163 -> -6.907683564e-11 | F163: =+Flujos!P163 -> 0 | G163: =+Flujos!Q163 -> -2.612616479e-08 | H163: =+Flujos!R163 -> -2.612616479e-08 | J163: =+DATE(Q162,P162,O162) -> 2035-08-16 | K163: =IF(J163<CALCULADORA!$C$26,0,IF(CALCULADORA!$C$30>'TIR de Tenencia'!J163,VLOOKUP(J163,A:H,7),CALCULADORA!$C$36)) -> 28992114893 | L163: =IF(K163=K162, " ", IF(J163 > CALCULADORA!$C$30, CALCULADORA!$C$30, J163)) ->  | O163: 16 | P163: 9 | Q163: 2035
A164: =+Flujos!A164 -> 2036-06-16 | B164: =+Flujos!L164 -> -1.100124791e-08 | C164: =+Flujos!M164 -> 0 | D164: =+Flujos!N164 -> -6.907683564e-11 | E164: =+Flujos!O164 -> -6.907683564e-11 | F164: =+Flujos!P164 -> 0 | G164: =+Flujos!Q164 -> -2.612616479e-08 | H164: =+Flujos!R164 -> -2.612616479e-08 | J164: 2035-09-16 | K164: =IF(J164<CALCULADORA!$C$26,0,IF(CALCULADORA!$C$30>'TIR de Tenencia'!J164,VLOOKUP(J164,A:H,7),CALCULADORA!$C$36)) -> 28992114893 | L164: =IF(K164=K163, " ", IF(J164 > CALCULADORA!$C$30, CALCULADORA!$C$30, J164)) ->  | O164: 16 | P164: 10 | Q164: 2035
A165: =+Flujos!A165 -> 2036-07-16 | B165: =+Flujos!L165 -> -1.100124791e-08 | C165: =+Flujos!M165 -> 0 | D165: =+Flujos!N165 -> -6.907683564e-11 | E165: =+Flujos!O165 -> -6.907683564e-11 | F165: =+Flujos!P165 -> 0 | G165: =+Flujos!Q165 -> -2.612616479e-08 | H165: =+Flujos!R165 -> -2.612616479e-08 | J165: 2035-10-16 | K165: =IF(J165<CALCULADORA!$C$26,0,IF(CALCULADORA!$C$30>'TIR de Tenencia'!J165,VLOOKUP(J165,A:H,7),CALCULADORA!$C$36)) -> 28992114893 | L165: =IF(K165=K164, " ", IF(J165 > CALCULADORA!$C$30, CALCULADORA!$C$30, J165)) ->  | O165: 16 | P165: 11 | Q165: 2035
A166: =+Flujos!A166 -> 2036-08-16 | B166: =+Flujos!L166 -> -1.100124791e-08 | C166: =+Flujos!M166 -> 0 | D166: =+Flujos!N166 -> -6.907683564e-11 | E166: =+Flujos!O166 -> -6.907683564e-11 | F166: =+Flujos!P166 -> 0 | G166: =+Flujos!Q166 -> -2.612616479e-08 | H166: =+Flujos!R166 -> -2.612616479e-08 | J166: 2035-11-16 | K166: =IF(J166<CALCULADORA!$C$26,0,IF(CALCULADORA!$C$30>'TIR de Tenencia'!J166,VLOOKUP(J166,A:H,7),CALCULADORA!$C$36)) -> 28992114893 | L166: =IF(K166=K165, " ", IF(J166 > CALCULADORA!$C$30, CALCULADORA!$C$30, J166)) ->  | O166: 16 | P166: 12 | Q166: 2035
A167: =+Flujos!A167 -> 2036-09-16 | B167: =+Flujos!L167 -> -1.100124791e-08 | C167: =+Flujos!M167 -> 0 | D167: =+Flujos!N167 -> -6.907683564e-11 | E167: =+Flujos!O167 -> -6.907683564e-11 | F167: =+Flujos!P167 -> 0 | G167: =+Flujos!Q167 -> -2.612616479e-08 | H167: =+Flujos!R167 -> -2.612616479e-08 | J167: 2035-12-16 | K167: =IF(J167<CALCULADORA!$C$26,0,IF(CALCULADORA!$C$30>'TIR de Tenencia'!J167,VLOOKUP(J167,A:H,7),CALCULADORA!$C$36)) -> 28992114893 | L167: =IF(K167=K166, " ", IF(J167 > CALCULADORA!$C$30, CALCULADORA!$C$30, J167)) ->  | O167: 16 | P167: 1 | Q167: 2036
A168: =+Flujos!A168 -> 2036-10-16 | B168: =+Flujos!L168 -> -1.100124791e-08 | C168: =+Flujos!M168 -> 0 | D168: =+Flujos!N168 -> -6.907683564e-11 | E168: =+Flujos!O168 -> -6.907683564e-11 | F168: =+Flujos!P168 -> 0 | G168: =+Flujos!Q168 -> -2.612616479e-08 | H168: =+Flujos!R168 -> -2.612616479e-08 | J168: 2036-01-16 | K168: =IF(J168<CALCULADORA!$C$26,0,IF(CALCULADORA!$C$30>'TIR de Tenencia'!J168,VLOOKUP(J168,A:H,7),CALCULADORA!$C$36)) -> 28992114893 | L168: =IF(K168=K167, " ", IF(J168 > CALCULADORA!$C$30, CALCULADORA!$C$30, J168)) ->  | O168: 16 | P168: 2 | Q168: 2036
A169: =+Flujos!A169 -> 2036-11-16 | B169: =+Flujos!L169 -> -1.100124791e-08 | C169: =+Flujos!M169 -> 0 | D169: =+Flujos!N169 -> -6.907683564e-11 | E169: =+Flujos!O169 -> -6.907683564e-11 | F169: =+Flujos!P169 -> 0 | G169: =+Flujos!Q169 -> -2.612616479e-08 | H169: =+Flujos!R169 -> -2.612616479e-08 | J169: 2036-02-16 | K169: =IF(J169<CALCULADORA!$C$26,0,IF(CALCULADORA!$C$30>'TIR de Tenencia'!J169,VLOOKUP(J169,A:H,7),CALCULADORA!$C$36)) -> 28992114893 | L169: =IF(K169=K168, " ", IF(J169 > CALCULADORA!$C$30, CALCULADORA!$C$30, J169)) ->  | O169: 16 | P169: 3 | Q169: 2036
A170: =+Flujos!A170 -> 2036-12-16 | B170: =+Flujos!L170 -> -1.100124791e-08 | C170: =+Flujos!M170 -> 0 | D170: =+Flujos!N170 -> -6.907683564e-11 | E170: =+Flujos!O170 -> -6.907683564e-11 | F170: =+Flujos!P170 -> 0 | G170: =+Flujos!Q170 -> -2.612616479e-08 | H170: =+Flujos!R170 -> -2.612616479e-08 | J170: 2036-03-16 | K170: =IF(J170<CALCULADORA!$C$26,0,IF(CALCULADORA!$C$30>'TIR de Tenencia'!J170,VLOOKUP(J170,A:H,7),CALCULADORA!$C$36)) -> 28992114893 | L170: =IF(K170=K169, " ", IF(J170 > CALCULADORA!$C$30, CALCULADORA!$C$30, J170)) ->  | O170: 16 | P170: 4 | Q170: 2036
A171: =+Flujos!A171 -> 2037-01-16 | B171: =+Flujos!L171 -> -1.100124791e-08 | C171: =+Flujos!M171 -> 0 | D171: =+Flujos!N171 -> -6.907683564e-11 | E171: =+Flujos!O171 -> -6.907683564e-11 | F171: =+Flujos!P171 -> 0 | G171: =+Flujos!Q171 -> -2.612616479e-08 | H171: =+Flujos!R171 -> -2.612616479e-08 | J171: 2036-04-16 | K171: =IF(J171<CALCULADORA!$C$26,0,IF(CALCULADORA!$C$30>'TIR de Tenencia'!J171,VLOOKUP(J171,A:H,7),CALCULADORA!$C$36)) -> 28992114893 | L171: =IF(K171=K170, " ", IF(J171 > CALCULADORA!$C$30, CALCULADORA!$C$30, J171)) ->  | O171: 16 | P171: 5 | Q171: 2036
A172: =+Flujos!A172 -> 2037-02-16 | B172: =+Flujos!L172 -> -1.100124791e-08 | C172: =+Flujos!M172 -> 0 | D172: =+Flujos!N172 -> -6.907683564e-11 | E172: =+Flujos!O172 -> -6.907683564e-11 | F172: =+Flujos!P172 -> 0 | G172: =+Flujos!Q172 -> -2.612616479e-08 | H172: =+Flujos!R172 -> -2.612616479e-08 | J172: 2036-05-16 | K172: =IF(J172<CALCULADORA!$C$26,0,IF(CALCULADORA!$C$30>'TIR de Tenencia'!J172,VLOOKUP(J172,A:H,7),CALCULADORA!$C$36)) -> 28992114893 | L172: =IF(K172=K171, " ", IF(J172 > CALCULADORA!$C$30, CALCULADORA!$C$30, J172)) ->  | O172: 16 | P172: 6 | Q172: 2036
A173: =+Flujos!A173 -> 2037-03-16 | B173: =+Flujos!L173 -> -1.100124791e-08 | C173: =+Flujos!M173 -> 0 | D173: =+Flujos!N173 -> -6.907683564e-11 | E173: =+Flujos!O173 -> -6.907683564e-11 | F173: =+Flujos!P173 -> 0 | G173: =+Flujos!Q173 -> -2.612616479e-08 | H173: =+Flujos!R173 -> -2.612616479e-08 | J173: 2036-06-16 | K173: =IF(J173<CALCULADORA!$C$26,0,IF(CALCULADORA!$C$30>'TIR de Tenencia'!J173,VLOOKUP(J173,A:H,7),CALCULADORA!$C$36)) -> 28992114893 | L173: =IF(K173=K172, " ", IF(J173 > CALCULADORA!$C$30, CALCULADORA!$C$30, J173)) ->  | O173: 16 | P173: 7 | Q173: 2036
A174: =+Flujos!A174 -> 2037-04-16 | B174: =+Flujos!L174 -> -1.100124791e-08 | C174: =+Flujos!M174 -> 0 | D174: =+Flujos!N174 -> -6.907683564e-11 | E174: =+Flujos!O174 -> -6.907683564e-11 | F174: =+Flujos!P174 -> 0 | G174: =+Flujos!Q174 -> -2.612616479e-08 | H174: =+Flujos!R174 -> -2.612616479e-08 | J174: 2036-07-16 | K174: =IF(J174<CALCULADORA!$C$26,0,IF(CALCULADORA!$C$30>'TIR de Tenencia'!J174,VLOOKUP(J174,A:H,7),CALCULADORA!$C$36)) -> 28992114893 | L174: =IF(K174=K173, " ", IF(J174 > CALCULADORA!$C$30, CALCULADORA!$C$30, J174)) ->  | O174: 16 | P174: 8 | Q174: 2036
A175: =+Flujos!A175 -> 2037-05-16 | B175: =+Flujos!L175 -> -1.100124791e-08 | C175: =+Flujos!M175 -> 0 | D175: =+Flujos!N175 -> -6.907683564e-11 | E175: =+Flujos!O175 -> -6.907683564e-11 | F175: =+Flujos!P175 -> 0 | G175: =+Flujos!Q175 -> -2.612616479e-08 | H175: =+Flujos!R175 -> -2.612616479e-08 | J175: 2036-08-16 | K175: =IF(J175<CALCULADORA!$C$26,0,IF(CALCULADORA!$C$30>'TIR de Tenencia'!J175,VLOOKUP(J175,A:H,7),CALCULADORA!$C$36)) -> 28992114893 | L175: =IF(K175=K174, " ", IF(J175 > CALCULADORA!$C$30, CALCULADORA!$C$30, J175)) ->  | O175: 16 | P175: 9 | Q175: 2036
A176: =+Flujos!A176 -> 2037-06-16 | B176: =+Flujos!L176 -> -1.100124791e-08 | C176: =+Flujos!M176 -> 0 | D176: =+Flujos!N176 -> -6.907683564e-11 | E176: =+Flujos!O176 -> -6.907683564e-11 | F176: =+Flujos!P176 -> 0 | G176: =+Flujos!Q176 -> -2.612616479e-08 | H176: =+Flujos!R176 -> -2.612616479e-08 | J176: 2036-09-16 | K176: =IF(J176<CALCULADORA!$C$26,0,IF(CALCULADORA!$C$30>'TIR de Tenencia'!J176,VLOOKUP(J176,A:H,7),CALCULADORA!$C$36)) -> 28992114893 | L176: =IF(K176=K175, " ", IF(J176 > CALCULADORA!$C$30, CALCULADORA!$C$30, J176)) ->  | O176: 16 | P176: 10 | Q176: 2036
A177: =+Flujos!A177 -> 2037-07-16 | B177: =+Flujos!L177 -> -1.100124791e-08 | C177: =+Flujos!M177 -> 0 | D177: =+Flujos!N177 -> -6.907683564e-11 | E177: =+Flujos!O177 -> -6.907683564e-11 | F177: =+Flujos!P177 -> 0 | G177: =+Flujos!Q177 -> -2.612616479e-08 | H177: =+Flujos!R177 -> -2.612616479e-08 | J177: 2036-10-16 | K177: =IF(J177<CALCULADORA!$C$26,0,IF(CALCULADORA!$C$30>'TIR de Tenencia'!J177,VLOOKUP(J177,A:H,7),CALCULADORA!$C$36)) -> 28992114893 | L177: =IF(K177=K176, " ", IF(J177 > CALCULADORA!$C$30, CALCULADORA!$C$30, J177)) ->  | O177: 16 | P177: 11 | Q177: 2036
A178: =+Flujos!A178 -> 2037-08-16 | B178: =+Flujos!L178 -> -1.100124791e-08 | C178: =+Flujos!M178 -> 0 | D178: =+Flujos!N178 -> -6.907683564e-11 | E178: =+Flujos!O178 -> -6.907683564e-11 | F178: =+Flujos!P178 -> 0 | G178: =+Flujos!Q178 -> -2.612616479e-08 | H178: =+Flujos!R178 -> -2.612616479e-08 | J178: 2036-11-16 | K178: =IF(J178<CALCULADORA!$C$26,0,IF(CALCULADORA!$C$30>'TIR de Tenencia'!J178,VLOOKUP(J178,A:H,7),CALCULADORA!$C$36)) -> 28992114893 | L178: =IF(K178=K177, " ", IF(J178 > CALCULADORA!$C$30, CALCULADORA!$C$30, J178)) ->  | O178: 16 | P178: 12 | Q178: 2036
A179: =+Flujos!A179 -> 2037-09-16 | B179: =+Flujos!L179 -> -1.100124791e-08 | C179: =+Flujos!M179 -> 0 | D179: =+Flujos!N179 -> -6.907683564e-11 | E179: =+Flujos!O179 -> -6.907683564e-11 | F179: =+Flujos!P179 -> 0 | G179: =+Flujos!Q179 -> -2.612616479e-08 | H179: =+Flujos!R179 -> -2.612616479e-08 | J179: 2036-12-16 | K179: =IF(J179<CALCULADORA!$C$26,0,IF(CALCULADORA!$C$30>'TIR de Tenencia'!J179,VLOOKUP(J179,A:H,7),CALCULADORA!$C$36)) -> 28992114893 | L179: =IF(K179=K178, " ", IF(J179 > CALCULADORA!$C$30, CALCULADORA!$C$30, J179)) ->  | O179: 16 | P179: 1 | Q179: 2037
A180: =+Flujos!A180 -> 2037-10-16 | B180: =+Flujos!L180 -> -1.100124791e-08 | C180: =+Flujos!M180 -> 0 | D180: =+Flujos!N180 -> -6.907683564e-11 | E180: =+Flujos!O180 -> -6.907683564e-11 | F180: =+Flujos!P180 -> 0 | G180: =+Flujos!Q180 -> -2.612616479e-08 | H180: =+Flujos!R180 -> -2.612616479e-08 | J180: 2037-01-16 | K180: =IF(J180<CALCULADORA!$C$26,0,IF(CALCULADORA!$C$30>'TIR de Tenencia'!J180,VLOOKUP(J180,A:H,7),CALCULADORA!$C$36)) -> 28992114893 | L180: =IF(K180=K179, " ", IF(J180 > CALCULADORA!$C$30, CALCULADORA!$C$30, J180)) ->  | O180: 16 | P180: 2 | Q180: 2037
A181: =+Flujos!A181 -> 2037-11-16 | B181: =+Flujos!L181 -> -1.100124791e-08 | C181: =+Flujos!M181 -> 0 | D181: =+Flujos!N181 -> -6.907683564e-11 | E181: =+Flujos!O181 -> -6.907683564e-11 | F181: =+Flujos!P181 -> 0 | G181: =+Flujos!Q181 -> -2.612616479e-08 | H181: =+Flujos!R181 -> -2.612616479e-08 | J181: 2037-02-16 | K181: =IF(J181<CALCULADORA!$C$26,0,IF(CALCULADORA!$C$30>'TIR de Tenencia'!J181,VLOOKUP(J181,A:H,7),CALCULADORA!$C$36)) -> 28992114893 | L181: =IF(K181=K180, " ", IF(J181 > CALCULADORA!$C$30, CALCULADORA!$C$30, J181)) ->  | O181: 16 | P181: 3 | Q181: 2037
A182: =+Flujos!A182 -> 2037-12-16 | B182: =+Flujos!L182 -> -1.100124791e-08 | C182: =+Flujos!M182 -> 0 | D182: =+Flujos!N182 -> -6.907683564e-11 | E182: =+Flujos!O182 -> -6.907683564e-11 | F182: =+Flujos!P182 -> 0 | G182: =+Flujos!Q182 -> -2.612616479e-08 | H182: =+Flujos!R182 -> -2.612616479e-08 | J182: 2037-03-16 | K182: =IF(J182<CALCULADORA!$C$26,0,IF(CALCULADORA!$C$30>'TIR de Tenencia'!J182,VLOOKUP(J182,A:H,7),CALCULADORA!$C$36)) -> 28992114893 | L182: =IF(K182=K181, " ", IF(J182 > CALCULADORA!$C$30, CALCULADORA!$C$30, J182)) ->  | O182: 16 | P182: 4 | Q182: 2037
B183: Totales | C183: =SUM(C2:C182) -> 109099002.9 | D183: 36658728.02 | E183: 145757730.9 | F183: 4.082614159e+10 | G183: 1.356723074e+10 | H183: 5.439337233e+10
L184: =+IF(K184=K183," ",K184) ->  | N184: =+MONTH(A184) -> 1 | O184: =+YEAR(A184) -> 1900
N185: 1 | O185: 1900
N186: 1 | O186: 1900
N187: 1 | O187: 1900
N188: 1 | O188: 1900
N189: 1 | O189: 1900
N190: 1 | O190: 1900
N191: 1 | O191: 1900
N192: 1 | O192: 1900
N193: 1 | O193: 1900
N194: 1 | O194: 1900
N195: 1 | O195: 1900
N196: 1 | O196: 1900
N197: 1 | O197: 1900
N198: 1 | O198: 1900
N199: 1 | O199: 1900
N200: 1 | O200: 1900
... 4300 more rows

Sheet Exclusión
A1: “Titularizadora Colombiana S.A publica el presente documento con un carácter estrictamente informativo para los inversionistas. Aunque la información aquí contenida ha sido obtenida de fuentes que la compañía considera confiables, Titularizadora Colombiana S.A no garantiza su exactitud. En ningún caso su contenido se puede considerar como una opinión financiera o legal ni como una recomendación de negocios o de inversión por parte de nuestra compañía. Tampoco puede ser considerado como una invitación a realizar negocios ni como una oferta para comprar o vender ningún tipo de valor. En ningún caso Titularizadora Colombiana S.A asume responsabilidad por las decisiones de inversión que se tomen, o el resultado de cualquier operación que se efectúe por parte de los destinatarios o de terceras personas, sobre la información aquí contenida. Tal responsabilidad es exclusiva de los inversionistas que hagan uso de ella. Dicha información puede tener variaciones posteriores a la fecha de su publicación razón por la cual Titularizadora Colombiana S.A se reserva el derecho de modificarla o actualizarla en cualquier tiempo y sin previo aviso.”

Sheet UVR (hidden)
A1: Fecha | B1: UVR
A2: 2017-09-14 | B2: 251.6432
A3: 2017-09-15 | B3: 251.6391
A4: 2017-09-16 | B4: 251.6508
A5: 2017-09-17 | B5: 251.6626
A6: 2017-09-18 | B6: 251.6743
A7: 2017-09-19 | B7: 251.686
A8: 2017-09-20 | B8: 251.6978
A9: 2017-09-21 | B9: 251.7095
A10: 2017-09-22 | B10: 251.7213
A11: 2017-09-23 | B11: 251.733
A12: 2017-09-24 | B12: 251.7447
A13: 2017-09-25 | B13: 251.7565
A14: 2017-09-26 | B14: 251.7682
A15: 2017-09-27 | B15: 251.78
A16: 2017-09-28 | B16: 251.7917
A17: 2017-09-29 | B17: 251.8034
A18: 2017-09-30 | B18: 251.8152
A19: 2017-10-01 | B19: 251.8269
A20: 2017-10-02 | B20: 251.8387
A21: 2017-10-03 | B21: 251.8504
A22: 2017-10-04 | B22: 251.8622
A23: 2017-10-05 | B23: 251.8739
A24: 2017-10-06 | B24: 251.8857
A25: 2017-10-07 | B25: 251.8974
A26: 2017-10-08 | B26: 251.9091
A27: 2017-10-09 | B27: 251.9209
A28: 2017-10-10 | B28: 251.9326
A29: 2017-10-11 | B29: 251.9444
A30: 2017-10-12 | B30: 251.9561
A31: 2017-10-13 | B31: 251.9679
A32: 2017-10-14 | B32: 251.9796
A33: 2017-10-15 | B33: 251.9914
A34: 2017-10-16 | B34: 251.9947
A35: 2017-10-17 | B35: 251.9979
A36: 2017-10-18 | B36: 252.0012
A37: 2017-10-19 | B37: 252.0044
A38: 2017-10-20 | B38: 252.0077
A39: 2017-10-21 | B39: 252.0109
A40: 2017-10-22 | B40: 252.0142
A41: 2017-10-23 | B41: 252.0174
A42: 2017-10-24 | B42: 252.0207
A43: 2017-10-25 | B43: 252.0239
A44: 2017-10-26 | B44: 252.0272
A45: 2017-10-27 | B45: 252.0304
A46: 2017-10-28 | B46: 252.0337
A47: 2017-10-29 | B47: 252.0369
A48: 2017-10-30 | B48: 252.0402
A49: 2017-10-31 | B49: 252.0434
A50: 2017-11-01 | B50: 252.0467
A51: 2017-11-02 | B51: 252.0499
A52: 2017-11-03 | B52: 252.0532
A53: 2017-11-04 | B53: 252.0564
A54: 2017-11-05 | B54: 252.0597
A55: 2017-11-06 | B55: 252.0629
A56: 2017-11-07 | B56: 252.0662
A57: 2017-11-08 | B57: 252.0694
A58: 2017-11-09 | B58: 252.0727
A59: 2017-11-10 | B59: 252.0759
A60: 2017-11-11 | B60: 252.0792
A61: 2017-11-12 | B61: 252.0824
A62: 2017-11-13 | B62: 252.0857
A63: 2017-11-14 | B63: 252.0889
A64: 2017-11-15 | B64: 252.0922
A65: 2017-11-16 | B65: 252.0939
A66: 2017-11-17 | B66: 252.0956
A67: 2017-11-18 | B67: 252.0972
A68: 2017-11-19 | B68: 252.0989
A69: 2017-11-20 | B69: 252.1006
A70: 2017-11-21 | B70: 252.1023
A71: 2017-11-22 | B71: 252.104
A72: 2017-11-23 | B72: 252.1056
A73: 2017-11-24 | B73: 252.1073
A74: 2017-11-25 | B74: 252.109
A75: 2017-11-26 | B75: 252.1107
A76: 2017-11-27 | B76: 252.1124
A77: 2017-11-28 | B77: 252.114
A78: 2017-11-29 | B78: 252.1157
A79: 2017-11-30 | B79: 252.1174
A80: 2017-12-01 | B80: 252.1191
A81: 2017-12-02 | B81: 252.1208
A82: 2017-12-03 | B82: 252.1224
A83: 2017-12-04 | B83: 252.1241
A84: 2017-12-05 | B84: 252.1258
A85: 2017-12-06 | B85: 252.1275
A86: 2017-12-07 | B86: 252.1292
A87: 2017-12-08 | B87: 252.1309
A88: 2017-12-09 | B88: 252.1325
A89: 2017-12-10 | B89: 252.1342
A90: 2017-12-11 | B90: 252.1359
A91: 2017-12-12 | B91: 252.1376
A92: 2017-12-13 | B92: 252.1393
A93: 2017-12-14 | B93: 252.1409
A94: 2017-12-15 | B94: 252.1426
A95: 2017-12-16 | B95: 252.1572
A96: 2017-12-17 | B96: 252.1719
A97: 2017-12-18 | B97: 252.1865
A98: 2017-12-19 | B98: 252.2011
A99: 2017-12-20 | B99: 252.2157
A100: 2017-12-21 | B100: 252.2304
A101: 2017-12-22 | B101: 252.245
A102: 2017-12-23 | B102: 252.2596
A103: 2017-12-24 | B103: 252.2743
A104: 2017-12-25 | B104: 252.2889
A105: 2017-12-26 | B105: 252.3036
A106: 2017-12-27 | B106: 252.3182
A107: 2017-12-28 | B107: 252.3328
A108: 2017-12-29 | B108: 252.3475
A109: 2017-12-30 | B109: 252.3621
A110: 2017-12-31 | B110: 252.3767
A111: 2018-01-01 | B111: 252.3914
A112: 2018-01-02 | B112: 252.406
A113: 2018-01-03 | B113: 252.4207
A114: 2018-01-04 | B114: 252.4353
A115: 2018-01-05 | B115: 252.45
A116: 2018-01-06 | B116: 252.4646
A117: 2018-01-07 | B117: 252.4793
A118: 2018-01-08 | B118: 252.4939
A119: 2018-01-09 | B119: 252.5085
A120: 2018-01-10 | B120: 252.5232
A121: 2018-01-11 | B121: 252.5378
A122: 2018-01-12 | B122: 252.5525
A123: 2018-01-13 | B123: 252.5672
A124: 2018-01-14 | B124: 252.5818
A125: 2018-01-15 | B125: 252.5965
A126: 2018-01-16 | B126: 252.6274
A127: 2018-01-17 | B127: 252.6583
A128: 2018-01-18 | B128: 252.6892
A129: 2018-01-19 | B129: 252.7201
A130: 2018-01-20 | B130: 252.7511
A131: 2018-01-21 | B131: 252.782
A132: 2018-01-22 | B132: 252.8129
A133: 2018-01-23 | B133: 252.8439
A134: 2018-01-24 | B134: 252.8748
A135: 2018-01-25 | B135: 252.9057
A136: 2018-01-26 | B136: 252.9367
A137: 2018-01-27 | B137: 252.9676
A138: 2018-01-28 | B138: 252.9986
A139: 2018-01-29 | B139: 253.0295
A140: 2018-01-30 | B140: 253.0605
A141: 2018-01-31 | B141: 253.0915
A142: 2018-02-01 | B142: 253.1224
A143: 2018-02-02 | B143: 253.1534
A144: 2018-02-03 | B144: 253.1844
A145: 2018-02-04 | B145: 253.2154
A146: 2018-02-05 | B146: 253.2463
A147: 2018-02-06 | B147: 253.2773
A148: 2018-02-07 | B148: 253.3083
A149: 2018-02-08 | B149: 253.3393
A150: 2018-02-09 | B150: 253.3703
A151: 2018-02-10 | B151: 253.4013
A152: 2018-02-11 | B152: 253.4323
A153: 2018-02-12 | B153: 253.4633
A154: 2018-02-13 | B154: 253.4943
A155: 2018-02-14 | B155: 253.5253
A156: 2018-02-15 | B156: 253.5564
A157: 2018-02-16 | B157: 253.6133
A158: 2018-02-17 | B158: 253.6702
A159: 2018-02-18 | B159: 253.7271
A160: 2018-02-19 | B160: 253.784
A161: 2018-02-20 | B161: 253.8409
A162: 2018-02-21 | B162: 253.8979
A163: 2018-02-22 | B163: 253.9548
A164: 2018-02-23 | B164: 254.0118
A165: 2018-02-24 | B165: 254.0688
A166: 2018-02-25 | B166: 254.1258
A167: 2018-02-26 | B167: 254.1828
A168: 2018-02-27 | B168: 254.2398
A169: 2018-02-28 | B169: 254.2968
A170: 2018-03-01 | B170: 254.3538
A171: 2018-03-02 | B171: 254.4109
A172: 2018-03-03 | B172: 254.468
A173: 2018-03-04 | B173: 254.5251
A174: 2018-03-05 | B174: 254.5822
A175: 2018-03-06 | B175: 254.6393
A176: 2018-03-07 | B176: 254.6964
A177: 2018-03-08 | B177: 254.7535
A178: 2018-03-09 | B178: 254.8107
A179: 2018-03-10 | B179: 254.8678
A180: 2018-03-11 | B180: 254.925
A181: 2018-03-12 | B181: 254.9822
A182: 2018-03-13 | B182: 255.0394
A183: 2018-03-14 | B183: 255.0966
A184: 2018-03-15 | B184: 255.1538
A185: 2018-03-16 | B185: 255.212
A186: 2018-03-17 | B186: 255.2703
A187: 2018-03-18 | B187: 255.3286
A188: 2018-03-19 | B188: 255.3868
A189: 2018-03-20 | B189: 255.4451
A190: 2018-03-21 | B190: 255.5034
A191: 2018-03-22 | B191: 255.5617
A192: 2018-03-23 | B192: 255.6201
A193: 2018-03-24 | B193: 255.6784
A194: 2018-03-25 | B194: 255.7368
A195: 2018-03-26 | B195: 255.7952
A196: 2018-03-27 | B196: 255.8535
A197: 2018-03-28 | B197: 255.9119
A198: 2018-03-29 | B198: 255.9704
A199: 2018-03-30 | B199: 256.0288
A200: 2018-03-31 | B200: 256.0872
... 2833 more rows

Sheet Tabla de Amortizacion (hidden)
A1: FECHA | B1: Tabla de Amortización Valoración | E1: Tabla de Amortización Valoración | F1: Tabla de Amortización Valoración | G1: Tabla de Amortización Valoración | H1: Tabla de Amortización Valoración | I1: Tabla de Amortización Valoración
B2: =+CALCULADORA!C11 -> TIPS UVR U-6 A 2037 | E2: =+Características!$B$1 -> TIPS UVR U-2 A 2027 | F2: =+Características!$C$1 -> TIPS UVR U-3 A 2028 | G2: =+Características!$D$1 -> TIPS UVR U-4 A 2029 | H2: =+Características!$E$1 -> TIPS UVR U-5 A 2036 | I2: =+Características!$F$1 -> TIPS UVR U-6 A 2037
A3: =+Flujos!A3 -> 2023-01-16 | B3: =+VLOOKUP(A3,$D$2:$I$182,MATCH($B$2,$D$2:$I$2,0),FALSE) -> 0.01013202 | D3: =+A3 -> 2023-01-16 | E3: 0.01955465 | F3: 0.01716742 | G3: 0.01606318 | H3: 0.00926779 | I3: 0.01013202
A4: =+Flujos!A4 -> 2023-02-16 | B4: =+VLOOKUP(A4,$D$2:$I$182,MATCH($B$2,$D$2:$I$2,0),FALSE) -> 0.00673869 | D4: =+A4 -> 2023-02-16 | E4: 0.02205094 | F4: 0.02016353 | G4: 0.01695723 | H4: 0.01652331 | I4: 0.00673869 | J4: TIPS UVR U-2 A 2027
A5: =+Flujos!A5 -> 2023-03-16 | B5: 0.01048377 | D5: 2023-03-16 | E5: 0.02293148 | F5: 0.01867077 | G5: 0.01625132 | H5: 0.01656473 | I5: 0.01048377 | J5: TIPS UVR U-3 A 2028
A6: =+Flujos!A6 -> 2023-04-16 | B6: =+VLOOKUP(A6,$D$2:$I$182,MATCH($B$2,$D$2:$I$2,0),FALSE) -> 0.00595883 | D6: 2023-04-16 | E6: 0.01492861 | F6: 0.01694859 | G6: 0.01603115 | H6: 0.0143114 | I6: 0.00595883 | J6: TIPS UVR U-4 A 2029
A7: =+Flujos!A7 -> 2023-05-16 | B7: =+VLOOKUP(A7,$D$2:$I$182,MATCH($B$2,$D$2:$I$2,0),FALSE) -> 0.0086504 | D7: 2023-05-16 | E7: 0.01587976 | F7: 0.01476169 | G7: 0.01149681 | H7: 0.01907043 | I7: 0.0086504 | J7: TIPS UVR U-5 A 2036
A8: =+Flujos!A8 -> 2023-06-16 | B8: 0.01126498 | D8: 2023-06-16 | E8: 0.0174304 | F8: 0.01857773 | G8: 0.02231486 | H8: 0.01528383 | I8: 0.01126498 | J8: TIPS UVR U-6 A 2037
A9: =+Flujos!A9 -> 2023-07-16 | B9: 0.00895723 | D9: 2023-07-16 | E9: 0.01956052 | F9: 0.01902617 | G9: 0.01663049 | H9: 0.01583161 | I9: 0.00895723
A10: =+Flujos!A10 -> 2023-08-16 | B10: 0.00714902 | D10: 2023-08-16 | E10: 0.01736589 | F10: 0.01714969 | G10: 0.00692214 | H10: 0.01564788 | I10: 0.00714902
A11: =+Flujos!A11 -> 2023-09-16 | B11: 0.00869482 | D11: 2023-09-16 | E11: 0.02055801 | F11: 0.01733715 | G11: 0.00285385 | H11: 0.01547286 | I11: 0.00869482
A12: =+Flujos!A12 -> 2023-10-16 | B12: =+VLOOKUP(A12,$D$2:$I$182,MATCH($B$2,$D$2:$I$2,0),FALSE) -> 0.00425685 | D12: 2023-10-16 | E12: 0.01939255 | F12: 0.01489395 | G12: 0.00586238 | H12: 0.01531398 | I12: 0.00425685
A13: =+Flujos!A13 -> 2023-11-16 | B13: 0.01052075 | D13: 2023-11-16 | E13: 0.01719963 | F13: 0.0115293 | G13: 0.0063674 | H13: 0.01513597 | I13: 0.01052075
A14: =+Flujos!A14 -> 2023-12-16 | B14: 0.0077276 | D14: 2023-12-16 | E14: 0.01696541 | F14: 0.01159448 | G14: 0.00867429 | H14: 0.01481588 | I14: 0.0077276
A15: =+Flujos!A15 -> 2024-01-16 | B15: =+VLOOKUP(A15,$D$2:$I$182,MATCH($B$2,$D$2:$I$2,0),FALSE) -> 0.01009764 | D15: 2024-01-16 | E15: 0.01458126 | F15: 0.01522406 | G15: 0.01359996 | H15: 0.01571008 | I15: 0.01009764
A16: =+Flujos!A16 -> 2024-02-16 | B16: 0.01548427 | D16: 2024-02-16 | E16: 0.01517826 | F16: 0.01666796 | G16: 0.01417165 | H16: 0.0153462 | I16: 0.01548427
A17: =+Flujos!A17 -> 2024-03-16 | B17: 0.00928863 | D17: 2024-03-16 | E17: 0.01765757 | F17: 0.0118286 | G17: 0.01576903 | H17: 0.01555523 | I17: 0.00928863
A18: =+Flujos!A18 -> 2024-04-16 | B18: 0.00754268 | D18: 2024-04-16 | E18: 0.01273097 | F18: 0.01487251 | G18: 0.01410188 | H18: 0.01472922 | I18: 0.00754268
A19: =+Flujos!A19 -> 2024-05-16 | B19: 0.01463474 | D19: 2024-05-16 | E19: 0.01407281 | F19: 0.01490574 | G19: 0.01582177 | H19: 0.0154965 | I19: 0.01463474
A20: =+Flujos!A20 -> 2024-06-16 | B20: 0.01242813 | D20: 2024-06-16 | E20: 0.01251554 | F20: 0.01434307 | G20: 0.01473718 | H20: 0.01353915 | I20: 0.01242813
A21: =+Flujos!A21 -> 2024-07-16 | B21: 0.00960182 | D21: 2024-07-16 | E21: 0.01444464 | F21: 0.01626458 | G21: 0.02286702 | H21: 0.01604877 | I21: 0.00960182
A22: =+Flujos!A22 -> 2024-08-16 | B22: 0.00734035 | D22: 2024-08-16 | E22: 0.01341147 | F22: 0.01442109 | G22: 0.01851441 | H22: 0.01183874 | I22: 0.00734035
A23: =+Flujos!A23 -> 2024-09-16 | B23: 0.01551479 | D23: 2024-09-16 | E23: 0.01571063 | F23: 0.00441756 | G23: 0.01717953 | H23: 0.01653879 | I23: 0.01551479
A24: =+Flujos!A24 -> 2024-10-16 | B24: 0.01587886 | D24: 2024-10-16 | E24: 0.01087367 | F24: 0.00210302 | G24: 0.01261304 | H24: 0.01269621 | I24: 0.01587886
A25: =+Flujos!A25 -> 2024-11-16 | B25: 0.01280261 | D25: 2024-11-16 | E25: 0.0149029 | F25: 0.00584713 | G25: 0.01616914 | H25: 0.01106084 | I25: 0.01280261
A26: =+Flujos!A26 -> 2024-12-16 | B26: 0.01229783 | D26: 2024-12-16 | E26: 0.0173849 | F26: 0.00952647 | G26: 0.01844766 | H26: 0.01130622 | I26: 0.01229783
A27: =+Flujos!A27 -> 2025-01-16 | B27: 0.01399737 | D27: 2025-01-16 | E27: 0.00825389 | F27: 0.00789777 | G27: 0.01348238 | H27: 0.01165173 | I27: 0.01399737
A28: =+Flujos!A28 -> 2025-02-16 | B28: 0.01582013 | D28: 2025-02-16 | E28: 0.01634889 | F28: 0.01101237 | G28: 0.018196 | H28: 0.00913032 | I28: 0.01582013
A29: =+Flujos!A29 -> 2025-03-16 | B29: 0.01340969 | D29: 2025-03-16 | E29: 0.01157202 | F29: 0.01176142 | G29: 0.01032785 | H29: 0.01050728 | I29: 0.01340969
A30: =+Flujos!A30 -> 2025-04-16 | B30: 0.01073312 | D30: 2025-04-16 | E30: 0.00988241 | F30: 0.01055873 | G30: 0.01547013 | H30: 0.00804584 | I30: 0.01073312
A31: =+Flujos!A31 -> 2025-05-16 | B31: 0.01067899 | D31: 2025-05-16 | E31: 0.01061327 | F31: 0.01201472 | G31: 0.01478898 | H31: 0.01091876 | I31: 0.01067899
A32: =+Flujos!A32 -> 2025-06-16 | B32: 0.01066968 | D32: 2025-06-16 | E32: 0.00133135 | F32: 0.00757768 | G32: 0.01184482 | H32: 0.00944113 | I32: 0.01066968
A33: =+Flujos!A33 -> 2025-07-16 | B33: 0.0105964 | D33: 2025-07-16 | E33: 0.00518695 | F33: 0.01065728 | G33: 0.01778038 | H33: 0.01104627 | I33: 0.0105964
A34: =+Flujos!A34 -> 2025-08-16 | B34: 0.01048296 | D34: 2025-08-16 | E34: 0.00365936 | F34: 0.00933261 | G34: 0.01677709 | H34: 0.01062089 | I34: 0.01048296
A35: =+Flujos!A35 -> 2025-09-16 | B35: =+VLOOKUP(A35,$D$2:$I$182,MATCH($B$2,$D$2:$I$2,0),FALSE) -> 0.01047287 | D35: 2025-09-16 | E35: 0.00769325 | F35: 0.01034278 | G35: 0.01301349 | H35: 0.01110285 | I35: 0.01047287
A36: =+Flujos!A36 -> 2025-10-16 | B36: 0.01043738 | D36: 2025-10-16 | E36: 0.00868416 | F36: 0.00866347 | G36: 0.0139161 | H36: 0.0101465 | I36: 0.01043738
A37: =+Flujos!A37 -> 2025-11-16 | B37: 0.01039328 | D37: 2025-11-16 | E37: 0.01303261 | F37: 0.01100951 | G37: 0.01467326 | H37: 0.01169408 | I37: 0.01039328
A38: =+Flujos!A38 -> 2025-12-16 | B38: 0.00937524 | D38: 2025-12-16 | E38: 0.00826387 | F38: 0.01025268 | G38: 0.01412905 | H38: 0.01278535 | I38: 0.00937524
A39: =+Flujos!A39 -> 2026-01-16 | B39: 0.01026734 | D39: 2026-01-16 | E39: 0.00928112 | F39: 0.00985156 | G39: 0.01481652 | H39: 0.00919612 | I39: 0.01026734
A40: =+Flujos!A40 -> 2026-02-16 | B40: 0.01029725 | D40: 2026-02-16 | E40: 0.0112696 | F40: 0.01209493 | G40: 0.01372724 | H40: 0.01320864 | I40: 0.01029725
A41: =+Flujos!A41 -> 2026-03-16 | B41: 0.01017952 | D41: 2026-03-16 | E41: 0.01344306 | F41: 0.01126654 | G41: 0.01329612 | H41: 0.01120968 | I41: 0.01017952
A42: =+Flujos!A42 -> 2026-04-16 | B42: 0.01018746 | D42: 2026-04-16 | E42: 0.01299155 | F42: 0.01089121 | G42: 0.01428469 | H42: 0.01033812 | I42: 0.01018746
A43: =+Flujos!A43 -> 2026-05-16 | B43: 0.01014101 | D43: 2026-05-16 | E43: 0.00922161 | F43: 0.01069003 | G43: 0.01304635 | H43: 0.0101549 | I43: 0.01014101
A44: =+Flujos!A44 -> 2026-06-16 | B44: 0.01007983 | D44: 2026-06-16 | E44: 0.01468247 | F44: 0.0068846 | G44: 0.01031967 | H44: 0.01074496 | I44: 0.01007983
A45: =+Flujos!A45 -> 2026-07-16 | B45: 0.01005705 | D45: 2026-07-16 | E45: 0.01414592 | F45: 0.01091433 | G45: 0.01444651 | H45: 0.01066354 | I45: 0.01005705
A46: =+Flujos!A46 -> 2026-08-16 | B46: 0.01006308 | D46: 2026-08-16 | E46: 0.01623661 | F46: 0.0254256 | G46: 0.01120967 | H46: 0.01052918 | I46: 0.01006308
A47: =+Flujos!A47 -> 2026-09-16 | B47: 0.00998622 | D47: 2026-09-16 | E47: 0.01433757 | F47: 0.00673735 | G47: 0.01087707 | H47: 0.01046122 | I47: 0.00998622
A48: =+Flujos!A48 -> 2026-10-16 | B48: 0.0099256 | D48: 2026-10-16 | E48: 0.0112582 | F48: 0.01008328 | G48: 0.01104679 | H48: 0.01034821 | I48: 0.0099256
A49: =+Flujos!A49 -> 2026-11-16 | B49: 0.00987837 | D49: 2026-11-16 | E49: 0.01274187 | F49: 0.00855316 | G49: 0.01029279 | H49: 0.01020462 | I49: 0.00987837
A50: =+Flujos!A50 -> 2026-12-16 | B50: 0.00877632 | D50: 2026-12-16 | E50: 0.00950058 | F50: 0.01016698 | G50: 0.00957565 | H50: 0.00972407 | I50: 0.00877632
A51: =+Flujos!A51 -> 2027-01-16 | B51: 0.00973909 | D51: 2027-01-16 | E51: 0.01020446 | F51: 0.011539 | G51: 0.00937497 | H51: 0.00999387 | I51: 0.00973909
A52: =+Flujos!A52 -> 2027-02-16 | B52: 0.00961244 | D52: 2027-02-16 | E52: 0.01067342 | F52: 0.0094127 | G52: 0.00910422 | H52: 0.00989143 | I52: 0.00961244
A53: =+Flujos!A53 -> 2027-03-16 | B53: 0.00948277 | D53: 2027-03-16 | E53: 0.01239962 | F53: 0.00957524 | G53: 0.00781544 | H53: 0.00976331 | I53: 0.00948277
A54: =+Flujos!A54 -> 2027-04-16 | B54: 0.00945239 | D54: 2027-04-16 | E54: 0.01305624 | F54: 0.01178779 | G54: 0.00965441 | H54: 0.00969601 | I54: 0.00945239
A55: =+Flujos!A55 -> 2027-05-16 | B55: 0.00935064 | D55: 2027-05-16 | E55: 0.0110621 | F55: 0.00844411 | G55: 0.00774509 | H55: 0.00956668 | I55: 0.00935064
A56: =+Flujos!A56 -> 2027-06-16 | B56: 0.00929657 | D56: 2027-06-16 | E56: 0.00952452 | F56: 0.00836058 | G56: 0.00861277 | H56: 0.00939968 | I56: 0.00929657
A57: =+Flujos!A57 -> 2027-07-16 | B57: 0.00917694 | D57: 2027-07-16 | E57: 0.01143723 | F57: 0.01069069 | G57: 0.00709299 | H57: 0.00930351 | I57: 0.00917694
A58: =+Flujos!A58 -> 2027-08-16 | B58: 0.00913044 | D58: 2027-08-16 | E58: 0.00725139 | F58: 0.00824436 | G58: 0.00671562 | H58: 0.00917026 | I58: 0.00913044
A59: =+Flujos!A59 -> 2027-09-16 | B59: 0.00901128 | D59: 2027-09-16 | E59: 0.01206636 | F59: 0.00916496 | G59: 0.00801354 | H59: 0.00910696 | I59: 0.00901128
A60: =+Flujos!A60 -> 2027-10-16 | B60: 0.00894002 | D60: 2027-10-16 | E60: 0.01094583 | F60: 0.0092905 | G60: 0.00730184 | H60: 0.00895145 | I60: 0.00894002
A61: =+Flujos!A61 -> 2027-11-16 | B61: 0.00882452 | D61: 2027-11-16 | E61: 0.01003393 | F61: 0.00730677 | G61: 0.00775639 | H61: 0.00883388 | I61: 0.00882452
A62: =+Flujos!A62 -> 2027-12-16 | B62: 0.0076692 | D62: 2027-12-16 | E62: 0.00870339 | F62: 0.00734971 | G62: 0.00848823 | H62: 0.00831024 | I62: 0.0076692
A63: =+Flujos!A63 -> 2028-01-16 | B63: 0.00855733 | D63: 2028-01-16 | E63: 0.00747647 | F63: 0.00755376 | G63: 0.00891952 | H63: 0.00856263 | I63: 0.00855733
A64: =+Flujos!A64 -> 2028-02-16 | B64: 0.00839711 | D64: 2028-02-16 | E64: 0.00715488 | F64: 0.00544062 | G64: 0.00861168 | H64: 0.00843648 | I64: 0.00839711
A65: =+Flujos!A65 -> 2028-03-16 | B65: 0.00830306 | D65: 2028-03-16 | E65: 0.00897706 | F65: 0.00609057 | G65: 0.00905162 | H65: 0.00832787 | I65: 0.00830306
A66: =+Flujos!A66 -> 2028-04-16 | B66: 0.00821908 | D66: 2028-04-16 | E66: 0.00736175 | F66: 0.00625724 | G66: 0.00748591 | H66: 0.00821513 | I66: 0.00821908
A67: =+Flujos!A67 -> 2028-05-16 | B67: =+VLOOKUP(A67,$D$2:$I$182,MATCH($B$2,$D$2:$I$2,0),FALSE) -> 0.00810513 | D67: 2028-05-16 | E67: 0.00797695 | F67: 0.00628603 | G67: 0.00773892 | H67: 0.00807591 | I67: 0.00810513
A68: =+Flujos!A68 -> 2028-06-16 | B68: 0.00795145 | D68: =+A68 -> 2028-06-16 | E68: 0.00565683 | F68: 0.00789429 | G68: 0.0073796 | H68: 0.00797968 | I68: 0.00795145
A69: =+Flujos!A69 -> 2028-07-16 | B69: 0.0078277 | D69: 2028-07-16 | E69: 0.00745846 | F69: 0.00632772 | G69: 0.00722666 | H69: 0.00766506 | I69: 0.0078277
A70: =+Flujos!A70 -> 2028-08-16 | B70: 0.00774172 | D70: 2028-08-16 | E70: 0.00701479 | F70: 0.00765903 | G70: 0.00707502 | H70: 0.00660187 | I70: 0.00774172
A71: =+Flujos!A71 -> 2028-09-16 | B71: 0.00765573 | D71: 2028-09-16 | E71: 0.00659776 | F71: 0.00683574 | G71: 0.00692578 | H71: 0.0064864 | I71: 0.00765573
A72: =+Flujos!A72 -> 2028-10-16 | B72: 0.00754469 | D72: 2028-10-16 | E72: 0.00697805 | F72: 0.00546728 | G72: 0.00677987 | H72: 0.00637943 | I72: 0.00754469
A73: =+Flujos!A73 -> 2028-11-16 | B73: 0.0074391 | D73: 2028-11-16 | E73: 0.00635069 | F73: 0.00532156 | G73: 0.00663157 | H73: 0.00627224 | I73: 0.0074391
A74: =+Flujos!A74 -> 2028-12-16 | B74: 0.00624798 | D74: 2028-12-16 | E74: 0.00581072 | F74: 0.00728052 | G74: 0.00621894 | H74: 0.00615841 | I74: 0.00624798
A75: =+Flujos!A75 -> 2029-01-16 | B75: 0.0071897 | D75: 2029-01-16 | E75: 0.00637756 | F75: 0.0054675 | G75: 0.00635213 | H75: 0.00605791 | I75: 0.0071897
A76: =+Flujos!A76 -> 2029-02-16 | B76: 0.00709459 | D76: 2029-02-16 | E76: 0.00474215 | F76: 0.00731644 | G76: 0.00621563 | H76: 0.00595342 | I76: 0.00709459
A77: =+Flujos!A77 -> 2029-03-16 | B77: 0.00699276 | D77: 2029-03-16 | E77: 0.00661407 | F77: 0.00584689 | G77: 0.00608008 | H77: 0.00584552 | I77: 0.00699276
A78: =+Flujos!A78 -> 2029-04-16 | B78: 0.00692601 | D78: 2029-04-16 | E78: 0.00514833 | F78: 0.00528144 | G78: 0.00595088 | H78: 0.00573114 | I78: 0.00692601
A79: =+Flujos!A79 -> 2029-05-16 | B79: 0.00685453 | D79: 2029-05-16 | E79: 0.00611538 | F79: 0.00631097 | G79: 0.00581722 | H79: 0.00562011 | I79: 0.00685453
A80: =+Flujos!A80 -> 2029-06-16 | B80: 0.00678744 | D80: 2029-06-16 | E80: 0.00688701 | F80: 0.00616278 | G80: 0.00568577 | H80: 0.00550306 | I80: 0.00678744
A81: =+Flujos!A81 -> 2029-07-16 | B81: 0.00671627 | D81: 2029-07-16 | E81: 0.00621029 | F81: 0.00620932 | G81: 0.00556391 | H81: 0.00539099 | I81: 0.00671627
A82: =+Flujos!A82 -> 2029-08-16 | B82: 0.00667414 | D82: 2029-08-16 | E82: 0.00433843 | F82: 0.0054397 | G82: 0.00544497 | H82: 0.00527622 | I82: 0.00667414
A83: =+Flujos!A83 -> 2029-09-16 | B83: 0.00662089 | D83: 2029-09-16 | E83: 0.00599887 | F83: 0.00536491 | G83: 0.00531863 | H83: 0.00517019 | I83: 0.00662089
A84: =+Flujos!A84 -> 2029-10-16 | B84: 0.00658968 | D84: 2029-10-16 | E84: 0.00533826 | F84: 0.00533347 | G84: 0.00519537 | H84: 0.00504783 | I84: 0.00658968
A85: =+Flujos!A85 -> 2029-11-16 | B85: 0.00655828 | D85: 2029-11-16 | E85: 0.00792123 | F85: 0.00532614 | G85: 0.00507743 | H85: 0.00494644 | I85: 0.00655828
A86: =+Flujos!A86 -> 2029-12-16 | B86: 0.00544219 | D86: 2029-12-16 | E86: 0.00624283 | F86: 0.0050583 | G86: 0.0046691 | H86: 0.00484606 | I86: 0.00544219
A87: =+Flujos!A87 -> 2030-01-16 | B87: 0.0064759 | D87: 2030-01-16 | E87: 0.0046054 | F87: 0.00510888 | G87: 0.00483814 | H87: 0.00475816 | I87: 0.0064759
A88: =+Flujos!A88 -> 2030-02-16 | B88: 0.00642277 | D88: 2030-02-16 | E88: 0.00589499 | F88: 0.00508381 | G88: 0.00472817 | H88: 0.00466664 | I88: 0.00642277
A89: =+Flujos!A89 -> 2030-03-16 | B89: 0.00637348 | D89: 2030-03-16 | E89: 0.00646757 | F89: 0.00499208 | G89: 0.00461923 | H89: 0.00457125 | I89: 0.00637348
A90: =+Flujos!A90 -> 2030-04-16 | B90: 0.00628857 | D90: 2030-04-16 | E90: 0.00588109 | F90: 0.00491399 | G90: 0.00451389 | H90: 0.00447914 | I90: 0.00628857
A91: =+Flujos!A91 -> 2030-05-16 | B91: 0.00623756 | D91: 2030-05-16 | E91: 0.00496523 | F91: 0.00486191 | G91: 0.00440659 | H91: 0.00437889 | I91: 0.00623756
A92: =+Flujos!A92 -> 2030-06-16 | B92: 0.00618939 | D92: 2030-06-16 | E92: 0.00491098 | F92: 0.00482845 | G92: 0.00430836 | H92: 0.00428546 | I92: 0.00618939
A93: =+Flujos!A93 -> 2030-07-16 | B93: 0.00614899 | D93: 2030-07-16 | E93: 0.0049164 | F93: 0.00477398 | G93: 0.00421039 | H93: 0.00421403 | I93: 0.00614899
A94: =+Flujos!A94 -> 2030-08-16 | B94: 0.00610296 | D94: 2030-08-16 | E94: 0.00489882 | F94: 0.00466368 | G94: 0.00411634 | H94: 0.00413271 | I94: 0.00610296
A95: =+Flujos!A95 -> 2030-09-16 | B95: 0.00603473 | D95: 2030-09-16 | E95: 0.00479124 | F95: 0.00463783 | G95: 0.00402093 | H95: 0.00404883 | I95: 0.00603473
A96: =+Flujos!A96 -> 2030-10-16 | B96: 0.00593948 | D96: 2030-10-16 | E96: 0.00471643 | F96: 0.00456108 | G96: 0.0039283 | H96: 0.00396711 | I96: 0.00593948
A97: =+Flujos!A97 -> 2030-11-16 | B97: 0.00588431 | D97: 2030-11-16 | E97: 0.00467781 | F97: 0.00450745 | G97: 0.00383195 | H97: 0.00389478 | I97: 0.00588431
A98: =+Flujos!A98 -> 2030-12-16 | B98: 0.00470713 | D98: 2030-12-16 | E98: 0.00434913 | F98: 0.0042893 | G98: 0.0034373 | H98: 0.00382259 | I98: 0.00470713
A99: =+Flujos!A99 -> 2031-01-16 | B99: =+VLOOKUP(A99,$D$2:$I$182,MATCH($B$2,$D$2:$I$2,0),FALSE) -> 0.00568157 | D99: 2031-01-16 | E99: 0.00390294 | F99: 0.00438347 | G99: 0.00365833 | H99: 0.00375546 | I99: 0.00568157
A100: =+Flujos!A100 -> 2031-02-16 | B100: 0.00559665 | D100: 2031-02-16 | E100: 0 | F100: 0.00430581 | G100: 0.00357457 | H100: 0.0036894 | I100: 0.00559665
A101: =+Flujos!A101 -> 2031-03-16 | B101: 0.00554844 | D101: 2031-03-16 | E101: 0 | F101: 0.00424155 | G101: 0.00349805 | H101: 0.00362818 | I101: 0.00554844
A102: =+Flujos!A102 -> 2031-04-16 | B102: 0.00549794 | D102: 2031-04-16 | E102: 0 | F102: 0.00418605 | G102: 0.00341882 | H102: 0.00356571 | I102: 0.00549794
A103: =+Flujos!A103 -> 2031-05-16 | B103: 0.00545057 | D103: 2031-05-16 | E103: 0 | F103: 0.00411745 | G103: 0.0033451 | H103: 0.00350584 | I103: 0.00545057
A104: =+Flujos!A104 -> 2031-06-16 | B104: 0.00541375 | D104: 2031-06-16 | E104: 0 | F104: 0.00402362 | G104: 0.00327351 | H104: 0.00344508 | I104: 0.00541375
A105: =+Flujos!A105 -> 2031-07-16 | B105: 0.00537983 | D105: 2031-07-16 | E105: 0 | F105: 0.00393158 | G105: 0.00320267 | H105: 0.00338327 | I105: 0.00537983
A106: =+Flujos!A106 -> 2031-08-16 | B106: 0.00534448 | D106: 2031-08-16 | E106: 0 | F106: 0.00386937 | G106: 0.00313292 | H106: 0.00331201 | I106: 0.00534448
A107: =+Flujos!A107 -> 2031-09-16 | B107: 0.00530767 | D107: 2031-09-16 | E107: 0 | F107: 0.00379598 | G107: 0.00306289 | H107: 0.00323576 | I107: 0.00530767
A108: =+Flujos!A108 -> 2031-10-16 | B108: 0.00527322 | D108: 2031-10-16 | E108: 0 | F108: 0.00371016 | G108: 0.0011565 | H108: 0.00316414 | I108: 0.00527322
A109: =+Flujos!A109 -> 2031-11-16 | B109: 0.00524639 | D109: 2031-11-16 | E109: 0 | F109: 0.0036456 | G109: 0.00086936 | H109: 0.00308993 | I109: 0.00524639
A110: =+Flujos!A110 -> 2031-12-16 | B110: 0.0040574 | D110: 2031-12-16 | E110: 0 | F110: 0.00342217 | G110: 0 | H110: 0.00302422 | I110: 0.0040574
A111: =+Flujos!A111 -> 2032-01-16 | B111: 0.00515358 | D111: 2032-01-16 | E111: 0 | F111: 0.00349731 | G111: 0 | H111: 0.00296194 | I111: 0.00515358
A112: =+Flujos!A112 -> 2032-02-16 | B112: 0.00508727 | D112: 2032-02-16 | E112: 0 | F112: 0.00340531 | G112: 0 | H112: 0.00288984 | I112: 0.00508727
A113: =+Flujos!A113 -> 2032-03-16 | B113: 0.00502191 | D113: 2032-03-16 | E113: 0 | F113: 0.00331403 | G113: 0 | H113: 0.00282856 | I113: 0.00502191
A114: =+Flujos!A114 -> 2032-04-16 | B114: 0.0039646 | D114: 2032-04-16 | E114: 0 | F114: 0.00322451 | G114: 0 | H114: 0.00339401 | I114: 0.0039646
A115: =+Flujos!A115 -> 2032-05-16 | B115: 0.00349125 | D115: 2032-05-16 | E115: 0 | F115: 0.00313683 | G115: 0 | H115: 0.00318988 | I115: 0.00349125
A116: =+Flujos!A116 -> 2032-06-16 | B116: 0.00341184 | D116: 2032-06-16 | E116: 0 | F116: 0.00305998 | G116: 0 | H116: 0.00307147 | I116: 0.00341184
A117: =+Flujos!A117 -> 2032-07-16 | B117: 0.00334836 | D117: 2032-07-16 | E117: 0 | F117: 0.00295836 | G117: 0 | H117: 0.00297148 | I117: 0.00334836
A118: =+Flujos!A118 -> 2032-08-16 | B118: 0.00328999 | D118: 2032-08-16 | E118: 0 | F118: 0.0028668 | G118: 0 | H118: 0.00285189 | I118: 0.00328999
A119: =+Flujos!A119 -> 2032-09-16 | B119: 0.003219 | D119: 2032-09-16 | E119: 0 | F119: 0.00278547 | G119: 0 | H119: 0.00276324 | I119: 0.003219
A120: =+Flujos!A120 -> 2032-10-16 | B120: 0.00315065 | D120: 2032-10-16 | E120: 0 | F120: 0.00271688 | G120: 0 | H120: 0.00271784 | I120: 0.00315065
A121: =+Flujos!A121 -> 2032-11-16 | B121: 0.00293967 | D121: 2032-11-16 | E121: 0 | F121: 0.00265487 | G121: 0 | H121: 0.00267814 | I121: 0.00293967
A122: =+Flujos!A122 -> 2032-12-16 | B122: 0.00293967 | D122: 2032-12-16 | E122: 0 | F122: 0.00994292 | G122: 0 | H122: 0.00214596 | I122: 0.00293967
A123: =+Flujos!A123 -> 2033-01-16 | B123: 0.00293967 | D123: 2033-01-16 | E123: 0 | F123: 0 | G123: 0 | H123: 0 | I123: 0.00293967
A124: =+Flujos!A124 -> 2033-02-16 | B124: 0.00293967 | D124: 2033-02-16 | E124: 0 | F124: 0 | G124: 0 | H124: 0 | I124: 0.00293967
A125: =+Flujos!A125 -> 2033-03-16 | B125: 0.00293967 | D125: 2033-03-16 | E125: 0 | F125: 0 | G125: 0 | H125: 0 | I125: 0.00293967
A126: =+Flujos!A126 -> 2033-04-16 | B126: 0.00293967 | D126: 2033-04-16 | E126: 0 | F126: 0 | G126: 0 | H126: 0 | I126: 0.00293967
A127: =+Flujos!A127 -> 2033-05-16 | B127: 0.00293967 | D127: 2033-05-16 | E127: 0 | F127: 0 | G127: 0 | H127: 0 | I127: 0.00293967
A128: =+Flujos!A128 -> 2033-06-16 | B128: 0.00274348 | D128: 2033-06-16 | E128: 0 | F128: 0 | G128: 0 | H128: 0 | I128: 0.00274348
A129: =+Flujos!A129 -> 2033-07-16 | B129: 0.00274348 | D129: 2033-07-16 | E129: 0 | F129: 0 | G129: 0 | H129: 0 | I129: 0.00274348
A130: =+Flujos!A130 -> 2033-08-16 | B130: 0.00274348 | D130: 2033-08-16 | E130: 0 | F130: 0 | G130: 0 | H130: 0 | I130: 0.00274348
A131: =+Flujos!A131 -> 2033-09-16 | B131: =+VLOOKUP(A131,$D$2:$I$182,MATCH($B$2,$D$2:$I$2,0),FALSE) -> 0.00274348 | D131: 2033-09-16 | E131: 0 | F131: 0 | G131: 0 | H131: 0 | I131: 0.00274348
A132: =+Flujos!A132 -> 2033-10-16 | B132: 0.00274348 | D132: =+A132 -> 2033-10-16 | E132: 0 | F132: 0 | G132: 0 | H132: 0 | I132: 0.00274348
A133: =+Flujos!A133 -> 2033-11-16 | B133: 0.00274348 | D133: 2033-11-16 | E133: 0 | F133: 0 | G133: 0 | H133: 0 | I133: 0.00274348
A134: =+Flujos!A134 -> 2033-12-16 | B134: 0.00274347 | D134: 2033-12-16 | E134: 0 | F134: 0 | G134: 0 | H134: 0 | I134: 0.00274347
A135: =+Flujos!A135 -> 2034-01-16 | B135: 0 | D135: 2034-01-16 | E135: 0 | F135: 0 | G135: 0 | H135: 0 | I135: 0
A136: =+Flujos!A136 -> 2034-02-16 | B136: 0 | D136: 2034-02-16 | E136: 0 | F136: 0 | G136: 0 | H136: 0 | I136: 0
A137: =+Flujos!A137 -> 2034-03-16 | B137: 0 | D137: 2034-03-16 | E137: 0 | F137: 0 | G137: 0 | H137: 0 | I137: 0
A138: =+Flujos!A138 -> 2034-04-16 | B138: 0 | D138: 2034-04-16 | E138: 0 | F138: 0 | G138: 0 | H138: 0 | I138: 0
A139: =+Flujos!A139 -> 2034-05-16 | B139: 0 | D139: 2034-05-16 | E139: 0 | F139: 0 | G139: 0 | H139: 0 | I139: 0
A140: =+Flujos!A140 -> 2034-06-16 | B140: 0 | D140: 2034-06-16 | E140: 0 | F140: 0 | G140: 0 | H140: 0 | I140: 0
A141: =+Flujos!A141 -> 2034-07-16 | B141: 0 | D141: 2034-07-16 | E141: 0 | F141: 0 | G141: 0 | H141: 0 | I141: 0
A142: =+Flujos!A142 -> 2034-08-16 | B142: 0 | D142: 2034-08-16 | E142: 0 | F142: 0 | G142: 0 | H142: 0 | I142: 0
A143: =+Flujos!A143 -> 2034-09-16 | B143: 0 | D143: 2034-09-16 | E143: 0 | F143: 0 | G143: 0 | H143: 0 | I143: 0
A144: =+Flujos!A144 -> 2034-10-16 | B144: 0 | D144: 2034-10-16 | E144: 0 | F144: 0 | G144: 0 | H144: 0 | I144: 0
A145: =+Flujos!A145 -> 2034-11-16 | B145: 0 | D145: 2034-11-16 | E145: 0 | F145: 0 | G145: 0 | H145: 0 | I145: 0
A146: =+Flujos!A146 -> 2034-12-16 | B146: 0 | D146: 2034-12-16 | E146: 0 | F146: 0 | G146: 0 | H146: 0 | I146: 0
A147: =+Flujos!A147 -> 2035-01-16 | B147: 0 | D147: 2035-01-16 | E147: 0 | F147: 0 | G147: 0 | H147: 0 | I147: 0
A148: =+Flujos!A148 -> 2035-02-16 | B148: 0 | D148: 2035-02-16 | E148: 0 | F148: 0 | G148: 0 | H148: 0 | I148: 0
A149: =+Flujos!A149 -> 2035-03-16 | B149: 0 | D149: 2035-03-16 | E149: 0 | F149: 0 | G149: 0 | H149: 0 | I149: 0
A150: =+Flujos!A150 -> 2035-04-16 | B150: 0 | D150: 2035-04-16 | E150: 0 | F150: 0 | G150: 0 | H150: 0 | I150: 0
A151: =+Flujos!A151 -> 2035-05-16 | B151: 0 | D151: 2035-05-16 | E151: 0 | F151: 0 | G151: 0 | H151: 0 | I151: 0
A152: =+Flujos!A152 -> 2035-06-16 | B152: 0 | D152: 2035-06-16 | E152: 0 | F152: 0 | G152: 0 | H152: 0 | I152: 0
A153: =+Flujos!A153 -> 2035-07-16 | B153: 0 | D153: 2035-07-16 | E153: 0 | F153: 0 | G153: 0 | H153: 0 | I153: 0
A154: =+Flujos!A154 -> 2035-08-16 | B154: 0 | D154: 2035-08-16 | E154: 0 | F154: 0 | G154: 0 | H154: 0 | I154: 0
A155: =+Flujos!A155 -> 2035-09-16 | B155: 0 | D155: 2035-09-16 | E155: 0 | F155: 0 | G155: 0 | H155: 0 | I155: 0
A156: =+Flujos!A156 -> 2035-10-16 | B156: 0 | D156: 2035-10-16 | E156: 0 | F156: 0 | G156: 0 | H156: 0 | I156: 0
A157: =+Flujos!A157 -> 2035-11-16 | B157: 0 | D157: 2035-11-16 | E157: 0 | F157: 0 | G157: 0 | H157: 0 | I157: 0
A158: =+Flujos!A158 -> 2035-12-16 | B158: 0 | D158: 2035-12-16 | E158: 0 | F158: 0 | G158: 0 | H158: 0 | I158: 0
A159: =+Flujos!A159 -> 2036-01-16 | B159: 0 | D159: 2036-01-16 | E159: 0 | F159: 0 | G159: 0 | H159: 0 | I159: 0
A160: =+Flujos!A160 -> 2036-02-16 | B160: 0 | D160: 2036-02-16 | E160: 0 | F160: 0 | G160: 0 | H160: 0 | I160: 0
A161: =+Flujos!A161 -> 2036-03-16 | B161: 0 | D161: 2036-03-16 | E161: 0 | F161: 0 | G161: 0 | H161: 0 | I161: 0
A162: =+Flujos!A162 -> 2036-04-16 | B162: 0 | D162: 2036-04-16 | E162: 0 | F162: 0 | G162: 0 | H162: 0 | I162: 0
A163: =+Flujos!A163 -> 2036-05-16 | B163: =+VLOOKUP(A163,$D$2:$I$182,MATCH($B$2,$D$2:$I$2,0),FALSE) -> 0 | D163: 2036-05-16 | E163: 0 | F163: 0 | G163: 0 | H163: 0 | I163: 0
A164: =+Flujos!A164 -> 2036-06-16 | B164: 0 | D164: 2036-06-16 | E164: 0 | F164: 0 | G164: 0 | H164: 0 | I164: 0
A165: =+Flujos!A165 -> 2036-07-16 | B165: 0 | D165: 2036-07-16 | E165: 0 | F165: 0 | G165: 0 | H165: 0 | I165: 0
A166: =+Flujos!A166 -> 2036-08-16 | B166: 0 | D166: 2036-08-16 | E166: 0 | F166: 0 | G166: 0 | H166: 0 | I166: 0
A167: =+Flujos!A167 -> 2036-09-16 | B167: 0 | D167: 2036-09-16 | E167: 0 | F167: 0 | G167: 0 | H167: 0 | I167: 0
A168: =+Flujos!A168 -> 2036-10-16 | B168: 0 | D168: 2036-10-16 | E168: 0 | F168: 0 | G168: 0 | H168: 0 | I168: 0
A169: =+Flujos!A169 -> 2036-11-16 | B169: 0 | D169: 2036-11-16 | E169: 0 | F169: 0 | G169: 0 | H169: 0 | I169: 0
A170: =+Flujos!A170 -> 2036-12-16 | B170: 0 | D170: 2036-12-16 | E170: 0 | F170: 0 | G170: 0 | H170: 0 | I170: 0
A171: =+Flujos!A171 -> 2037-01-16 | B171: 0 | D171: 2037-01-16 | E171: 0 | F171: 0 | G171: 0 | H171: 0 | I171: 0
A172: =+Flujos!A172 -> 2037-02-16 | B172: 0 | D172: 2037-02-16 | E172: 0 | F172: 0 | G172: 0 | H172: 0 | I172: 0
A173: =+Flujos!A173 -> 2037-03-16 | B173: 0 | D173: 2037-03-16 | E173: 0 | F173: 0 | G173: 0 | H173: 0 | I173: 0
A174: =+Flujos!A174 -> 2037-04-16 | B174: 0 | D174: 2037-04-16 | E174: 0 | F174: 0 | G174: 0 | H174: 0 | I174: 0
A175: =+Flujos!A175 -> 2037-05-16 | B175: 0 | D175: 2037-05-16 | E175: 0 | F175: 0 | G175: 0 | H175: 0 | I175: 0
A176: =+Flujos!A176 -> 2037-06-16 | B176: 0 | D176: 2037-06-16 | E176: 0 | F176: 0 | G176: 0 | H176: 0 | I176: 0
A177: =+Flujos!A177 -> 2037-07-16 | B177: 0 | D177: 2037-07-16 | E177: 0 | F177: 0 | G177: 0 | H177: 0 | I177: 0
A178: =+Flujos!A178 -> 2037-08-16 | B178: 0 | D178: 2037-08-16 | E178: 0 | F178: 0 | G178: 0 | H178: 0 | I178: 0
A179: =+Flujos!A179 -> 2037-09-16 | B179: 0 | D179: 2037-09-16 | E179: 0 | F179: 0 | G179: 0 | H179: 0 | I179: 0
A180: =+Flujos!A180 -> 2037-10-16 | B180: 0 | D180: 2037-10-16 | E180: 0 | F180: 0 | G180: 0 | H180: 0 | I180: 0
A181: =+Flujos!A181 -> 2037-11-16 | B181: 0 | D181: 2037-11-16 | E181: 0 | F181: 0 | G181: 0 | H181: 0 | I181: 0
A182: =+Flujos!A182 -> 2037-12-16 | B182: 0 | D182: 2037-12-16 | E182: 0 | F182: 0 | G182: 0 | H182: 0 | I182: 0
B183: =SUM(B3:B182) -> 1 | E183: =SUM(E3:E182) -> 1 | F183: =SUM(F3:F182) -> 1 | G183: =SUM(G3:G182) -> 1 | H183: =SUM(H3:H182) -> 1 | I183: =SUM(I3:I182) -> 1
B184: =1-B183 -> 0 | E184: =1-E183 -> 0 | F184: =1-F183 -> 0 | G184: =1-G183 -> 0 | H184: =1-H183 -> 0 | I184: =1-I183 -> 0

Sheet Tablas (hidden)
A1: FECHA | B1: =+CALCULADORA!C11 -> TIPS UVR U-6 A 2037 | C1: Valoración
A2: =+'Tabla de Amortizacion'!A3 -> 2023-01-16 | B2: =+ROUND(C2,8) -> 0.01013202 | C2: =+VLOOKUP(A2,'Tabla de Amortizacion'!$D$2:$I$182,MATCH(Tablas!$B$1,'Tabla de Amortizacion'!$D$2:$I$2,0)) -> 0.01013202 | E2: =IF(CALCULADORA!#REF!="Contractual",ROUND('Tabla de Amortizacion'!C3,8),IF(CALCULADORA!#REF!="6% (Medio)",ROUND('Tabla de Amortizacion'!F3,8),IF(CALCULADORA!#REF!="10% (Medio Alto)",ROUND('Tabla de Amortizacion'!H3,8),IF(CALCULADORA!#REF!="14% (Alto)",ROUND('Tabla de Amortizacion'!#REF!,8),IF(CALCULADORA!#REF!=20%,ROUND('Tabla de Amortizacion'!#REF!,8),ROUND('Tabla de Amortizacion'!K3,8)))))) -> 
A3: =EDATE(A2,1) -> 2023-02-16 | B3: =+ROUND(C3,8) -> 0.00673869 | C3: =+VLOOKUP(A3,'Tabla de Amortizacion'!$D$2:$I$182,MATCH(Tablas!$B$1,'Tabla de Amortizacion'!$D$2:$I$2,0)) -> 0.00673869 | E3: =IF(CALCULADORA!#REF!="Contractual",ROUND('Tabla de Amortizacion'!C4,8),IF(CALCULADORA!#REF!="6% (Medio)",ROUND('Tabla de Amortizacion'!F4,8),IF(CALCULADORA!#REF!="10% (Medio Alto)",ROUND('Tabla de Amortizacion'!H4,8),IF(CALCULADORA!#REF!="14% (Alto)",ROUND('Tabla de Amortizacion'!#REF!,8),IF(CALCULADORA!#REF!=20%,ROUND('Tabla de Amortizacion'!#REF!,8),ROUND('Tabla de Amortizacion'!K4,8)))))) -> 
A4: 2023-03-16 | B4: 0.01048377 | C4: =+VLOOKUP(A4,'Tabla de Amortizacion'!$D$2:$I$182,MATCH(Tablas!$B$1,'Tabla de Amortizacion'!$D$2:$I$2,0)) -> 0.01048377 | E4: =IF(CALCULADORA!#REF!="Contractual",ROUND('Tabla de Amortizacion'!C5,8),IF(CALCULADORA!#REF!="6% (Medio)",ROUND('Tabla de Amortizacion'!F5,8),IF(CALCULADORA!#REF!="10% (Medio Alto)",ROUND('Tabla de Amortizacion'!H5,8),IF(CALCULADORA!#REF!="14% (Alto)",ROUND('Tabla de Amortizacion'!#REF!,8),IF(CALCULADORA!#REF!=20%,ROUND('Tabla de Amortizacion'!#REF!,8),ROUND('Tabla de Amortizacion'!K5,8)))))) -> 
A5: 2023-04-16 | B5: 0.00595883 | C5: =+VLOOKUP(A5,'Tabla de Amortizacion'!$D$2:$I$182,MATCH(Tablas!$B$1,'Tabla de Amortizacion'!$D$2:$I$2,0)) -> 0.00595883 | E5: =IF(CALCULADORA!#REF!="Contractual",ROUND('Tabla de Amortizacion'!C6,8),IF(CALCULADORA!#REF!="6% (Medio)",ROUND('Tabla de Amortizacion'!F6,8),IF(CALCULADORA!#REF!="10% (Medio Alto)",ROUND('Tabla de Amortizacion'!H6,8),IF(CALCULADORA!#REF!="14% (Alto)",ROUND('Tabla de Amortizacion'!#REF!,8),IF(CALCULADORA!#REF!=20%,ROUND('Tabla de Amortizacion'!#REF!,8),ROUND('Tabla de Amortizacion'!K6,8)))))) -> 
A6: 2023-05-16 | B6: 0.0086504 | C6: =+VLOOKUP(A6,'Tabla de Amortizacion'!$D$2:$I$182,MATCH(Tablas!$B$1,'Tabla de Amortizacion'!$D$2:$I$2,0)) -> 0.0086504 | E6: =IF(CALCULADORA!#REF!="Contractual",ROUND('Tabla de Amortizacion'!C7,8),IF(CALCULADORA!#REF!="6% (Medio)",ROUND('Tabla de Amortizacion'!F7,8),IF(CALCULADORA!#REF!="10% (Medio Alto)",ROUND('Tabla de Amortizacion'!H7,8),IF(CALCULADORA!#REF!="14% (Alto)",ROUND('Tabla de Amortizacion'!#REF!,8),IF(CALCULADORA!#REF!=20%,ROUND('Tabla de Amortizacion'!#REF!,8),ROUND('Tabla de Amortizacion'!K7,8)))))) -> 
A7: 2023-06-16 | B7: 0.01126498 | C7: =+VLOOKUP(A7,'Tabla de Amortizacion'!$D$2:$I$182,MATCH(Tablas!$B$1,'Tabla de Amortizacion'!$D$2:$I$2,0)) -> 0.01126498 | E7: =IF(CALCULADORA!#REF!="Contractual",ROUND('Tabla de Amortizacion'!C8,8),IF(CALCULADORA!#REF!="6% (Medio)",ROUND('Tabla de Amortizacion'!F8,8),IF(CALCULADORA!#REF!="10% (Medio Alto)",ROUND('Tabla de Amortizacion'!H8,8),IF(CALCULADORA!#REF!="14% (Alto)",ROUND('Tabla de Amortizacion'!#REF!,8),IF(CALCULADORA!#REF!=20%,ROUND('Tabla de Amortizacion'!#REF!,8),ROUND('Tabla de Amortizacion'!K8,8)))))) -> 
A8: 2023-07-16 | B8: 0.00895723 | C8: =+VLOOKUP(A8,'Tabla de Amortizacion'!$D$2:$I$182,MATCH(Tablas!$B$1,'Tabla de Amortizacion'!$D$2:$I$2,0)) -> 0.00895723 | E8: =IF(CALCULADORA!#REF!="Contractual",ROUND('Tabla de Amortizacion'!C9,8),IF(CALCULADORA!#REF!="6% (Medio)",ROUND('Tabla de Amortizacion'!F9,8),IF(CALCULADORA!#REF!="10% (Medio Alto)",ROUND('Tabla de Amortizacion'!H9,8),IF(CALCULADORA!#REF!="14% (Alto)",ROUND('Tabla de Amortizacion'!#REF!,8),IF(CALCULADORA!#REF!=20%,ROUND('Tabla de Amortizacion'!#REF!,8),ROUND('Tabla de Amortizacion'!K9,8)))))) -> 
A9: 2023-08-16 | B9: 0.00714902 | C9: =+VLOOKUP(A9,'Tabla de Amortizacion'!$D$2:$I$182,MATCH(Tablas!$B$1,'Tabla de Amortizacion'!$D$2:$I$2,0)) -> 0.00714902 | E9: =IF(CALCULADORA!#REF!="Contractual",ROUND('Tabla de Amortizacion'!C10,8),IF(CALCULADORA!#REF!="6% (Medio)",ROUND('Tabla de Amortizacion'!F10,8),IF(CALCULADORA!#REF!="10% (Medio Alto)",ROUND('Tabla de Amortizacion'!H10,8),IF(CALCULADORA!#REF!="14% (Alto)",ROUND('Tabla de Amortizacion'!#REF!,8),IF(CALCULADORA!#REF!=20%,ROUND('Tabla de Amortizacion'!#REF!,8),ROUND('Tabla de Amortizacion'!K10,8)))))) -> 
A10: 2023-09-16 | B10: 0.00869482 | C10: =+VLOOKUP(A10,'Tabla de Amortizacion'!$D$2:$I$182,MATCH(Tablas!$B$1,'Tabla de Amortizacion'!$D$2:$I$2,0)) -> 0.00869482 | E10: =IF(CALCULADORA!#REF!="Contractual",ROUND('Tabla de Amortizacion'!C11,8),IF(CALCULADORA!#REF!="6% (Medio)",ROUND('Tabla de Amortizacion'!F11,8),IF(CALCULADORA!#REF!="10% (Medio Alto)",ROUND('Tabla de Amortizacion'!H11,8),IF(CALCULADORA!#REF!="14% (Alto)",ROUND('Tabla de Amortizacion'!#REF!,8),IF(CALCULADORA!#REF!=20%,ROUND('Tabla de Amortizacion'!#REF!,8),ROUND('Tabla de Amortizacion'!K11,8)))))) -> 
A11: 2023-10-16 | B11: 0.00425685 | C11: =+VLOOKUP(A11,'Tabla de Amortizacion'!$D$2:$I$182,MATCH(Tablas!$B$1,'Tabla de Amortizacion'!$D$2:$I$2,0)) -> 0.00425685 | E11: =IF(CALCULADORA!#REF!="Contractual",ROUND('Tabla de Amortizacion'!C12,8),IF(CALCULADORA!#REF!="6% (Medio)",ROUND('Tabla de Amortizacion'!F12,8),IF(CALCULADORA!#REF!="10% (Medio Alto)",ROUND('Tabla de Amortizacion'!H12,8),IF(CALCULADORA!#REF!="14% (Alto)",ROUND('Tabla de Amortizacion'!#REF!,8),IF(CALCULADORA!#REF!=20%,ROUND('Tabla de Amortizacion'!#REF!,8),ROUND('Tabla de Amortizacion'!K12,8)))))) -> 
A12: 2023-11-16 | B12: 0.01052075 | C12: =+VLOOKUP(A12,'Tabla de Amortizacion'!$D$2:$I$182,MATCH(Tablas!$B$1,'Tabla de Amortizacion'!$D$2:$I$2,0)) -> 0.01052075 | E12: =IF(CALCULADORA!#REF!="Contractual",ROUND('Tabla de Amortizacion'!C13,8),IF(CALCULADORA!#REF!="6% (Medio)",ROUND('Tabla de Amortizacion'!F13,8),IF(CALCULADORA!#REF!="10% (Medio Alto)",ROUND('Tabla de Amortizacion'!H13,8),IF(CALCULADORA!#REF!="14% (Alto)",ROUND('Tabla de Amortizacion'!#REF!,8),IF(CALCULADORA!#REF!=20%,ROUND('Tabla de Amortizacion'!#REF!,8),ROUND('Tabla de Amortizacion'!K13,8)))))) -> 
A13: 2023-12-16 | B13: 0.0077276 | C13: =+VLOOKUP(A13,'Tabla de Amortizacion'!$D$2:$I$182,MATCH(Tablas!$B$1,'Tabla de Amortizacion'!$D$2:$I$2,0)) -> 0.0077276 | E13: =IF(CALCULADORA!#REF!="Contractual",ROUND('Tabla de Amortizacion'!C14,8),IF(CALCULADORA!#REF!="6% (Medio)",ROUND('Tabla de Amortizacion'!F14,8),IF(CALCULADORA!#REF!="10% (Medio Alto)",ROUND('Tabla de Amortizacion'!H14,8),IF(CALCULADORA!#REF!="14% (Alto)",ROUND('Tabla de Amortizacion'!#REF!,8),IF(CALCULADORA!#REF!=20%,ROUND('Tabla de Amortizacion'!#REF!,8),ROUND('Tabla de Amortizacion'!K14,8)))))) -> 
A14: 2024-01-16 | B14: 0.01009764 | C14: =+VLOOKUP(A14,'Tabla de Amortizacion'!$D$2:$I$182,MATCH(Tablas!$B$1,'Tabla de Amortizacion'!$D$2:$I$2,0)) -> 0.01009764 | E14: =IF(CALCULADORA!#REF!="Contractual",ROUND('Tabla de Amortizacion'!C15,8),IF(CALCULADORA!#REF!="6% (Medio)",ROUND('Tabla de Amortizacion'!F15,8),IF(CALCULADORA!#REF!="10% (Medio Alto)",ROUND('Tabla de Amortizacion'!H15,8),IF(CALCULADORA!#REF!="14% (Alto)",ROUND('Tabla de Amortizacion'!#REF!,8),IF(CALCULADORA!#REF!=20%,ROUND('Tabla de Amortizacion'!#REF!,8),ROUND('Tabla de Amortizacion'!K15,8)))))) -> 
A15: 2024-02-16 | B15: 0.01548427 | C15: =+VLOOKUP(A15,'Tabla de Amortizacion'!$D$2:$I$182,MATCH(Tablas!$B$1,'Tabla de Amortizacion'!$D$2:$I$2,0)) -> 0.01548427 | E15: =IF(CALCULADORA!#REF!="Contractual",ROUND('Tabla de Amortizacion'!C16,8),IF(CALCULADORA!#REF!="6% (Medio)",ROUND('Tabla de Amortizacion'!F16,8),IF(CALCULADORA!#REF!="10% (Medio Alto)",ROUND('Tabla de Amortizacion'!H16,8),IF(CALCULADORA!#REF!="14% (Alto)",ROUND('Tabla de Amortizacion'!#REF!,8),IF(CALCULADORA!#REF!=20%,ROUND('Tabla de Amortizacion'!#REF!,8),ROUND('Tabla de Amortizacion'!K16,8)))))) -> 
A16: 2024-03-16 | B16: 0.00928863 | C16: =+VLOOKUP(A16,'Tabla de Amortizacion'!$D$2:$I$182,MATCH(Tablas!$B$1,'Tabla de Amortizacion'!$D$2:$I$2,0)) -> 0.00928863 | E16: =IF(CALCULADORA!#REF!="Contractual",ROUND('Tabla de Amortizacion'!C17,8),IF(CALCULADORA!#REF!="6% (Medio)",ROUND('Tabla de Amortizacion'!F17,8),IF(CALCULADORA!#REF!="10% (Medio Alto)",ROUND('Tabla de Amortizacion'!H17,8),IF(CALCULADORA!#REF!="14% (Alto)",ROUND('Tabla de Amortizacion'!#REF!,8),IF(CALCULADORA!#REF!=20%,ROUND('Tabla de Amortizacion'!#REF!,8),ROUND('Tabla de Amortizacion'!K17,8)))))) -> 
A17: 2024-04-16 | B17: 0.00754268 | C17: =+VLOOKUP(A17,'Tabla de Amortizacion'!$D$2:$I$182,MATCH(Tablas!$B$1,'Tabla de Amortizacion'!$D$2:$I$2,0)) -> 0.00754268 | E17: =IF(CALCULADORA!#REF!="Contractual",ROUND('Tabla de Amortizacion'!C18,8),IF(CALCULADORA!#REF!="6% (Medio)",ROUND('Tabla de Amortizacion'!F18,8),IF(CALCULADORA!#REF!="10% (Medio Alto)",ROUND('Tabla de Amortizacion'!H18,8),IF(CALCULADORA!#REF!="14% (Alto)",ROUND('Tabla de Amortizacion'!#REF!,8),IF(CALCULADORA!#REF!=20%,ROUND('Tabla de Amortizacion'!#REF!,8),ROUND('Tabla de Amortizacion'!K18,8)))))) -> 
A18: 2024-05-16 | B18: 0.01463474 | C18: =+VLOOKUP(A18,'Tabla de Amortizacion'!$D$2:$I$182,MATCH(Tablas!$B$1,'Tabla de Amortizacion'!$D$2:$I$2,0)) -> 0.01463474 | E18: =IF(CALCULADORA!#REF!="Contractual",ROUND('Tabla de Amortizacion'!C19,8),IF(CALCULADORA!#REF!="6% (Medio)",ROUND('Tabla de Amortizacion'!F19,8),IF(CALCULADORA!#REF!="10% (Medio Alto)",ROUND('Tabla de Amortizacion'!H19,8),IF(CALCULADORA!#REF!="14% (Alto)",ROUND('Tabla de Amortizacion'!#REF!,8),IF(CALCULADORA!#REF!=20%,ROUND('Tabla de Amortizacion'!#REF!,8),ROUND('Tabla de Amortizacion'!K19,8)))))) -> 
A19: 2024-06-16 | B19: 0.01242813 | C19: =+VLOOKUP(A19,'Tabla de Amortizacion'!$D$2:$I$182,MATCH(Tablas!$B$1,'Tabla de Amortizacion'!$D$2:$I$2,0)) -> 0.01242813 | E19: =IF(CALCULADORA!#REF!="Contractual",ROUND('Tabla de Amortizacion'!C20,8),IF(CALCULADORA!#REF!="6% (Medio)",ROUND('Tabla de Amortizacion'!F20,8),IF(CALCULADORA!#REF!="10% (Medio Alto)",ROUND('Tabla de Amortizacion'!H20,8),IF(CALCULADORA!#REF!="14% (Alto)",ROUND('Tabla de Amortizacion'!#REF!,8),IF(CALCULADORA!#REF!=20%,ROUND('Tabla de Amortizacion'!#REF!,8),ROUND('Tabla de Amortizacion'!K20,8)))))) -> 
A20: 2024-07-16 | B20: 0.00960182 | C20: =+VLOOKUP(A20,'Tabla de Amortizacion'!$D$2:$I$182,MATCH(Tablas!$B$1,'Tabla de Amortizacion'!$D$2:$I$2,0)) -> 0.00960182 | E20: =IF(CALCULADORA!#REF!="Contractual",ROUND('Tabla de Amortizacion'!C21,8),IF(CALCULADORA!#REF!="6% (Medio)",ROUND('Tabla de Amortizacion'!F21,8),IF(CALCULADORA!#REF!="10% (Medio Alto)",ROUND('Tabla de Amortizacion'!H21,8),IF(CALCULADORA!#REF!="14% (Alto)",ROUND('Tabla de Amortizacion'!#REF!,8),IF(CALCULADORA!#REF!=20%,ROUND('Tabla de Amortizacion'!#REF!,8),ROUND('Tabla de Amortizacion'!K21,8)))))) -> 
A21: 2024-08-16 | B21: 0.00734035 | C21: =+VLOOKUP(A21,'Tabla de Amortizacion'!$D$2:$I$182,MATCH(Tablas!$B$1,'Tabla de Amortizacion'!$D$2:$I$2,0)) -> 0.00734035 | E21: =IF(CALCULADORA!#REF!="Contractual",ROUND('Tabla de Amortizacion'!C22,8),IF(CALCULADORA!#REF!="6% (Medio)",ROUND('Tabla de Amortizacion'!F22,8),IF(CALCULADORA!#REF!="10% (Medio Alto)",ROUND('Tabla de Amortizacion'!H22,8),IF(CALCULADORA!#REF!="14% (Alto)",ROUND('Tabla de Amortizacion'!#REF!,8),IF(CALCULADORA!#REF!=20%,ROUND('Tabla de Amortizacion'!#REF!,8),ROUND('Tabla de Amortizacion'!K22,8)))))) -> 
A22: 2024-09-16 | B22: 0.01551479 | C22: =+VLOOKUP(A22,'Tabla de Amortizacion'!$D$2:$I$182,MATCH(Tablas!$B$1,'Tabla de Amortizacion'!$D$2:$I$2,0)) -> 0.01551479 | E22: =IF(CALCULADORA!#REF!="Contractual",ROUND('Tabla de Amortizacion'!C23,8),IF(CALCULADORA!#REF!="6% (Medio)",ROUND('Tabla de Amortizacion'!F23,8),IF(CALCULADORA!#REF!="10% (Medio Alto)",ROUND('Tabla de Amortizacion'!H23,8),IF(CALCULADORA!#REF!="14% (Alto)",ROUND('Tabla de Amortizacion'!#REF!,8),IF(CALCULADORA!#REF!=20%,ROUND('Tabla de Amortizacion'!#REF!,8),ROUND('Tabla de Amortizacion'!K23,8)))))) -> 
A23: 2024-10-16 | B23: 0.01587886 | C23: =+VLOOKUP(A23,'Tabla de Amortizacion'!$D$2:$I$182,MATCH(Tablas!$B$1,'Tabla de Amortizacion'!$D$2:$I$2,0)) -> 0.01587886 | E23: =IF(CALCULADORA!#REF!="Contractual",ROUND('Tabla de Amortizacion'!C24,8),IF(CALCULADORA!#REF!="6% (Medio)",ROUND('Tabla de Amortizacion'!F24,8),IF(CALCULADORA!#REF!="10% (Medio Alto)",ROUND('Tabla de Amortizacion'!H24,8),IF(CALCULADORA!#REF!="14% (Alto)",ROUND('Tabla de Amortizacion'!#REF!,8),IF(CALCULADORA!#REF!=20%,ROUND('Tabla de Amortizacion'!#REF!,8),ROUND('Tabla de Amortizacion'!K24,8)))))) -> 
A24: 2024-11-16 | B24: 0.01280261 | C24: =+VLOOKUP(A24,'Tabla de Amortizacion'!$D$2:$I$182,MATCH(Tablas!$B$1,'Tabla de Amortizacion'!$D$2:$I$2,0)) -> 0.01280261 | E24: =IF(CALCULADORA!#REF!="Contractual",ROUND('Tabla de Amortizacion'!C25,8),IF(CALCULADORA!#REF!="6% (Medio)",ROUND('Tabla de Amortizacion'!F25,8),IF(CALCULADORA!#REF!="10% (Medio Alto)",ROUND('Tabla de Amortizacion'!H25,8),IF(CALCULADORA!#REF!="14% (Alto)",ROUND('Tabla de Amortizacion'!#REF!,8),IF(CALCULADORA!#REF!=20%,ROUND('Tabla de Amortizacion'!#REF!,8),ROUND('Tabla de Amortizacion'!K25,8)))))) -> 
A25: 2024-12-16 | B25: 0.01229783 | C25: =+VLOOKUP(A25,'Tabla de Amortizacion'!$D$2:$I$182,MATCH(Tablas!$B$1,'Tabla de Amortizacion'!$D$2:$I$2,0)) -> 0.01229783 | E25: =IF(CALCULADORA!#REF!="Contractual",ROUND('Tabla de Amortizacion'!C26,8),IF(CALCULADORA!#REF!="6% (Medio)",ROUND('Tabla de Amortizacion'!F26,8),IF(CALCULADORA!#REF!="10% (Medio Alto)",ROUND('Tabla de Amortizacion'!H26,8),IF(CALCULADORA!#REF!="14% (Alto)",ROUND('Tabla de Amortizacion'!#REF!,8),IF(CALCULADORA!#REF!=20%,ROUND('Tabla de Amortizacion'!#REF!,8),ROUND('Tabla de Amortizacion'!K26,8)))))) -> 
A26: 2025-01-16 | B26: 0.01399737 | C26: =+VLOOKUP(A26,'Tabla de Amortizacion'!$D$2:$I$182,MATCH(Tablas!$B$1,'Tabla de Amortizacion'!$D$2:$I$2,0)) -> 0.01399737 | E26: =IF(CALCULADORA!#REF!="Contractual",ROUND('Tabla de Amortizacion'!C27,8),IF(CALCULADORA!#REF!="6% (Medio)",ROUND('Tabla de Amortizacion'!F27,8),IF(CALCULADORA!#REF!="10% (Medio Alto)",ROUND('Tabla de Amortizacion'!H27,8),IF(CALCULADORA!#REF!="14% (Alto)",ROUND('Tabla de Amortizacion'!#REF!,8),IF(CALCULADORA!#REF!=20%,ROUND('Tabla de Amortizacion'!#REF!,8),ROUND('Tabla de Amortizacion'!K27,8)))))) -> 
A27: 2025-02-16 | B27: 0.01582013 | C27: =+VLOOKUP(A27,'Tabla de Amortizacion'!$D$2:$I$182,MATCH(Tablas!$B$1,'Tabla de Amortizacion'!$D$2:$I$2,0)) -> 0.01582013 | E27: =IF(CALCULADORA!#REF!="Contractual",ROUND('Tabla de Amortizacion'!C28,8),IF(CALCULADORA!#REF!="6% (Medio)",ROUND('Tabla de Amortizacion'!F28,8),IF(CALCULADORA!#REF!="10% (Medio Alto)",ROUND('Tabla de Amortizacion'!H28,8),IF(CALCULADORA!#REF!="14% (Alto)",ROUND('Tabla de Amortizacion'!#REF!,8),IF(CALCULADORA!#REF!=20%,ROUND('Tabla de Amortizacion'!#REF!,8),ROUND('Tabla de Amortizacion'!K28,8)))))) -> 
A28: 2025-03-16 | B28: 0.01340969 | C28: =+VLOOKUP(A28,'Tabla de Amortizacion'!$D$2:$I$182,MATCH(Tablas!$B$1,'Tabla de Amortizacion'!$D$2:$I$2,0)) -> 0.01340969 | E28: =IF(CALCULADORA!#REF!="Contractual",ROUND('Tabla de Amortizacion'!C29,8),IF(CALCULADORA!#REF!="6% (Medio)",ROUND('Tabla de Amortizacion'!F29,8),IF(CALCULADORA!#REF!="10% (Medio Alto)",ROUND('Tabla de Amortizacion'!H29,8),IF(CALCULADORA!#REF!="14% (Alto)",ROUND('Tabla de Amortizacion'!#REF!,8),IF(CALCULADORA!#REF!=20%,ROUND('Tabla de Amortizacion'!#REF!,8),ROUND('Tabla de Amortizacion'!K29,8)))))) -> 
A29: 2025-04-16 | B29: 0.01073312 | C29: =+VLOOKUP(A29,'Tabla de Amortizacion'!$D$2:$I$182,MATCH(Tablas!$B$1,'Tabla de Amortizacion'!$D$2:$I$2,0)) -> 0.01073312 | E29: =IF(CALCULADORA!#REF!="Contractual",ROUND('Tabla de Amortizacion'!C30,8),IF(CALCULADORA!#REF!="6% (Medio)",ROUND('Tabla de Amortizacion'!F30,8),IF(CALCULADORA!#REF!="10% (Medio Alto)",ROUND('Tabla de Amortizacion'!H30,8),IF(CALCULADORA!#REF!="14% (Alto)",ROUND('Tabla de Amortizacion'!#REF!,8),IF(CALCULADORA!#REF!=20%,ROUND('Tabla de Amortizacion'!#REF!,8),ROUND('Tabla de Amortizacion'!K30,8)))))) -> 
A30: 2025-05-16 | B30: 0.01067899 | C30: =+VLOOKUP(A30,'Tabla de Amortizacion'!$D$2:$I$182,MATCH(Tablas!$B$1,'Tabla de Amortizacion'!$D$2:$I$2,0)) -> 0.01067899 | E30: =IF(CALCULADORA!#REF!="Contractual",ROUND('Tabla de Amortizacion'!C31,8),IF(CALCULADORA!#REF!="6% (Medio)",ROUND('Tabla de Amortizacion'!F31,8),IF(CALCULADORA!#REF!="10% (Medio Alto)",ROUND('Tabla de Amortizacion'!H31,8),IF(CALCULADORA!#REF!="14% (Alto)",ROUND('Tabla de Amortizacion'!#REF!,8),IF(CALCULADORA!#REF!=20%,ROUND('Tabla de Amortizacion'!#REF!,8),ROUND('Tabla de Amortizacion'!K31,8)))))) -> 
A31: 2025-06-16 | B31: 0.01066968 | C31: =+VLOOKUP(A31,'Tabla de Amortizacion'!$D$2:$I$182,MATCH(Tablas!$B$1,'Tabla de Amortizacion'!$D$2:$I$2,0)) -> 0.01066968 | E31: =IF(CALCULADORA!#REF!="Contractual",ROUND('Tabla de Amortizacion'!C32,8),IF(CALCULADORA!#REF!="6% (Medio)",ROUND('Tabla de Amortizacion'!F32,8),IF(CALCULADORA!#REF!="10% (Medio Alto)",ROUND('Tabla de Amortizacion'!H32,8),IF(CALCULADORA!#REF!="14% (Alto)",ROUND('Tabla de Amortizacion'!#REF!,8),IF(CALCULADORA!#REF!=20%,ROUND('Tabla de Amortizacion'!#REF!,8),ROUND('Tabla de Amortizacion'!K32,8)))))) -> 
A32: 2025-07-16 | B32: 0.0105964 | C32: =+VLOOKUP(A32,'Tabla de Amortizacion'!$D$2:$I$182,MATCH(Tablas!$B$1,'Tabla de Amortizacion'!$D$2:$I$2,0)) -> 0.0105964 | E32: =IF(CALCULADORA!#REF!="Contractual",ROUND('Tabla de Amortizacion'!C33,8),IF(CALCULADORA!#REF!="6% (Medio)",ROUND('Tabla de Amortizacion'!F33,8),IF(CALCULADORA!#REF!="10% (Medio Alto)",ROUND('Tabla de Amortizacion'!H33,8),IF(CALCULADORA!#REF!="14% (Alto)",ROUND('Tabla de Amortizacion'!#REF!,8),IF(CALCULADORA!#REF!=20%,ROUND('Tabla de Amortizacion'!#REF!,8),ROUND('Tabla de Amortizacion'!K33,8)))))) -> 
